Workbook

Sheet notes (hidden)
H2: =SUM(H3:H8) -> 0
C3: 600 | D3: 24 | E3: 600 | F3: 1000 | G3: =IF(Form!$D$4=D3,1,0) -> 0 | H3: =IF(G3=1,IF(OR(E3>Form!M$5,F3<Form!M$5),1,0),0) -> 0
C4: 800 | D4: 30 | E4: 800 | F4: 1200 | G4: =IF(Form!$D$4=D4,1,0) -> 0 | H4: =IF(G4=1,IF(OR(E4>Form!M$5,F4<Form!M$5),1,0),0) -> 0
C5: 1000 | D5: 36 | E5: 1000 | F5: 1400 | G5: =IF(Form!$D$4=D5,1,0) -> 0 | H5: =IF(G5=1,IF(OR(E5>Form!M$5,F5<Form!M$5),1,0),0) -> 0
C6: 1200 | D6: 42 | E6: 1200 | F6: 1600 | G6: =IF(Form!$D$4=D6,1,0) -> 0 | H6: =IF(G6=1,IF(OR(E6>Form!M$5,F6<Form!M$5),1,0),0) -> 0
C7: 1400 | D7: 48 | E7: 1400 | F7: 1800 | G7: =IF(Form!$D$4=D7,1,0) -> 0 | H7: =IF(G7=1,IF(OR(E7>Form!M$5,F7<Form!M$5),1,0),0) -> 0
C8: 1600 | D8: 60 | E8: 1600 | F8: 2000 | G8: =IF(Form!$D$4=D8,1,0) -> 0 | H8: =IF(G8=1,IF(OR(E8>Form!M$5,F8<Form!M$5),1,0),0) -> 0
C9: 1800
C10: 2000
D13: Total
B14: =Form!M5+Form!M6 -> 0 | E14: =E31 -> 0 | F14: =F31 -> 0 | G14: 0 | H14: 0 | I14: 0 | J14: 0 | K14: 0 | L14: =SUM(E14:K14) -> 0 | P14: 58
E15: =Form!C27 -> 65 | F15: =Form!E27 -> 75 | G15: =Form!G27 -> 85 | H15: =Form!I27 -> 90 | I15: =Form!K27 -> 95 | J15: =Form!M27 -> 105 | K15: =Form!O27 -> 115
A16: =C16+D16 -> 0 | B16: =P16 -> 0 | C16: =Form!A31 -> 0 | D16: =Form!B31 -> 0 | E16: =Form!C31 -> 0 | F16: =Form!E31 -> 0 | G16: =Form!G31 -> 0 | H16: =Form!I31 -> 0 | I16: =Form!K31 -> 0 | J16: =Form!M31 -> 0 | K16: =Form!O31 -> 0 | L16: =Form!$M$5+Form!M$6 -> 0 | M16: =IF(C16+D16=Form!M$5+Form!M$6,1,0) -> 1 | N16: =IF(A16<L16,1,0) -> 0 | O16: =IF(A16>L16,2,0) -> 0 | P16: =IF(AND(N16=1,N17=0),1,0)+IF(AND(O15=0,O16=2),2,0) -> 0
A17: =C17+D17 -> 0 | B17: =P17 -> 0 | C17: =C16 -> 0 | D17: =Form!B32 -> 0 | E17: =Form!C32 -> 0 | F17: =Form!E32 -> 0 | G17: =Form!G32 -> 0 | H17: =Form!I32 -> 0 | I17: =Form!K32 -> 0 | J17: =Form!M32 -> 0 | K17: =Form!O32 -> 0 | L17: =Form!$M$5+Form!M$6 -> 0 | M17: =IF(C17+D17=Form!M$5+Form!M$6,1,0) -> 1 | N17: =IF(A17<L17,1,0) -> 0 | O17: =IF(A17>L17,2,0) -> 0 | P17: =IF(AND(N17=1,N18=0),1,0)+IF(AND(O16=0,O17=2),2,0) -> 0
A18: 0 | B18: 0 | C18: =C17 -> 0 | D18: =Form!B33 -> 0 | E18: =Form!C33 -> 0 | F18: =Form!E33 -> 0 | G18: =Form!G33 -> 0 | H18: =Form!I33 -> 0 | I18: =Form!K33 -> 0 | J18: =Form!M33 -> 0 | K18: =Form!O33 -> 0 | L18: =Form!$M$5+Form!M$6 -> 0 | M18: =IF(C18+D18=Form!M$5+Form!M$6,1,0) -> 1 | N18: 0 | O18: =IF(A18>L18,2,0) -> 0 | P18: =IF(AND(N18=1,N19=0),1,0)+IF(AND(O17=0,O18=2),2,0) -> 0
A19: 0 | B19: 0 | C19: =C18 -> 0 | D19: =Form!B34 -> 0 | E19: =Form!C34 -> 0 | F19: =Form!E34 -> 0 | G19: =Form!G34 -> 0 | H19: =Form!I34 -> 0 | I19: =Form!K34 -> 0 | J19: =Form!M34 -> 0 | K19: =Form!O34 -> 0 | L19: =Form!$M$5+Form!M$6 -> 0 | M19: =IF(C19+D19=Form!M$5+Form!M$6,1,0) -> 1 | N19: 0 | O19: =IF(A19>L19,2,0) -> 0 | P19: =IF(AND(N19=1,N20=0),1,0)+IF(AND(O18=0,O19=2),2,0) -> 0
A20: 0 | B20: 0 | C20: =Form!A35 -> 0 | D20: =Form!B35 -> 0 | E20: =Form!C35 -> 0 | F20: =Form!E35 -> 0 | G20: =Form!G35 -> 0 | H20: =Form!I35 -> 0 | I20: =Form!K35 -> 0 | J20: =Form!M35 -> 0 | K20: =Form!O35 -> 0 | L20: =Form!$M$5+Form!M$6 -> 0 | M20: =IF(C20+D20=Form!M$5+Form!M$6,1,0) -> 1 | N20: 0 | O20: =IF(A20>L20,2,0) -> 0 | P20: =IF(AND(N20=1,N21=0),1,0)+IF(AND(O19=0,O20=2),2,0) -> 0
A21: 0 | B21: 0 | C21: =C20 -> 0 | D21: =Form!B36 -> 0 | E21: =Form!C36 -> 0 | F21: =Form!E36 -> 0 | G21: =Form!G36 -> 0 | H21: =Form!I36 -> 0 | I21: =Form!K36 -> 0 | J21: =Form!M36 -> 0 | K21: =Form!O36 -> 0 | L21: =Form!$M$5+Form!M$6 -> 0 | M21: =IF(C21+D21=Form!M$5+Form!M$6,1,0) -> 1 | N21: 0 | O21: =IF(A21>L21,2,0) -> 0 | P21: =IF(AND(N21=1,N22=0),1,0)+IF(AND(O20=0,O21=2),2,0) -> 0
A22: 0 | B22: 0 | C22: =C21 -> 0 | D22: =Form!B37 -> 0 | E22: =Form!C37 -> 0 | F22: =Form!E37 -> 0 | G22: =Form!G37 -> 0 | H22: =Form!I37 -> 0 | I22: =Form!K37 -> 0 | J22: =Form!M37 -> 0 | K22: =Form!O37 -> 0 | L22: =Form!$M$5+Form!M$6 -> 0 | M22: =IF(C22+D22=Form!M$5+Form!M$6,1,0) -> 1 | N22: 0 | O22: 0 | P22: 0
A23: 0 | B23: 0 | C23: =C22 -> 0 | D23: =Form!B38 -> 0 | E23: =Form!C38 -> 0 | F23: =Form!E38 -> 0 | G23: =Form!G38 -> 0 | H23: =Form!I38 -> 0 | I23: =Form!K38 -> 0 | J23: =Form!M38 -> 0 | K23: =Form!O38 -> 0 | L23: =Form!$M$5+Form!M$6 -> 0 | M23: =IF(C23+D23=Form!M$5+Form!M$6,1,0) -> 1 | N23: 0 | O23: 0 | P23: 0
A24: 0 | B24: 0 | C24: =Form!A39 -> 0 | D24: =Form!B39 -> 0 | E24: =Form!C39 -> 0 | F24: =Form!E39 -> 0 | G24: =Form!G39 -> 0 | H24: =Form!I39 -> 0 | I24: =Form!K39 -> 0 | J24: =Form!M39 -> 0 | K24: =Form!O39 -> 0 | L24: =Form!$M$5+Form!M$6 -> 0 | M24: =IF(C24+D24=Form!M$5+Form!M$6,1,0) -> 1 | N24: 0 | O24: 0 | P24: 0
A25: 0 | B25: 0 | C25: =C24 -> 0 | D25: =Form!B40 -> 0 | E25: =Form!C40 -> 0 | F25: =Form!E40 -> 0 | G25: =Form!G40 -> 0 | H25: =Form!I40 -> 0 | I25: =Form!K40 -> 0 | J25: =Form!M40 -> 0 | K25: =Form!O40 -> 0 | L25: =Form!$M$5+Form!M$6 -> 0 | M25: =IF(C25+D25=Form!M$5+Form!M$6,1,0) -> 1 | N25: 0 | O25: 0 | P25: 0
A26: 0 | B26: 0 | C26: =C25 -> 0 | D26: =Form!B41 -> 0 | E26: =Form!C41 -> 0 | F26: =Form!E41 -> 0 | G26: =Form!G41 -> 0 | H26: =Form!I41 -> 0 | I26: =Form!K41 -> 0 | J26: =Form!M41 -> 0 | K26: =Form!O41 -> 0 | L26: =Form!$M$5+Form!M$6 -> 0 | M26: =IF(C26+D26=Form!M$5+Form!M$6,1,0) -> 1 | N26: 0 | O26: 0 | P26: 0
A27: 0 | B27: 0 | C27: =C26 -> 0 | D27: =Form!B42 -> 0 | E27: =Form!C42 -> 0 | F27: =Form!E42 -> 0 | G27: =Form!G42 -> 0 | H27: =Form!I42 -> 0 | I27: =Form!K42 -> 0 | J27: =Form!M42 -> 0 | K27: =Form!O42 -> 0 | L27: =Form!$M$5+Form!M$6 -> 0 | M27: =IF(C27+D27=Form!M$5+Form!M$6,1,0) -> 1 | N27: 0 | O27: 0 | P27: 0
A28: 0 | B28: =SUM(B16:B27) -> 0
F29: =IF(AND(F15>Form!$M$4,E15<Form!$M$4),2,0) -> 0 | G29: =IF(AND(G15>Form!$M$4,F15<Form!$M$4),2,0) -> 0 | H29: =IF(AND(H15>Form!$M$4,G15<Form!$M$4),2,0) -> 0 | I29: =IF(AND(I15>Form!$M$4,H15<Form!$M$4),2,0) -> 0 | J29: =IF(AND(J15>Form!$M$4,I15<Form!$M$4),2,0) -> 0 | K29: =IF(AND(K15>Form!$M$4,J15<Form!$M$4),2,0) -> 0
C30: =HLOOKUP(1,E14:K15,2,FALSE) ->  | E30: =IF(F29=2,1,0) -> 0 | F30: =IF(G29=2,1,0) -> 0 | G30: 0 | H30: 0 | I30: 0 | J30: 0 | K30: 0
C31: =HLOOKUP(2,E14:K15,2,FALSE) ->  | E31: =SUM(E29:E30) -> 0 | F31: 0 | G31: 0 | H31: 0 | I31: 0 | J31: 0 | K31: 0
B32: =(VLOOKUP(1,B14:K27,3,FALSE)) ->  | C32: =IF(ISERROR(B32),0,B32) -> 0 | E32: =(C34-C35)/(C32-C33)*(Form!$M$6-C33)+C35 ->  | F32: =(C36-C37)/(C32-C33)*(Form!M6-C33)+C37 -> 
B33: =VLOOKUP(2,B14:K27,3,FALSE) ->  | C33: =IF(ISERROR(B33),0,B33) -> 0 | E33: =IF(AND(B28=0,L14=3),VLOOKUP(Form!$M$5+Form!$M$6,notes!A14:K27,MATCH(1,notes!A14:K14,FALSE),FALSE),0) -> 0 | F33: =IF(AND(B28=0,L14=3),VLOOKUP(Form!$M$5+Form!$M$6,notes!A14:K27,MATCH(2,notes!A14:K14,FALSE),FALSE),0) -> 0 | I33: exactly
B34: =VLOOKUP(1,B14:K27,MATCH(1,B14:K14,FALSE),FALSE) ->  | C34: =MIN(B34,B36) ->  | E34: =IF(ISERROR(E32),E33,E32) -> 0 | F34: =IF(ISERROR(F32),F33,F32) -> 0 | I34: x | J34: y | K34: err1 | L34: err2 | M34: err3 | N34: ans
B35: =VLOOKUP(2,B14:K27,MATCH(1,B14:K14,FALSE),FALSE) ->  | C35: =MAX(B35,B37) ->  | E35: =MIN(E34:F34) -> 0 | F35: =MAX(E34:F34) -> 0 | I35: y | J35: y | K35: =IF(ISERROR(VLOOKUP(Form!$M$5+Form!$M$6,notes!A15:K27,MATCH(Form!$M$4,notes!A15:K15,FALSE),FALSE)),0,VLOOKUP(Form!$M$5+Form!$M$6,notes!A15:K27,MATCH(Form!$M$4,notes!A15:K15,FALSE),FALSE)) -> 0 | N35: =SUM(K35:M35) -> 0
B36: =VLOOKUP(1,B14:K27,MATCH(2,B14:K14,FALSE),FALSE) ->  | C36: =MAX(B36,B34) ->  | E36: =(E35-F35)/(C31-C30)*(Form!$M$4-C30)+F35 ->  | I36: y | J36: n | N36: =SUM(K36:M36) -> 0
B37: =VLOOKUP(2,B14:K27,MATCH(2,B14:K14,FALSE),FALSE) ->  | C37: =MIN(B35,B37) ->  | I37: n | J37: n | K37: =IF(OR(E36>100000,E36<=0),0,E36) ->  | L37: =IF(K37<>0,0,MIN(E32:F32)) ->  | M37: =IF(AND(L37=0,K37=0),C34,0) ->  | N37: =SUM(K37:M37) -> 
N38: =IF(ISERROR(N37),N35,N37) -> 0
A41: sens | E41: =E58 -> 0 | F41: =F58 -> 0 | G41: 0 | H41: 0 | I41: 0 | J41: 0 | K41: 0 | L41: =SUM(E41:K41) -> 0
E42: =E15 -> 65 | F42: =F15 -> 75 | G42: 85 | H42: 90 | I42: 95 | J42: 105 | K42: 115
A43: =C43+D43 -> 0 | B43: =P43 -> 0 | C43: =C16 -> 0 | D43: =D16 -> 0 | E43: =Form!D31 -> 0 | F43: =Form!F31 -> 0 | G43: =Form!H31 -> 0 | H43: =Form!J31 -> 0 | I43: =Form!L31 -> 0 | J43: =Form!N31 -> 0 | K43: =Form!P31 -> 0 | L43: =Form!$M$5+Form!M$6 -> 0 | M43: =IF(C43+D43=Form!M$5+Form!M$6,1,0) -> 1 | N43: =IF(A43<L43,1,0) -> 0 | O43: =IF(A43>L43,2,0) -> 0 | P43: =IF(AND(N43=1,N44=0),1,0)+IF(AND(O42=0,O43=2),2,0) -> 0
A44: =C44+D44 -> 0 | B44: =P44 -> 0 | C44: =C17 -> 0 | D44: =D17 -> 0 | E44: =Form!D32 -> 0 | F44: =Form!F32 -> 0 | G44: =Form!H32 -> 0 | H44: =Form!J32 -> 0 | I44: =Form!L32 -> 0 | J44: =Form!N32 -> 0 | K44: =Form!P32 -> 0 | L44: =Form!$M$5+Form!M$6 -> 0 | M44: =IF(C44+D44=Form!M$5+Form!M$6,1,0) -> 1 | N44: =IF(A44<L44,1,0) -> 0 | O44: =IF(A44>L44,2,0) -> 0 | P44: =IF(AND(N44=1,N45=0),1,0)+IF(AND(O43=0,O44=2),2,0) -> 0
A45: =C45+D45 -> 0 | B45: 0 | C45: 0 | D45: 0 | E45: =Form!D33 -> 0 | F45: =Form!F33 -> 0 | G45: =Form!H33 -> 0 | H45: =Form!J33 -> 0 | I45: =Form!L33 -> 0 | J45: =Form!N33 -> 0 | K45: =Form!P33 -> 0 | L45: =Form!$M$5+Form!M$6 -> 0 | M45: =IF(C45+D45=Form!M$5+Form!M$6,1,0) -> 1 | N45: 0 | O45: =IF(A45>L45,2,0) -> 0 | P45: =IF(AND(N45=1,N46=0),1,0)+IF(AND(O44=0,O45=2),2,0) -> 0
A46: 0 | B46: 0 | C46: 0 | D46: 0 | E46: =Form!D34 -> 0 | F46: =Form!F34 -> 0 | G46: =Form!H34 -> 0 | H46: =Form!J34 -> 0 | I46: =Form!L34 -> 0 | J46: =Form!N34 -> 0 | K46: =Form!P34 -> 0 | L46: =Form!$M$5+Form!M$6 -> 0 | M46: =IF(C46+D46=Form!M$5+Form!M$6,1,0) -> 1 | N46: 0 | O46: =IF(A46>L46,2,0) -> 0 | P46: =IF(AND(N46=1,N47=0),1,0)+IF(AND(O45=0,O46=2),2,0) -> 0
A47: 0 | B47: 0 | C47: 0 | D47: 0 | E47: =Form!D35 -> 0 | F47: =Form!F35 -> 0 | G47: =Form!H35 -> 0 | H47: =Form!J35 -> 0 | I47: =Form!L35 -> 0 | J47: =Form!N35 -> 0 | K47: =Form!P35 -> 0 | L47: =Form!$M$5+Form!M$6 -> 0 | M47: =IF(C47+D47=Form!M$5+Form!M$6,1,0) -> 1 | N47: 0 | O47: =IF(A47>L47,2,0) -> 0 | P47: =IF(AND(N47=1,N48=0),1,0)+IF(AND(O46=0,O47=2),2,0) -> 0
A48: 0 | B48: 0 | C48: 0 | D48: 0 | E48: =Form!D36 -> 0 | F48: =Form!F36 -> 0 | G48: =Form!H36 -> 0 | H48: =Form!J36 -> 0 | I48: =Form!L36 -> 0 | J48: =Form!N36 -> 0 | K48: =Form!P36 -> 0 | L48: =Form!$M$5+Form!M$6 -> 0 | M48: =IF(C48+D48=Form!M$5+Form!M$6,1,0) -> 1 | N48: 0 | O48: =IF(A48>L48,2,0) -> 0 | P48: =IF(AND(N48=1,N49=0),1,0)+IF(AND(O47=0,O48=2),2,0) -> 0
A49: 0 | B49: 0 | C49: 0 | D49: 0 | E49: =Form!D37 -> 0 | F49: =Form!F37 -> 0 | G49: =Form!H37 -> 0 | H49: =Form!J37 -> 0 | I49: =Form!L37 -> 0 | J49: =Form!N37 -> 0 | K49: =Form!P37 -> 0 | L49: =Form!$M$5+Form!M$6 -> 0 | M49: =IF(C49+D49=Form!M$5+Form!M$6,1,0) -> 1 | N49: 0 | O49: 0 | P49: 0
A50: 0 | B50: 0 | C50: 0 | D50: 0 | E50: =Form!D38 -> 0 | F50: =Form!F38 -> 0 | G50: =Form!H38 -> 0 | H50: =Form!J38 -> 0 | I50: =Form!L38 -> 0 | J50: =Form!N38 -> 0 | K50: =Form!P38 -> 0 | L50: =Form!$M$5+Form!M$6 -> 0 | M50: =IF(C50+D50=Form!M$5+Form!M$6,1,0) -> 1 | N50: 0 | O50: 0 | P50: 0
A51: 0 | B51: 0 | C51: 0 | D51: 0 | E51: =Form!D39 -> 0 | F51: =Form!F39 -> 0 | G51: =Form!H39 -> 0 | H51: =Form!J39 -> 0 | I51: =Form!L39 -> 0 | J51: =Form!N39 -> 0 | K51: =Form!P39 -> 0 | L51: =Form!$M$5+Form!M$6 -> 0 | M51: =IF(C51+D51=Form!M$5+Form!M$6,1,0) -> 1 | N51: 0 | O51: 0 | P51: 0
A52: 0 | B52: 0 | C52: 0 | D52: 0 | E52: =Form!D40 -> 0 | F52: =Form!F40 -> 0 | G52: =Form!H40 -> 0 | H52: =Form!J40 -> 0 | I52: =Form!L40 -> 0 | J52: =Form!N40 -> 0 | K52: =Form!P40 -> 0 | L52: =Form!$M$5+Form!M$6 -> 0 | M52: =IF(C52+D52=Form!M$5+Form!M$6,1,0) -> 1 | N52: 0 | O52: 0 | P52: 0
A53: 0 | B53: 0 | C53: 0 | D53: 0 | E53: =Form!D41 -> 0 | F53: =Form!F41 -> 0 | G53: =Form!H41 -> 0 | H53: =Form!J41 -> 0 | I53: =Form!L41 -> 0 | J53: =Form!N41 -> 0 | K53: =Form!P41 -> 0 | L53: =Form!$M$5+Form!M$6 -> 0 | M53: =IF(C53+D53=Form!M$5+Form!M$6,1,0) -> 1 | N53: 0 | O53: 0 | P53: 0
A54: 0 | B54: 0 | C54: 0 | D54: 0 | E54: =Form!D42 -> 0 | F54: =Form!F42 -> 0 | G54: =Form!H42 -> 0 | H54: =Form!J42 -> 0 | I54: =Form!L42 -> 0 | J54: =Form!N42 -> 0 | K54: =Form!P42 -> 0 | L54: =Form!$M$5+Form!M$6 -> 0 | M54: =IF(C54+D54=Form!M$5+Form!M$6,1,0) -> 1 | N54: 0 | O54: 0 | P54: 0
A55: 0 | B55: =SUM(B43:B54) -> 0
F56: =IF(AND(F42>Form!$M$4,E42<Form!$M$4),2,0) -> 0 | G56: =IF(AND(G42>Form!$M$4,F42<Form!$M$4),2,0) -> 0 | H56: =IF(AND(H42>Form!$M$4,G42<Form!$M$4),2,0) -> 0 | I56: =IF(AND(I42>Form!$M$4,H42<Form!$M$4),2,0) -> 0 | J56: =IF(AND(J42>Form!$M$4,I42<Form!$M$4),2,0) -> 0 | K56: =IF(AND(K42>Form!$M$4,J42<Form!$M$4),2,0) -> 0
C57: =HLOOKUP(1,E41:K42,2,FALSE) ->  | E57: =IF(F56=2,1,0) -> 0 | F57: =IF(G56=2,1,0) -> 0 | G57: 0 | H57: 0 | I57: 0 | J57: 0 | K57: 0
C58: =HLOOKUP(2,E41:K42,2,FALSE) ->  | E58: =SUM(E56:E57) -> 0 | F58: 0 | G58: 0 | H58: 0 | I58: 0 | J58: 0 | K58: 0
B59: =(VLOOKUP(1,B41:K54,3,FALSE)) ->  | C59: =IF(ISERROR(B59),0,B59) -> 0 | E59: =(C61-C62)/(C59-C60)*(Form!$M$6-C60)+C62 ->  | F59: =(C63-C64)/(C59-C60)*(Form!M6-C60)+C64 -> 
B60: =VLOOKUP(2,B41:K54,3,FALSE) ->  | C60: =IF(ISERROR(B60),0,B60) -> 0 | E60: =IF(AND(B55=0,L41=3),VLOOKUP(Form!$M$5+Form!$M$6,notes!A41:K54,MATCH(1,notes!A41:K41,FALSE),FALSE),0) -> 0 | F60: =IF(AND(B55=0,L41=3),VLOOKUP(Form!$M$5+Form!$M$6,notes!A41:K54,MATCH(2,notes!A41:K41,FALSE),FALSE),0) -> 0 | I60: exactly
B61: =VLOOKUP(1,B41:K54,MATCH(1,B41:K41,FALSE),FALSE) ->  | C61: =MIN(B61,B63) ->  | E61: =IF(ISERROR(E59),E60,E59) -> 0 | F61: =IF(ISERROR(F59),F60,F59) -> 0 | I61: x | J61: y | K61: err1 | L61: err2 | M61: err3 | N61: ans
B62: =VLOOKUP(2,B41:K54,MATCH(1,B41:K41,FALSE),FALSE) ->  | C62: =MAX(B62,B64) ->  | E62: =MIN(E61:F61) -> 0 | F62: =MAX(E61:F61) -> 0 | I62: y | J62: y | K62: =IF(ISERROR(VLOOKUP(Form!$M$5+Form!$M$6,notes!A42:K54,MATCH(Form!$M$4,notes!A42:K42,FALSE),FALSE)),0,VLOOKUP(Form!$M$5+Form!$M$6,notes!A42:K54,MATCH(Form!$M$4,notes!A42:K42,FALSE),FALSE)) -> 0 | N62: =SUM(K62:M62) -> 0
B63: =VLOOKUP(1,B41:K54,MATCH(2,B41:K41,FALSE),FALSE) ->  | C63: =MAX(B63,B61) ->  | E63: =(E62-F62)/(C58-C57)*(Form!$M$4-C57)+F62 ->  | I63: y | J63: n | N63: =SUM(K63:M63) -> 0
B64: =VLOOKUP(2,B41:K54,MATCH(2,B41:K41,FALSE),FALSE) ->  | C64: =MIN(B62,B64) ->  | I64: n | J64: n | K64: =IF(OR(E63>100000,E63<=0),0,E63) ->  | L64: =IF(K64<>0,0,MIN(E59:F59)) ->  | M64: =IF(AND(L64=0,K64=0),C61,0) ->  | N64: =SUM(K64:M64) -> 
B65: =VLOOKUP(Form!M32+Form!M33,A41:K54,MATCH(2,A41:K41,FALSE),FALSE) ->  | N65: =IF(ISERROR(N64),N62,N64) -> 0

Sheet Options (hidden)
A1: GSX130
A2: GSX140
A3: GSX160

Sheet Calcs (hidden)
D1: Condenser :
D2: ADP Evaporator:
D3: Condenser Entering Air Temperature: | E3: 100 | F3: (°F) Dry Bulb, 85°F to 115°F
D4: Evaporator Air Flow: | E4: 1265 | F4: CFM
D5: Entering Evaporator Air (DB): | E5: 77.5 | F5: (°F) Dry Bulb
D6: Entering Evaporator Air (WB): | E6: 60.6 | F6: (°F) Wet Bulb, 63°F to 71°F
A9: Total
A10: 28.55 | B10: 1200 60.6
B12: Diff 200 | C12: =A10-A14 -> 0.308 | D12: Diff 1 cfm | E12: =C12/200 -> 0.00154 | F12: 1265 total | G12: =A10-(65*E12) -> 28.4499
A14: 28.242 | B14: 1400 60.6
A16: Sens
A17: 25.32 | B17: 1200 60.6
B19: Diff 200 | C19: =A17-A21 -> 0.5544 | D19: Diff 1 cfm | E19: =C19/200 -> 0.002772 | F19: 1265 Sens | G19: =A17-(65*E19) -> 25.13982
A21: 24.7656 | B21: 1400 60.6

Sheet GSX130_18 (hidden)
A2: GSX130_18
A3: Evaporator Air | C3: Condenser Entering Air Temperature ˚F
A4: 80 | B4: °F DB | C4: 65 | E4: 75 | G4: 85 | I4: 90 | K4: 95 | M4: 105 | O4: 115
A5: CFM | B5: EWB† ˚F | C5: Capacity Mbtuh | E5: Capacity Mbtuh | G5: Capacity Mbtuh | I5: Capacity Mbtuh | K5: Capacity Mbtuh | M5: Capacity Mbtuh | O5: Capacity Mbtuh
C6: Total | D6: Sens. | E6: Total | F6: Sens. | G6: Total | H6: Sens. | I6: Total | J6: Sens. | K6: Total | L6: Sens. | M6: Total | N6: Sens. | O6: Total | P6: Sens.
R7: Total Factors | Y7: Sens. % | AF7: IDB Adj | AM7: Sens Calc
A8: 525 | B8: 71 | C8: =R8*$K$13 -> 26.21965318 | D8: =IF(AM8>C8,C8,AM8) -> 13.10982659 | E8: =S8*$K$13 -> 25.52601156 | F8: =IF(AN8>E8,E8,AN8) -> 13.27352601 | G8: =T8*$K$13 -> 24.97109827 | H8: =IF(AO8>G8,G8,AO8) -> 13.23468208 | I8: =U8*$K$13 -> 24.69364162 | J8: =IF(AP8>I8,I8,AP8) -> 13.33456647 | K8: =V8*$K$13 -> 24.41618497 | L8: =IF(AQ8>K8,K8,AQ8) -> 13.42890173 | M8: =W8*$K$13 -> 23.16763006 | N8: =IF(AR8>M8,M8,AR8) -> 13.20554913 | O8: =X8*$K$13 -> 21.50289017 | P8: =IF(AS8>O8,O8,AS8) -> 12.2566474 | R8: 1.092485549 | S8: 1.063583815 | T8: 1.040462428 | U8: 1.028901734 | V8: 1.01734104 | W8: 0.9653179191 | X8: 0.8959537572 | Y8: 0.5 | Z8: 0.52 | AA8: 0.53 | AB8: 0.54 | AC8: 0.55 | AD8: 0.57 | AE8: 0.57 | AF8: 1.066666667 | AG8: 1.094095238 | AH8: 1.083047619 | AI8: 1.104571429 | AJ8: 1.125333333 | AK8: 1.066285714 | AL8: 0.9885714286 | AM8: =Y8*C8+($A$4-80)*AF8*$A$8/1000 -> 13.10982659 | AN8: =Z8*E8+($A$4-80)*AG8*$A$8/1000 -> 13.27352601 | AO8: =AA8*G8+($A$4-80)*AH8*$A$8/1000 -> 13.23468208 | AP8: =AB8*I8+($A$4-80)*AI8*$A$8/1000 -> 13.33456647 | AQ8: =AC8*K8+($A$4-80)*AJ8*$A$8/1000 -> 13.42890173 | AR8: =AD8*M8+($A$4-80)*AK8*$A$8/1000 -> 13.20554913 | AS8: =AE8*O8+($A$4-80)*AL8*$A$8/1000 -> 12.2566474
B9: 67 | C9: 24.55491329 | D9: 16.45179191 | E9: 24 | F9: 16.56 | G9: 23.30635838 | H9: 16.54751445 | I9: 23.02890173 | J9: 16.58080925 | K9: =V9*$K$13 -> 22.75144509 | L9: 16.60855491 | M9: 21.6416185 | N9: 16.44763006 | O9: 20.11560694 | P9: 15.48901734 | R9: 1.023121387 | S9: 1 | T9: 0.9710982659 | U9: 0.9595375723 | V9: 0.9479768786 | W9: 0.901734104 | X9: 0.838150289 | Y9: 0.67 | Z9: 0.69 | AA9: 0.71 | AB9: 0.72 | AC9: 0.73 | AD9: 0.76 | AE9: 0.77 | AF9: 0.8765714286 | AG9: 0.8567619048 | AH9: 0.8099047619 | AI9: 0.8314285714 | AJ9: 0.8521904762 | AK9: 0.8083809524 | AL9: 0.8285714286 | AM9: =Y9*C9+($A$4-80)*AF9*$A$8/1000 -> 16.45179191 | AN9: =Z9*E9+($A$4-80)*AG9*$A$8/1000 -> 16.56 | AO9: =AA9*G9+($A$4-80)*AH9*$A$8/1000 -> 16.54751445 | AP9: =AB9*I9+($A$4-80)*AI9*$A$8/1000 -> 16.58080925 | AQ9: =AC9*K9+($A$4-80)*AJ9*$A$8/1000 -> 16.60855491 | AR9: =AD9*M9+($A$4-80)*AK9*$A$8/1000 -> 16.44763006 | AS9: =AE9*O9+($A$4-80)*AL9*$A$8/1000 -> 15.48901734
B10: 63 | C10: 22.89017341 | D10: 18.7699422 | E10: 22.33526012 | F10: 18.9849711 | G10: 21.91907514 | H10: 19.06959538 | I10: 21.6416185 | J10: 19.15283237 | K10: =V10*$K$13 -> 21.36416185 | L10: 19.22774566 | M10: 20.25433526 | N10: 19.03907514 | O10: 18.7283237 | P10: 17.60462428 | R10: 0.9537572254 | S10: 0.9306358382 | T10: 0.9132947977 | U10: 0.901734104 | V10: 0.8901734104 | W10: 0.8439306358 | X10: 0.7803468208 | Y10: 0.82 | Z10: 0.85 | AA10: 0.87 | AB10: 0.885 | AC10: 0.9 | AD10: 0.94 | AE10: 0.94 | AF10: 0.656 | AG10: 0.7028571429 | AH10: 0.72 | AI10: 0.7420952381 | AJ10: 0.7634285714 | AK10: 0.7539047619 | AL10: 0.6483809524 | AM10: =Y10*C10+($A$4-80)*AF10*$A$8/1000 -> 18.7699422 | AN10: =Z10*E10+($A$4-80)*AG10*$A$8/1000 -> 18.9849711 | AO10: =AA10*G10+($A$4-80)*AH10*$A$8/1000 -> 19.06959538 | AP10: =AB10*I10+($A$4-80)*AI10*$A$8/1000 -> 19.15283237 | AQ10: =AC10*K10+($A$4-80)*AJ10*$A$8/1000 -> 19.22774566 | AR10: =AD10*M10+($A$4-80)*AK10*$A$8/1000 -> 19.03907514 | AS10: =AE10*O10+($A$4-80)*AL10*$A$8/1000 -> 17.60462428
B11: 59 | C11: 22.47398844 | D11: 19.77710983 | E11: 21.91907514 | F11: 19.94635838 | G11: 21.36416185 | H11: 19.86867052 | I11: 21.0867052 | J11: 19.92693642 | K11: =V11*$K$13 -> 20.80924855 | L11: 19.97687861 | M11: 19.83815029 | N11: 19.83815029 | O11: 18.31213873 | P11: 18.31213873 | R11: 0.936416185 | S11: 0.9132947977 | T11: 0.8901734104 | U11: 0.8786127168 | V11: 0.8670520231 | W11: 0.8265895954 | X11: 0.7630057803 | Y11: 0.88 | Z11: 0.91 | AA11: 0.93 | AB11: 0.945 | AC11: 0.96 | AD11: 1 | AE11: 1.01 | AF11: 0.5851428571 | AG11: 0.5763809524 | AH11: 0.5340952381 | AI11: 0.5291428571 | AJ11: 0.5241904762 | AK11: 0.5942857143 | AL11: 0.5226666667 | AM11: =Y11*C11+($A$4-80)*AF11*$A$8/1000 -> 19.77710983 | AN11: =Z11*E11+($A$4-80)*AG11*$A$8/1000 -> 19.94635838 | AO11: =AA11*G11+($A$4-80)*AH11*$A$8/1000 -> 19.86867052 | AP11: =AB11*I11+($A$4-80)*AI11*$A$8/1000 -> 19.92693642 | AQ11: =AC11*K11+($A$4-80)*AJ11*$A$8/1000 -> 19.97687861 | AR11: =AD11*M11+($A$4-80)*AK11*$A$8/1000 -> 19.83815029 | AS11: =AE11*O11+($A$4-80)*AL11*$A$8/1000 -> 18.49526012
A12: 600 | B12: 71 | C12: 27.46820809 | D12: 14.00878613 | E12: 26.9132948 | F12: 14.26404624 | G12: 26.21965318 | H12: 14.15861272 | I12: 25.94219653 | J12: 14.26820809 | K12: =V12*$K$13 -> 25.66473988 | L12: 14.37225434 | M12: 24.27745665 | N12: 14.08092486 | O12: 22.47398844 | P12: 13.03491329 | R12: 1.144508671 | S12: 1.121387283 | T12: 1.092485549 | U12: 1.080924855 | V12: 1.069364162 | W12: 1.011560694 | X12: 0.936416185 | Y12: 0.51 | Z12: 0.53 | AA12: 0.54 | AB12: 0.55 | AC12: 0.56 | AD12: 0.58 | AE12: 0.58 | AF12: 1.032666667 | AG12: 1.022333333 | AH12: 0.9826666667 | AI12: 1.00925 | AJ12: 1.035333333 | AK12: 1.023333333 | AL12: 0.8906666667 | AM12: =Y12*C12+($A$4-80)*AF12*$A$12/1000 -> 14.00878613 | AN12: =Z12*E12+($A$4-80)*AG12*$A$12/1000 -> 14.26404624 | AO12: =AA12*G12+($A$4-80)*AH12*$A$12/1000 -> 14.15861272 | AP12: =AB12*I12+($A$4-80)*AI12*$A$12/1000 -> 14.26820809 | AQ12: =AC12*K12+($A$4-80)*AJ12*$A$12/1000 -> 14.37225434 | AR12: =AD12*M12+($A$4-80)*AK12*$A$12/1000 -> 14.08092486 | AS12: =AE12*O12+($A$4-80)*AL12*$A$12/1000 -> 13.03491329
B13: 67 | C13: 25.80346821 | D13: 17.54635838 | E13: 25.10982659 | F13: 17.57687861 | G13: 24.55491329 | H13: 17.67953757 | I13: 24.27745665 | J13: 17.84393064 | K13: 24 | L13: 18 | M13: 22.75144509 | N13: 17.51861272 | O13: 21.0867052 | P13: 16.44763006 | R13: 1.075144509 | S13: 1.046242775 | T13: 1.023121387 | U13: 1.011560694 | V13: 1 | W13: 0.9479768786 | X13: 0.8786127168 | Y13: 0.68 | Z13: 0.7 | AA13: 0.72 | AB13: 0.735 | AC13: 0.75 | AD13: 0.77 | AE13: 0.78 | AF13: 0.806 | AG13: 0.7653333333 | AH13: 0.8066666667 | AI13: 0.836 | AJ13: 0.865 | AK13: 0.7443333333 | AL13: 0.76 | AM13: =Y13*C13+($A$4-80)*AF13*$A$12/1000 -> 17.54635838 | AN13: =Z13*E13+($A$4-80)*AG13*$A$12/1000 -> 17.57687861 | AO13: =AA13*G13+($A$4-80)*AH13*$A$12/1000 -> 17.67953757 | AP13: =AB13*I13+($A$4-80)*AI13*$A$12/1000 -> 17.84393064 | AQ13: =AC13*K13+($A$4-80)*AJ13*$A$12/1000 -> 18 | AR13: =AD13*M13+($A$4-80)*AK13*$A$12/1000 -> 17.51861272 | AS13: =AE13*O13+($A$4-80)*AL13*$A$12/1000 -> 16.44763006
B14: 63 | C14: 24.13872832 | D14: 20.27653179 | E14: 23.58381503 | F14: 20.51791908 | G14: 23.02890173 | H14: 20.49572254 | I14: 22.75144509 | J14: 20.5900578 | K14: =V14*$K$13 -> 22.47398844 | L14: 20.67606936 | M14: 21.36416185 | N14: 20.29595376 | O14: 19.69942197 | P14: 18.91144509 | R14: 1.005780347 | S14: 0.9826589595 | T14: 0.9595375723 | U14: 0.9479768786 | V14: 0.936416185 | W14: 0.8901734104 | X14: 0.8208092486 | Y14: 0.84 | Z14: 0.87 | AA14: 0.89 | AB14: 0.905 | AC14: 0.92 | AD14: 0.95 | AE14: 0.96 | AF14: 0.6866666667 | AG14: 0.73 | AH14: 0.7153333333 | AI14: 0.7083333333 | AJ14: 0.7013333333 | AK14: 0.6713333333 | AL14: 0.643 | AM14: =Y14*C14+($A$4-80)*AF14*$A$12/1000 -> 20.27653179 | AN14: =Z14*E14+($A$4-80)*AG14*$A$12/1000 -> 20.51791908 | AO14: =AA14*G14+($A$4-80)*AH14*$A$12/1000 -> 20.49572254 | AP14: =AB14*I14+($A$4-80)*AI14*$A$12/1000 -> 20.5900578 | AQ14: =AC14*K14+($A$4-80)*AJ14*$A$12/1000 -> 20.67606936 | AR14: =AD14*M14+($A$4-80)*AK14*$A$12/1000 -> 20.29595376 | AS14: =AE14*O14+($A$4-80)*AL14*$A$12/1000 -> 18.91144509
B15: 59 | C15: 23.58381503 | D15: 20.98959538 | E15: 23.02890173 | F15: 21.1865896 | G15: 22.47398844 | H15: 21.35028902 | I15: 22.19653179 | J15: 21.41965318 | K15: 21.91907514 | L15: 21.48069364 | M15: 20.80924855 | N15: 20.80924855 | O15: 19.28323699 | P15: 19.28323699 | R15: 0.9826589595 | S15: 0.9595375723 | T15: 0.936416185 | U15: 0.9248554913 | V15: 0.9132947977 | W15: 0.8670520231 | X15: 0.8034682081 | Y15: 0.89 | Z15: 0.92 | AA15: 0.95 | AB15: 0.965 | AC15: 0.98 | AD15: 1 | AE15: 1 | AF15: 0.5343333333 | AG15: 0.5266666667 | AH15: 0.572 | AI15: 0.5675 | AJ15: 0.563 | AK15: 0.4613333333 | AL15: 0.3863333333 | AM15: =Y15*C15+($A$4-80)*AF15*$A$12/1000 -> 20.98959538 | AN15: =Z15*E15+($A$4-80)*AG15*$A$12/1000 -> 21.1865896 | AO15: =AA15*G15+($A$4-80)*AH15*$A$12/1000 -> 21.35028902 | AP15: =AB15*I15+($A$4-80)*AI15*$A$12/1000 -> 21.41965318 | AQ15: =AC15*K15+($A$4-80)*AJ15*$A$12/1000 -> 21.48069364 | AR15: =AD15*M15+($A$4-80)*AK15*$A$12/1000 -> 20.80924855 | AS15: =AE15*O15+($A$4-80)*AL15*$A$12/1000 -> 19.28323699
A16: 650 | B16: 71 | C16: 28.43930636 | D16: 14.78843931 | E16: 27.74566474 | F16: 14.98265896 | G16: 27.05202312 | H16: 14.87861272 | I16: 26.70520231 | J16: 14.95491329 | K16: 26.3583815 | L16: 15.02427746 | M16: 25.10982659 | N16: 14.81479769 | O16: 23.16763006 | P16: 13.90057803 | R16: 1.184971098 | S16: 1.156069364 | T16: 1.12716763 | U16: 1.112716763 | V16: 1.098265896 | W16: 1.046242775 | X16: 0.9653179191 | Y16: 0.52 | Z16: 0.54 | AA16: 0.55 | AB16: 0.56 | AC16: 0.57 | AD16: 0.59 | AE16: 0.6 | AF16: 0.9981538462 | AG16: 1.034769231 | AH16: 1.008307692 | AI16: 0.9889230769 | AJ16: 0.9692307692 | AK16: 0.9898461538 | AL16: 0.9510769231 | AM16: =Y16*C16+($A$4-80)*AF16*$A$16/1000 -> 14.78843931 | AN16: =Z16*E16+($A$4-80)*AG16*$A$16/1000 -> 14.98265896 | AO16: =AA16*G16+($A$4-80)*AH16*$A$16/1000 -> 14.87861272 | AP16: =AB16*I16+($A$4-80)*AI16*$A$16/1000 -> 14.95491329 | AQ16: =AC16*K16+($A$4-80)*AJ16*$A$16/1000 -> 15.02427746 | AR16: =AD16*M16+($A$4-80)*AK16*$A$16/1000 -> 14.81479769 | AS16: =AE16*O16+($A$4-80)*AL16*$A$16/1000 -> 13.90057803
B17: 67 | C17: 26.49710983 | D17: 18.28300578 | E17: 25.94219653 | F17: 18.6783815 | G17: 25.24855491 | H17: 18.68393064 | I17: 24.97109827 | J17: 18.7283237 | K17: 24.69364162 | L17: 18.76716763 | M17: 23.44508671 | N17: 18.5216185 | O17: 21.78034682 | P17: 17.42427746 | R17: 1.104046243 | S17: 1.080924855 | T17: 1.052023121 | U17: 1.040462428 | V17: 1.028901734 | W17: 0.9768786127 | X17: 0.9075144509 | Y17: 0.69 | Z17: 0.72 | AA17: 0.74 | AB17: 0.75 | AC17: 0.76 | AD17: 0.79 | AE17: 0.8 | AF17: 0.7467692308 | AG17: 0.8055384615 | AH17: 0.7655384615 | AI17: 0.7566153846 | AJ17: 0.7476923077 | AK17: 0.7603076923 | AL17: 0.7729230769 | AM17: =Y17*C17+($A$4-80)*AF17*$A$16/1000 -> 18.28300578 | AN17: =Z17*E17+($A$4-80)*AG17*$A$16/1000 -> 18.6783815 | AO17: =AA17*G17+($A$4-80)*AH17*$A$16/1000 -> 18.68393064 | AP17: =AB17*I17+($A$4-80)*AI17*$A$16/1000 -> 18.7283237 | AQ17: =AC17*K17+($A$4-80)*AJ17*$A$16/1000 -> 18.76716763 | AR17: =AD17*M17+($A$4-80)*AK17*$A$16/1000 -> 18.5216185 | AS17: =AE17*O17+($A$4-80)*AL17*$A$16/1000 -> 17.42427746
B18: 63 | C18: 24.83236994 | D18: 21.10751445 | E18: 24.27745665 | F18: 21.36416185 | G18: 23.72254335 | H18: 21.58751445 | I18: 23.44508671 | J18: 21.6867052 | K18: 23.16763006 | L18: 21.77757225 | M18: 21.91907514 | N18: 21.91907514 | O18: 20.39306358 | P18: 20.39306358 | R18: 1.034682081 | S18: 1.011560694 | T18: 0.9884393064 | U18: 0.9768786127 | V18: 0.9653179191 | W18: 0.9132947977 | X18: 0.8497109827 | Y18: 0.85 | Z18: 0.88 | AA18: 0.91 | AB18: 0.925 | AC18: 0.94 | AD18: 1 | AE18: 1 | AF18: 0.6513846154 | AG18: 0.6396923077 | AH18: 0.68 | AI18: 0.6992307692 | AJ18: 0.7178461538 | AK18: 0.8036923077 | AL18: 0.7307692308 | AM18: =Y18*C18+($A$4-80)*AF18*$A$16/1000 -> 21.10751445 | AN18: =Z18*E18+($A$4-80)*AG18*$A$16/1000 -> 21.36416185 | AO18: =AA18*G18+($A$4-80)*AH18*$A$16/1000 -> 21.58751445 | AP18: =AB18*I18+($A$4-80)*AI18*$A$16/1000 -> 21.6867052 | AQ18: =AC18*K18+($A$4-80)*AJ18*$A$16/1000 -> 21.77757225 | AR18: =AD18*M18+($A$4-80)*AK18*$A$16/1000 -> 21.91907514 | AS18: =AE18*O18+($A$4-80)*AL18*$A$16/1000 -> 20.39306358
B19: 59 | C19: 24.27745665 | D19: 22.09248555 | E19: 23.72254335 | F19: 22.29919075 | G19: 23.16763006 | H19: 22.47260116 | I19: 22.89017341 | J19: 22.54682081 | K19: 22.61271676 | L19: 22.61271676 | M19: 21.50289017 | N19: 21.50289017 | O19: 19.83815029 | P19: 19.83815029 | R19: 1.011560694 | S19: 0.9884393064 | T19: 0.9653179191 | U19: 0.9537572254 | V19: 0.9421965318 | W19: 0.8959537572 | X19: 0.8265895954 | Y19: 0.91 | Z19: 0.94 | AA19: 0.97 | AB19: 0.985 | AC19: 1 | AD19: 1 | AE19: 1 | AF19: 0.5073846154 | AG19: 0.5003076923 | AH19: 0.5436923077 | AI19: 0.5395384615 | AJ19: 0.5353846154 | AK19: 0.3729230769 | AL19: 0.2784615385 | AM19: =Y19*C19+($A$4-80)*AF19*$A$16/1000 -> 22.09248555 | AN19: =Z19*E19+($A$4-80)*AG19*$A$16/1000 -> 22.29919075 | AO19: =AA19*G19+($A$4-80)*AH19*$A$16/1000 -> 22.47260116 | AP19: =AB19*I19+($A$4-80)*AI19*$A$16/1000 -> 22.54682081 | AQ19: =AC19*K19+($A$4-80)*AJ19*$A$16/1000 -> 22.61271676 | AR19: =AD19*M19+($A$4-80)*AK19*$A$16/1000 -> 21.50289017 | AS19: =AE19*O19+($A$4-80)*AL19*$A$16/1000 -> 19.83815029

Sheet GSX130_24 (hidden)
A2: GSX130_24
A3: Evaporator Air | C3: Condenser Entering Air Temperature ˚F
A4: 80 | B4: °F DB | C4: 65 | E4: 75 | G4: 85 | I4: 90 | K4: 95 | M4: 105 | O4: 115
A5: CFM | B5: EWB† ˚F | C5: Capacity Mbtuh | E5: Capacity Mbtuh | G5: Capacity Mbtuh | I5: Capacity Mbtuh | K5: Capacity Mbtuh | M5: Capacity Mbtuh | O5: Capacity Mbtuh
C6: Total | D6: Sens. | E6: Total | F6: Sens. | G6: Total | H6: Sens. | I6: Total | J6: Sens. | K6: Total | L6: Sens. | M6: Total | N6: Sens. | O6: Total | P6: Sens.
R7: Total Factors | Y7: Sens. % | AF7: IDB Adj | AM7: Sens Calc
A8: 700 | B8: 71 | C8: =R8*$K$13 -> 25.46086957 | D8: =IF(AM8>C8,C8,AM8) -> 12.47582609 | E8: =S8*$K$13 -> 24.83478261 | F8: =IF(AN8>E8,E8,AN8) -> 12.66573913 | G8: =T8*$K$13 -> 24.31304348 | H8: =IF(AO8>G8,G8,AO8) -> 12.64278261 | I8: =U8*$K$13 -> 24 | J8: =IF(AP8>I8,I8,AP8) -> 12.72 | K8: =V8*$K$13 -> 23.68695652 | L8: =IF(AQ8>K8,K8,AQ8) -> 12.79095652 | M8: =W8*$K$13 -> 22.53913043 | N8: =IF(AR8>M8,M8,AR8) -> 12.62191304 | O8: =X8*$K$13 -> 20.86956522 | P8: =IF(AS8>O8,O8,AS8) -> 11.68695652 | R8: 1.060869565 | S8: 1.034782609 | T8: 1.013043478 | U8: 1 | V8: 0.9869565217 | W8: 0.9391304348 | X8: 0.8695652174 | Y8: 0.49 | Z8: 0.51 | AA8: 0.52 | AB8: 0.53 | AC8: 0.54 | AD8: 0.56 | AE8: 0.56 | AF8: 1.026285714 | AG8: 1.068 | AH8: 1.054857143 | AI8: 1.035571429 | AJ8: 1.016 | AK8: 1.038 | AL8: 0.9602857143 | AM8: =Y8*C8+($A$4-80)*AF8*$A$8/1000 -> 12.47582609 | AN8: =Z8*E8+($A$4-80)*AG8*$A$8/1000 -> 12.66573913 | AO8: =AA8*G8+($A$4-80)*AH8*$A$8/1000 -> 12.64278261 | AP8: =AB8*I8+($A$4-80)*AI8*$A$8/1000 -> 12.72 | AQ8: =AC8*K8+($A$4-80)*AJ8*$A$8/1000 -> 12.79095652 | AR8: =AD8*M8+($A$4-80)*AK8*$A$8/1000 -> 12.62191304 | AS8: =AE8*O8+($A$4-80)*AL8*$A$8/1000 -> 11.68695652
B9: 67 | C9: 23.79130435 | D9: 15.70226087 | E9: 23.26956522 | F9: 15.82330435 | G9: 22.74782609 | H9: 15.92347826 | I9: 22.43478261 | J9: 15.92869565 | K9: =V9*$K$13 -> 22.12173913 | L9: 15.92765217 | M9: 21.07826087 | N9: 15.80869565 | O9: 19.51304348 | P9: 14.63478261 | R9: 0.9913043478 | S9: 0.9695652174 | T9: 0.947826087 | U9: 0.9347826087 | V9: 0.9217391304 | W9: 0.8782608696 | X9: 0.8130434783 | Y9: 0.66 | Z9: 0.68 | AA9: 0.7 | AB9: 0.71 | AC9: 0.72 | AD9: 0.75 | AE9: 0.75 | AF9: 0.8317142857 | AG9: 0.8125714286 | AH9: 0.872 | AI9: 0.8518571429 | AJ9: 0.8314285714 | AK9: 0.808 | AL9: 0.748 | AM9: =Y9*C9+($A$4-80)*AF9*$A$8/1000 -> 15.70226087 | AN9: =Z9*E9+($A$4-80)*AG9*$A$8/1000 -> 15.82330435 | AO9: =AA9*G9+($A$4-80)*AH9*$A$8/1000 -> 15.92347826 | AP9: =AB9*I9+($A$4-80)*AI9*$A$8/1000 -> 15.92869565 | AQ9: =AC9*K9+($A$4-80)*AJ9*$A$8/1000 -> 15.92765217 | AR9: =AD9*M9+($A$4-80)*AK9*$A$8/1000 -> 15.80869565 | AS9: =AE9*O9+($A$4-80)*AL9*$A$8/1000 -> 14.63478261
B10: 63 | C10: 22.33043478 | D10: 18.08765217 | E10: 21.80869565 | F10: 18.31930435 | G10: 21.28695652 | H10: 18.30678261 | I10: 21.02608696 | J10: 18.39782609 | K10: =V10*$K$13 -> 20.76521739 | L10: 18.48104348 | M10: 19.72173913 | N10: 18.144 | O10: 18.26086957 | P10: 16.9826087 | R10: 0.9304347826 | S10: 0.9086956522 | T10: 0.8869565217 | U10: 0.8760869565 | V10: 0.8652173913 | W10: 0.8217391304 | X10: 0.7608695652 | Y10: 0.81 | Z10: 0.84 | AA10: 0.86 | AB10: 0.875 | AC10: 0.89 | AD10: 0.92 | AE10: 0.93 | AF10: 0.7325714286 | AG10: 0.6985714286 | AH10: 0.684 | AI10: 0.7055 | AJ10: 0.7262857143 | AK10: 0.6937142857 | AL10: 0.6462857143 | AM10: =Y10*C10+($A$4-80)*AF10*$A$8/1000 -> 18.08765217 | AN10: =Z10*E10+($A$4-80)*AG10*$A$8/1000 -> 18.31930435 | AO10: =AA10*G10+($A$4-80)*AH10*$A$8/1000 -> 18.30678261 | AP10: =AB10*I10+($A$4-80)*AI10*$A$8/1000 -> 18.39782609 | AQ10: =AC10*K10+($A$4-80)*AJ10*$A$8/1000 -> 18.48104348 | AR10: =AD10*M10+($A$4-80)*AK10*$A$8/1000 -> 18.144 | AS10: =AE10*O10+($A$4-80)*AL10*$A$8/1000 -> 16.9826087
B11: 59 | C11: 21.80869565 | D11: 18.75547826 | E11: 21.28695652 | F11: 18.9453913 | G11: 20.76521739 | H11: 19.104 | I11: 20.50434783 | J11: 19.06904348 | K11: =V11*$K$13 -> 20.24347826 | L11: 19.02886957 | M11: 19.30434783 | N11: 18.91826087 | O11: 17.84347826 | P11: 17.66504348 | R11: 0.9086956522 | S11: 0.8869565217 | T11: 0.8652173913 | U11: 0.8543478261 | V11: 0.8434782609 | W11: 0.8043478261 | X11: 0.7434782609 | Y11: 0.86 | Z11: 0.89 | AA11: 0.92 | AB11: 0.93 | AC11: 0.94 | AD11: 0.98 | AE11: 0.99 | AF11: 0.5082857143 | AG11: 0.5357142857 | AH11: 0.5828571429 | AI11: 0.5496428571 | AJ11: 0.5171428571 | AK11: 0.552 | AL11: 0.5168571429 | AM11: =Y11*C11+($A$4-80)*AF11*$A$8/1000 -> 18.75547826 | AN11: =Z11*E11+($A$4-80)*AG11*$A$8/1000 -> 18.9453913 | AO11: =AA11*G11+($A$4-80)*AH11*$A$8/1000 -> 19.104 | AP11: =AB11*I11+($A$4-80)*AI11*$A$8/1000 -> 19.06904348 | AQ11: =AC11*K11+($A$4-80)*AJ11*$A$8/1000 -> 19.02886957 | AR11: =AD11*M11+($A$4-80)*AK11*$A$8/1000 -> 18.91826087 | AS11: =AE11*O11+($A$4-80)*AL11*$A$8/1000 -> 17.66504348
A12: 800 | B12: 71 | C12: 27.54782609 | D12: 14.0493913 | E12: 26.92173913 | F12: 14.26852174 | G12: 26.29565217 | H12: 14.19965217 | I12: 25.9826087 | J12: 14.29043478 | K12: =V12*$K$13 -> 25.66956522 | L12: 14.37495652 | M12: 24.4173913 | N12: 14.16208696 | O12: 22.53913043 | P12: 13.29808696 | R12: 1.147826087 | S12: 1.12173913 | T12: 1.095652174 | U12: 1.082608696 | V12: 1.069565217 | W12: 1.017391304 | X12: 0.9391304348 | Y12: 0.51 | Z12: 0.53 | AA12: 0.54 | AB12: 0.55 | AC12: 0.56 | AD12: 0.58 | AE12: 0.59 | AF12: 1.0385 | AG12: 1.0135 | AH12: 0.989 | AI12: 1.007875 | AJ12: 1.026 | AK12: 1.043 | AL12: 0.9515 | AM12: =Y12*C12+($A$4-80)*AF12*$A$12/1000 -> 14.0493913 | AN12: =Z12*E12+($A$4-80)*AG12*$A$12/1000 -> 14.26852174 | AO12: =AA12*G12+($A$4-80)*AH12*$A$12/1000 -> 14.19965217 | AP12: =AB12*I12+($A$4-80)*AI12*$A$12/1000 -> 14.29043478 | AQ12: =AC12*K12+($A$4-80)*AJ12*$A$12/1000 -> 14.37495652 | AR12: =AD12*M12+($A$4-80)*AK12*$A$12/1000 -> 14.16208696 | AS12: =AE12*O12+($A$4-80)*AL12*$A$12/1000 -> 13.29808696
B13: 67 | C13: 25.77391304 | D13: 17.52626087 | E13: 25.25217391 | F13: 17.92904348 | G13: 24.62608696 | H13: 17.73078261 | I13: 24.31304348 | J13: 17.87008696 | K13: 24 | L13: 18 | M13: 22.85217391 | N13: 17.82469565 | O13: 21.07826087 | P13: 16.44104348 | R13: 1.073913043 | S13: 1.052173913 | T13: 1.026086957 | U13: 1.013043478 | V13: 1 | W13: 0.952173913 | X13: 0.8782608696 | Y13: 0.68 | Z13: 0.71 | AA13: 0.72 | AB13: 0.735 | AC13: 0.75 | AD13: 0.78 | AE13: 0.78 | AF13: 0.789 | AG13: 0.847 | AH13: 0.767 | AI13: 0.8080625 | AJ13: 0.8475 | AK13: 0.82125 | AL13: 0.74175 | AM13: =Y13*C13+($A$4-80)*AF13*$A$12/1000 -> 17.52626087 | AN13: =Z13*E13+($A$4-80)*AG13*$A$12/1000 -> 17.92904348 | AO13: =AA13*G13+($A$4-80)*AH13*$A$12/1000 -> 17.73078261 | AP13: =AB13*I13+($A$4-80)*AI13*$A$12/1000 -> 17.87008696 | AQ13: =AC13*K13+($A$4-80)*AJ13*$A$12/1000 -> 18 | AR13: =AD13*M13+($A$4-80)*AK13*$A$12/1000 -> 17.82469565 | AS13: =AE13*O13+($A$4-80)*AL13*$A$12/1000 -> 16.44104348
B14: 63 | C14: 24.10434783 | D14: 20.24765217 | E14: 23.5826087 | F14: 20.51686957 | G14: 23.06086957 | H14: 20.52417391 | I14: 22.74782609 | J14: 20.58678261 | K14: =V14*$K$13 -> 22.43478261 | L14: 20.64 | M14: 21.39130435 | N14: 20.32173913 | O14: 19.72173913 | P14: 18.93286957 | R14: 1.004347826 | S14: 0.9826086957 | T14: 0.9608695652 | U14: 0.947826087 | V14: 0.9347826087 | W14: 0.8913043478 | X14: 0.8217391304 | Y14: 0.84 | Z14: 0.87 | AA14: 0.89 | AB14: 0.905 | AC14: 0.92 | AD14: 0.95 | AE14: 0.96 | AF14: 0.67175 | AG14: 0.6595 | AH14: 0.72075 | AI14: 0.7030625 | AJ14: 0.685 | AK14: 0.67725 | AL14: 0.588 | AM14: =Y14*C14+($A$4-80)*AF14*$A$12/1000 -> 20.24765217 | AN14: =Z14*E14+($A$4-80)*AG14*$A$12/1000 -> 20.51686957 | AO14: =AA14*G14+($A$4-80)*AH14*$A$12/1000 -> 20.52417391 | AP14: =AB14*I14+($A$4-80)*AI14*$A$12/1000 -> 20.58678261 | AQ14: =AC14*K14+($A$4-80)*AJ14*$A$12/1000 -> 20.64 | AR14: =AD14*M14+($A$4-80)*AK14*$A$12/1000 -> 20.32173913 | AS14: =AE14*O14+($A$4-80)*AL14*$A$12/1000 -> 18.93286957
B15: 59 | C15: 23.5826087 | D15: 20.98852174 | E15: 23.06086957 | F15: 21.4466087 | G15: 22.53913043 | H15: 21.41217391 | I15: 22.27826087 | J15: 21.49852174 | K15: 22.0173913 | L15: 21.57704348 | M15: 20.86956522 | N15: 20.86956522 | O15: 19.30434783 | P15: 19.30434783 | R15: 0.9826086957 | S15: 0.9608695652 | T15: 0.9391304348 | U15: 0.9282608696 | V15: 0.9173913043 | W15: 0.8695652174 | X15: 0.8043478261 | Y15: 0.89 | Z15: 0.93 | AA15: 0.95 | AB15: 0.965 | AC15: 0.98 | AD15: 1 | AE15: 1 | AF15: 0.51275 | AG15: 0.58125 | AH15: 0.519 | AI15: 0.5416875 | AJ15: 0.56375 | AK15: 0.41975 | AL15: 0.348 | AM15: =Y15*C15+($A$4-80)*AF15*$A$12/1000 -> 20.98852174 | AN15: =Z15*E15+($A$4-80)*AG15*$A$12/1000 -> 21.4466087 | AO15: =AA15*G15+($A$4-80)*AH15*$A$12/1000 -> 21.41217391 | AP15: =AB15*I15+($A$4-80)*AI15*$A$12/1000 -> 21.49852174 | AQ15: =AC15*K15+($A$4-80)*AJ15*$A$12/1000 -> 21.57704348 | AR15: =AD15*M15+($A$4-80)*AK15*$A$12/1000 -> 20.86956522 | AS15: =AE15*O15+($A$4-80)*AL15*$A$12/1000 -> 19.30434783
A16: 900 | B16: 71 | C16: 28.3826087 | D16: 15.04278261 | E16: 27.75652174 | F16: 15.26608696 | G16: 27.13043478 | H16: 15.46434783 | I16: 26.76521739 | J16: 15.52382609 | K16: 26.4 | L16: 15.576 | M16: 25.14782609 | N16: 15.34017391 | O16: 23.26956522 | P16: 14.19443478 | R16: 1.182608696 | S16: 1.156521739 | T16: 1.130434783 | U16: 1.115217391 | V16: 1.1 | W16: 1.047826087 | X16: 0.9695652174 | Y16: 0.53 | Z16: 0.55 | AA16: 0.57 | AB16: 0.58 | AC16: 0.59 | AD16: 0.61 | AE16: 0.61 | AF16: 0.9506666667 | AG16: 0.9284444444 | AH16: 0.9733333333 | AI16: 0.984 | AJ16: 0.9937777778 | AK16: 1.008222222 | AL16: 0.8824444444 | AM16: =Y16*C16+($A$4-80)*AF16*$A$16/1000 -> 15.04278261 | AN16: =Z16*E16+($A$4-80)*AG16*$A$16/1000 -> 15.26608696 | AO16: =AA16*G16+($A$4-80)*AH16*$A$16/1000 -> 15.46434783 | AP16: =AB16*I16+($A$4-80)*AI16*$A$16/1000 -> 15.52382609 | AQ16: =AC16*K16+($A$4-80)*AJ16*$A$16/1000 -> 15.576 | AR16: =AD16*M16+($A$4-80)*AK16*$A$16/1000 -> 15.34017391 | AS16: =AE16*O16+($A$4-80)*AL16*$A$16/1000 -> 14.19443478
B17: 67 | C17: 26.60869565 | D17: 18.89217391 | E17: 25.9826087 | F17: 19.22713043 | G17: 25.35652174 | H17: 19.27095652 | I17: 25.04347826 | J17: 19.28347826 | K17: 24.73043478 | L17: 19.28973913 | M17: 23.47826087 | N17: 19.0173913 | O17: 21.70434783 | P17: 17.79756522 | R17: 1.108695652 | S17: 1.082608696 | T17: 1.056521739 | U17: 1.043478261 | V17: 1.030434783 | W17: 0.9782608696 | X17: 0.9043478261 | Y17: 0.71 | Z17: 0.74 | AA17: 0.76 | AB17: 0.77 | AC17: 0.78 | AD17: 0.81 | AE17: 0.82 | AF17: 0.7366666667 | AG17: 0.7746666667 | AH17: 0.7964444444 | AI17: 0.7862222222 | AJ17: 0.776 | AK17: 0.7353333333 | AL17: 0.7248888889 | AM17: =Y17*C17+($A$4-80)*AF17*$A$16/1000 -> 18.89217391 | AN17: =Z17*E17+($A$4-80)*AG17*$A$16/1000 -> 19.22713043 | AO17: =AA17*G17+($A$4-80)*AH17*$A$16/1000 -> 19.27095652 | AP17: =AB17*I17+($A$4-80)*AI17*$A$16/1000 -> 19.28347826 | AQ17: =AC17*K17+($A$4-80)*AJ17*$A$16/1000 -> 19.28973913 | AR17: =AD17*M17+($A$4-80)*AK17*$A$16/1000 -> 19.0173913 | AS17: =AE17*O17+($A$4-80)*AL17*$A$16/1000 -> 17.79756522
B18: 63 | C18: 24.83478261 | D18: 21.8546087 | E18: 24.31304348 | F18: 22.12486957 | G18: 23.68695652 | H18: 22.02886957 | I18: 23.42608696 | J18: 22.13765217 | K18: 23.16521739 | L18: 22.2386087 | M18: 22.0173913 | N18: 22.0173913 | O18: 20.34782609 | P18: 20.34782609 | R18: 1.034782609 | S18: 1.013043478 | T18: 0.9869565217 | U18: 0.9760869565 | V18: 0.9652173913 | W18: 0.9173913043 | X18: 0.847826087 | Y18: 0.88 | Z18: 0.91 | AA18: 0.93 | AB18: 0.945 | AC18: 0.96 | AD18: 1 | AE18: 1 | AF18: 0.6684444444 | AG18: 0.674 | AH18: 0.6413333333 | AI18: 0.6353333333 | AJ18: 0.6293333333 | AK18: 0.6482222222 | AL18: 0.5591111111 | AM18: =Y18*C18+($A$4-80)*AF18*$A$16/1000 -> 21.8546087 | AN18: =Z18*E18+($A$4-80)*AG18*$A$16/1000 -> 22.12486957 | AO18: =AA18*G18+($A$4-80)*AH18*$A$16/1000 -> 22.02886957 | AP18: =AB18*I18+($A$4-80)*AI18*$A$16/1000 -> 22.13765217 | AQ18: =AC18*K18+($A$4-80)*AJ18*$A$16/1000 -> 22.2386087 | AR18: =AD18*M18+($A$4-80)*AK18*$A$16/1000 -> 22.0173913 | AS18: =AE18*O18+($A$4-80)*AL18*$A$16/1000 -> 20.34782609
B19: 59 | C19: 24.31304348 | D19: 22.85426087 | E19: 23.79130435 | F19: 23.07756522 | G19: 23.16521739 | H19: 23.16521739 | I19: 22.90434783 | J19: 22.90434783 | K19: 22.64347826 | L19: 22.64347826 | M19: 21.49565217 | N19: 21.49565217 | O19: 19.93043478 | P19: 19.93043478 | R19: 1.013043478 | S19: 0.9913043478 | T19: 0.9652173913 | U19: 0.9543478261 | V19: 0.9434782609 | W19: 0.8956521739 | X19: 0.8304347826 | Y19: 0.94 | Z19: 0.97 | AA19: 1 | AB19: 1 | AC19: 1 | AD19: 1 | AE19: 1 | AF19: 0.5415555556 | AG19: 0.4844444444 | AH19: 0.5046666667 | AI19: 0.4377777778 | AJ19: 0.3728888889 | AK19: 0.202 | AL19: 0.1502222222 | AM19: =Y19*C19+($A$4-80)*AF19*$A$16/1000 -> 22.85426087 | AN19: =Z19*E19+($A$4-80)*AG19*$A$16/1000 -> 23.07756522 | AO19: =AA19*G19+($A$4-80)*AH19*$A$16/1000 -> 23.16521739 | AP19: =AB19*I19+($A$4-80)*AI19*$A$16/1000 -> 22.90434783 | AQ19: =AC19*K19+($A$4-80)*AJ19*$A$16/1000 -> 22.64347826 | AR19: =AD19*M19+($A$4-80)*AK19*$A$16/1000 -> 21.49565217 | AS19: =AE19*O19+($A$4-80)*AL19*$A$16/1000 -> 19.93043478

Sheet GSX130_30 (hidden)
A2: GSX130_30
A3: Evaporator Air | C3: Condenser Entering Air Temperature ˚F
A4: 80 | B4: °F DB | C4: 65 | E4: 75 | G4: 85 | I4: 90 | K4: 95 | M4: 105 | O4: 115
A5: CFM | B5: EWB† ˚F | C5: Capacity Mbtuh | E5: Capacity Mbtuh | G5: Capacity Mbtuh | I5: Capacity Mbtuh | K5: Capacity Mbtuh | M5: Capacity Mbtuh | O5: Capacity Mbtuh
C6: Total | D6: Sens. | E6: Total | F6: Sens. | G6: Total | H6: Sens. | I6: Total | J6: Sens. | K6: Total | L6: Sens. | M6: Total | N6: Sens. | O6: Total | P6: Sens.
R7: Total Factors | Y7: Sens. % | AF7: IDB Adj | AM7: Sens Calc
A8: 945 | B8: 71 | C8: =R8*$K$13 -> 27.17142857 | D8: =IF(AM8>C8,C8,AM8) -> 13.85742857 | E8: =S8*$K$13 -> 26.57142857 | F8: =IF(AN8>E8,E8,AN8) -> 13.81714286 | G8: =T8*$K$13 -> 25.88571429 | H8: =IF(AO8>G8,G8,AO8) -> 13.97828571 | I8: =U8*$K$13 -> 25.58571429 | J8: =IF(AP8>I8,I8,AP8) -> 14.07214286 | K8: =V8*$K$13 -> 25.28571429 | L8: =IF(AQ8>K8,K8,AQ8) -> 14.16 | M8: =W8*$K$13 -> 24 | N8: =IF(AR8>M8,M8,AR8) -> 13.92 | O8: =X8*$K$13 -> 22.2 | P8: =IF(AS8>O8,O8,AS8) -> 12.876 | R8: 1.132142857 | S8: 1.107142857 | T8: 1.078571429 | U8: 1.066071429 | V8: 1.053571429 | W8: 1 | X8: 0.925 | Y8: 0.51 | Z8: 0.52 | AA8: 0.54 | AB8: 0.55 | AC8: 0.56 | AD8: 0.58 | AE8: 0.58 | AF8: 1.058624339 | AG8: 1.034497354 | AH8: 1.070899471 | AI8: 1.057883598 | AJ8: 1.044867725 | AK8: 1.04973545 | AL8: 0.9697354497 | AM8: =Y8*C8+($A$4-80)*AF8*$A$8/1000 -> 13.85742857 | AN8: =Z8*E8+($A$4-80)*AG8*$A$8/1000 -> 13.81714286 | AO8: =AA8*G8+($A$4-80)*AH8*$A$8/1000 -> 13.97828571 | AP8: =AB8*I8+($A$4-80)*AI8*$A$8/1000 -> 14.07214286 | AQ8: =AC8*K8+($A$4-80)*AJ8*$A$8/1000 -> 14.16 | AR8: =AD8*M8+($A$4-80)*AK8*$A$8/1000 -> 13.92 | AS8: =AE8*O8+($A$4-80)*AL8*$A$8/1000 -> 12.876
B9: 67 | C9: 25.37142857 | D9: 17.25257143 | E9: 24.85714286 | F9: 17.4 | G9: 24.25714286 | H9: 17.46514286 | I9: 23.95714286 | J9: 17.48871429 | K9: =V9*$K$13 -> 23.65714286 | L9: 17.50628571 | M9: 22.45714286 | N9: 17.292 | O9: 20.82857143 | P9: 16.24628571 | R9: 1.057142857 | S9: 1.035714286 | T9: 1.010714286 | U9: 0.9982142857 | V9: 0.9857142857 | W9: 0.9357142857 | X9: 0.8678571429 | Y9: 0.68 | Z9: 0.7 | AA9: 0.72 | AB9: 0.73 | AC9: 0.74 | AD9: 0.77 | AE9: 0.78 | AF9: 0.8027513228 | AG9: 0.7978835979 | AH9: 0.8262433862 | AI9: 0.8156613757 | AJ9: 0.8050793651 | AK9: 0.8186243386 | AL9: 0.7714285714 | AM9: =Y9*C9+($A$4-80)*AF9*$A$8/1000 -> 17.25257143 | AN9: =Z9*E9+($A$4-80)*AG9*$A$8/1000 -> 17.4 | AO9: =AA9*G9+($A$4-80)*AH9*$A$8/1000 -> 17.46514286 | AP9: =AB9*I9+($A$4-80)*AI9*$A$8/1000 -> 17.48871429 | AQ9: =AC9*K9+($A$4-80)*AJ9*$A$8/1000 -> 17.50628571 | AR9: =AD9*M9+($A$4-80)*AK9*$A$8/1000 -> 17.292 | AS9: =AE9*O9+($A$4-80)*AL9*$A$8/1000 -> 16.24628571
B10: 63 | C10: 23.82857143 | D10: 19.77771429 | E10: 23.22857143 | F10: 19.97657143 | G10: 22.71428571 | H10: 19.98857143 | I10: 22.41428571 | J10: 20.06078571 | K10: =V10*$K$13 -> 22.11428571 | L10: 20.124 | M10: 21 | N10: 19.95 | O10: 19.45714286 | P10: 18.48428571 | R10: 0.9928571429 | S10: 0.9678571429 | T10: 0.9464285714 | U10: 0.9339285714 | V10: 0.9214285714 | W10: 0.875 | X10: 0.8107142857 | Y10: 0.83 | Z10: 0.86 | AA10: 0.88 | AB10: 0.895 | AC10: 0.91 | AD10: 0.95 | AE10: 0.95 | AF10: 0.6929100529 | AG10: 0.6785185185 | AH10: 0.6658201058 | AI10: 0.6777248677 | AJ10: 0.6886772487 | AK10: 0.7087830688 | AL10: 0.6116402116 | AM10: =Y10*C10+($A$4-80)*AF10*$A$8/1000 -> 19.77771429 | AN10: =Z10*E10+($A$4-80)*AG10*$A$8/1000 -> 19.97657143 | AO10: =AA10*G10+($A$4-80)*AH10*$A$8/1000 -> 19.98857143 | AP10: =AB10*I10+($A$4-80)*AI10*$A$8/1000 -> 20.06078571 | AQ10: =AC10*K10+($A$4-80)*AJ10*$A$8/1000 -> 20.124 | AR10: =AD10*M10+($A$4-80)*AK10*$A$8/1000 -> 19.95 | AS10: =AE10*O10+($A$4-80)*AL10*$A$8/1000 -> 18.48428571
B11: 59 | C11: 23.31428571 | D11: 20.74971429 | E11: 22.71428571 | F11: 20.89714286 | G11: 22.2 | H11: 20.868 | I11: 21.94285714 | J11: 20.95542857 | K11: =V11*$K$13 -> 21.68571429 | L11: 21.03514286 | M11: 20.57142857 | N11: 20.57142857 | O11: 19.02857143 | P11: 19.02857143 | R11: 0.9714285714 | S11: 0.9464285714 | T11: 0.925 | U11: 0.9142857143 | V11: 0.9035714286 | W11: 0.8571428571 | X11: 0.7928571429 | Y11: 0.89 | Z11: 0.92 | AA11: 0.94 | AB11: 0.955 | AC11: 0.97 | AD11: 1.01 | AE11: 1 | AF11: 0.5462433862 | AG11: 0.5197883598 | AH11: 0.5295238095 | AI11: 0.526031746 | AJ11: 0.5225396825 | AK11: 0.535026455 | AL11: 0.4076190476 | AM11: =Y11*C11+($A$4-80)*AF11*$A$8/1000 -> 20.74971429 | AN11: =Z11*E11+($A$4-80)*AG11*$A$8/1000 -> 20.89714286 | AO11: =AA11*G11+($A$4-80)*AH11*$A$8/1000 -> 20.868 | AP11: =AB11*I11+($A$4-80)*AI11*$A$8/1000 -> 20.95542857 | AQ11: =AC11*K11+($A$4-80)*AJ11*$A$8/1000 -> 21.03514286 | AR11: =AD11*M11+($A$4-80)*AK11*$A$8/1000 -> 20.77714286 | AS11: =AE11*O11+($A$4-80)*AL11*$A$8/1000 -> 19.02857143
A12: 1050 | B12: 71 | C12: 27.6 | D12: 14.352 | E12: 26.91428571 | F12: 14.53371429 | G12: 26.31428571 | H12: 14.736 | I12: 25.97142857 | J12: 14.80371429 | K12: =V12*$K$13 -> 25.62857143 | L12: 14.86457143 | M12: 24.34285714 | N12: 14.60571429 | O12: 22.54285714 | P12: 13.52571429 | R12: 1.15 | S12: 1.121428571 | T12: 1.096428571 | U12: 1.082142857 | V12: 1.067857143 | W12: 1.014285714 | X12: 0.9392857143 | Y12: 0.52 | Z12: 0.54 | AA12: 0.56 | AB12: 0.57 | AC12: 0.58 | AD12: 0.6 | AE12: 0.6 | AF12: 0.9059047619 | AG12: 0.9424761905 | AH12: 0.9792380952 | AI12: 0.994952381 | AJ12: 1.009904762 | AK12: 0.9577142857 | AL12: 0.8857142857 | AM12: =Y12*C12+($A$4-80)*AF12*$A$12/1000 -> 14.352 | AN12: =Z12*E12+($A$4-80)*AG12*$A$12/1000 -> 14.53371429 | AO12: =AA12*G12+($A$4-80)*AH12*$A$12/1000 -> 14.736 | AP12: =AB12*I12+($A$4-80)*AI12*$A$12/1000 -> 14.80371429 | AQ12: =AC12*K12+($A$4-80)*AJ12*$A$12/1000 -> 14.86457143 | AR12: =AD12*M12+($A$4-80)*AK12*$A$12/1000 -> 14.60571429 | AS12: =AE12*O12+($A$4-80)*AL12*$A$12/1000 -> 13.52571429
B13: 67 | C13: 25.8 | D13: 18.06 | E13: 25.2 | F13: 18.396 | G13: 24.6 | H13: 18.45 | I13: 24.3 | J13: 18.468 | K13: 24 | L13: 18.48 | M13: 22.8 | N13: 18.24 | O13: 21.08571429 | P13: 17.07942857 | R13: 1.075 | S13: 1.05 | T13: 1.025 | U13: 1.0125 | V13: 1 | W13: 0.95 | X13: 0.8785714286 | Y13: 0.7 | Z13: 0.73 | AA13: 0.75 | AB13: 0.76 | AC13: 0.77 | AD13: 0.8 | AE13: 0.81 | AF13: 0.7344761905 | AG13: 0.7727619048 | AH13: 0.8085714286 | AI13: 0.7983809524 | AJ13: 0.7881904762 | AK13: 0.7476190476 | AL13: 0.7373333333 | AM13: =Y13*C13+($A$4-80)*AF13*$A$12/1000 -> 18.06 | AN13: =Z13*E13+($A$4-80)*AG13*$A$12/1000 -> 18.396 | AO13: =AA13*G13+($A$4-80)*AH13*$A$12/1000 -> 18.45 | AP13: =AB13*I13+($A$4-80)*AI13*$A$12/1000 -> 18.468 | AQ13: =AC13*K13+($A$4-80)*AJ13*$A$12/1000 -> 18.48 | AR13: =AD13*M13+($A$4-80)*AK13*$A$12/1000 -> 18.24 | AS13: =AE13*O13+($A$4-80)*AL13*$A$12/1000 -> 17.07942857
B14: 63 | C14: 24.17142857 | D14: 20.78742857 | E14: 23.57142857 | F14: 20.97857143 | G14: 23.05714286 | H14: 21.21257143 | I14: 22.75714286 | J14: 21.27792857 | K14: =V14*$K$13 -> 22.45714286 | L14: 21.33428571 | M14: 21.34285714 | N14: 20.916 | O14: 19.8 | P14: 19.602 | R14: 1.007142857 | S14: 0.9821428571 | T14: 0.9607142857 | U14: 0.9482142857 | V14: 0.9357142857 | W14: 0.8892857143 | X14: 0.825 | Y14: 0.86 | Z14: 0.89 | AA14: 0.92 | AB14: 0.935 | AC14: 0.95 | AD14: 0.98 | AE14: 0.99 | AF14: 0.6337142857 | AG14: 0.6207619048 | AH14: 0.6605714286 | AI14: 0.6784285714 | AJ14: 0.6956190476 | AK14: 0.6651428571 | AL14: 0.6211428571 | AM14: =Y14*C14+($A$4-80)*AF14*$A$12/1000 -> 20.78742857 | AN14: =Z14*E14+($A$4-80)*AG14*$A$12/1000 -> 20.97857143 | AO14: =AA14*G14+($A$4-80)*AH14*$A$12/1000 -> 21.21257143 | AP14: =AB14*I14+($A$4-80)*AI14*$A$12/1000 -> 21.27792857 | AQ14: =AC14*K14+($A$4-80)*AJ14*$A$12/1000 -> 21.33428571 | AR14: =AD14*M14+($A$4-80)*AK14*$A$12/1000 -> 20.916 | AS14: =AE14*O14+($A$4-80)*AL14*$A$12/1000 -> 19.602
B15: 59 | C15: 23.65714286 | D15: 21.76457143 | E15: 23.05714286 | F15: 21.90428571 | G15: 22.54285714 | H15: 22.092 | I15: 22.24285714 | J15: 22.02042857 | K15: 21.94285714 | L15: 21.94285714 | M15: 20.91428571 | N15: 20.91428571 | O15: 19.37142857 | P15: 19.37142857 | R15: 0.9857142857 | S15: 0.9607142857 | T15: 0.9392857143 | U15: 0.9267857143 | V15: 0.9142857143 | W15: 0.8714285714 | X15: 0.8071428571 | Y15: 0.92 | Z15: 0.95 | AA15: 0.98 | AB15: 0.99 | AC15: 1 | AD15: 1 | AE15: 1 | AF15: 0.5005714286 | AG15: 0.4761904762 | AH15: 0.5356190476 | AI15: 0.4977142857 | AJ15: 0.4601904762 | AK15: 0.3228571429 | AL15: 0.2453333333 | AM15: =Y15*C15+($A$4-80)*AF15*$A$12/1000 -> 21.76457143 | AN15: =Z15*E15+($A$4-80)*AG15*$A$12/1000 -> 21.90428571 | AO15: =AA15*G15+($A$4-80)*AH15*$A$12/1000 -> 22.092 | AP15: =AB15*I15+($A$4-80)*AI15*$A$12/1000 -> 22.02042857 | AQ15: =AC15*K15+($A$4-80)*AJ15*$A$12/1000 -> 21.94285714 | AR15: =AD15*M15+($A$4-80)*AK15*$A$12/1000 -> 20.91428571 | AS15: =AE15*O15+($A$4-80)*AL15*$A$12/1000 -> 19.37142857
A16: 1155 | B16: 71 | C16: 28.02857143 | D16: 15.41571429 | E16: 27.34285714 | F16: 15.58542857 | G16: 26.65714286 | H16: 15.46114286 | I16: 26.35714286 | J16: 15.55071429 | K16: 26.05714286 | L16: 15.63428571 | M16: 24.77142857 | N16: 15.35828571 | O16: 22.88571429 | P16: 14.418 | R16: 1.167857143 | S16: 1.139285714 | T16: 1.110714286 | U16: 1.098214286 | V16: 1.085714286 | W16: 1.032142857 | X16: 0.9535714286 | Y16: 0.55 | Z16: 0.57 | AA16: 0.58 | AB16: 0.59 | AC16: 0.6 | AD16: 0.62 | AE16: 0.63 | AF16: 0.9494372294 | AG16: 0.9251948052 | AH16: 0.8941991342 | AI16: 0.9138528139 | AJ16: 0.932987013 | AK16: 0.9359307359 | AL16: 0.8632034632 | AM16: =Y16*C16+($A$4-80)*AF16*$A$16/1000 -> 15.41571429 | AN16: =Z16*E16+($A$4-80)*AG16*$A$16/1000 -> 15.58542857 | AO16: =AA16*G16+($A$4-80)*AH16*$A$16/1000 -> 15.46114286 | AP16: =AB16*I16+($A$4-80)*AI16*$A$16/1000 -> 15.55071429 | AQ16: =AC16*K16+($A$4-80)*AJ16*$A$16/1000 -> 15.63428571 | AR16: =AD16*M16+($A$4-80)*AK16*$A$16/1000 -> 15.35828571 | AS16: =AE16*O16+($A$4-80)*AL16*$A$16/1000 -> 14.418
B17: 67 | C17: 26.22857143 | D17: 19.14685714 | E17: 25.54285714 | F17: 19.41257143 | G17: 24.94285714 | H17: 19.45542857 | I17: 24.64285714 | J17: 19.46785714 | K17: 24.34285714 | L17: 19.47428571 | M17: 23.14285714 | N17: 19.20857143 | O17: 21.42857143 | P17: 18 | R17: 1.092857143 | S17: 1.064285714 | T17: 1.039285714 | U17: 1.026785714 | V17: 1.014285714 | W17: 0.9642857143 | X17: 0.8928571429 | Y17: 0.73 | Z17: 0.76 | AA17: 0.78 | AB17: 0.79 | AC17: 0.8 | AD17: 0.83 | AE17: 0.84 | AF17: 0.7418181818 | AG17: 0.7634632035 | AH17: 0.7449350649 | AI17: 0.7356709957 | AJ17: 0.7264069264 | AK17: 0.7364502165 | AL17: 0.6808658009 | AM17: =Y17*C17+($A$4-80)*AF17*$A$16/1000 -> 19.14685714 | AN17: =Z17*E17+($A$4-80)*AG17*$A$16/1000 -> 19.41257143 | AO17: =AA17*G17+($A$4-80)*AH17*$A$16/1000 -> 19.45542857 | AP17: =AB17*I17+($A$4-80)*AI17*$A$16/1000 -> 19.46785714 | AQ17: =AC17*K17+($A$4-80)*AJ17*$A$16/1000 -> 19.47428571 | AR17: =AD17*M17+($A$4-80)*AK17*$A$16/1000 -> 19.20857143 | AS17: =AE17*O17+($A$4-80)*AL17*$A$16/1000 -> 18
B18: 63 | C18: 24.51428571 | D18: 22.06285714 | E18: 23.91428571 | F18: 22.24028571 | G18: 23.4 | H18: 22.464 | I18: 23.1 | J18: 22.638 | K18: 22.8 | L18: 22.8 | M18: 21.68571429 | N18: 21.68571429 | O18: 20.05714286 | P18: 20.05714286 | R18: 1.021428571 | S18: 0.9964285714 | T18: 0.975 | U18: 0.9625 | V18: 0.95 | W18: 0.9035714286 | X18: 0.8357142857 | Y18: 0.9 | Z18: 0.93 | AA18: 0.96 | AB18: 0.98 | AC18: 1 | AD18: 1 | AE18: 1 | AF18: 0.6348051948 | AG18: 0.6077922078 | AH18: 0.6576623377 | AI18: 0.6738961039 | AJ18: 0.6895238095 | AK18: 0.5281385281 | AL18: 0.4363636364 | AM18: =Y18*C18+($A$4-80)*AF18*$A$16/1000 -> 22.06285714 | AN18: =Z18*E18+($A$4-80)*AG18*$A$16/1000 -> 22.24028571 | AO18: =AA18*G18+($A$4-80)*AH18*$A$16/1000 -> 22.464 | AP18: =AB18*I18+($A$4-80)*AI18*$A$16/1000 -> 22.638 | AQ18: =AC18*K18+($A$4-80)*AJ18*$A$16/1000 -> 22.8 | AR18: =AD18*M18+($A$4-80)*AK18*$A$16/1000 -> 21.68571429 | AS18: =AE18*O18+($A$4-80)*AL18*$A$16/1000 -> 20.05714286
B19: 59 | C19: 24 | D19: 23.04 | E19: 23.4 | F19: 23.4 | G19: 22.88571429 | H19: 22.88571429 | I19: 22.58571429 | J19: 22.58571429 | K19: 22.28571429 | L19: 22.28571429 | M19: 21.17142857 | N19: 21.17142857 | O19: 19.62857143 | P19: 19.62857143 | R19: 1 | S19: 0.975 | T19: 0.9535714286 | U19: 0.9410714286 | V19: 0.9285714286 | W19: 0.8821428571 | X19: 0.8178571429 | Y19: 0.96 | Z19: 1 | AA19: 1 | AB19: 1 | AC19: 1 | AD19: 1 | AE19: 1 | AF19: 0.4640692641 | AG19: 0.4884848485 | AH19: 0.4041558442 | AI19: 0.3245887446 | AJ19: 0.2465800866 | AK19: 0.06926406926 | AL19: 0.06926406926 | AM19: =Y19*C19+($A$4-80)*AF19*$A$16/1000 -> 23.04 | AN19: =Z19*E19+($A$4-80)*AG19*$A$16/1000 -> 23.4 | AO19: =AA19*G19+($A$4-80)*AH19*$A$16/1000 -> 22.88571429 | AP19: =AB19*I19+($A$4-80)*AI19*$A$16/1000 -> 22.58571429 | AQ19: =AC19*K19+($A$4-80)*AJ19*$A$16/1000 -> 22.28571429 | AR19: =AD19*M19+($A$4-80)*AK19*$A$16/1000 -> 21.17142857 | AS19: =AE19*O19+($A$4-80)*AL19*$A$16/1000 -> 19.62857143

Sheet GSX130_36 (hidden)
A2: GSX130_36
A3: Evaporator Air | C3: Condenser Entering Air Temperature ˚F
A4: 80 | B4: °F DB | C4: 65 | E4: 75 | G4: 85 | I4: 90 | K4: 95 | M4: 105 | O4: 115
A5: CFM | B5: EWB† ˚F | C5: Capacity Mbtuh | E5: Capacity Mbtuh | G5: Capacity Mbtuh | I5: Capacity Mbtuh | K5: Capacity Mbtuh | M5: Capacity Mbtuh | O5: Capacity Mbtuh
C6: Total | D6: Sens. | E6: Total | F6: Sens. | G6: Total | H6: Sens. | I6: Total | J6: Sens. | K6: Total | L6: Sens. | M6: Total | N6: Sens. | O6: Total | P6: Sens.
R7: Total Factors | Y7: Sens. % | AF7: IDB Adj | AM7: Sens Calc
A8: 1050 | B8: 71 | C8: =R8*$K$13 -> 0 | D8: =IF(AM8>C8,C8,AM8) -> 0 | E8: =S8*$K$13 -> 0 | F8: =IF(AN8>E8,E8,AN8) -> 0 | G8: =T8*$K$13 -> 0 | H8: =IF(AO8>G8,G8,AO8) -> 0 | I8: =U8*$K$13 -> 0 | J8: =IF(AP8>I8,I8,AP8) -> 0 | K8: =V8*$K$13 -> 0 | L8: =IF(AQ8>K8,K8,AQ8) -> 0 | M8: =W8*$K$13 -> 0 | N8: =IF(AR8>M8,M8,AR8) -> 0 | O8: =X8*$K$13 -> 0 | P8: =IF(AS8>O8,O8,AS8) -> 0 | R8: 1.05952381 | S8: 1.035714286 | T8: 1.011904762 | U8: 1 | V8: 0.9880952381 | W8: 0.9375 | X8: 0.869047619 | Y8: 0.5 | Z8: 0.52 | AA8: 0.5 | AB8: 0.525 | AC8: 0.55 | AD8: 0.6 | AE8: 0.58 | AF8: 0.9971428571 | AG8: 1.04 | AH8: 0.8278095238 | AI8: 0.9135238095 | AJ8: 0.996952381 | AK8: 1.184761905 | AL8: 0.9859047619 | AM8: =Y8*C8+($A$4-80)*AF8*$A$8/1000 -> 0 | AN8: =Z8*E8+($A$4-80)*AG8*$A$8/1000 -> 0 | AO8: =AA8*G8+($A$4-80)*AH8*$A$8/1000 -> 0 | AP8: =AB8*I8+($A$4-80)*AI8*$A$8/1000 -> 0 | AQ8: =AC8*K8+($A$4-80)*AJ8*$A$8/1000 -> 0 | AR8: =AD8*M8+($A$4-80)*AK8*$A$8/1000 -> 0 | AS8: =AE8*O8+($A$4-80)*AL8*$A$8/1000 -> 0
B9: 67 | C9: 0 | D9: 0 | E9: 0 | F9: 0 | G9: 0 | H9: 0 | I9: 0 | J9: 0 | K9: =V9*$K$13 -> 0 | L9: 0 | M9: 0 | N9: 0 | O9: 0 | P9: 0 | R9: 0.9910714286 | S9: 0.9702380952 | T9: 0.9464285714 | U9: 0.9345238095 | V9: 0.9226190476 | W9: 0.8779761905 | X9: 0.8125 | Y9: 0.68 | Z9: 0.7 | AA9: 0.72 | AB9: 0.73 | AC9: 0.74 | AD9: 0.77 | AE9: 0.78 | AF9: 0.8140952381 | AG9: 0.7963809524 | AH9: 0.836952381 | AI9: 0.8260952381 | AJ9: 0.8152380952 | AK9: 0.831047619 | AL9: 0.768 | AM9: =Y9*C9+($A$4-80)*AF9*$A$8/1000 -> 0 | AN9: =Z9*E9+($A$4-80)*AG9*$A$8/1000 -> 0 | AO9: =AA9*G9+($A$4-80)*AH9*$A$8/1000 -> 0 | AP9: =AB9*I9+($A$4-80)*AI9*$A$8/1000 -> 0 | AQ9: =AC9*K9+($A$4-80)*AJ9*$A$8/1000 -> 0 | AR9: =AD9*M9+($A$4-80)*AK9*$A$8/1000 -> 0 | AS9: =AE9*O9+($A$4-80)*AL9*$A$8/1000 -> 0
B10: 63 | C10: 0 | D10: 0 | E10: 0 | F10: 0 | G10: 0 | H10: 0 | I10: 0 | J10: 0 | K10: =V10*$K$13 -> 0 | L10: 0 | M10: 0 | N10: 0 | O10: 0 | P10: 0 | R10: 0.9285714286 | S10: 0.9077380952 | T10: 0.8869047619 | U10: 0.875 | V10: 0.8630952381 | W10: 0.8214285714 | X10: 0.7589285714 | Y10: 0.83 | Z10: 0.86 | AA10: 0.88 | AB10: 0.895 | AC10: 0.91 | AD10: 0.95 | AE10: 0.95 | AF10: 0.6948571429 | AG10: 0.6819047619 | AH10: 0.6683809524 | AI10: 0.6885714286 | AJ10: 0.708 | AK10: 0.7302857143 | AL10: 0.6144761905 | AM10: =Y10*C10+($A$4-80)*AF10*$A$8/1000 -> 0 | AN10: =Z10*E10+($A$4-80)*AG10*$A$8/1000 -> 0 | AO10: =AA10*G10+($A$4-80)*AH10*$A$8/1000 -> 0 | AP10: =AB10*I10+($A$4-80)*AI10*$A$8/1000 -> 0 | AQ10: =AC10*K10+($A$4-80)*AJ10*$A$8/1000 -> 0 | AR10: =AD10*M10+($A$4-80)*AK10*$A$8/1000 -> 0 | AS10: =AE10*O10+($A$4-80)*AL10*$A$8/1000 -> 0
B11: 59 | C11: 0 | D11: 0 | E11: 0 | F11: 0 | G11: 0 | H11: 0 | I11: 0 | J11: 0 | K11: =V11*$K$13 -> 0 | L11: 0 | M11: 0 | N11: 0 | O11: 0 | P11: 0 | R11: 0.9077380952 | S11: 0.8869047619 | T11: 0.8660714286 | U11: 0.8556547619 | V11: 0.8452380952 | W11: 0.8035714286 | X11: 0.744047619 | Y11: 0.89 | Z11: 0.92 | AA11: 0.94 | AB11: 0.955 | AC11: 0.97 | AD11: 1.01 | AE11: 1.02 | AF11: 0.5419047619 | AG11: 0.5340952381 | AH11: 0.5253333333 | AI11: 0.5214285714 | AJ11: 0.5175238095 | AK11: 0.5504761905 | AL11: 0.4994285714 | AM11: =Y11*C11+($A$4-80)*AF11*$A$8/1000 -> 0 | AN11: =Z11*E11+($A$4-80)*AG11*$A$8/1000 -> 0 | AO11: =AA11*G11+($A$4-80)*AH11*$A$8/1000 -> 0 | AP11: =AB11*I11+($A$4-80)*AI11*$A$8/1000 -> 0 | AQ11: =AC11*K11+($A$4-80)*AJ11*$A$8/1000 -> 0 | AR11: =AD11*M11+($A$4-80)*AK11*$A$8/1000 -> 0 | AS11: =AE11*O11+($A$4-80)*AL11*$A$8/1000 -> 0
A12: 1200 | B12: 71 | C12: 0 | D12: 0 | E12: 0 | F12: 0 | G12: 0 | H12: 0 | I12: 0 | J12: 0 | K12: =V12*$K$13 -> 0 | L12: 0 | M12: 0 | N12: 0 | O12: 0 | P12: 0 | R12: 1.148809524 | S12: 1.12202381 | T12: 1.095238095 | U12: 1.081845238 | V12: 1.068452381 | W12: 1.014880952 | X12: 0.9404761905 | Y12: 0.5 | Z12: 0.54 | AA12: 0.6 | AB12: 0.59 | AC12: 0.58 | AD12: 0.6 | AE12: 0.6 | AF12: 0.8178333333 | AG12: 0.9863333333 | AH12: 1.2685 | AI12: 1.161625 | AJ12: 1.057 | AK12: 1.002 | AL12: 0.934 | AM12: =Y12*C12+($A$4-80)*AF12*$A$12/1000 -> 0 | AN12: =Z12*E12+($A$4-80)*AG12*$A$12/1000 -> 0 | AO12: =AA12*G12+($A$4-80)*AH12*$A$12/1000 -> 0 | AP12: =AB12*I12+($A$4-80)*AI12*$A$12/1000 -> 0 | AQ12: =AC12*K12+($A$4-80)*AJ12*$A$12/1000 -> 0 | AR12: =AD12*M12+($A$4-80)*AK12*$A$12/1000 -> 0 | AS12: =AE12*O12+($A$4-80)*AL12*$A$12/1000 -> 0
B13: 67 | C13: 0 | D13: 0 | E13: 0 | F13: 0 | G13: 0 | H13: 0 | I13: 0 | J13: 0 | L13: 0 | M13: 0 | N13: 0 | O13: 0 | P13: 0 | R13: 1.074404762 | S13: 1.050595238 | T13: 1.023809524 | U13: 1.011904762 | V13: 1 | W13: 0.9494047619 | X13: 0.880952381 | Y13: 0.7 | Z13: 0.73 | AA13: 0.75 | AB13: 0.76 | AC13: 0.77 | AD13: 0.8 | AE13: 0.81 | AF13: 0.7726666667 | AG13: 0.8138333333 | AH13: 0.85 | AI13: 0.8398333333 | AJ13: 0.8296666667 | AK13: 0.7866666667 | AL13: 0.7785 | AM13: =Y13*C13+($A$4-80)*AF13*$A$12/1000 -> 0 | AN13: =Z13*E13+($A$4-80)*AG13*$A$12/1000 -> 0 | AO13: =AA13*G13+($A$4-80)*AH13*$A$12/1000 -> 0 | AP13: =AB13*I13+($A$4-80)*AI13*$A$12/1000 -> 0 | AQ13: =AC13*K13+($A$4-80)*AJ13*$A$12/1000 -> 0 | AR13: =AD13*M13+($A$4-80)*AK13*$A$12/1000 -> 0 | AS13: =AE13*O13+($A$4-80)*AL13*$A$12/1000 -> 0
B14: 63 | C14: 0 | D14: 0 | E14: 0 | F14: 0 | G14: 0 | H14: 0 | I14: 0 | J14: 0 | K14: =V14*$K$13 -> 0 | L14: 0 | M14: 0 | N14: 0 | O14: 0 | P14: 0 | R14: 1.005952381 | S14: 0.9821428571 | T14: 0.9583333333 | U14: 0.9464285714 | V14: 0.9345238095 | W14: 0.8898809524 | X14: 0.8244047619 | Y14: 0.86 | Z14: 0.89 | AA14: 0.92 | AB14: 0.935 | AC14: 0.95 | AD14: 0.98 | AE14: 0.99 | AF14: 0.6571666667 | AG14: 0.644 | AH14: 0.684 | AI14: 0.703 | AJ14: 0.7213333333 | AK14: 0.6903333333 | AL14: 0.6431666667 | AM14: =Y14*C14+($A$4-80)*AF14*$A$12/1000 -> 0 | AN14: =Z14*E14+($A$4-80)*AG14*$A$12/1000 -> 0 | AO14: =AA14*G14+($A$4-80)*AH14*$A$12/1000 -> 0 | AP14: =AB14*I14+($A$4-80)*AI14*$A$12/1000 -> 0 | AQ14: =AC14*K14+($A$4-80)*AJ14*$A$12/1000 -> 0 | AR14: =AD14*M14+($A$4-80)*AK14*$A$12/1000 -> 0 | AS14: =AE14*O14+($A$4-80)*AL14*$A$12/1000 -> 0
B15: 59 | C15: 0 | D15: 0 | E15: 0 | F15: 0 | G15: 0 | H15: 0 | I15: 0 | J15: 0 | K15: 0 | L15: 0 | M15: 0 | N15: 0 | O15: 0 | P15: 0 | R15: 0.9851190476 | S15: 0.9613095238 | T15: 0.9375 | U15: 0.9270833333 | V15: 0.9166666667 | W15: 0.869047619 | X15: 0.806547619 | Y15: 0.92 | Z15: 0.95 | AA15: 0.98 | AB15: 0.99 | AC15: 1 | AD15: 1 | AE15: 1 | AF15: 0.5253333333 | AG15: 0.5031666667 | AH15: 0.5466666667 | AI15: 0.52425 | AJ15: 0.5026666667 | AK15: 0.3225 | AL15: 0.2606666667 | AM15: =Y15*C15+($A$4-80)*AF15*$A$12/1000 -> 0 | AN15: =Z15*E15+($A$4-80)*AG15*$A$12/1000 -> 0 | AO15: =AA15*G15+($A$4-80)*AH15*$A$12/1000 -> 0 | AP15: =AB15*I15+($A$4-80)*AI15*$A$12/1000 -> 0 | AQ15: =AC15*K15+($A$4-80)*AJ15*$A$12/1000 -> 0 | AR15: =AD15*M15+($A$4-80)*AK15*$A$12/1000 -> 0 | AS15: =AE15*O15+($A$4-80)*AL15*$A$12/1000 -> 0
A16: 1350 | B16: 71 | C16: 0 | D16: 0 | E16: 0 | F16: 0 | G16: 0 | H16: 0 | I16: 0 | J16: 0 | K16: 0 | L16: 0 | M16: 0 | N16: 0 | O16: 0 | P16: 0 | R16: 1.18452381 | S16: 1.154761905 | T16: 1.12797619 | U16: 1.114583333 | V16: 1.101190476 | W16: 1.044642857 | X16: 0.9702380952 | Y16: 0.6 | Z16: 0.57 | AA16: 0.6 | AB16: 0.6 | AC16: 0.6 | AD16: 0.6 | AE16: 0.63 | AF16: 1.285925926 | AG16: 0.9594074074 | AH16: 1.048592593 | AI16: 1.007962963 | AJ16: 0.968 | AK16: 0.8124444444 | AL16: 0.9045925926 | AM16: =Y16*C16+($A$4-80)*AF16*$A$16/1000 -> 0 | AN16: =Z16*E16+($A$4-80)*AG16*$A$16/1000 -> 0 | AO16: =AA16*G16+($A$4-80)*AH16*$A$16/1000 -> 0 | AP16: =AB16*I16+($A$4-80)*AI16*$A$16/1000 -> 0 | AQ16: =AC16*K16+($A$4-80)*AJ16*$A$16/1000 -> 0 | AR16: =AD16*M16+($A$4-80)*AK16*$A$16/1000 -> 0 | AS16: =AE16*O16+($A$4-80)*AL16*$A$16/1000 -> 0
B17: 67 | C17: 0 | D17: 0 | E17: 0 | F17: 0 | G17: 0 | H17: 0 | I17: 0 | J17: 0 | K17: 0 | L17: 0 | M17: 0 | N17: 0 | O17: 0 | P17: 0 | R17: 1.107142857 | S17: 1.080357143 | T17: 1.056547619 | U17: 1.043154762 | V17: 1.029761905 | W17: 0.9791666667 | X17: 0.9077380952 | Y17: 0.74 | Z17: 0.76 | AA17: 0.78 | AB17: 0.795 | AC17: 0.81 | AD17: 0.84 | AE17: 0.84 | AF17: 0.7626666667 | AG17: 0.7437037037 | AH17: 0.7795555556 | AI17: 0.7953703704 | AJ17: 0.8105185185 | AK17: 0.7697777778 | AL17: 0.722962963 | AM17: =Y17*C17+($A$4-80)*AF17*$A$16/1000 -> 0 | AN17: =Z17*E17+($A$4-80)*AG17*$A$16/1000 -> 0 | AO17: =AA17*G17+($A$4-80)*AH17*$A$16/1000 -> 0 | AP17: =AB17*I17+($A$4-80)*AI17*$A$16/1000 -> 0 | AQ17: =AC17*K17+($A$4-80)*AJ17*$A$16/1000 -> 0 | AR17: =AD17*M17+($A$4-80)*AK17*$A$16/1000 -> 0 | AS17: =AE17*O17+($A$4-80)*AL17*$A$16/1000 -> 0
B18: 63 | C18: 0 | D18: 0 | E18: 0 | F18: 0 | G18: 0 | H18: 0 | I18: 0 | J18: 0 | K18: 0 | L18: 0 | M18: 0 | N18: 0 | O18: 0 | P18: 0 | R18: 1.035714286 | S18: 1.011904762 | T18: 0.9880952381 | U18: 0.9761904762 | V18: 0.9642857143 | W18: 0.9166666667 | X18: 0.8482142857 | Y18: 0.9 | Z18: 0.94 | AA18: 0.96 | AB18: 0.98 | AC18: 1 | AD18: 1 | AE18: 1 | AF18: 0.6022222222 | AG18: 0.6908148148 | AH18: 0.6275555556 | AI18: 0.6694814815 | AJ18: 0.7102222222 | AK18: 0.4962962963 | AL18: 0.4622222222 | AM18: =Y18*C18+($A$4-80)*AF18*$A$16/1000 -> 0 | AN18: =Z18*E18+($A$4-80)*AG18*$A$16/1000 -> 0 | AO18: =AA18*G18+($A$4-80)*AH18*$A$16/1000 -> 0 | AP18: =AB18*I18+($A$4-80)*AI18*$A$16/1000 -> 0 | AQ18: =AC18*K18+($A$4-80)*AJ18*$A$16/1000 -> 0 | AR18: =AD18*M18+($A$4-80)*AK18*$A$16/1000 -> 0 | AS18: =AE18*O18+($A$4-80)*AL18*$A$16/1000 -> 0
B19: 59 | C19: 0 | D19: 0 | E19: 0 | F19: 0 | G19: 0 | H19: 0 | I19: 0 | J19: 0 | K19: 0 | L19: 0 | M19: 0 | N19: 0 | O19: 0 | P19: 0 | R19: 1.014880952 | S19: 0.9910714286 | T19: 0.9672619048 | U19: 0.9553571429 | V19: 0.943452381 | W19: 0.8958333333 | X19: 0.8303571429 | Y19: 0.96 | Z19: 1 | AA19: 1 | AB19: 1 | AC19: 1 | AD19: 1 | AE19: 1 | AF19: 0.4823703704 | AG19: 0.5248888889 | AH19: 0.4197037037 | AI19: 0.3455555556 | AJ19: 0.2731851852 | AK19: 0.07407407407 | AL19: 0.07407407407 | AM19: =Y19*C19+($A$4-80)*AF19*$A$16/1000 -> 0 | AN19: =Z19*E19+($A$4-80)*AG19*$A$16/1000 -> 0 | AO19: =AA19*G19+($A$4-80)*AH19*$A$16/1000 -> 0 | AP19: =AB19*I19+($A$4-80)*AI19*$A$16/1000 -> 0 | AQ19: =AC19*K19+($A$4-80)*AJ19*$A$16/1000 -> 0 | AR19: =AD19*M19+($A$4-80)*AK19*$A$16/1000 -> 0 | AS19: =AE19*O19+($A$4-80)*AL19*$A$16/1000 -> 0

Sheet GSX130_42 (hidden)
A2: GSX130_42
A3: Evaporator Air | C3: Condenser Entering Air Temperature ˚F
A4: 80 | B4: °F DB | C4: 65 | E4: 75 | G4: 85 | I4: 90 | K4: 95 | M4: 105 | O4: 115
A5: CFM | B5: EWB† ˚F | C5: Capacity Mbtuh | E5: Capacity Mbtuh | G5: Capacity Mbtuh | I5: Capacity Mbtuh | K5: Capacity Mbtuh | M5: Capacity Mbtuh | O5: Capacity Mbtuh
C6: Total | D6: Sens. | E6: Total | F6: Sens. | G6: Total | H6: Sens. | I6: Total | J6: Sens. | K6: Total | L6: Sens. | M6: Total | N6: Sens. | O6: Total | P6: Sens.
R7: Total Factors | Y7: Sens. % | AF7: IDB Adj | AM7: Sens Calc
A8: 1225 | B8: 71 | C8: =R8*$K$13 -> 25.46341463 | D8: =IF(AM8>C8,C8,AM8) -> 12.47707317 | E8: =S8*$K$13 -> 24.87804878 | F8: =IF(AN8>E8,E8,AN8) -> 12.68780488 | G8: =T8*$K$13 -> 24.29268293 | H8: =IF(AO8>G8,G8,AO8) -> 12.63219512 | I8: =U8*$K$13 -> 24 | J8: =IF(AP8>I8,I8,AP8) -> 12.72 | K8: =V8*$K$13 -> 23.70731707 | L8: =IF(AQ8>K8,K8,AQ8) -> 12.80195122 | M8: =W8*$K$13 -> 22.47804878 | N8: =IF(AR8>M8,M8,AR8) -> 12.58770732 | O8: =X8*$K$13 -> 20.83902439 | P8: =IF(AS8>O8,O8,AS8) -> 11.66985366 | R8: 1.06097561 | S8: 1.036585366 | T8: 1.012195122 | U8: 1 | V8: 0.987804878 | W8: 0.9365853659 | X8: 0.8682926829 | Y8: 0.49 | Z8: 0.51 | AA8: 0.52 | AB8: 0.53 | AC8: 0.54 | AD8: 0.56 | AE8: 0.56 | AF8: 1.048653061 | AG8: 1.093061224 | AH8: 1.06644898 | AI8: 1.089591837 | AJ8: 1.112 | AK8: 1.046693878 | AL8: 0.9753469388 | AM8: =Y8*C8+($A$4-80)*AF8*$A$8/1000 -> 12.47707317 | AN8: =Z8*E8+($A$4-80)*AG8*$A$8/1000 -> 12.68780488 | AO8: =AA8*G8+($A$4-80)*AH8*$A$8/1000 -> 12.63219512 | AP8: =AB8*I8+($A$4-80)*AI8*$A$8/1000 -> 12.72 | AQ8: =AC8*K8+($A$4-80)*AJ8*$A$8/1000 -> 12.80195122 | AR8: =AD8*M8+($A$4-80)*AK8*$A$8/1000 -> 12.58770732 | AS8: =AE8*O8+($A$4-80)*AL8*$A$8/1000 -> 11.66985366
B9: 67 | C9: 23.82439024 | D9: 15.48585366 | E9: 23.23902439 | F9: 15.80253659 | G9: 22.71219512 | H9: 15.67141463 | I9: 22.4195122 | J9: 15.8057561 | K9: =V9*$K$13 -> 22.12682927 | L9: 15.93131707 | M9: 21.07317073 | N9: 15.59414634 | O9: 19.49268293 | P9: 14.6195122 | R9: 0.9926829268 | S9: 0.9682926829 | T9: 0.9463414634 | U9: 0.9341463415 | V9: 0.9219512195 | W9: 0.8780487805 | X9: 0.812195122 | Y9: 0.65 | Z9: 0.68 | AA9: 0.69 | AB9: 0.705 | AC9: 0.72 | AD9: 0.74 | AE9: 0.75 | AF9: 0.7887346939 | AG9: 0.8246530612 | AH9: 0.8143673469 | AI9: 0.8302040816 | AJ9: 0.8450612245 | AK9: 0.8130612245 | AL9: 0.7511836735 | AM9: =Y9*C9+($A$4-80)*AF9*$A$8/1000 -> 15.48585366 | AN9: =Z9*E9+($A$4-80)*AG9*$A$8/1000 -> 15.80253659 | AO9: =AA9*G9+($A$4-80)*AH9*$A$8/1000 -> 15.67141463 | AP9: =AB9*I9+($A$4-80)*AI9*$A$8/1000 -> 15.8057561 | AQ9: =AC9*K9+($A$4-80)*AJ9*$A$8/1000 -> 15.93131707 | AR9: =AD9*M9+($A$4-80)*AK9*$A$8/1000 -> 15.59414634 | AS9: =AE9*O9+($A$4-80)*AL9*$A$8/1000 -> 14.6195122
B10: 63 | C10: 22.30243902 | D10: 17.84195122 | E10: 21.77560976 | F10: 18.0737561 | G10: 21.24878049 | H10: 18.06146341 | I10: 20.98536585 | J10: 18.15234146 | K10: =V10*$K$13 -> 20.72195122 | L10: 18.23531707 | M10: 19.66829268 | N10: 17.89814634 | O10: 18.26341463 | P10: 16.80234146 | R10: 0.9292682927 | S10: 0.9073170732 | T10: 0.8853658537 | U10: 0.8743902439 | V10: 0.8634146341 | W10: 0.8195121951 | X10: 0.7609756098 | Y10: 0.8 | Z10: 0.83 | AA10: 0.85 | AB10: 0.865 | AC10: 0.88 | AD10: 0.91 | AE10: 0.92 | AF10: 0.667755102 | AG10: 0.7151020408 | AH10: 0.700244898 | AI10: 0.6869795918 | AJ10: 0.6734693878 | AK10: 0.6969795918 | AL10: 0.6504489796 | AM10: =Y10*C10+($A$4-80)*AF10*$A$8/1000 -> 17.84195122 | AN10: =Z10*E10+($A$4-80)*AG10*$A$8/1000 -> 18.0737561 | AO10: =AA10*G10+($A$4-80)*AH10*$A$8/1000 -> 18.06146341 | AP10: =AB10*I10+($A$4-80)*AI10*$A$8/1000 -> 18.15234146 | AQ10: =AC10*K10+($A$4-80)*AJ10*$A$8/1000 -> 18.23531707 | AR10: =AD10*M10+($A$4-80)*AK10*$A$8/1000 -> 17.89814634 | AS10: =AE10*O10+($A$4-80)*AL10*$A$8/1000 -> 16.80234146
B11: 59 | C11: 21.83414634 | D11: 18.77736585 | E11: 21.30731707 | F11: 18.9635122 | G11: 20.7804878 | H11: 18.9102439 | I11: 20.54634146 | J11: 19.00536585 | K11: =V11*$K$13 -> 20.31219512 | L11: 19.09346341 | M11: 19.25853659 | N11: 18.68078049 | O11: 17.85365854 | P11: 17.49658537 | R11: 0.9097560976 | S11: 0.887804878 | T11: 0.8658536585 | U11: 0.856097561 | V11: 0.8463414634 | W11: 0.8024390244 | X11: 0.743902439 | Y11: 0.86 | Z11: 0.89 | AA11: 0.91 | AB11: 0.925 | AC11: 0.94 | AD11: 0.97 | AE11: 0.98 | AF11: 0.5763265306 | AG11: 0.5547755102 | AH11: 0.5449795918 | AI11: 0.5412244898 | AJ11: 0.5374693878 | AK11: 0.5023673469 | AL11: 0.4718367347 | AM11: =Y11*C11+($A$4-80)*AF11*$A$8/1000 -> 18.77736585 | AN11: =Z11*E11+($A$4-80)*AG11*$A$8/1000 -> 18.9635122 | AO11: =AA11*G11+($A$4-80)*AH11*$A$8/1000 -> 18.9102439 | AP11: =AB11*I11+($A$4-80)*AI11*$A$8/1000 -> 19.00536585 | AQ11: =AC11*K11+($A$4-80)*AJ11*$A$8/1000 -> 19.09346341 | AR11: =AD11*M11+($A$4-80)*AK11*$A$8/1000 -> 18.68078049 | AS11: =AE11*O11+($A$4-80)*AL11*$A$8/1000 -> 17.49658537
A12: 1400 | B12: 71 | C12: 27.57073171 | D12: 14.06107317 | E12: 26.92682927 | F12: 14.00195122 | G12: 26.28292683 | H12: 14.19278049 | I12: 25.96097561 | J12: 14.27853659 | K12: =V12*$K$13 -> 25.63902439 | L12: 14.35785366 | M12: 24.35121951 | N12: 14.12370732 | O12: 22.59512195 | P12: 13.10517073 | R12: 1.148780488 | S12: 1.12195122 | T12: 1.095121951 | U12: 1.081707317 | V12: 1.068292683 | W12: 1.014634146 | X12: 0.9414634146 | Y12: 0.51 | Z12: 0.52 | AA12: 0.54 | AB12: 0.55 | AC12: 0.56 | AD12: 0.58 | AE12: 0.58 | AF12: 1.061571429 | AG12: 0.9698571429 | AH12: 1.074571429 | AI12: 1.060785714 | AJ12: 1.047 | AK12: 1.052571429 | AL12: 0.9811428571 | AM12: =Y12*C12+($A$4-80)*AF12*$A$12/1000 -> 14.06107317 | AN12: =Z12*E12+($A$4-80)*AG12*$A$12/1000 -> 14.00195122 | AO12: =AA12*G12+($A$4-80)*AH12*$A$12/1000 -> 14.19278049 | AP12: =AB12*I12+($A$4-80)*AI12*$A$12/1000 -> 14.27853659 | AQ12: =AC12*K12+($A$4-80)*AJ12*$A$12/1000 -> 14.35785366 | AR12: =AD12*M12+($A$4-80)*AK12*$A$12/1000 -> 14.12370732 | AS12: =AE12*O12+($A$4-80)*AL12*$A$12/1000 -> 13.10517073
B13: 67 | C13: 25.81463415 | D13: 17.55395122 | E13: 25.22926829 | F13: 17.6604878 | G13: 24.58536585 | H13: 17.70146341 | I13: 24.29268293 | J13: 17.73365854 | K13: 24 | L13: 17.76 | M13: 22.82926829 | N13: 17.57853659 | O13: 21.13170732 | P13: 16.48273171 | R13: 1.075609756 | S13: 1.051219512 | T13: 1.024390244 | U13: 1.012195122 | V13: 1 | W13: 0.9512195122 | X13: 0.8804878049 | Y13: 0.68 | Z13: 0.7 | AA13: 0.72 | AB13: 0.73 | AC13: 0.74 | AD13: 0.77 | AE13: 0.78 | AF13: 0.8111428571 | AG13: 0.7922857143 | AH13: 0.8234285714 | AI13: 0.8173571429 | AJ13: 0.8114285714 | AK13: 0.8268571429 | AL13: 0.7645714286 | AM13: =Y13*C13+($A$4-80)*AF13*$A$12/1000 -> 17.55395122 | AN13: =Z13*E13+($A$4-80)*AG13*$A$12/1000 -> 17.6604878 | AO13: =AA13*G13+($A$4-80)*AH13*$A$12/1000 -> 17.70146341 | AP13: =AB13*I13+($A$4-80)*AI13*$A$12/1000 -> 17.73365854 | AQ13: =AC13*K13+($A$4-80)*AJ13*$A$12/1000 -> 17.76 | AR13: =AD13*M13+($A$4-80)*AK13*$A$12/1000 -> 17.57853659 | AS13: =AE13*O13+($A$4-80)*AL13*$A$12/1000 -> 16.48273171
B14: 63 | C14: 24.17560976 | D14: 20.0657561 | E14: 23.5902439 | F14: 20.28760976 | G14: 23.00487805 | H14: 20.24429268 | I14: 22.74146341 | J14: 20.35360976 | K14: =V14*$K$13 -> 22.47804878 | L14: 20.45502439 | M14: 21.36585366 | N14: 20.29756098 | O14: 19.78536585 | P14: 18.99395122 | R14: 1.007317073 | S14: 0.9829268293 | T14: 0.9585365854 | U14: 0.9475609756 | V14: 0.9365853659 | W14: 0.8902439024 | X14: 0.8243902439 | Y14: 0.83 | Z14: 0.86 | AA14: 0.88 | AB14: 0.895 | AC14: 0.91 | AD14: 0.95 | AE14: 0.96 | AF14: 0.7004285714 | AG14: 0.6761428571 | AH14: 0.6615714286 | AI14: 0.6828214286 | AJ14: 0.7034285714 | AK14: 0.7247142857 | AL14: 0.6751428571 | AM14: =Y14*C14+($A$4-80)*AF14*$A$12/1000 -> 20.0657561 | AN14: =Z14*E14+($A$4-80)*AG14*$A$12/1000 -> 20.28760976 | AO14: =AA14*G14+($A$4-80)*AH14*$A$12/1000 -> 20.24429268 | AP14: =AB14*I14+($A$4-80)*AI14*$A$12/1000 -> 20.35360976 | AQ14: =AC14*K14+($A$4-80)*AJ14*$A$12/1000 -> 20.45502439 | AR14: =AD14*M14+($A$4-80)*AK14*$A$12/1000 -> 20.29756098 | AS14: =AE14*O14+($A$4-80)*AL14*$A$12/1000 -> 18.99395122
B15: 59 | C15: 23.64878049 | D15: 21.04741463 | E15: 23.06341463 | F15: 21.21834146 | G15: 22.53658537 | H15: 21.18439024 | I15: 22.27317073 | J15: 21.27087805 | K15: 22.0097561 | L15: 21.34946341 | M15: 20.89756098 | N15: 20.89756098 | O15: 19.31707317 | P15: 19.31707317 | R15: 0.9853658537 | S15: 0.9609756098 | T15: 0.9390243902 | U15: 0.9280487805 | V15: 0.9170731707 | W15: 0.8707317073 | X15: 0.8048780488 | Y15: 0.89 | Z15: 0.92 | AA15: 0.94 | AB15: 0.955 | AC15: 0.97 | AD15: 1 | AE15: 1 | AF15: 0.5427142857 | AG15: 0.5342857143 | AH15: 0.526 | AI15: 0.5223571429 | AJ15: 0.5187142857 | AK15: 0.4868571429 | AL15: 0.3964285714 | AM15: =Y15*C15+($A$4-80)*AF15*$A$12/1000 -> 21.04741463 | AN15: =Z15*E15+($A$4-80)*AG15*$A$12/1000 -> 21.21834146 | AO15: =AA15*G15+($A$4-80)*AH15*$A$12/1000 -> 21.18439024 | AP15: =AB15*I15+($A$4-80)*AI15*$A$12/1000 -> 21.27087805 | AQ15: =AC15*K15+($A$4-80)*AJ15*$A$12/1000 -> 21.34946341 | AR15: =AD15*M15+($A$4-80)*AK15*$A$12/1000 -> 20.89756098 | AS15: =AE15*O15+($A$4-80)*AL15*$A$12/1000 -> 19.31707317
A16: 1575 | B16: 71 | C16: 28.3902439 | D16: 15.04682927 | E16: 27.74634146 | F16: 15.2604878 | G16: 27.10243902 | H16: 15.17736585 | I16: 26.75121951 | J16: 15.24819512 | K16: 26.4 | L16: 15.312 | M16: 25.11219512 | N16: 15.06731707 | O16: 23.23902439 | P16: 14.17580488 | R16: 1.182926829 | S16: 1.156097561 | T16: 1.129268293 | U16: 1.114634146 | V16: 1.1 | W16: 1.046341463 | X16: 0.9682926829 | Y16: 0.53 | Z16: 0.55 | AA16: 0.56 | AB16: 0.57 | AC16: 0.58 | AD16: 0.6 | AE16: 0.61 | AF16: 0.9666031746 | AG16: 1.008761905 | AH16: 0.9846349206 | AI16: 0.9687619048 | AJ16: 0.9527619048 | AK16: 0.9645714286 | AL16: 0.9418412698 | AM16: =Y16*C16+($A$4-80)*AF16*$A$16/1000 -> 15.04682927 | AN16: =Z16*E16+($A$4-80)*AG16*$A$16/1000 -> 15.2604878 | AO16: =AA16*G16+($A$4-80)*AH16*$A$16/1000 -> 15.17736585 | AP16: =AB16*I16+($A$4-80)*AI16*$A$16/1000 -> 15.24819512 | AQ16: =AC16*K16+($A$4-80)*AJ16*$A$16/1000 -> 15.312 | AR16: =AD16*M16+($A$4-80)*AK16*$A$16/1000 -> 15.06731707 | AS16: =AE16*O16+($A$4-80)*AL16*$A$16/1000 -> 14.17580488
B17: 67 | C17: 26.57560976 | D17: 18.86868293 | E17: 25.93170732 | F17: 19.18946341 | G17: 25.34634146 | H17: 19.0097561 | I17: 25.02439024 | J17: 19.14365854 | K17: 24.70243902 | L17: 19.26790244 | M17: 23.47317073 | N17: 19.01326829 | O17: 21.77560976 | P17: 17.856 | R17: 1.107317073 | S17: 1.080487805 | T17: 1.056097561 | U17: 1.042682927 | V17: 1.029268293 | W17: 0.9780487805 | X17: 0.9073170732 | Y17: 0.71 | Z17: 0.74 | AA17: 0.75 | AB17: 0.765 | AC17: 0.78 | AD17: 0.81 | AE17: 0.82 | AF17: 0.7998730159 | AG17: 0.7723174603 | AH17: 0.762031746 | AI17: 0.7753333333 | AJ17: 0.7878095238 | AK17: 0.8064761905 | AL17: 0.7474285714 | AM17: =Y17*C17+($A$4-80)*AF17*$A$16/1000 -> 18.86868293 | AN17: =Z17*E17+($A$4-80)*AG17*$A$16/1000 -> 19.18946341 | AO17: =AA17*G17+($A$4-80)*AH17*$A$16/1000 -> 19.0097561 | AP17: =AB17*I17+($A$4-80)*AI17*$A$16/1000 -> 19.14365854 | AQ17: =AC17*K17+($A$4-80)*AJ17*$A$16/1000 -> 19.26790244 | AR17: =AD17*M17+($A$4-80)*AK17*$A$16/1000 -> 19.01326829 | AS17: =AE17*O17+($A$4-80)*AL17*$A$16/1000 -> 17.856
B18: 63 | C18: 24.87804878 | D18: 21.64390244 | E18: 24.29268293 | F18: 21.86341463 | G18: 23.70731707 | H18: 22.04780488 | I18: 23.41463415 | J18: 22.12682927 | K18: 23.12195122 | L18: 22.19707317 | M18: 22.0097561 | N18: 22.0097561 | O18: 20.37073171 | P18: 20.37073171 | R18: 1.036585366 | S18: 1.012195122 | T18: 0.987804878 | U18: 0.9756097561 | V18: 0.9634146341 | W18: 0.9170731707 | X18: 0.8487804878 | Y18: 0.87 | Z18: 0.9 | AA18: 0.93 | AB18: 0.945 | AC18: 0.96 | AD18: 1 | AE18: 1 | AF18: 0.6322539683 | AG18: 0.6198095238 | AH18: 0.6582857143 | AI18: 0.6765714286 | AJ18: 0.6942222222 | AK18: 0.7121269841 | AL18: 0.6186666667 | AM18: =Y18*C18+($A$4-80)*AF18*$A$16/1000 -> 21.64390244 | AN18: =Z18*E18+($A$4-80)*AG18*$A$16/1000 -> 21.86341463 | AO18: =AA18*G18+($A$4-80)*AH18*$A$16/1000 -> 22.04780488 | AP18: =AB18*I18+($A$4-80)*AI18*$A$16/1000 -> 22.12682927 | AQ18: =AC18*K18+($A$4-80)*AJ18*$A$16/1000 -> 22.19707317 | AR18: =AD18*M18+($A$4-80)*AK18*$A$16/1000 -> 22.0097561 | AS18: =AE18*O18+($A$4-80)*AL18*$A$16/1000 -> 20.37073171
B19: 59 | C19: 24.35121951 | D19: 22.64663415 | E19: 23.76585366 | F19: 22.81521951 | G19: 23.1804878 | H19: 23.1804878 | I19: 22.91707317 | J19: 22.91707317 | K19: 22.65365854 | L19: 22.65365854 | M19: 21.48292683 | N19: 21.48292683 | O19: 19.90243902 | P19: 19.90243902 | R19: 1.014634146 | S19: 0.9902439024 | T19: 0.9658536585 | U19: 0.9548780488 | V19: 0.943902439 | W19: 0.8951219512 | X19: 0.8292682927 | Y19: 0.93 | Z19: 0.96 | AA19: 1 | AB19: 1 | AC19: 1 | AD19: 1 | AE19: 1 | AF19: 0.4981587302 | AG19: 0.4906666667 | AH19: 0.5714285714 | AI19: 0.4980952381 | AJ19: 0.4266666667 | AK19: 0.2137142857 | AL19: 0.2034285714 | AM19: =Y19*C19+($A$4-80)*AF19*$A$16/1000 -> 22.64663415 | AN19: =Z19*E19+($A$4-80)*AG19*$A$16/1000 -> 22.81521951 | AO19: =AA19*G19+($A$4-80)*AH19*$A$16/1000 -> 23.1804878 | AP19: =AB19*I19+($A$4-80)*AI19*$A$16/1000 -> 22.91707317 | AQ19: =AC19*K19+($A$4-80)*AJ19*$A$16/1000 -> 22.65365854 | AR19: =AD19*M19+($A$4-80)*AK19*$A$16/1000 -> 21.48292683 | AS19: =AE19*O19+($A$4-80)*AL19*$A$16/1000 -> 19.90243902

Sheet GSX130_48 (hidden)
A2: GSX130_48
A3: Evaporator Air | C3: Condenser Entering Air Temperature ˚F
A4: 80 | B4: °F DB | C4: 65 | E4: 75 | G4: 85 | I4: 90 | K4: 95 | M4: 105 | O4: 115
A5: CFM | B5: EWB† ˚F | C5: Capacity Mbtuh | E5: Capacity Mbtuh | G5: Capacity Mbtuh | I5: Capacity Mbtuh | K5: Capacity Mbtuh | M5: Capacity Mbtuh | O5: Capacity Mbtuh
C6: Total | D6: Sens. | E6: Total | F6: Sens. | G6: Total | H6: Sens. | I6: Total | J6: Sens. | K6: Total | L6: Sens. | M6: Total | N6: Sens. | O6: Total | P6: Sens.
R7: Total Factors | Y7: Sens. % | AF7: IDB Adj | AM7: Sens Calc
A8: 1400 | B8: 71 | C8: =R8*$K$13 -> 25.46086957 | D8: =IF(AM8>C8,C8,AM8) -> 12.73043478 | E8: =S8*$K$13 -> 24.88695652 | F8: =IF(AN8>E8,E8,AN8) -> 12.94121739 | G8: =T8*$K$13 -> 24.26086957 | H8: =IF(AO8>G8,G8,AO8) -> 13.10086957 | I8: =U8*$K$13 -> 23.97391304 | J8: =IF(AP8>I8,I8,AP8) -> 13.06578261 | K8: =V8*$K$13 -> 23.68695652 | L8: =IF(AQ8>K8,K8,AQ8) -> 13.02782609 | M8: =W8*$K$13 -> 22.48695652 | N8: =IF(AR8>M8,M8,AR8) -> 12.81756522 | O8: =X8*$K$13 -> 20.8173913 | P8: =IF(AS8>O8,O8,AS8) -> 12.07408696 | R8: 1.060869565 | S8: 1.036956522 | T8: 1.010869565 | U8: 0.9989130435 | V8: 0.9869565217 | W8: 0.9369565217 | X8: 0.8673913043 | Y8: 0.5 | Z8: 0.52 | AA8: 0.54 | AB8: 0.545 | AC8: 0.55 | AD8: 0.57 | AE8: 0.58 | AF8: 1.030714286 | AG8: 1.074857143 | AH8: 1.113428571 | AI8: 1.099857143 | AJ8: 1.086285714 | AK8: 1.029571429 | AL8: 1.008857143 | AM8: =Y8*C8+($A$4-80)*AF8*$A$8/1000 -> 12.73043478 | AN8: =Z8*E8+($A$4-80)*AG8*$A$8/1000 -> 12.94121739 | AO8: =AA8*G8+($A$4-80)*AH8*$A$8/1000 -> 13.10086957 | AP8: =AB8*I8+($A$4-80)*AI8*$A$8/1000 -> 13.06578261 | AQ8: =AC8*K8+($A$4-80)*AJ8*$A$8/1000 -> 13.02782609 | AR8: =AD8*M8+($A$4-80)*AK8*$A$8/1000 -> 12.81756522 | AS8: =AE8*O8+($A$4-80)*AL8*$A$8/1000 -> 12.07408696
B9: 67 | C9: 23.79130435 | D9: 15.94017391 | E9: 23.26956522 | F9: 16.28869565 | G9: 22.69565217 | H9: 16.34086957 | I9: 22.43478261 | J9: 16.3773913 | K9: =V9*$K$13 -> 22.17391304 | L9: 16.40869565 | M9: 21.02608696 | N9: 16.19008696 | O9: 19.51304348 | P9: 15.02504348 | R9: 0.9913043478 | S9: 0.9695652174 | T9: 0.9456521739 | U9: 0.9347826087 | V9: 0.9239130435 | W9: 0.8760869565 | X9: 0.8130434783 | Y9: 0.67 | Z9: 0.7 | AA9: 0.72 | AB9: 0.73 | AC9: 0.74 | AD9: 0.77 | AE9: 0.77 | AF9: 0.766 | AG9: 0.884 | AH9: 0.8534285714 | AI9: 0.8473571429 | AJ9: 0.8414285714 | AK9: 0.8458571429 | AL9: 0.739 | AM9: =Y9*C9+($A$4-80)*AF9*$A$8/1000 -> 15.94017391 | AN9: =Z9*E9+($A$4-80)*AG9*$A$8/1000 -> 16.28869565 | AO9: =AA9*G9+($A$4-80)*AH9*$A$8/1000 -> 16.34086957 | AP9: =AB9*I9+($A$4-80)*AI9*$A$8/1000 -> 16.3773913 | AQ9: =AC9*K9+($A$4-80)*AJ9*$A$8/1000 -> 16.40869565 | AR9: =AD9*M9+($A$4-80)*AK9*$A$8/1000 -> 16.19008696 | AS9: =AE9*O9+($A$4-80)*AL9*$A$8/1000 -> 15.02504348
B10: 63 | C10: 22.27826087 | D10: 18.49095652 | E10: 21.75652174 | F10: 18.7106087 | G10: 21.23478261 | H10: 18.6866087 | I10: 20.97391304 | J10: 18.77165217 | K10: =V10*$K$13 -> 20.71304348 | L10: 18.84886957 | M10: 19.72173913 | N10: 18.53843478 | O10: 18.26086957 | P10: 17.34782609 | R10: 0.9282608696 | S10: 0.9065217391 | T10: 0.8847826087 | U10: 0.8739130435 | V10: 0.8630434783 | W10: 0.8217391304 | X10: 0.7608695652 | Y10: 0.83 | Z10: 0.86 | AA10: 0.88 | AB10: 0.895 | AC10: 0.91 | AD10: 0.94 | AE10: 0.95 | AF10: 0.7121428571 | AG10: 0.6981428571 | AH10: 0.6835714286 | AI10: 0.705 | AJ10: 0.7257142857 | AK10: 0.6948571429 | AL10: 0.6474285714 | AM10: =Y10*C10+($A$4-80)*AF10*$A$8/1000 -> 18.49095652 | AN10: =Z10*E10+($A$4-80)*AG10*$A$8/1000 -> 18.7106087 | AO10: =AA10*G10+($A$4-80)*AH10*$A$8/1000 -> 18.6866087 | AP10: =AB10*I10+($A$4-80)*AI10*$A$8/1000 -> 18.77165217 | AQ10: =AC10*K10+($A$4-80)*AJ10*$A$8/1000 -> 18.84886957 | AR10: =AD10*M10+($A$4-80)*AK10*$A$8/1000 -> 18.53843478 | AS10: =AE10*O10+($A$4-80)*AL10*$A$8/1000 -> 17.34782609
B11: 59 | C11: 21.80869565 | D11: 19.19165217 | E11: 21.28695652 | F11: 19.584 | G11: 20.8173913 | H11: 19.56834783 | I11: 20.55652174 | J11: 19.63147826 | K11: =V11*$K$13 -> 20.29565217 | L11: 19.68678261 | M11: 19.25217391 | N11: 19.25217391 | O11: 17.84347826 | P11: 17.84347826 | R11: 0.9086956522 | S11: 0.8869565217 | T11: 0.8673913043 | U11: 0.8565217391 | V11: 0.8456521739 | W11: 0.802173913 | X11: 0.7434782609 | Y11: 0.88 | Z11: 0.92 | AA11: 0.94 | AB11: 0.955 | AC11: 0.97 | AD11: 1.01 | AE11: 1.01 | AF11: 0.499 | AG11: 0.6075714286 | AH11: 0.542 | AI11: 0.5654285714 | AJ11: 0.5881428571 | AK11: 0.5532857143 | AL11: 0.5185714286 | AM11: =Y11*C11+($A$4-80)*AF11*$A$8/1000 -> 19.19165217 | AN11: =Z11*E11+($A$4-80)*AG11*$A$8/1000 -> 19.584 | AO11: =AA11*G11+($A$4-80)*AH11*$A$8/1000 -> 19.56834783 | AP11: =AB11*I11+($A$4-80)*AI11*$A$8/1000 -> 19.63147826 | AQ11: =AC11*K11+($A$4-80)*AJ11*$A$8/1000 -> 19.68678261 | AR11: =AD11*M11+($A$4-80)*AK11*$A$8/1000 -> 19.44469565 | AS11: =AE11*O11+($A$4-80)*AL11*$A$8/1000 -> 18.02191304
A12: 1600 | B12: 71 | C12: 27.6 | D12: 14.352 | E12: 26.92173913 | F12: 14.53773913 | G12: 26.29565217 | H12: 14.72556522 | I12: 25.9826087 | J12: 14.68017391 | K12: =V12*$K$13 -> 25.66956522 | L12: 14.63165217 | M12: 24.36521739 | N12: 14.61913043 | O12: 22.59130435 | P12: 13.55478261 | R12: 1.15 | S12: 1.12173913 | T12: 1.095652174 | U12: 1.082608696 | V12: 1.069565217 | W12: 1.015217391 | X12: 0.9413043478 | Y12: 0.52 | Z12: 0.54 | AA12: 0.56 | AB12: 0.565 | AC12: 0.57 | AD12: 0.6 | AE12: 0.6 | AF12: 1.0445 | AG12: 1.013 | AH12: 1.0515 | AI12: 1.04096875 | AJ12: 1.0305 | AK12: 1.09375 | AL12: 0.9585 | AM12: =Y12*C12+($A$4-80)*AF12*$A$12/1000 -> 14.352 | AN12: =Z12*E12+($A$4-80)*AG12*$A$12/1000 -> 14.53773913 | AO12: =AA12*G12+($A$4-80)*AH12*$A$12/1000 -> 14.72556522 | AP12: =AB12*I12+($A$4-80)*AI12*$A$12/1000 -> 14.68017391 | AQ12: =AC12*K12+($A$4-80)*AJ12*$A$12/1000 -> 14.63165217 | AR12: =AD12*M12+($A$4-80)*AK12*$A$12/1000 -> 14.61913043 | AS12: =AE12*O12+($A$4-80)*AL12*$A$12/1000 -> 13.55478261
B13: 67 | C13: 25.82608696 | D13: 18.07826087 | E13: 25.2 | F13: 18.144 | G13: 24.62608696 | H13: 18.22330435 | I13: 24.31304348 | J13: 18.35634783 | K13: 24 | L13: 18.48 | M13: 22.8 | N13: 18.24 | O13: 21.13043478 | P13: 16.90434783 | R13: 1.076086957 | S13: 1.05 | T13: 1.026086957 | U13: 1.013043478 | V13: 1 | W13: 0.95 | X13: 0.8804347826 | Y13: 0.7 | Z13: 0.72 | AA13: 0.74 | AB13: 0.755 | AC13: 0.77 | AD13: 0.8 | AE13: 0.8 | AF13: 0.79725 | AG13: 0.7775 | AH13: 0.8185 | AI13: 0.837 | AJ13: 0.85475 | AK13: 0.866 | AL13: 0.75125 | AM13: =Y13*C13+($A$4-80)*AF13*$A$12/1000 -> 18.07826087 | AN13: =Z13*E13+($A$4-80)*AG13*$A$12/1000 -> 18.144 | AO13: =AA13*G13+($A$4-80)*AH13*$A$12/1000 -> 18.22330435 | AP13: =AB13*I13+($A$4-80)*AI13*$A$12/1000 -> 18.35634783 | AQ13: =AC13*K13+($A$4-80)*AJ13*$A$12/1000 -> 18.48 | AR13: =AD13*M13+($A$4-80)*AK13*$A$12/1000 -> 18.24 | AS13: =AE13*O13+($A$4-80)*AL13*$A$12/1000 -> 16.90434783
B14: 63 | C14: 24.15652174 | D14: 20.7746087 | E14: 23.5826087 | F14: 20.98852174 | G14: 23.00869565 | H14: 20.93791304 | I14: 22.74782609 | J14: 21.04173913 | K14: =V14*$K$13 -> 22.48695652 | L14: 21.13773913 | M14: 21.33913043 | N14: 20.91234783 | O14: 19.77391304 | P14: 19.57617391 | R14: 1.006521739 | S14: 0.9826086957 | T14: 0.9586956522 | U14: 0.947826087 | V14: 0.9369565217 | W14: 0.8891304348 | X14: 0.8239130435 | Y14: 0.86 | Z14: 0.89 | AA14: 0.91 | AB14: 0.925 | AC14: 0.94 | AD14: 0.98 | AE14: 0.99 | AF14: 0.6835 | AG14: 0.7165 | AH14: 0.701 | AI14: 0.69928125 | AJ14: 0.69775 | AK14: 0.707125 | AL14: 0.658875 | AM14: =Y14*C14+($A$4-80)*AF14*$A$12/1000 -> 20.7746087 | AN14: =Z14*E14+($A$4-80)*AG14*$A$12/1000 -> 20.98852174 | AO14: =AA14*G14+($A$4-80)*AH14*$A$12/1000 -> 20.93791304 | AP14: =AB14*I14+($A$4-80)*AI14*$A$12/1000 -> 21.04173913 | AQ14: =AC14*K14+($A$4-80)*AJ14*$A$12/1000 -> 21.13773913 | AR14: =AD14*M14+($A$4-80)*AK14*$A$12/1000 -> 20.91234783 | AS14: =AE14*O14+($A$4-80)*AL14*$A$12/1000 -> 19.57617391
B15: 59 | C15: 23.63478261 | D15: 21.744 | E15: 23.06086957 | F15: 21.90782609 | G15: 22.53913043 | H15: 21.86295652 | I15: 22.25217391 | J15: 21.9183913 | K15: 21.96521739 | L15: 21.96521739 | M15: 20.86956522 | N15: 20.86956522 | O15: 19.35652174 | P15: 19.35652174 | R15: 0.9847826087 | S15: 0.9608695652 | T15: 0.9391304348 | U15: 0.927173913 | V15: 0.9152173913 | W15: 0.8695652174 | X15: 0.8065217391 | Y15: 0.92 | Z15: 0.95 | AA15: 0.97 | AB15: 0.985 | AC15: 1 | AD15: 1 | AE15: 1 | AF15: 0.537 | AG15: 0.518125 | AH15: 0.521 | AI15: 0.51134375 | AJ15: 0.5015 | AK15: 0.333125 | AL15: 0.2695 | AM15: =Y15*C15+($A$4-80)*AF15*$A$12/1000 -> 21.744 | AN15: =Z15*E15+($A$4-80)*AG15*$A$12/1000 -> 21.90782609 | AO15: =AA15*G15+($A$4-80)*AH15*$A$12/1000 -> 21.86295652 | AP15: =AB15*I15+($A$4-80)*AI15*$A$12/1000 -> 21.9183913 | AQ15: =AC15*K15+($A$4-80)*AJ15*$A$12/1000 -> 21.96521739 | AR15: =AD15*M15+($A$4-80)*AK15*$A$12/1000 -> 20.86956522 | AS15: =AE15*O15+($A$4-80)*AL15*$A$12/1000 -> 19.35652174
A16: 1800 | B16: 71 | C16: 28.3826087 | D16: 15.61043478 | E16: 27.75652174 | F16: 15.82121739 | G16: 27.07826087 | H16: 15.7053913 | I16: 26.73913043 | J16: 15.77608696 | K16: 26.4 | L16: 15.84 | M16: 25.09565217 | N16: 15.55930435 | O16: 23.26956522 | P16: 14.65982609 | R16: 1.182608696 | S16: 1.156521739 | T16: 1.12826087 | U16: 1.114130435 | V16: 1.1 | W16: 1.045652174 | X16: 0.9695652174 | Y16: 0.55 | Z16: 0.57 | AA16: 0.58 | AB16: 0.59 | AC16: 0.6 | AD16: 0.62 | AE16: 0.63 | AF16: 1.010666667 | AG16: 0.9871111111 | AH16: 0.9621111111 | AI16: 0.9780833333 | AJ16: 0.9933333333 | AK16: 0.9963333333 | AL16: 0.9268888889 | AM16: =Y16*C16+($A$4-80)*AF16*$A$16/1000 -> 15.61043478 | AN16: =Z16*E16+($A$4-80)*AG16*$A$16/1000 -> 15.82121739 | AO16: =AA16*G16+($A$4-80)*AH16*$A$16/1000 -> 15.7053913 | AP16: =AB16*I16+($A$4-80)*AI16*$A$16/1000 -> 15.77608696 | AQ16: =AC16*K16+($A$4-80)*AJ16*$A$16/1000 -> 15.84 | AR16: =AD16*M16+($A$4-80)*AK16*$A$16/1000 -> 15.55930435 | AS16: =AE16*O16+($A$4-80)*AL16*$A$16/1000 -> 14.65982609
B17: 67 | C17: 26.55652174 | D17: 19.38626087 | E17: 25.93043478 | F17: 19.70713043 | G17: 25.35652174 | H17: 19.77808696 | I17: 25.04347826 | J17: 19.78434783 | K17: 24.73043478 | L17: 19.78434783 | M17: 23.47826087 | N17: 19.48695652 | O17: 21.75652174 | P17: 18.27547826 | R17: 1.106521739 | S17: 1.080434783 | T17: 1.056521739 | U17: 1.043478261 | V17: 1.030434783 | W17: 0.9782608696 | X17: 0.9065217391 | Y17: 0.73 | Z17: 0.76 | AA17: 0.78 | AB17: 0.79 | AC17: 0.8 | AD17: 0.83 | AE17: 0.84 | AF17: 0.7786666667 | AG17: 0.8147777778 | AH17: 0.803 | AI17: 0.7928888889 | AJ17: 0.7827777778 | AK17: 0.7925555556 | AL17: 0.7337777778 | AM17: =Y17*C17+($A$4-80)*AF17*$A$16/1000 -> 19.38626087 | AN17: =Z17*E17+($A$4-80)*AG17*$A$16/1000 -> 19.70713043 | AO17: =AA17*G17+($A$4-80)*AH17*$A$16/1000 -> 19.77808696 | AP17: =AB17*I17+($A$4-80)*AI17*$A$16/1000 -> 19.78434783 | AQ17: =AC17*K17+($A$4-80)*AJ17*$A$16/1000 -> 19.78434783 | AR17: =AD17*M17+($A$4-80)*AK17*$A$16/1000 -> 19.48695652 | AS17: =AE17*O17+($A$4-80)*AL17*$A$16/1000 -> 18.27547826
B18: 63 | C18: 24.88695652 | D18: 22.39826087 | E18: 24.31304348 | F18: 22.61113043 | G18: 23.73913043 | H18: 22.78956522 | I18: 23.42608696 | J18: 22.95756522 | K18: 23.11304348 | L18: 23.11304348 | M18: 21.96521739 | N18: 21.96521739 | O18: 20.34782609 | P18: 20.34782609 | R18: 1.036956522 | S18: 1.013043478 | T18: 0.9891304348 | U18: 0.9760869565 | V18: 0.9630434783 | W18: 0.9152173913 | X18: 0.847826087 | Y18: 0.9 | Z18: 0.93 | AA18: 0.96 | AB18: 0.98 | AC18: 1 | AD18: 1 | AE18: 1 | AF18: 0.6793333333 | AG18: 0.6663333333 | AH18: 0.7033333333 | AI18: 0.71575 | AJ18: 0.7273333333 | AK18: 0.5541111111 | AL18: 0.4733333333 | AM18: =Y18*C18+($A$4-80)*AF18*$A$16/1000 -> 22.39826087 | AN18: =Z18*E18+($A$4-80)*AG18*$A$16/1000 -> 22.61113043 | AO18: =AA18*G18+($A$4-80)*AH18*$A$16/1000 -> 22.78956522 | AP18: =AB18*I18+($A$4-80)*AI18*$A$16/1000 -> 22.95756522 | AQ18: =AC18*K18+($A$4-80)*AJ18*$A$16/1000 -> 23.11304348 | AR18: =AD18*M18+($A$4-80)*AK18*$A$16/1000 -> 21.96521739 | AS18: =AE18*O18+($A$4-80)*AL18*$A$16/1000 -> 20.34782609
B19: 59 | C19: 24.36521739 | D19: 23.3906087 | E19: 23.79130435 | F19: 23.79130435 | G19: 23.2173913 | H19: 23.2173913 | I19: 22.93043478 | J19: 22.93043478 | K19: 22.64347826 | L19: 22.64347826 | M19: 21.49565217 | N19: 21.49565217 | O19: 19.93043478 | P19: 19.93043478 | R19: 1.015217391 | S19: 0.9913043478 | T19: 0.9673913043 | U19: 0.9554347826 | V19: 0.9434782609 | W19: 0.8956521739 | X19: 0.8304347826 | Y19: 0.96 | Z19: 1 | AA19: 1 | AB19: 1 | AC19: 1 | AD19: 1 | AE19: 1 | AF19: 0.5031111111 | AG19: 0.5368888889 | AH19: 0.4287777778 | AI19: 0.3525833333 | AJ19: 0.2782222222 | AK19: 0.07777777778 | AL19: 0.07777777778 | AM19: =Y19*C19+($A$4-80)*AF19*$A$16/1000 -> 23.3906087 | AN19: =Z19*E19+($A$4-80)*AG19*$A$16/1000 -> 23.79130435 | AO19: =AA19*G19+($A$4-80)*AH19*$A$16/1000 -> 23.2173913 | AP19: =AB19*I19+($A$4-80)*AI19*$A$16/1000 -> 22.93043478 | AQ19: =AC19*K19+($A$4-80)*AJ19*$A$16/1000 -> 22.64347826 | AR19: =AD19*M19+($A$4-80)*AK19*$A$16/1000 -> 21.49565217 | AS19: =AE19*O19+($A$4-80)*AL19*$A$16/1000 -> 19.93043478

Sheet GSX130_60 (hidden)
A2: GSX130_60
A3: Evaporator Air | C3: Condenser Entering Air Temperature ˚F
A4: 80 | B4: °F DB | C4: 65 | E4: 75 | G4: 85 | I4: 90 | K4: 95 | M4: 105 | O4: 115
A5: CFM | B5: EWB† ˚F | C5: Capacity Mbtuh | E5: Capacity Mbtuh | G5: Capacity Mbtuh | I5: Capacity Mbtuh | K5: Capacity Mbtuh | M5: Capacity Mbtuh | O5: Capacity Mbtuh
C6: Total | D6: Sens. | E6: Total | F6: Sens. | G6: Total | H6: Sens. | I6: Total | J6: Sens. | K6: Total | L6: Sens. | M6: Total | N6: Sens. | O6: Total | P6: Sens.
R7: Total Factors | Y7: Sens. % | AF7: IDB Adj | AM7: Sens Calc
A8: 1500 | B8: 71 | C8: =R8*$K$13 -> 25.47368421 | D8: =IF(AM8>C8,C8,AM8) -> 12.22736842 | E8: =S8*$K$13 -> 24.88421053 | F8: =IF(AN8>E8,E8,AN8) -> 12.19326316 | G8: =T8*$K$13 -> 24.25263158 | H8: =IF(AO8>G8,G8,AO8) -> 12.36884211 | I8: =U8*$K$13 -> 23.95789474 | J8: =IF(AP8>I8,I8,AP8) -> 12.33831579 | K8: =V8*$K$13 -> 23.66315789 | L8: =IF(AQ8>K8,K8,AQ8) -> 12.30484211 | M8: =W8*$K$13 -> 22.48421053 | N8: =IF(AR8>M8,M8,AR8) -> 12.14147368 | O8: =X8*$K$13 -> 20.84210526 | P8: =IF(AS8>O8,O8,AS8) -> 11.46315789 | R8: 1.061403509 | S8: 1.036842105 | T8: 1.010526316 | U8: 0.998245614 | V8: 0.9859649123 | W8: 0.9368421053 | X8: 0.8684210526 | Y8: 0.48 | Z8: 0.49 | AA8: 0.51 | AB8: 0.515 | AC8: 0.52 | AD8: 0.54 | AE8: 0.55 | AF8: 1.1924 | AG8: 1.163866667 | AH8: 1.205466667 | AI8: 1.192566667 | AJ8: 1.179733333 | AK8: 1.118933333 | AL8: 1.1068 | AM8: =Y8*C8+($A$4-80)*AF8*$A$8/1000 -> 12.22736842 | AN8: =Z8*E8+($A$4-80)*AG8*$A$8/1000 -> 12.19326316 | AO8: =AA8*G8+($A$4-80)*AH8*$A$8/1000 -> 12.36884211 | AP8: =AB8*I8+($A$4-80)*AI8*$A$8/1000 -> 12.33831579 | AQ8: =AC8*K8+($A$4-80)*AJ8*$A$8/1000 -> 12.30484211 | AR8: =AD8*M8+($A$4-80)*AK8*$A$8/1000 -> 12.14147368 | AS8: =AE8*O8+($A$4-80)*AL8*$A$8/1000 -> 11.46315789
B9: 67 | C9: 23.83157895 | D9: 15.25221053 | E9: 23.24210526 | F9: 15.33978947 | G9: 22.69473684 | H9: 15.43242105 | I9: 22.42105263 | J9: 15.47052632 | K9: =V9*$K$13 -> 22.14736842 | L9: 15.50315789 | M9: 21.05263158 | N9: 15.15789474 | O9: 19.49473684 | P9: 14.23115789 | R9: 0.9929824561 | S9: 0.9684210526 | T9: 0.9456140351 | U9: 0.9342105263 | V9: 0.9228070175 | W9: 0.8771929825 | X9: 0.8122807018 | Y9: 0.64 | Z9: 0.66 | AA9: 0.68 | AB9: 0.69 | AC9: 0.7 | AD9: 0.72 | AE9: 0.73 | AF9: 0.9742666667 | AG9: 0.9426666667 | AH9: 0.9196 | AI9: 0.9437 | AJ9: 0.9669333333 | AK9: 0.8588 | AL9: 0.8564 | AM9: =Y9*C9+($A$4-80)*AF9*$A$8/1000 -> 15.25221053 | AN9: =Z9*E9+($A$4-80)*AG9*$A$8/1000 -> 15.33978947 | AO9: =AA9*G9+($A$4-80)*AH9*$A$8/1000 -> 15.43242105 | AP9: =AB9*I9+($A$4-80)*AI9*$A$8/1000 -> 15.47052632 | AQ9: =AC9*K9+($A$4-80)*AJ9*$A$8/1000 -> 15.50315789 | AR9: =AD9*M9+($A$4-80)*AK9*$A$8/1000 -> 15.15789474 | AS9: =AE9*O9+($A$4-80)*AL9*$A$8/1000 -> 14.23115789
B10: 63 | C10: 22.27368421 | D10: 17.37347368 | E10: 21.76842105 | F10: 17.63242105 | G10: 21.26315789 | H10: 17.64842105 | I10: 20.98947368 | J10: 17.73610526 | K10: =V10*$K$13 -> 20.71578947 | L10: 17.81557895 | M10: 19.70526316 | N10: 17.53768421 | O10: 18.23157895 | P10: 16.40842105 | R10: 0.9280701754 | S10: 0.9070175439 | T10: 0.8859649123 | U10: 0.8745614035 | V10: 0.8631578947 | W10: 0.8210526316 | X10: 0.7596491228 | Y10: 0.78 | Z10: 0.81 | AA10: 0.83 | AB10: 0.845 | AC10: 0.86 | AD10: 0.89 | AE10: 0.9 | AF10: 0.7506666667 | AG10: 0.8049333333 | AH10: 0.7886666667 | AI10: 0.7752333333 | AJ10: 0.7616 | AK10: 0.8001333333 | AL10: 0.7344 | AM10: =Y10*C10+($A$4-80)*AF10*$A$8/1000 -> 17.37347368 | AN10: =Z10*E10+($A$4-80)*AG10*$A$8/1000 -> 17.63242105 | AO10: =AA10*G10+($A$4-80)*AH10*$A$8/1000 -> 17.64842105 | AP10: =AB10*I10+($A$4-80)*AI10*$A$8/1000 -> 17.73610526 | AQ10: =AC10*K10+($A$4-80)*AJ10*$A$8/1000 -> 17.81557895 | AR10: =AD10*M10+($A$4-80)*AK10*$A$8/1000 -> 17.53768421 | AS10: =AE10*O10+($A$4-80)*AL10*$A$8/1000 -> 16.40842105
B11: 59 | C11: 21.81052632 | D11: 18.10273684 | E11: 21.30526316 | F11: 18.32252632 | G11: 20.8 | H11: 18.512 | I11: 20.54736842 | J11: 18.49263158 | K11: =V11*$K$13 -> 20.29473684 | L11: 18.46821053 | M11: 19.28421053 | N11: 18.32 | O11: 17.85263158 | P11: 17.13852632 | R11: 0.9087719298 | S11: 0.8877192982 | T11: 0.8666666667 | U11: 0.8561403509 | V11: 0.8456140351 | W11: 0.8035087719 | X11: 0.7438596491 | Y11: 0.83 | Z11: 0.86 | AA11: 0.89 | AB11: 0.9 | AC11: 0.91 | AD11: 0.95 | AE11: 0.96 | AF11: 0.5746666667 | AG11: 0.5670666667 | AH11: 0.6241333333 | AI11: 0.6189333333 | AJ11: 0.6137333333 | AK11: 0.5813333333 | AL11: 0.59 | AM11: =Y11*C11+($A$4-80)*AF11*$A$8/1000 -> 18.10273684 | AN11: =Z11*E11+($A$4-80)*AG11*$A$8/1000 -> 18.32252632 | AO11: =AA11*G11+($A$4-80)*AH11*$A$8/1000 -> 18.512 | AP11: =AB11*I11+($A$4-80)*AI11*$A$8/1000 -> 18.49263158 | AQ11: =AC11*K11+($A$4-80)*AJ11*$A$8/1000 -> 18.46821053 | AR11: =AD11*M11+($A$4-80)*AK11*$A$8/1000 -> 18.32 | AS11: =AE11*O11+($A$4-80)*AL11*$A$8/1000 -> 17.13852632
A12: 1750 | B12: 71 | C12: 27.57894737 | D12: 13.51368421 | E12: 26.94736842 | F12: 13.74315789 | G12: 26.31578947 | H12: 13.68421053 | I12: 25.97894737 | J12: 13.76884211 | K12: =V12*$K$13 -> 25.64210526 | L12: 13.84673684 | M12: 24.37894737 | N12: 13.65221053 | O12: 22.56842105 | P12: 12.864 | R12: 1.149122807 | S12: 1.122807018 | T12: 1.096491228 | U12: 1.08245614 | V12: 1.068421053 | W12: 1.015789474 | X12: 0.9403508772 | Y12: 0.49 | Z12: 0.51 | AA12: 0.52 | AB12: 0.53 | AC12: 0.54 | AD12: 0.56 | AE12: 0.57 | AF12: 1.103428571 | AG12: 1.080685714 | AH12: 1.1264 | AI12: 1.1092 | AJ12: 1.091885714 | AK12: 1.107085714 | AL12: 1.0848 | AM12: =Y12*C12+($A$4-80)*AF12*$A$12/1000 -> 13.51368421 | AN12: =Z12*E12+($A$4-80)*AG12*$A$12/1000 -> 13.74315789 | AO12: =AA12*G12+($A$4-80)*AH12*$A$12/1000 -> 13.68421053 | AP12: =AB12*I12+($A$4-80)*AI12*$A$12/1000 -> 13.76884211 | AQ12: =AC12*K12+($A$4-80)*AJ12*$A$12/1000 -> 13.84673684 | AR12: =AD12*M12+($A$4-80)*AK12*$A$12/1000 -> 13.65221053 | AS12: =AE12*O12+($A$4-80)*AL12*$A$12/1000 -> 12.864
B13: 67 | C13: 25.81052632 | D13: 17.03494737 | E13: 25.22105263 | F13: 17.15031579 | G13: 24.58947368 | H13: 17.21263158 | I13: 24.29473684 | J13: 17.24926316 | K13: 24 | L13: 17.28 | M13: 22.82105263 | N13: 17.11578947 | O13: 21.13684211 | P13: 16.064 | R13: 1.075438596 | S13: 1.050877193 | T13: 1.024561404 | U13: 1.012280702 | V13: 1 | W13: 0.950877193 | X13: 0.8807017544 | Y13: 0.66 | Z13: 0.68 | AA13: 0.7 | AB13: 0.71 | AC13: 0.72 | AD13: 0.75 | AE13: 0.76 | AF13: 0.8986285714 | AG13: 0.8836571429 | AH13: 0.8546285714 | AI13: 0.844 | AJ13: 0.8333714286 | AK13: 0.8602285714 | AL13: 0.8536 | AM13: =Y13*C13+($A$4-80)*AF13*$A$12/1000 -> 17.03494737 | AN13: =Z13*E13+($A$4-80)*AG13*$A$12/1000 -> 17.15031579 | AO13: =AA13*G13+($A$4-80)*AH13*$A$12/1000 -> 17.21263158 | AP13: =AB13*I13+($A$4-80)*AI13*$A$12/1000 -> 17.24926316 | AQ13: =AC13*K13+($A$4-80)*AJ13*$A$12/1000 -> 17.28 | AR13: =AD13*M13+($A$4-80)*AK13*$A$12/1000 -> 17.11578947 | AS13: =AE13*O13+($A$4-80)*AL13*$A$12/1000 -> 16.064
B14: 63 | C14: 24.16842105 | D14: 19.57642105 | E14: 23.57894737 | F14: 19.80631579 | G14: 23.03157895 | H14: 19.80715789 | I14: 22.75789474 | J14: 19.91315789 | K14: =V14*$K$13 -> 22.48421053 | L14: 20.01094737 | M14: 21.34736842 | N14: 19.63957895 | O14: 19.74736842 | P14: 18.36505263 | R14: 1.007017544 | S14: 0.9824561404 | T14: 0.9596491228 | U14: 0.948245614 | V14: 0.9368421053 | W14: 0.8894736842 | X14: 0.8228070175 | Y14: 0.81 | Z14: 0.84 | AA14: 0.86 | AB14: 0.875 | AC14: 0.89 | AD14: 0.92 | AE14: 0.93 | AF14: 0.7046857143 | AG14: 0.7457142857 | AH14: 0.7390857143 | AI14: 0.7624857143 | AJ14: 0.7851428571 | AK14: 0.7410285714 | AL14: 0.6802285714 | AM14: =Y14*C14+($A$4-80)*AF14*$A$12/1000 -> 19.57642105 | AN14: =Z14*E14+($A$4-80)*AG14*$A$12/1000 -> 19.80631579 | AO14: =AA14*G14+($A$4-80)*AH14*$A$12/1000 -> 19.80715789 | AP14: =AB14*I14+($A$4-80)*AI14*$A$12/1000 -> 19.91315789 | AQ14: =AC14*K14+($A$4-80)*AJ14*$A$12/1000 -> 20.01094737 | AR14: =AD14*M14+($A$4-80)*AK14*$A$12/1000 -> 19.63957895 | AS14: =AE14*O14+($A$4-80)*AL14*$A$12/1000 -> 18.36505263
B15: 59 | C15: 23.62105263 | D15: 20.31410526 | E15: 23.07368421 | F15: 20.76631579 | G15: 22.52631579 | H15: 20.72421053 | I15: 22.25263158 | J15: 20.80621053 | K15: 21.97894737 | L15: 20.88 | M15: 20.88421053 | N15: 20.46652632 | O15: 19.32631579 | P15: 19.13305263 | R15: 0.9842105263 | S15: 0.9614035088 | T15: 0.9385964912 | U15: 0.9271929825 | V15: 0.9157894737 | W15: 0.8701754386 | X15: 0.8052631579 | Y15: 0.86 | Z15: 0.9 | AA15: 0.92 | AB15: 0.935 | AC15: 0.95 | AD15: 0.98 | AE15: 0.99 | AF15: 0.5390857143 | AG15: 0.5853714286 | AH15: 0.5755428571 | AI15: 0.6008285714 | AJ15: 0.6253714286 | AK15: 0.5460571429 | AL15: 0.5028571429 | AM15: =Y15*C15+($A$4-80)*AF15*$A$12/1000 -> 20.31410526 | AN15: =Z15*E15+($A$4-80)*AG15*$A$12/1000 -> 20.76631579 | AO15: =AA15*G15+($A$4-80)*AH15*$A$12/1000 -> 20.72421053 | AP15: =AB15*I15+($A$4-80)*AI15*$A$12/1000 -> 20.80621053 | AQ15: =AC15*K15+($A$4-80)*AJ15*$A$12/1000 -> 20.88 | AR15: =AD15*M15+($A$4-80)*AK15*$A$12/1000 -> 20.46652632 | AS15: =AE15*O15+($A$4-80)*AL15*$A$12/1000 -> 19.13305263
A16: 2000 | B16: 71 | C16: 28.42105263 | D16: 14.77894737 | E16: 27.74736842 | F16: 14.98357895 | G16: 27.07368421 | H16: 14.89052632 | I16: 26.75789474 | J16: 14.98442105 | K16: 26.44210526 | L16: 15.072 | M16: 25.09473684 | N16: 14.80589474 | O16: 23.24210526 | P16: 13.71284211 | R16: 1.184210526 | S16: 1.156140351 | T16: 1.128070175 | U16: 1.114912281 | V16: 1.101754386 | W16: 1.045614035 | X16: 0.9684210526 | Y16: 0.52 | Z16: 0.54 | AA16: 0.55 | AB16: 0.56 | AC16: 0.57 | AD16: 0.59 | AE16: 0.59 | AF16: 1.0656 | AG16: 1.1018 | AH16: 1.0741 | AI16: 1.0948 | AJ16: 1.1148 | AK16: 1.0564 | AL16: 0.9772 | AM16: =Y16*C16+($A$4-80)*AF16*$A$16/1000 -> 14.77894737 | AN16: =Z16*E16+($A$4-80)*AG16*$A$16/1000 -> 14.98357895 | AO16: =AA16*G16+($A$4-80)*AH16*$A$16/1000 -> 14.89052632 | AP16: =AB16*I16+($A$4-80)*AI16*$A$16/1000 -> 14.98442105 | AQ16: =AC16*K16+($A$4-80)*AJ16*$A$16/1000 -> 15.072 | AR16: =AD16*M16+($A$4-80)*AK16*$A$16/1000 -> 14.80589474 | AS16: =AE16*O16+($A$4-80)*AL16*$A$16/1000 -> 13.71284211
B17: 67 | C17: 26.56842105 | D17: 18.33221053 | E17: 25.93684211 | F17: 18.67452632 | G17: 25.34736842 | H17: 18.75705263 | I17: 25.03157895 | J17: 18.77368421 | K17: 24.71578947 | L17: 18.784 | M17: 23.49473684 | N17: 18.56084211 | O17: 21.76842105 | P17: 17.19705263 | R17: 1.107017544 | S17: 1.080701754 | T17: 1.056140351 | U17: 1.042982456 | V17: 1.029824561 | W17: 0.9789473684 | X17: 0.9070175439 | Y17: 0.69 | Z17: 0.72 | AA17: 0.74 | AB17: 0.75 | AC17: 0.76 | AD17: 0.79 | AE17: 0.79 | AF17: 0.8091 | AG17: 0.8508 | AH17: 0.8912 | AI17: 0.87975 | AJ17: 0.8683 | AK17: 0.8306 | AL17: 0.7691 | AM17: =Y17*C17+($A$4-80)*AF17*$A$16/1000 -> 18.33221053 | AN17: =Z17*E17+($A$4-80)*AG17*$A$16/1000 -> 18.67452632 | AO17: =AA17*G17+($A$4-80)*AH17*$A$16/1000 -> 18.75705263 | AP17: =AB17*I17+($A$4-80)*AI17*$A$16/1000 -> 18.77368421 | AQ17: =AC17*K17+($A$4-80)*AJ17*$A$16/1000 -> 18.784 | AR17: =AD17*M17+($A$4-80)*AK17*$A$16/1000 -> 18.56084211 | AS17: =AE17*O17+($A$4-80)*AL17*$A$16/1000 -> 17.19705263
B18: 63 | C18: 24.88421053 | D18: 21.15157895 | E18: 24.29473684 | F18: 21.37936842 | G18: 23.70526316 | H18: 21.33473684 | I18: 23.43157895 | J18: 21.43989474 | K18: 23.15789474 | L18: 21.53684211 | M18: 21.97894737 | N18: 21.31957895 | O18: 20.37894737 | P18: 20.37894737 | R18: 1.036842105 | S18: 1.012280702 | T18: 0.9877192982 | U18: 0.9763157895 | V18: 0.9649122807 | W18: 0.9157894737 | X18: 0.849122807 | Y18: 0.85 | Z18: 0.88 | AA18: 0.9 | AB18: 0.915 | AC18: 0.93 | AD18: 0.97 | AE18: 1 | AF18: 0.6945 | AG18: 0.6809 | AH18: 0.6588 | AI18: 0.683975 | AJ18: 0.7086 | AK18: 0.7206 | AL18: 0.7685 | AM18: =Y18*C18+($A$4-80)*AF18*$A$16/1000 -> 21.15157895 | AN18: =Z18*E18+($A$4-80)*AG18*$A$16/1000 -> 21.37936842 | AO18: =AA18*G18+($A$4-80)*AH18*$A$16/1000 -> 21.33473684 | AP18: =AB18*I18+($A$4-80)*AI18*$A$16/1000 -> 21.43989474 | AQ18: =AC18*K18+($A$4-80)*AJ18*$A$16/1000 -> 21.53684211 | AR18: =AD18*M18+($A$4-80)*AK18*$A$16/1000 -> 21.31957895 | AS18: =AE18*O18+($A$4-80)*AL18*$A$16/1000 -> 20.37894737
B19: 59 | C19: 24.33684211 | D19: 22.14652632 | E19: 23.78947368 | F19: 22.36210526 | G19: 23.2 | H19: 22.272 | I19: 22.92631579 | J19: 22.46778947 | K19: 22.65263158 | L19: 22.65263158 | M19: 21.51578947 | N19: 21.51578947 | O19: 19.91578947 | P19: 19.91578947 | R19: 1.014035088 | S19: 0.9912280702 | T19: 0.9666666667 | U19: 0.9552631579 | V19: 0.9438596491 | W19: 0.8964912281 | X19: 0.8298245614 | Y19: 0.91 | Z19: 0.94 | AA19: 0.96 | AB19: 0.98 | AC19: 1 | AD19: 1 | AE19: 1 | AF19: 0.5454 | AG19: 0.538 | AH19: 0.52 | AI19: 0.54785 | AJ19: 0.5752 | AK19: 0.3912 | AL19: 0.3125 | AM19: =Y19*C19+($A$4-80)*AF19*$A$16/1000 -> 22.14652632 | AN19: =Z19*E19+($A$4-80)*AG19*$A$16/1000 -> 22.36210526 | AO19: =AA19*G19+($A$4-80)*AH19*$A$16/1000 -> 22.272 | AP19: =AB19*I19+($A$4-80)*AI19*$A$16/1000 -> 22.46778947 | AQ19: =AC19*K19+($A$4-80)*AJ19*$A$16/1000 -> 22.65263158 | AR19: =AD19*M19+($A$4-80)*AK19*$A$16/1000 -> 21.51578947 | AS19: =AE19*O19+($A$4-80)*AL19*$A$16/1000 -> 19.91578947

Sheet GSX130_61 (hidden)
A2: GSX130_61
A3: Evaporator Air | C3: Condenser Entering Air Temperature ˚F
A4: 80 | B4: °F DB | C4: 65 | E4: 75 | G4: 85 | I4: 90 | K4: 95 | M4: 105 | O4: 115
A5: CFM | B5: EWB† ˚F | C5: Capacity Mbtuh | E5: Capacity Mbtuh | G5: Capacity Mbtuh | I5: Capacity Mbtuh | K5: Capacity Mbtuh | M5: Capacity Mbtuh | O5: Capacity Mbtuh
C6: Total | D6: Sens. | E6: Total | F6: Sens. | G6: Total | H6: Sens. | I6: Total | J6: Sens. | K6: Total | L6: Sens. | M6: Total | N6: Sens. | O6: Total | P6: Sens.
R7: Total Factors | Y7: Sens. % | AF7: IDB Adj | AM7: Sens Calc
A8: 1500 | B8: 71 | C8: =R8*$K$13 -> 26.7628866 | D8: =IF(AM8>C8,C8,AM8) -> 12.5785567 | E8: =S8*$K$13 -> 26.1443299 | F8: =IF(AN8>E8,E8,AN8) -> 12.54927835 | G8: =T8*$K$13 -> 25.5257732 | H8: =IF(AO8>G8,G8,AO8) -> 12.7628866 | I8: =U8*$K$13 -> 25.21649485 | J8: =IF(AP8>I8,I8,AP8) -> 12.7343299 | K8: =V8*$K$13 -> 24.90721649 | L8: =IF(AQ8>K8,K8,AQ8) -> 12.70268041 | M8: =W8*$K$13 -> 23.67010309 | N8: =IF(AR8>M8,M8,AR8) -> 12.54515464 | O8: =X8*$K$13 -> 21.93814433 | P8: =IF(AS8>O8,O8,AS8) -> 11.84659794 | R8: 1.115120275 | S8: 1.089347079 | T8: 1.063573883 | U8: 1.050687285 | V8: 1.037800687 | W8: 0.9862542955 | X8: 0.9140893471 | Y8: 0.47 | Z8: 0.48 | AA8: 0.5 | AB8: 0.505 | AC8: 0.51 | AD8: 0.53 | AE8: 0.54 | AF8: 1.276666667 | AG8: 1.1608 | AH8: 1.219333333 | AI8: 1.204066667 | AJ8: 1.1888 | AK8: 1.2048 | AL8: 1.191066667 | AM8: =Y8*C8+($A$4-80)*AF8*$A$8/1000 -> 12.5785567 | AN8: =Z8*E8+($A$4-80)*AG8*$A$8/1000 -> 12.54927835 | AO8: =AA8*G8+($A$4-80)*AH8*$A$8/1000 -> 12.7628866 | AP8: =AB8*I8+($A$4-80)*AI8*$A$8/1000 -> 12.7343299 | AQ8: =AC8*K8+($A$4-80)*AJ8*$A$8/1000 -> 12.70268041 | AR8: =AD8*M8+($A$4-80)*AK8*$A$8/1000 -> 12.54515464 | AS8: =AE8*O8+($A$4-80)*AL8*$A$8/1000 -> 11.84659794
B9: 67 | C9: 25.03092784 | D9: 15.51917526 | E9: 24.45360825 | F9: 15.89484536 | G9: 23.87628866 | H9: 15.75835052 | I9: 23.58762887 | J9: 15.92164948 | K9: =V9*$K$13 -> 23.29896907 | L9: 16.07628866 | M9: 22.1443299 | N9: 15.72247423 | O9: 20.49484536 | P9: 14.75628866 | R9: 1.042955326 | S9: 1.018900344 | T9: 0.9948453608 | U9: 0.9828178694 | V9: 0.970790378 | W9: 0.9226804124 | X9: 0.85395189 | Y9: 0.62 | Z9: 0.65 | AA9: 0.66 | AB9: 0.675 | AC9: 0.69 | AD9: 0.71 | AE9: 0.72 | AF9: 0.9578666667 | AG9: 1.014 | AH9: 0.912 | AI9: 0.9769333333 | AJ9: 1.04 | AK9: 0.9948 | AL9: 0.9122666667 | AM9: =Y9*C9+($A$4-80)*AF9*$A$8/1000 -> 15.51917526 | AN9: =Z9*E9+($A$4-80)*AG9*$A$8/1000 -> 15.89484536 | AO9: =AA9*G9+($A$4-80)*AH9*$A$8/1000 -> 15.75835052 | AP9: =AB9*I9+($A$4-80)*AI9*$A$8/1000 -> 15.92164948 | AQ9: =AC9*K9+($A$4-80)*AJ9*$A$8/1000 -> 16.07628866 | AR9: =AD9*M9+($A$4-80)*AK9*$A$8/1000 -> 15.72247423 | AS9: =AE9*O9+($A$4-80)*AL9*$A$8/1000 -> 14.75628866
B10: 63 | C10: 23.46391753 | D10: 18.06721649 | E10: 22.88659794 | F10: 18.30927835 | G10: 22.35051546 | H10: 18.32742268 | I10: 22.08247423 | J10: 18.32845361 | K10: =V10*$K$13 -> 21.81443299 | L10: 18.32412371 | M10: 20.70103093 | N10: 18.00989691 | O10: 19.17525773 | P10: 16.8742268 | R10: 0.9776632302 | S10: 0.9536082474 | T10: 0.9312714777 | U10: 0.9201030928 | V10: 0.9089347079 | W10: 0.8625429553 | X10: 0.7989690722 | Y10: 0.77 | Z10: 0.8 | AA10: 0.82 | AB10: 0.83 | AC10: 0.84 | AD10: 0.87 | AE10: 0.88 | AF10: 0.8122666667 | AG10: 0.86 | AH10: 0.8422666667 | AI10: 0.8334 | AJ10: 0.8245333333 | AK10: 0.7869333333 | AL10: 0.7230666667 | AM10: =Y10*C10+($A$4-80)*AF10*$A$8/1000 -> 18.06721649 | AN10: =Z10*E10+($A$4-80)*AG10*$A$8/1000 -> 18.30927835 | AO10: =AA10*G10+($A$4-80)*AH10*$A$8/1000 -> 18.32742268 | AP10: =AB10*I10+($A$4-80)*AI10*$A$8/1000 -> 18.32845361 | AQ10: =AC10*K10+($A$4-80)*AJ10*$A$8/1000 -> 18.32412371 | AR10: =AD10*M10+($A$4-80)*AK10*$A$8/1000 -> 18.00989691 | AS10: =AE10*O10+($A$4-80)*AL10*$A$8/1000 -> 16.8742268
B11: 59 | C11: 22.92783505 | D11: 18.80082474 | E11: 22.39175258 | F11: 19.03298969 | G11: 21.8556701 | H11: 19.01443299 | I11: 21.60824742 | J11: 19.12329897 | K11: =V11*$K$13 -> 21.36082474 | L11: 19.22474227 | M11: 20.28865979 | N11: 18.86845361 | O11: 18.7628866 | P11: 17.6371134 | R11: 0.9553264605 | S11: 0.9329896907 | T11: 0.910652921 | U11: 0.9003436426 | V11: 0.8900343643 | W11: 0.8453608247 | X11: 0.7817869416 | Y11: 0.82 | Z11: 0.85 | AA11: 0.87 | AB11: 0.885 | AC11: 0.9 | AD11: 0.93 | AE11: 0.94 | AF11: 0.6089333333 | AG11: 0.6716 | AH11: 0.6601333333 | AI11: 0.6555333333 | AJ11: 0.6509333333 | AK11: 0.6268 | AL11: 0.5770666667 | AM11: =Y11*C11+($A$4-80)*AF11*$A$8/1000 -> 18.80082474 | AN11: =Z11*E11+($A$4-80)*AG11*$A$8/1000 -> 19.03298969 | AO11: =AA11*G11+($A$4-80)*AH11*$A$8/1000 -> 19.01443299 | AP11: =AB11*I11+($A$4-80)*AI11*$A$8/1000 -> 19.12329897 | AQ11: =AC11*K11+($A$4-80)*AJ11*$A$8/1000 -> 19.22474227 | AR11: =AD11*M11+($A$4-80)*AK11*$A$8/1000 -> 18.86845361 | AS11: =AE11*O11+($A$4-80)*AL11*$A$8/1000 -> 17.6371134
A12: 1750 | B12: 71 | C12: 27.58762887 | D12: 13.51793814 | E12: 26.92783505 | F12: 13.73319588 | G12: 26.30927835 | H12: 13.68082474 | I12: 25.97938144 | J12: 13.76907216 | K12: =V12*$K$13 -> 25.64948454 | L12: 13.85072165 | M12: 24.37113402 | N12: 13.64783505 | O12: 22.55670103 | P12: 12.63175258 | R12: 1.149484536 | S12: 1.121993127 | T12: 1.096219931 | U12: 1.082474227 | V12: 1.068728522 | W12: 1.015463918 | X12: 0.939862543 | Y12: 0.49 | Z12: 0.51 | AA12: 0.52 | AB12: 0.53 | AC12: 0.54 | AD12: 0.56 | AE12: 0.56 | AF12: 1.131314286 | AG12: 1.174057143 | AH12: 1.150171429 | AI12: 1.171314286 | AJ12: 1.191542857 | AK12: 1.1304 | AL12: 1.044914286 | AM12: =Y12*C12+($A$4-80)*AF12*$A$12/1000 -> 13.51793814 | AN12: =Z12*E12+($A$4-80)*AG12*$A$12/1000 -> 13.73319588 | AO12: =AA12*G12+($A$4-80)*AH12*$A$12/1000 -> 13.68082474 | AP12: =AB12*I12+($A$4-80)*AI12*$A$12/1000 -> 13.76907216 | AQ12: =AC12*K12+($A$4-80)*AJ12*$A$12/1000 -> 13.85072165 | AR12: =AD12*M12+($A$4-80)*AK12*$A$12/1000 -> 13.64783505 | AS12: =AE12*O12+($A$4-80)*AL12*$A$12/1000 -> 12.63175258
B13: 67 | C13: 25.81443299 | D13: 16.77938144 | E13: 25.19587629 | F13: 17.13319588 | G13: 24.57731959 | H13: 17.20412371 | I13: 24.28865979 | J13: 17.24494845 | K13: 24 | L13: 17.28 | M13: 22.80412371 | N13: 17.10309278 | O13: 21.11340206 | P13: 15.83505155 | R13: 1.075601375 | S13: 1.049828179 | T13: 1.024054983 | U13: 1.012027491 | V13: 1 | W13: 0.9501718213 | X13: 0.8797250859 | Y13: 0.65 | Z13: 0.68 | AA13: 0.7 | AB13: 0.71 | AC13: 0.72 | AD13: 0.75 | AE13: 0.75 | AF13: 0.8524571429 | AG13: 0.8952 | AH13: 0.9408 | AI13: 0.9293714286 | AJ13: 0.9179428571 | AK13: 0.9342857143 | AL13: 0.8052571429 | AM13: =Y13*C13+($A$4-80)*AF13*$A$12/1000 -> 16.77938144 | AN13: =Z13*E13+($A$4-80)*AG13*$A$12/1000 -> 17.13319588 | AO13: =AA13*G13+($A$4-80)*AH13*$A$12/1000 -> 17.20412371 | AP13: =AB13*I13+($A$4-80)*AI13*$A$12/1000 -> 17.24494845 | AQ13: =AC13*K13+($A$4-80)*AJ13*$A$12/1000 -> 17.28 | AR13: =AD13*M13+($A$4-80)*AK13*$A$12/1000 -> 17.10309278 | AS13: =AE13*O13+($A$4-80)*AL13*$A$12/1000 -> 15.83505155
B14: 63 | C14: 24.16494845 | D14: 19.33195876 | E14: 23.58762887 | F14: 19.57773196 | G14: 23.01030928 | H14: 19.55876289 | I14: 22.74226804 | J14: 19.67206186 | K14: =V14*$K$13 -> 22.4742268 | L14: 19.77731959 | M14: 21.31958763 | N14: 19.61402062 | O14: 19.75257732 | P14: 18.17237113 | R14: 1.006872852 | S14: 0.9828178694 | T14: 0.9587628866 | U14: 0.9475945017 | V14: 0.9364261168 | W14: 0.8883161512 | X14: 0.823024055 | Y14: 0.8 | Z14: 0.83 | AA14: 0.85 | AB14: 0.865 | AC14: 0.88 | AD14: 0.92 | AE14: 0.92 | AF14: 0.7177142857 | AG14: 0.7684571429 | AH14: 0.7437714286 | AI14: 0.7407714286 | AJ14: 0.7379428571 | AK14: 0.7547428571 | AL14: 0.6934857143 | AM14: =Y14*C14+($A$4-80)*AF14*$A$12/1000 -> 19.33195876 | AN14: =Z14*E14+($A$4-80)*AG14*$A$12/1000 -> 19.57773196 | AO14: =AA14*G14+($A$4-80)*AH14*$A$12/1000 -> 19.55876289 | AP14: =AB14*I14+($A$4-80)*AI14*$A$12/1000 -> 19.67206186 | AQ14: =AC14*K14+($A$4-80)*AJ14*$A$12/1000 -> 19.77731959 | AR14: =AD14*M14+($A$4-80)*AK14*$A$12/1000 -> 19.61402062 | AS14: =AE14*O14+($A$4-80)*AL14*$A$12/1000 -> 18.17237113
B15: 59 | C15: 23.62886598 | D15: 20.32082474 | E15: 23.09278351 | F15: 20.55257732 | G15: 22.51546392 | H15: 20.48907216 | I15: 22.24742268 | J15: 20.57886598 | K15: 21.97938144 | L15: 20.66061856 | M15: 20.86597938 | N15: 20.86597938 | O15: 19.34020619 | P15: 19.34020619 | R15: 0.9845360825 | S15: 0.9621993127 | T15: 0.9381443299 | U15: 0.926975945 | V15: 0.9158075601 | W15: 0.8694158076 | X15: 0.8058419244 | Y15: 0.86 | Z15: 0.89 | AA15: 0.91 | AB15: 0.925 | AC15: 0.94 | AD15: 1 | AE15: 1 | AF15: 0.6130285714 | AG15: 0.6045714286 | AH15: 0.5845714286 | AI15: 0.5801714286 | AJ15: 0.5757714286 | AK15: 0.7174857143 | AL15: 0.6182857143 | AM15: =Y15*C15+($A$4-80)*AF15*$A$12/1000 -> 20.32082474 | AN15: =Z15*E15+($A$4-80)*AG15*$A$12/1000 -> 20.55257732 | AO15: =AA15*G15+($A$4-80)*AH15*$A$12/1000 -> 20.48907216 | AP15: =AB15*I15+($A$4-80)*AI15*$A$12/1000 -> 20.57886598 | AQ15: =AC15*K15+($A$4-80)*AJ15*$A$12/1000 -> 20.66061856 | AR15: =AD15*M15+($A$4-80)*AK15*$A$12/1000 -> 20.86597938 | AS15: =AE15*O15+($A$4-80)*AL15*$A$12/1000 -> 19.34020619
A16: 2000 | B16: 71 | C16: 27.71134021 | D16: 13.8556701 | E16: 27.05154639 | F16: 13.79628866 | G16: 26.43298969 | H16: 14.00948454 | I16: 26.10309278 | J16: 13.96515464 | K16: 25.77319588 | L16: 13.91752577 | M16: 24.49484536 | N16: 13.7171134 | O16: 22.68041237 | P16: 12.92783505 | R16: 1.154639175 | S16: 1.127147766 | T16: 1.10137457 | U16: 1.087628866 | V16: 1.073883162 | W16: 1.020618557 | X16: 0.9450171821 | Y16: 0.5 | Z16: 0.51 | AA16: 0.53 | AB16: 0.535 | AC16: 0.54 | AD16: 0.56 | AE16: 0.57 | AF16: 0.9905 | AG16: 0.966 | AH16: 1.0108 | AI16: 0.995925 | AJ16: 0.981 | AK16: 0.9942 | AL16: 0.919 | AM16: =Y16*C16+($A$4-80)*AF16*$A$16/1000 -> 13.8556701 | AN16: =Z16*E16+($A$4-80)*AG16*$A$16/1000 -> 13.79628866 | AO16: =AA16*G16+($A$4-80)*AH16*$A$16/1000 -> 14.00948454 | AP16: =AB16*I16+($A$4-80)*AI16*$A$16/1000 -> 13.96515464 | AQ16: =AC16*K16+($A$4-80)*AJ16*$A$16/1000 -> 13.91752577 | AR16: =AD16*M16+($A$4-80)*AK16*$A$16/1000 -> 13.7171134 | AS16: =AE16*O16+($A$4-80)*AL16*$A$16/1000 -> 12.92783505
B17: 67 | C17: 25.93814433 | D17: 17.11917526 | E17: 25.31958763 | F17: 17.47051546 | G17: 24.70103093 | H17: 17.53773196 | I17: 24.41237113 | J17: 17.57690722 | K17: 24.12371134 | L17: 17.61030928 | M17: 22.92783505 | N17: 17.42515464 | O17: 21.2371134 | P17: 16.14020619 | R17: 1.080756014 | S17: 1.054982818 | T17: 1.029209622 | U17: 1.017182131 | V17: 1.005154639 | W17: 0.9553264605 | X17: 0.8848797251 | Y17: 0.66 | Z17: 0.69 | AA17: 0.71 | AB17: 0.72 | AC17: 0.73 | AD17: 0.76 | AE17: 0.76 | AF17: 0.744 | AG17: 0.787 | AH17: 0.8272 | AI17: 0.8172 | AJ17: 0.8072 | AK17: 0.8279 | AL17: 0.7148 | AM17: =Y17*C17+($A$4-80)*AF17*$A$16/1000 -> 17.11917526 | AN17: =Z17*E17+($A$4-80)*AG17*$A$16/1000 -> 17.47051546 | AO17: =AA17*G17+($A$4-80)*AH17*$A$16/1000 -> 17.53773196 | AP17: =AB17*I17+($A$4-80)*AI17*$A$16/1000 -> 17.57690722 | AQ17: =AC17*K17+($A$4-80)*AJ17*$A$16/1000 -> 17.61030928 | AR17: =AD17*M17+($A$4-80)*AK17*$A$16/1000 -> 17.42515464 | AS17: =AE17*O17+($A$4-80)*AL17*$A$16/1000 -> 16.14020619
B18: 63 | C18: 24.24742268 | D18: 19.8828866 | E18: 23.71134021 | F18: 20.15463918 | G18: 23.13402062 | H18: 20.12659794 | I18: 22.84536082 | J18: 20.10391753 | K18: 22.55670103 | L18: 20.07546392 | M18: 21.44329897 | N18: 19.94226804 | O18: 19.87628866 | P18: 18.68371134 | R18: 1.010309278 | S18: 0.9879725086 | T18: 0.9639175258 | U18: 0.9518900344 | V18: 0.939862543 | W18: 0.8934707904 | X18: 0.8281786942 | Y18: 0.82 | Z18: 0.85 | AA18: 0.87 | AB18: 0.88 | AC18: 0.89 | AD18: 0.93 | AE18: 0.94 | AF18: 0.6823 | AG18: 0.7338 | AH18: 0.7182 | AI18: 0.679175 | AJ18: 0.6407 | AK18: 0.6645 | AL18: 0.6671 | AM18: =Y18*C18+($A$4-80)*AF18*$A$16/1000 -> 19.8828866 | AN18: =Z18*E18+($A$4-80)*AG18*$A$16/1000 -> 20.15463918 | AO18: =AA18*G18+($A$4-80)*AH18*$A$16/1000 -> 20.12659794 | AP18: =AB18*I18+($A$4-80)*AI18*$A$16/1000 -> 20.10391753 | AQ18: =AC18*K18+($A$4-80)*AJ18*$A$16/1000 -> 20.07546392 | AR18: =AD18*M18+($A$4-80)*AK18*$A$16/1000 -> 19.94226804 | AS18: =AE18*O18+($A$4-80)*AL18*$A$16/1000 -> 18.68371134
B19: 59 | C19: 23.75257732 | D19: 20.66474227 | E19: 23.17525773 | F19: 20.85773196 | G19: 22.63917526 | H19: 20.82804124 | I19: 22.37113402 | J19: 20.91701031 | K19: 22.10309278 | L19: 20.99793814 | M19: 20.98969072 | N19: 20.98969072 | O19: 19.42268041 | P19: 19.42268041 | R19: 0.9896907216 | S19: 0.9656357388 | T19: 0.9432989691 | U19: 0.9321305842 | V19: 0.9209621993 | W19: 0.8745704467 | X19: 0.8092783505 | Y19: 0.87 | Z19: 0.9 | AA19: 0.92 | AB19: 0.935 | AC19: 0.95 | AD19: 1 | AE19: 1 | AF19: 0.5398 | AG19: 0.5234 | AH19: 0.5232 | AI19: 0.5195 | AJ19: 0.5158 | AK19: 0.59 | AL19: 0.4967 | AM19: =Y19*C19+($A$4-80)*AF19*$A$16/1000 -> 20.66474227 | AN19: =Z19*E19+($A$4-80)*AG19*$A$16/1000 -> 20.85773196 | AO19: =AA19*G19+($A$4-80)*AH19*$A$16/1000 -> 20.82804124 | AP19: =AB19*I19+($A$4-80)*AI19*$A$16/1000 -> 20.91701031 | AQ19: =AC19*K19+($A$4-80)*AJ19*$A$16/1000 -> 20.99793814 | AR19: =AD19*M19+($A$4-80)*AK19*$A$16/1000 -> 20.98969072 | AS19: =AE19*O19+($A$4-80)*AL19*$A$16/1000 -> 19.42268041

Sheet GSX140_18 (hidden)
A2: GSX140_18
A3: Evaporator Air | C3: Condenser Entering Air Temperature ˚F
A4: 80 | B4: °F DB | C4: 65 | E4: 75 | G4: 85 | I4: 90 | K4: 95 | M4: 105 | O4: 115
A5: CFM | B5: EWB† ˚F | C5: Capacity Mbtuh | E5: Capacity Mbtuh | G5: Capacity Mbtuh | I5: Capacity Mbtuh | K5: Capacity Mbtuh | M5: Capacity Mbtuh | O5: Capacity Mbtuh
C6: Total | D6: Sens. | E6: Total | F6: Sens. | G6: Total | H6: Sens. | I6: Total | J6: Sens. | K6: Total | L6: Sens. | M6: Total | N6: Sens. | O6: Total | P6: Sens.
R7: Total Factors | Y7: Sens. % | AF7: IDB Adj | AM7: Sens Calc
A8: 525 | B8: 71 | C8: =R8*$K$13 -> 26.8 | D8: =IF(AM8>C8,C8,AM8) -> 13.4 | E8: =S8*$K$13 -> 26.53333333 | F8: =IF(AN8>E8,E8,AN8) -> 13.00133333 | G8: =T8*$K$13 -> 25.86666667 | H8: =IF(AO8>G8,G8,AO8) -> 12.93333333 | I8: =U8*$K$13 -> 25.33333333 | J8: =IF(AP8>I8,I8,AP8) -> 13.04666667 | K8: =V8*$K$13 -> 24.8 | L8: =IF(AQ8>K8,K8,AQ8) -> 13.144 | M8: =W8*$K$13 -> 23.46666667 | N8: =IF(AR8>M8,M8,AR8) -> 14.08 | O8: =X8*$K$13 -> 22.26666667 | P8: =IF(AS8>O8,O8,AS8) -> 13.36 | R8: 1.116666667 | S8: 1.105555556 | T8: 1.077777778 | U8: 1.055555556 | V8: 1.033333333 | W8: 0.9777777778 | X8: 0.9277777778 | Y8: 0.5 | Z8: 0.49 | AA8: 0.5 | AB8: 0.515 | AC8: 0.53 | AD8: 0.6 | AE8: 0.6 | AF8: 1.085714286 | AG8: 0.9238095238 | AH8: 0.8278095238 | AI8: 0.8476190476 | AJ8: 0.8659047619 | AK8: 1.156190476 | AL8: 0.7817142857 | AM8: =Y8*C8+($A$4-80)*AF8*$A$8/1000 -> 13.4 | AN8: =Z8*E8+($A$4-80)*AG8*$A$8/1000 -> 13.00133333 | AO8: =AA8*G8+($A$4-80)*AH8*$A$8/1000 -> 12.93333333 | AP8: =AB8*I8+($A$4-80)*AI8*$A$8/1000 -> 13.04666667 | AQ8: =AC8*K8+($A$4-80)*AJ8*$A$8/1000 -> 13.144 | AR8: =AD8*M8+($A$4-80)*AK8*$A$8/1000 -> 14.08 | AS8: =AE8*O8+($A$4-80)*AL8*$A$8/1000 -> 13.36
B9: 67 | C9: 25.6 | D9: 15.872 | E9: 25.46666667 | F9: 15.78933333 | G9: 24.8 | H9: 15.872 | I9: 24.26666667 | J9: 15.77333333 | K9: =V9*$K$13 -> 23.73333333 | L9: 15.664 | M9: 22.4 | N9: 15.232 | O9: 21.06666667 | P9: 15.37866667 | R9: 1.066666667 | S9: 1.061111111 | T9: 1.033333333 | U9: 1.011111111 | V9: 0.9888888889 | W9: 0.9333333333 | X9: 0.8777777778 | Y9: 0.62 | Z9: 0.62 | AA9: 0.64 | AB9: 0.65 | AC9: 0.66 | AD9: 0.68 | AE9: 0.73 | AF9: 0.8967619048 | AG9: 0.8921904762 | AH9: 0.7996190476 | AI9: 0.8177142857 | AJ9: 0.8342857143 | AK9: 0.7257142857 | AL9: 0.7455238095 | AM9: =Y9*C9+($A$4-80)*AF9*$A$8/1000 -> 15.872 | AN9: =Z9*E9+($A$4-80)*AG9*$A$8/1000 -> 15.78933333 | AO9: =AA9*G9+($A$4-80)*AH9*$A$8/1000 -> 15.872 | AP9: =AB9*I9+($A$4-80)*AI9*$A$8/1000 -> 15.77333333 | AQ9: =AC9*K9+($A$4-80)*AJ9*$A$8/1000 -> 15.664 | AR9: =AD9*M9+($A$4-80)*AK9*$A$8/1000 -> 15.232 | AS9: =AE9*O9+($A$4-80)*AL9*$A$8/1000 -> 15.37866667
B10: 63 | C10: 24.93333333 | D10: 18.45066667 | E10: 24.66666667 | F10: 18.5 | G10: 24 | H10: 18.48 | I10: 23.46666667 | J10: 18.304 | K10: =V10*$K$13 -> 22.93333333 | L10: 18.11733333 | M10: 21.6 | N10: 21.6 | O10: 20.4 | P10: 20.4 | R10: 1.038888889 | S10: 1.027777778 | T10: 1 | U10: 0.9777777778 | V10: 0.9555555556 | W10: 0.9 | X10: 0.85 | Y10: 0.74 | Z10: 0.75 | AA10: 0.77 | AB10: 0.78 | AC10: 0.79 | AD10: 1 | AE10: 1 | AF10: 0.8784761905 | AG10: 0.8697142857 | AH10: 0.8476190476 | AI10: 0.8297142857 | AJ10: 0.8118095238 | AK10: 1.939428571 | AL10: 0.0380952381 | AM10: =Y10*C10+($A$4-80)*AF10*$A$8/1000 -> 18.45066667 | AN10: =Z10*E10+($A$4-80)*AG10*$A$8/1000 -> 18.5 | AO10: =AA10*G10+($A$4-80)*AH10*$A$8/1000 -> 18.48 | AP10: =AB10*I10+($A$4-80)*AI10*$A$8/1000 -> 18.304 | AQ10: =AC10*K10+($A$4-80)*AJ10*$A$8/1000 -> 18.11733333 | AR10: =AD10*M10+($A$4-80)*AK10*$A$8/1000 -> 21.6 | AS10: =AE10*O10+($A$4-80)*AL10*$A$8/1000 -> 20.4
B11: 59 | C11: 24.53333333 | D11: 20.11733333 | E11: 24.4 | F11: 24.4 | G11: 23.73333333 | H11: 23.73333333 | I11: 23.2 | J11: 23.2 | K11: =V11*$K$13 -> 22.66666667 | L11: 22.66666667 | M11: 21.2 | N11: 21.2 | O11: 20 | P11: 20 | R11: 1.022222222 | S11: 1.016666667 | T11: 0.9888888889 | U11: 0.9666666667 | V11: 0.9444444444 | W11: 0.8833333333 | X11: 0.8333333333 | Y11: 0.82 | Z11: 1 | AA11: 1 | AB11: 1 | AC11: 1 | AD11: 1 | AE11: 1 | AF11: 0.8678095238 | AG11: 2.118095238 | AH11: 0.0380952381 | AI11: 0.0380952381 | AJ11: 0.0380952381 | AK11: 0 | AL11: 0.0380952381 | AM11: =Y11*C11+($A$4-80)*AF11*$A$8/1000 -> 20.11733333 | AN11: =Z11*E11+($A$4-80)*AG11*$A$8/1000 -> 24.4 | AO11: =AA11*G11+($A$4-80)*AH11*$A$8/1000 -> 23.73333333 | AP11: =AB11*I11+($A$4-80)*AI11*$A$8/1000 -> 23.2 | AQ11: =AC11*K11+($A$4-80)*AJ11*$A$8/1000 -> 22.66666667 | AR11: =AD11*M11+($A$4-80)*AK11*$A$8/1000 -> 21.2 | AS11: =AE11*O11+($A$4-80)*AL11*$A$8/1000 -> 20
A12: 600 | B12: 71 | C12: 27.06666667 | D12: 13.53333333 | E12: 26.8 | F12: 14.472 | G12: 26.26666667 | H12: 15.76 | I12: 25.66666667 | J12: 15.14333333 | K12: =V12*$K$13 -> 25.06666667 | L12: 14.53866667 | M12: 23.73333333 | N12: 14.24 | O12: 22.53333333 | P12: 14.64666667 | R12: 1.127777778 | S12: 1.116666667 | T12: 1.094444444 | U12: 1.069444444 | V12: 1.044444444 | W12: 0.9888888889 | X12: 0.9388888889 | Y12: 0.5 | Z12: 0.54 | AA12: 0.6 | AB12: 0.59 | AC12: 0.58 | AD12: 0.6 | AE12: 0.65 | AF12: 0.5553333333 | AG12: 0.818 | AH12: 1 | AI12: 0.8495 | AJ12: 0.705 | AK12: 0.669 | AL12: 0.6376666667 | AM12: =Y12*C12+($A$4-80)*AF12*$A$12/1000 -> 13.53333333 | AN12: =Z12*E12+($A$4-80)*AG12*$A$12/1000 -> 14.472 | AO12: =AA12*G12+($A$4-80)*AH12*$A$12/1000 -> 15.76 | AP12: =AB12*I12+($A$4-80)*AI12*$A$12/1000 -> 15.14333333 | AQ12: =AC12*K12+($A$4-80)*AJ12*$A$12/1000 -> 14.53866667 | AR12: =AD12*M12+($A$4-80)*AK12*$A$12/1000 -> 14.24 | AS12: =AE12*O12+($A$4-80)*AL12*$A$12/1000 -> 14.64666667
B13: 67 | C13: 26 | D13: 17.42 | E13: 25.73333333 | F13: 17.49866667 | G13: 25.06666667 | H13: 17.54666667 | I13: 24.53333333 | J13: 17.41866667 | K13: 24 | L13: 17.28 | M13: 22.66666667 | N13: 16.77333333 | O13: 21.46666667 | P13: 16.95866667 | R13: 1.083333333 | S13: 1.072222222 | T13: 1.044444444 | U13: 1.022222222 | V13: 1 | W13: 0.9444444444 | X13: 0.8944444444 | Y13: 0.67 | Z13: 0.68 | AA13: 0.7 | AB13: 0.71 | AC13: 0.72 | AD13: 0.74 | AE13: 0.79 | AF13: 0.7983333333 | AG13: 0.7906666667 | AH13: 0.7713333333 | AI13: 0.7556666667 | AJ13: 0.74 | AK13: 0.7006666667 | AL13: 0.6663333333 | AM13: =Y13*C13+($A$4-80)*AF13*$A$12/1000 -> 17.42 | AN13: =Z13*E13+($A$4-80)*AG13*$A$12/1000 -> 17.49866667 | AO13: =AA13*G13+($A$4-80)*AH13*$A$12/1000 -> 17.54666667 | AP13: =AB13*I13+($A$4-80)*AI13*$A$12/1000 -> 17.41866667 | AQ13: =AC13*K13+($A$4-80)*AJ13*$A$12/1000 -> 17.28 | AR13: =AD13*M13+($A$4-80)*AK13*$A$12/1000 -> 16.77333333 | AS13: =AE13*O13+($A$4-80)*AL13*$A$12/1000 -> 16.95866667
B14: 63 | C14: 25.2 | D14: 20.16 | E14: 25.06666667 | F14: 20.304 | G14: 24.4 | H14: 20.252 | I14: 23.86666667 | J14: 20.048 | K14: =V14*$K$13 -> 23.33333333 | L14: 19.83333333 | M14: 21.86666667 | N14: 21.86666667 | O14: 20.66666667 | P14: 20.66666667 | R14: 1.05 | S14: 1.044444444 | T14: 1.016666667 | U14: 0.9944444444 | V14: 0.9722222222 | W14: 0.9111111111 | X14: 0.8611111111 | Y14: 0.8 | Z14: 0.81 | AA14: 0.83 | AB14: 0.84 | AC14: 0.85 | AD14: 1 | AE14: 1 | AF14: 0.7786666667 | AG14: 0.775 | AH14: 0.7556666667 | AI14: 0.74 | AJ14: 0.7243333333 | AK14: 1.366666667 | AL14: 0.03333333333 | AM14: =Y14*C14+($A$4-80)*AF14*$A$12/1000 -> 20.16 | AN14: =Z14*E14+($A$4-80)*AG14*$A$12/1000 -> 20.304 | AO14: =AA14*G14+($A$4-80)*AH14*$A$12/1000 -> 20.252 | AP14: =AB14*I14+($A$4-80)*AI14*$A$12/1000 -> 20.048 | AQ14: =AC14*K14+($A$4-80)*AJ14*$A$12/1000 -> 19.83333333 | AR14: =AD14*M14+($A$4-80)*AK14*$A$12/1000 -> 21.86666667 | AS14: =AE14*O14+($A$4-80)*AL14*$A$12/1000 -> 20.66666667
B15: 59 | C15: 24.93333333 | D15: 24.93333333 | E15: 24.66666667 | F15: 24.66666667 | G15: 24 | H15: 24 | I15: 23.46666667 | J15: 23.46666667 | K15: 22.93333333 | L15: 22.93333333 | M15: 21.6 | N15: 21.6 | O15: 20.4 | P15: 20.4 | R15: 1.038888889 | S15: 1.027777778 | T15: 1 | U15: 0.9777777778 | V15: 0.9555555556 | W15: 0.9 | X15: 0.85 | Y15: 1 | Z15: 1 | AA15: 1 | AB15: 1 | AC15: 1 | AD15: 1 | AE15: 1 | AF15: 1.583333333 | AG15: 1.505333333 | AH15: 0.03333333333 | AI15: 0.03333333333 | AJ15: 0.03333333333 | AK15: 0.03333333333 | AL15: 0.03333333333 | AM15: =Y15*C15+($A$4-80)*AF15*$A$12/1000 -> 24.93333333 | AN15: =Z15*E15+($A$4-80)*AG15*$A$12/1000 -> 24.66666667 | AO15: =AA15*G15+($A$4-80)*AH15*$A$12/1000 -> 24 | AP15: =AB15*I15+($A$4-80)*AI15*$A$12/1000 -> 23.46666667 | AQ15: =AC15*K15+($A$4-80)*AJ15*$A$12/1000 -> 22.93333333 | AR15: =AD15*M15+($A$4-80)*AK15*$A$12/1000 -> 21.6 | AS15: =AE15*O15+($A$4-80)*AL15*$A$12/1000 -> 20.4
A16: 675 | B16: 71 | C16: 27.46666667 | D16: 16.48 | E16: 27.2 | F16: 15.504 | G16: 26.53333333 | H16: 15.92 | I16: 26 | J16: 15.86 | K16: 25.46666667 | L16: 15.78933333 | M16: 24.13333333 | N16: 14.48 | O16: 22.93333333 | P16: 15.824 | R16: 1.144444444 | S16: 1.133333333 | T16: 1.105555556 | U16: 1.083333333 | V16: 1.061111111 | W16: 1.005555556 | X16: 0.9555555556 | Y16: 0.6 | Z16: 0.57 | AA16: 0.6 | AB16: 0.61 | AC16: 0.62 | AD16: 0.6 | AE16: 0.69 | AF16: 0.9288888889 | AG16: 0.6785185185 | AH16: 0.7075555556 | AI16: 0.7005925926 | AJ16: 0.6939259259 | AK16: 0.4444444444 | AL16: 0.6284444444 | AM16: =Y16*C16+($A$4-80)*AF16*$A$16/1000 -> 16.48 | AN16: =Z16*E16+($A$4-80)*AG16*$A$16/1000 -> 15.504 | AO16: =AA16*G16+($A$4-80)*AH16*$A$16/1000 -> 15.92 | AP16: =AB16*I16+($A$4-80)*AI16*$A$16/1000 -> 15.86 | AQ16: =AC16*K16+($A$4-80)*AJ16*$A$16/1000 -> 15.78933333 | AR16: =AD16*M16+($A$4-80)*AK16*$A$16/1000 -> 14.48 | AS16: =AE16*O16+($A$4-80)*AL16*$A$16/1000 -> 15.824
B17: 67 | C17: 26.4 | D17: 18.48 | E17: 26.13333333 | F17: 18.55466667 | G17: 25.46666667 | H17: 18.59066667 | I17: 24.93333333 | J17: 18.45066667 | K17: 24.4 | L17: 18.3 | M17: 23.06666667 | N17: 17.76133333 | O17: 21.86666667 | P17: 17.93066667 | R17: 1.1 | S17: 1.088888889 | T17: 1.061111111 | U17: 1.038888889 | V17: 1.016666667 | W17: 0.9611111111 | X17: 0.9111111111 | Y17: 0.7 | Z17: 0.71 | AA17: 0.73 | AB17: 0.74 | AC17: 0.75 | AD17: 0.77 | AE17: 0.82 | AF17: 0.6628148148 | AG17: 0.7143703704 | AH17: 0.6408888889 | AI17: 0.6557037037 | AJ17: 0.6693333333 | AK17: 0.6343703704 | AL17: 0.6038518519 | AM17: =Y17*C17+($A$4-80)*AF17*$A$16/1000 -> 18.48 | AN17: =Z17*E17+($A$4-80)*AG17*$A$16/1000 -> 18.55466667 | AO17: =AA17*G17+($A$4-80)*AH17*$A$16/1000 -> 18.59066667 | AP17: =AB17*I17+($A$4-80)*AI17*$A$16/1000 -> 18.45066667 | AQ17: =AC17*K17+($A$4-80)*AJ17*$A$16/1000 -> 18.3 | AR17: =AD17*M17+($A$4-80)*AK17*$A$16/1000 -> 17.76133333 | AS17: =AE17*O17+($A$4-80)*AL17*$A$16/1000 -> 17.93066667
B18: 63 | C18: 25.6 | D18: 21.248 | E18: 25.33333333 | F18: 21.28 | G18: 24.8 | H18: 21.328 | I18: 24.2 | J18: 22.506 | K18: 23.6 | L18: 23.6 | M18: 22.26666667 | N18: 22.26666667 | O18: 21.06666667 | P18: 21.06666667 | R18: 1.066666667 | S18: 1.055555556 | T18: 1.033333333 | U18: 1.008333333 | V18: 0.9833333333 | W18: 0.9277777778 | X18: 0.8777777778 | Y18: 0.83 | Z18: 0.84 | AA18: 0.86 | AB18: 0.93 | AC18: 1 | AD18: 1 | AE18: 1 | AF18: 0.7037037037 | AG18: 0.6968888889 | AH18: 0.6832592593 | AI18: 0.9902222222 | AJ18: 1.281185185 | AK18: 1.111703704 | AL18: 0.02962962963 | AM18: =Y18*C18+($A$4-80)*AF18*$A$16/1000 -> 21.248 | AN18: =Z18*E18+($A$4-80)*AG18*$A$16/1000 -> 21.28 | AO18: =AA18*G18+($A$4-80)*AH18*$A$16/1000 -> 21.328 | AP18: =AB18*I18+($A$4-80)*AI18*$A$16/1000 -> 22.506 | AQ18: =AC18*K18+($A$4-80)*AJ18*$A$16/1000 -> 23.6 | AR18: =AD18*M18+($A$4-80)*AK18*$A$16/1000 -> 22.26666667 | AS18: =AE18*O18+($A$4-80)*AL18*$A$16/1000 -> 21.06666667
B19: 59 | C19: 25.2 | D19: 25.2 | E19: 25.06666667 | F19: 25.06666667 | G19: 24.4 | H19: 24.4 | I19: 23.86666667 | J19: 23.86666667 | K19: 23.33333333 | L19: 23.33333333 | M19: 22 | N19: 22 | O19: 20.8 | P19: 20.8 | R19: 1.05 | S19: 1.044444444 | T19: 1.016666667 | U19: 0.9944444444 | V19: 0.9722222222 | W19: 0.9166666667 | X19: 0.8666666667 | Y19: 1 | Z19: 1 | AA19: 1 | AB19: 1 | AC19: 1 | AD19: 1 | AE19: 1 | AF19: 1.176 | AG19: 1.193185185 | AH19: 0.02962962963 | AI19: 0.02962962963 | AJ19: 0.02962962963 | AK19: 0.02962962963 | AL19: 0.02962962963 | AM19: =Y19*C19+($A$4-80)*AF19*$A$16/1000 -> 25.2 | AN19: =Z19*E19+($A$4-80)*AG19*$A$16/1000 -> 25.06666667 | AO19: =AA19*G19+($A$4-80)*AH19*$A$16/1000 -> 24.4 | AP19: =AB19*I19+($A$4-80)*AI19*$A$16/1000 -> 23.86666667 | AQ19: =AC19*K19+($A$4-80)*AJ19*$A$16/1000 -> 23.33333333 | AR19: =AD19*M19+($A$4-80)*AK19*$A$16/1000 -> 22 | AS19: =AE19*O19+($A$4-80)*AL19*$A$16/1000 -> 20.8

Sheet GSX140_19 (hidden)
A2: GSX140_19
A3: Evaporator Air | C3: Condenser Entering Air Temperature ˚F
A4: 80 | B4: °F DB | C4: 65 | E4: 75 | G4: 85 | I4: 90 | K4: 95 | M4: 105 | O4: 115
A5: CFM | B5: EWB† ˚F | C5: Capacity Mbtuh | E5: Capacity Mbtuh | G5: Capacity Mbtuh | I5: Capacity Mbtuh | K5: Capacity Mbtuh | M5: Capacity Mbtuh | O5: Capacity Mbtuh
C6: Total | D6: Sens. | E6: Total | F6: Sens. | G6: Total | H6: Sens. | I6: Total | J6: Sens. | K6: Total | L6: Sens. | M6: Total | N6: Sens. | O6: Total | P6: Sens.
R7: Total Factors | Y7: Sens. % | AF7: IDB Adj | AM7: Sens Calc
A8: 550 | B8: 71 | C8: =R8*$K$13 -> 26.69662921 | D8: =IF(AM8>C8,C8,AM8) -> 16.01797753 | E8: =S8*$K$13 -> 26.56179775 | F8: =IF(AN8>E8,E8,AN8) -> 14.87460674 | G8: =T8*$K$13 -> 25.88764045 | H8: =IF(AO8>G8,G8,AO8) -> 15.53258427 | I8: =U8*$K$13 -> 25.34831461 | J8: =IF(AP8>I8,I8,AP8) -> 15.20898876 | K8: =V8*$K$13 -> 24.80898876 | L8: =IF(AQ8>K8,K8,AQ8) -> 14.88539326 | M8: =W8*$K$13 -> 23.46067416 | N8: =IF(AR8>M8,M8,AR8) -> 14.07640449 | O8: =X8*$K$13 -> 22.24719101 | P8: =IF(AS8>O8,O8,AS8) -> 14.90561798 | R8: 1.112359551 | S8: 1.106741573 | T8: 1.078651685 | U8: 1.056179775 | V8: 1.033707865 | W8: 0.9775280899 | X8: 0.9269662921 | Y8: 0.6 | Z8: 0.56 | AA8: 0.6 | AB8: 0.6 | AC8: 0.6 | AD8: 0.6 | AE8: 0.67 | AF8: 1.224 | AG8: 0.9469090909 | AH8: 0.9941818182 | AI8: 0.9058181818 | AJ8: 0.8203636364 | AK8: 0.6509090909 | AL8: 0.74 | AM8: =Y8*C8+($A$4-80)*AF8*$A$8/1000 -> 16.01797753 | AN8: =Z8*E8+($A$4-80)*AG8*$A$8/1000 -> 14.87460674 | AO8: =AA8*G8+($A$4-80)*AH8*$A$8/1000 -> 15.53258427 | AP8: =AB8*I8+($A$4-80)*AI8*$A$8/1000 -> 15.20898876 | AQ8: =AC8*K8+($A$4-80)*AJ8*$A$8/1000 -> 14.88539326 | AR8: =AD8*M8+($A$4-80)*AK8*$A$8/1000 -> 14.07640449 | AS8: =AE8*O8+($A$4-80)*AL8*$A$8/1000 -> 14.90561798
B9: 67 | C9: 25.61797753 | D9: 17.67640449 | E9: 25.48314607 | F9: 17.58337079 | G9: 24.80898876 | H9: 17.86247191 | I9: 24.26966292 | J9: 17.71685393 | K9: =V9*$K$13 -> 23.73033708 | L9: 17.56044944 | M9: 22.38202247 | N9: 17.01033708 | O9: 21.16853933 | P9: 17.14651685 | R9: 1.06741573 | S9: 1.061797753 | T9: 1.033707865 | U9: 1.011235955 | V9: 0.9887640449 | W9: 0.9325842697 | X9: 0.8820224719 | Y9: 0.69 | Z9: 0.69 | AA9: 0.72 | AB9: 0.73 | AC9: 0.74 | AD9: 0.76 | AE9: 0.81 | AF9: 0.8498181818 | AG9: 0.8454545455 | AH9: 0.8247272727 | AI9: 0.8076363636 | AJ9: 0.7905454545 | AK9: 0.7476363636 | AL9: 0.7101818182 | AM9: =Y9*C9+($A$4-80)*AF9*$A$8/1000 -> 17.67640449 | AN9: =Z9*E9+($A$4-80)*AG9*$A$8/1000 -> 17.58337079 | AO9: =AA9*G9+($A$4-80)*AH9*$A$8/1000 -> 17.86247191 | AP9: =AB9*I9+($A$4-80)*AI9*$A$8/1000 -> 17.71685393 | AQ9: =AC9*K9+($A$4-80)*AJ9*$A$8/1000 -> 17.56044944 | AR9: =AD9*M9+($A$4-80)*AK9*$A$8/1000 -> 17.01033708 | AS9: =AE9*O9+($A$4-80)*AL9*$A$8/1000 -> 17.14651685
B10: 63 | C10: 24.94382022 | D10: 20.45393258 | E10: 24.6741573 | F10: 20.47955056 | G10: 24.13483146 | H10: 20.51460674 | I10: 23.59550562 | J10: 21.8258427 | K10: =V10*$K$13 -> 23.05617978 | L10: 23.05617978 | M10: 21.70786517 | N10: 21.70786517 | O10: 20.49438202 | P10: 20.49438202 | R10: 1.039325843 | S10: 1.028089888 | T10: 1.005617978 | U10: 0.9831460674 | V10: 0.9606741573 | W10: 0.904494382 | X10: 0.8539325843 | Y10: 0.82 | Z10: 0.83 | AA10: 0.85 | AB10: 0.925 | AC10: 1 | AD10: 1 | AE10: 1 | AF10: 0.8327272727 | AG10: 0.8905454545 | AH10: 0.8076363636 | AI10: 1.204181818 | AJ10: 1.581818182 | AK10: 1.374545455 | AL10: 0.03636363636 | AM10: =Y10*C10+($A$4-80)*AF10*$A$8/1000 -> 20.45393258 | AN10: =Z10*E10+($A$4-80)*AG10*$A$8/1000 -> 20.47955056 | AO10: =AA10*G10+($A$4-80)*AH10*$A$8/1000 -> 20.51460674 | AP10: =AB10*I10+($A$4-80)*AI10*$A$8/1000 -> 21.8258427 | AQ10: =AC10*K10+($A$4-80)*AJ10*$A$8/1000 -> 23.05617978 | AR10: =AD10*M10+($A$4-80)*AK10*$A$8/1000 -> 21.70786517 | AS10: =AE10*O10+($A$4-80)*AL10*$A$8/1000 -> 20.49438202
B11: 59 | C11: 24.53932584 | D11: 24.53932584 | E11: 24.40449438 | F11: 24.40449438 | G11: 23.73033708 | H11: 23.73033708 | I11: 23.19101124 | J11: 23.19101124 | K11: =V11*$K$13 -> 22.65168539 | L11: 22.65168539 | M11: 21.30337079 | N11: 21.30337079 | O11: 20.08988764 | P11: 20.08988764 | R11: 1.02247191 | S11: 1.016853933 | T11: 0.9887640449 | U11: 0.9662921348 | V11: 0.9438202247 | W11: 0.8876404494 | X11: 0.8370786517 | Y11: 1 | Z11: 1 | AA11: 1 | AB11: 1 | AC11: 1 | AD11: 1 | AE11: 1 | AF11: 1.522181818 | AG11: 1.476363636 | AH11: 0.03636363636 | AI11: 0.03636363636 | AJ11: 0.03636363636 | AK11: 0.03636363636 | AL11: 0.03636363636 | AM11: =Y11*C11+($A$4-80)*AF11*$A$8/1000 -> 24.53932584 | AN11: =Z11*E11+($A$4-80)*AG11*$A$8/1000 -> 24.40449438 | AO11: =AA11*G11+($A$4-80)*AH11*$A$8/1000 -> 23.73033708 | AP11: =AB11*I11+($A$4-80)*AI11*$A$8/1000 -> 23.19101124 | AQ11: =AC11*K11+($A$4-80)*AJ11*$A$8/1000 -> 22.65168539 | AR11: =AD11*M11+($A$4-80)*AK11*$A$8/1000 -> 21.30337079 | AS11: =AE11*O11+($A$4-80)*AL11*$A$8/1000 -> 20.08988764
A12: 600 | B12: 71 | C12: 26.96629213 | D12: 16.17977528 | E12: 26.83146067 | F12: 15.56224719 | G12: 26.15730337 | H12: 15.69438202 | I12: 25.61797753 | J12: 15.75505618 | K12: =V12*$K$13 -> 25.07865169 | L12: 15.79955056 | M12: 23.73033708 | N12: 16.61123596 | O12: 22.51685393 | P12: 15.76179775 | R12: 1.123595506 | S12: 1.117977528 | T12: 1.08988764 | U12: 1.06741573 | V12: 1.04494382 | W12: 0.9887640449 | X12: 0.9382022472 | Y12: 0.6 | Z12: 0.58 | AA12: 0.6 | AB12: 0.615 | AC12: 0.63 | AD12: 0.7 | AE12: 0.7 | AF12: 1 | AG12: 0.8113333333 | AH12: 0.792 | AI12: 0.808 | AJ12: 0.8226666667 | AK12: 1.015 | AL12: 0.6873333333 | AM12: =Y12*C12+($A$4-80)*AF12*$A$12/1000 -> 16.17977528 | AN12: =Z12*E12+($A$4-80)*AG12*$A$12/1000 -> 15.56224719 | AO12: =AA12*G12+($A$4-80)*AH12*$A$12/1000 -> 15.69438202 | AP12: =AB12*I12+($A$4-80)*AI12*$A$12/1000 -> 15.75505618 | AQ12: =AC12*K12+($A$4-80)*AJ12*$A$12/1000 -> 15.79955056 | AR12: =AD12*M12+($A$4-80)*AK12*$A$12/1000 -> 16.61123596 | AS12: =AE12*O12+($A$4-80)*AL12*$A$12/1000 -> 15.76179775
B13: 67 | C13: 25.88764045 | D13: 18.63910112 | E13: 25.75280899 | F13: 18.54202247 | G13: 25.07865169 | H13: 18.80898876 | I13: 24.53932584 | J13: 18.52719101 | K13: 24 | L13: 18.24 | M13: 22.65168539 | N13: 17.89483146 | O13: 21.43820225 | P13: 18.00808989 | R13: 1.078651685 | S13: 1.073033708 | T13: 1.04494382 | U13: 1.02247191 | V13: 1 | W13: 0.9438202247 | X13: 0.893258427 | Y13: 0.72 | Z13: 0.72 | AA13: 0.75 | AB13: 0.755 | AC13: 0.76 | AD13: 0.79 | AE13: 0.84 | AF13: 0.8516666667 | AG13: 0.784 | AH13: 0.8266666667 | AI13: 0.7793333333 | AJ13: 0.7333333333 | AK13: 0.75 | AL13: 0.7126666667 | AM13: =Y13*C13+($A$4-80)*AF13*$A$12/1000 -> 18.63910112 | AN13: =Z13*E13+($A$4-80)*AG13*$A$12/1000 -> 18.54202247 | AO13: =AA13*G13+($A$4-80)*AH13*$A$12/1000 -> 18.80898876 | AP13: =AB13*I13+($A$4-80)*AI13*$A$12/1000 -> 18.52719101 | AQ13: =AC13*K13+($A$4-80)*AJ13*$A$12/1000 -> 18.24 | AR13: =AD13*M13+($A$4-80)*AK13*$A$12/1000 -> 17.89483146 | AS13: =AE13*O13+($A$4-80)*AL13*$A$12/1000 -> 18.00808989
B14: 63 | C14: 25.21348315 | D14: 21.43146067 | E14: 24.94382022 | F14: 21.20224719 | G14: 24.40449438 | H14: 21.47595506 | I14: 23.86516854 | J14: 22.43325843 | K14: =V14*$K$13 -> 23.3258427 | L14: 23.3258427 | M14: 21.97752809 | N14: 21.97752809 | O14: 20.76404494 | P14: 20.76404494 | R14: 1.050561798 | S14: 1.039325843 | T14: 1.016853933 | U14: 0.9943820225 | V14: 0.9719101124 | W14: 0.9157303371 | X14: 0.8651685393 | Y14: 0.85 | Z14: 0.85 | AA14: 0.88 | AB14: 0.94 | AC14: 1 | AD14: 1 | AE14: 1 | AF14: 0.7723333333 | AG14: 0.7643333333 | AH14: 0.7493333333 | AI14: 1.058 | AJ14: 1.352 | AK14: 1.113333333 | AL14: 0.03333333333 | AM14: =Y14*C14+($A$4-80)*AF14*$A$12/1000 -> 21.43146067 | AN14: =Z14*E14+($A$4-80)*AG14*$A$12/1000 -> 21.20224719 | AO14: =AA14*G14+($A$4-80)*AH14*$A$12/1000 -> 21.47595506 | AP14: =AB14*I14+($A$4-80)*AI14*$A$12/1000 -> 22.43325843 | AQ14: =AC14*K14+($A$4-80)*AJ14*$A$12/1000 -> 23.3258427 | AR14: =AD14*M14+($A$4-80)*AK14*$A$12/1000 -> 21.97752809 | AS14: =AE14*O14+($A$4-80)*AL14*$A$12/1000 -> 20.76404494
B15: 59 | C15: 24.80898876 | D15: 24.80898876 | E15: 24.6741573 | F15: 24.6741573 | G15: 24 | H15: 24 | I15: 23.46067416 | J15: 23.46067416 | K15: 22.92134831 | L15: 22.92134831 | M15: 21.57303371 | N15: 21.57303371 | O15: 20.35955056 | P15: 20.35955056 | R15: 1.033707865 | S15: 1.028089888 | T15: 1 | U15: 0.9775280899 | V15: 0.9550561798 | W15: 0.8988764045 | X15: 0.8483146067 | Y15: 1 | Z15: 1 | AA15: 1 | AB15: 1 | AC15: 1 | AD15: 1 | AE15: 1 | AF15: 1.226666667 | AG15: 0.03333333333 | AH15: 0.03333333333 | AI15: 0.03333333333 | AJ15: 0.03333333333 | AK15: 0.03333333333 | AL15: 0.03333333333 | AM15: =Y15*C15+($A$4-80)*AF15*$A$12/1000 -> 24.80898876 | AN15: =Z15*E15+($A$4-80)*AG15*$A$12/1000 -> 24.6741573 | AO15: =AA15*G15+($A$4-80)*AH15*$A$12/1000 -> 24 | AP15: =AB15*I15+($A$4-80)*AI15*$A$12/1000 -> 23.46067416 | AQ15: =AC15*K15+($A$4-80)*AJ15*$A$12/1000 -> 22.92134831 | AR15: =AD15*M15+($A$4-80)*AK15*$A$12/1000 -> 21.57303371 | AS15: =AE15*O15+($A$4-80)*AL15*$A$12/1000 -> 20.35955056
A16: 675 | B16: 71 | C16: 27.50561798 | D16: 16.50337079 | E16: 27.23595506 | F16: 16.34157303 | G16: 26.69662921 | H16: 16.01797753 | I16: 26.15730337 | J16: 16.21752809 | K16: 25.61797753 | L16: 16.39550562 | M16: 24.26966292 | N16: 16.98876404 | O16: 23.05617978 | P16: 16.36988764 | R16: 1.146067416 | S16: 1.134831461 | T16: 1.112359551 | U16: 1.08988764 | V16: 1.06741573 | W16: 1.011235955 | X16: 0.9606741573 | Y16: 0.6 | Z16: 0.6 | AA16: 0.6 | AB16: 0.62 | AC16: 0.64 | AD16: 0.7 | AE16: 0.71 | AF16: 0.7997037037 | AG16: 0.7182222222 | AH16: 0.6014814815 | AI16: 0.6474074074 | AJ16: 0.690962963 | AK16: 0.8693333333 | AL16: 0.6254814815 | AM16: =Y16*C16+($A$4-80)*AF16*$A$16/1000 -> 16.50337079 | AN16: =Z16*E16+($A$4-80)*AG16*$A$16/1000 -> 16.34157303 | AO16: =AA16*G16+($A$4-80)*AH16*$A$16/1000 -> 16.01797753 | AP16: =AB16*I16+($A$4-80)*AI16*$A$16/1000 -> 16.21752809 | AQ16: =AC16*K16+($A$4-80)*AJ16*$A$16/1000 -> 16.39550562 | AR16: =AD16*M16+($A$4-80)*AK16*$A$16/1000 -> 16.98876404 | AS16: =AE16*O16+($A$4-80)*AL16*$A$16/1000 -> 16.36988764
B17: 67 | C17: 26.42696629 | D17: 19.29168539 | E17: 26.15730337 | F17: 19.35640449 | G17: 25.61797753 | H17: 19.46966292 | I17: 25.07865169 | J17: 19.3105618 | K17: 24.53932584 | L17: 19.14067416 | M17: 23.19101124 | N17: 18.55280899 | O17: 21.97752809 | P17: 18.68089888 | R17: 1.101123596 | S17: 1.08988764 | T17: 1.06741573 | U17: 1.04494382 | V17: 1.02247191 | W17: 0.9662921348 | X17: 0.9157303371 | Y17: 0.73 | Z17: 0.74 | AA17: 0.76 | AB17: 0.77 | AC17: 0.78 | AD17: 0.8 | AE17: 0.85 | AF17: 0.714962963 | AG17: 0.7081481481 | AH17: 0.6945185185 | AI17: 0.6805925926 | AJ17: 0.6666666667 | AK17: 0.6317037037 | AL17: 0.6011851852 | AM17: =Y17*C17+($A$4-80)*AF17*$A$16/1000 -> 19.29168539 | AN17: =Z17*E17+($A$4-80)*AG17*$A$16/1000 -> 19.35640449 | AO17: =AA17*G17+($A$4-80)*AH17*$A$16/1000 -> 19.46966292 | AP17: =AB17*I17+($A$4-80)*AI17*$A$16/1000 -> 19.3105618 | AQ17: =AC17*K17+($A$4-80)*AJ17*$A$16/1000 -> 19.14067416 | AR17: =AD17*M17+($A$4-80)*AK17*$A$16/1000 -> 18.55280899 | AS17: =AE17*O17+($A$4-80)*AL17*$A$16/1000 -> 18.68089888
B18: 63 | C18: 25.75280899 | D18: 22.14741573 | E18: 25.48314607 | F18: 22.17033708 | G18: 24.80898876 | H18: 22.08 | I18: 24.26966292 | J18: 22.93483146 | K18: 23.73033708 | L18: 23.73033708 | M18: 22.38202247 | N18: 22.38202247 | O18: 21.16853933 | P18: 21.16853933 | R18: 1.073033708 | S18: 1.061797753 | T18: 1.033707865 | U18: 1.011235955 | V18: 0.9887640449 | W18: 0.9325842697 | X18: 0.8820224719 | Y18: 0.86 | Z18: 0.87 | AA18: 0.89 | AB18: 0.945 | AC18: 1 | AD18: 1 | AE18: 1 | AF18: 0.701037037 | AG18: 0.6942222222 | AH18: 0.677037037 | AI18: 0.9031111111 | AJ18: 1.118518519 | AK18: 0.02962962963 | AL18: 0.02962962963 | AM18: =Y18*C18+($A$4-80)*AF18*$A$16/1000 -> 22.14741573 | AN18: =Z18*E18+($A$4-80)*AG18*$A$16/1000 -> 22.17033708 | AO18: =AA18*G18+($A$4-80)*AH18*$A$16/1000 -> 22.08 | AP18: =AB18*I18+($A$4-80)*AI18*$A$16/1000 -> 22.93483146 | AQ18: =AC18*K18+($A$4-80)*AJ18*$A$16/1000 -> 23.73033708 | AR18: =AD18*M18+($A$4-80)*AK18*$A$16/1000 -> 22.38202247 | AS18: =AE18*O18+($A$4-80)*AL18*$A$16/1000 -> 21.16853933
B19: 59 | C19: 25.34831461 | D19: 25.34831461 | E19: 25.07865169 | F19: 25.07865169 | G19: 24.53932584 | H19: 24.53932584 | I19: 24 | J19: 24 | K19: 23.46067416 | L19: 23.46067416 | M19: 22.11235955 | N19: 22.11235955 | O19: 20.8988764 | P19: 20.8988764 | R19: 1.056179775 | S19: 1.04494382 | T19: 1.02247191 | U19: 1 | V19: 0.9775280899 | W19: 0.9213483146 | X19: 0.8707865169 | Y19: 1 | Z19: 1 | AA19: 1 | AB19: 1 | AC19: 1 | AD19: 1 | AE19: 1 | AF19: 1.026962963 | AG19: 0.02962962963 | AH19: 0.02962962963 | AI19: 0.02962962963 | AJ19: 0.02962962963 | AK19: 0.02962962963 | AL19: 0.02962962963 | AM19: =Y19*C19+($A$4-80)*AF19*$A$16/1000 -> 25.34831461 | AN19: =Z19*E19+($A$4-80)*AG19*$A$16/1000 -> 25.07865169 | AO19: =AA19*G19+($A$4-80)*AH19*$A$16/1000 -> 24.53932584 | AP19: =AB19*I19+($A$4-80)*AI19*$A$16/1000 -> 24 | AQ19: =AC19*K19+($A$4-80)*AJ19*$A$16/1000 -> 23.46067416 | AR19: =AD19*M19+($A$4-80)*AK19*$A$16/1000 -> 22.11235955 | AS19: =AE19*O19+($A$4-80)*AL19*$A$16/1000 -> 20.8988764

Sheet GSX140_24 (hidden)
A2: GSX140_24
A3: Evaporator Air | C3: Condenser Entering Air Temperature ˚F
A4: 80 | B4: °F DB | C4: 65 | E4: 75 | G4: 85 | I4: 90 | K4: 95 | M4: 105 | O4: 115
A5: CFM | B5: EWB† ˚F | C5: Capacity Mbtuh | E5: Capacity Mbtuh | G5: Capacity Mbtuh | I5: Capacity Mbtuh | K5: Capacity Mbtuh | M5: Capacity Mbtuh | O5: Capacity Mbtuh
C6: Total | D6: Sens. | E6: Total | F6: Sens. | G6: Total | H6: Sens. | I6: Total | J6: Sens. | K6: Total | L6: Sens. | M6: Total | N6: Sens. | O6: Total | P6: Sens.
R7: Total Factors | Y7: Sens. % | AF7: IDB Adj | AM7: Sens Calc
A8: 700 | B8: 71 | C8: =R8*$K$13 -> 26.6440678 | D8: =IF(AM8>C8,C8,AM8) -> 13.3220339 | E8: =S8*$K$13 -> 26.44067797 | F8: =IF(AN8>E8,E8,AN8) -> 13.22033898 | G8: =T8*$K$13 -> 25.72881356 | H8: =IF(AO8>G8,G8,AO8) -> 15.43728814 | I8: =U8*$K$13 -> 25.22033898 | J8: =IF(AP8>I8,I8,AP8) -> 15.13220339 | K8: =V8*$K$13 -> 24.71186441 | L8: =IF(AQ8>K8,K8,AQ8) -> 14.82711864 | M8: =W8*$K$13 -> 23.38983051 | N8: =IF(AR8>M8,M8,AR8) -> 14.03389831 | O8: =X8*$K$13 -> 22.16949153 | P8: =IF(AS8>O8,O8,AS8) -> 15.51864407 | R8: 1.110169492 | S8: 1.101694915 | T8: 1.072033898 | U8: 1.050847458 | V8: 1.029661017 | W8: 0.9745762712 | X8: 0.9237288136 | Y8: 0.5 | Z8: 0.5 | AA8: 0.6 | AB8: 0.6 | AC8: 0.6 | AD8: 0.6 | AE8: 0.7 | AF8: 0.5388571429 | AG8: 0.5342857143 | AH8: 1.081142857 | AI8: 0.9921428571 | AJ8: 0.9062857143 | AK8: 0.7337142857 | AL8: 0.9982857143 | AM8: =Y8*C8+($A$4-80)*AF8*$A$8/1000 -> 13.3220339 | AN8: =Z8*E8+($A$4-80)*AG8*$A$8/1000 -> 13.22033898 | AO8: =AA8*G8+($A$4-80)*AH8*$A$8/1000 -> 15.43728814 | AP8: =AB8*I8+($A$4-80)*AI8*$A$8/1000 -> 15.13220339 | AQ8: =AC8*K8+($A$4-80)*AJ8*$A$8/1000 -> 14.82711864 | AR8: =AD8*M8+($A$4-80)*AK8*$A$8/1000 -> 14.03389831 | AS8: =AE8*O8+($A$4-80)*AL8*$A$8/1000 -> 15.51864407
B9: 67 | C9: 25.52542373 | D9: 17.86779661 | E9: 25.3220339 | F9: 17.72542373 | G9: 24.71186441 | H9: 17.29830508 | I9: 24.15254237 | J9: 16.90677966 | K9: =V9*$K$13 -> 23.59322034 | L9: 16.51525424 | M9: 22.27118644 | N9: 15.58983051 | O9: 21.05084746 | P9: 16.84067797 | R9: 1.063559322 | S9: 1.055084746 | T9: 1.029661017 | U9: 1.006355932 | V9: 0.9830508475 | W9: 0.9279661017 | X9: 0.8771186441 | Y9: 0.7 | Z9: 0.7 | AA9: 0.7 | AB9: 0.7 | AC9: 0.7 | AD9: 0.7 | AE9: 0.8 | AF9: 0.9971428571 | AG9: 0.916 | AH9: 0.7502857143 | AI9: 0.6621428571 | AJ9: 0.5771428571 | AK9: 0.4297142857 | AL9: 0.6922857143 | AM9: =Y9*C9+($A$4-80)*AF9*$A$8/1000 -> 17.86779661 | AN9: =Z9*E9+($A$4-80)*AG9*$A$8/1000 -> 17.72542373 | AO9: =AA9*G9+($A$4-80)*AH9*$A$8/1000 -> 17.29830508 | AP9: =AB9*I9+($A$4-80)*AI9*$A$8/1000 -> 16.90677966 | AQ9: =AC9*K9+($A$4-80)*AJ9*$A$8/1000 -> 16.51525424 | AR9: =AD9*M9+($A$4-80)*AK9*$A$8/1000 -> 15.58983051 | AS9: =AE9*O9+($A$4-80)*AL9*$A$8/1000 -> 16.84067797
B10: 63 | C10: 24.81355932 | D10: 19.85084746 | E10: 24.61016949 | F10: 19.68813559 | G10: 24 | H10: 19.2 | I10: 23.44067797 | J10: 19.92457627 | K10: =V10*$K$13 -> 22.88135593 | L10: 20.59322034 | M10: 21.55932203 | N10: 21.55932203 | O10: 20.33898305 | P10: 20.33898305 | R10: 1.033898305 | S10: 1.025423729 | T10: 1 | U10: 0.9766949153 | V10: 0.9533898305 | W10: 0.8983050847 | X10: 0.8474576271 | Y10: 0.8 | Z10: 0.8 | AA10: 0.8 | AB10: 0.85 | AC10: 0.9 | AD10: 1 | AE10: 1 | AF10: 0.7394285714 | AG10: 0.7325714286 | AH10: 0.5257142857 | AI10: 0.7635714286 | AJ10: 0.9885714286 | AK10: 1.428571429 | AL10: 1.051428571 | AM10: =Y10*C10+($A$4-80)*AF10*$A$8/1000 -> 19.85084746 | AN10: =Z10*E10+($A$4-80)*AG10*$A$8/1000 -> 19.68813559 | AO10: =AA10*G10+($A$4-80)*AH10*$A$8/1000 -> 19.2 | AP10: =AB10*I10+($A$4-80)*AI10*$A$8/1000 -> 19.92457627 | AQ10: =AC10*K10+($A$4-80)*AJ10*$A$8/1000 -> 20.59322034 | AR10: =AD10*M10+($A$4-80)*AK10*$A$8/1000 -> 21.55932203 | AS10: =AE10*O10+($A$4-80)*AL10*$A$8/1000 -> 20.33898305
B11: 59 | C11: 24.40677966 | D11: 24.40677966 | E11: 24.20338983 | F11: 24.20338983 | G11: 23.59322034 | H11: 23.59322034 | I11: 23.08474576 | J11: 23.08474576 | K11: =V11*$K$13 -> 22.57627119 | L11: 22.57627119 | M11: 21.25423729 | N11: 21.25423729 | O11: 20.03389831 | P11: 20.03389831 | R11: 1.016949153 | S11: 1.008474576 | T11: 0.9830508475 | U11: 0.9618644068 | V11: 0.9406779661 | W11: 0.8855932203 | X11: 0.8347457627 | Y11: 1 | Z11: 1 | AA11: 1 | AB11: 1 | AC11: 1 | AD11: 1 | AE11: 1 | AF11: 1.607142857 | AG11: 1.523428571 | AH11: -0.1428571429 | AI11: -0.1285714286 | AJ11: -0.1142857143 | AK11: -0.1142857143 | AL11: -0.1142857143 | AM11: =Y11*C11+($A$4-80)*AF11*$A$8/1000 -> 24.40677966 | AN11: =Z11*E11+($A$4-80)*AG11*$A$8/1000 -> 24.20338983 | AO11: =AA11*G11+($A$4-80)*AH11*$A$8/1000 -> 23.59322034 | AP11: =AB11*I11+($A$4-80)*AI11*$A$8/1000 -> 23.08474576 | AQ11: =AC11*K11+($A$4-80)*AJ11*$A$8/1000 -> 22.57627119 | AR11: =AD11*M11+($A$4-80)*AK11*$A$8/1000 -> 21.25423729 | AS11: =AE11*O11+($A$4-80)*AL11*$A$8/1000 -> 20.03389831
A12: 800 | B12: 71 | C12: 27.05084746 | D12: 16.23050847 | E12: 26.84745763 | F12: 16.10847458 | G12: 26.23728814 | H12: 15.74237288 | I12: 25.6779661 | J12: 15.40677966 | K12: =V12*$K$13 -> 25.11864407 | L12: 15.07118644 | M12: 23.79661017 | N12: 14.2779661 | O12: 22.57627119 | P12: 15.80338983 | R12: 1.127118644 | S12: 1.118644068 | T12: 1.093220339 | U12: 1.069915254 | V12: 1.046610169 | W12: 0.9915254237 | X12: 0.9406779661 | Y12: 0.6 | Z12: 0.6 | AA12: 0.6 | AB12: 0.6 | AC12: 0.6 | AD12: 0.6 | AE12: 0.7 | AF12: 0.93 | AG12: 0.8665 | AH12: 0.714 | AI12: 0.633125 | AJ12: 0.555 | AK12: 0.403 | AL12: 0.65025 | AM12: =Y12*C12+($A$4-80)*AF12*$A$12/1000 -> 16.23050847 | AN12: =Z12*E12+($A$4-80)*AG12*$A$12/1000 -> 16.10847458 | AO12: =AA12*G12+($A$4-80)*AH12*$A$12/1000 -> 15.74237288 | AP12: =AB12*I12+($A$4-80)*AI12*$A$12/1000 -> 15.40677966 | AQ12: =AC12*K12+($A$4-80)*AJ12*$A$12/1000 -> 15.07118644 | AR12: =AD12*M12+($A$4-80)*AK12*$A$12/1000 -> 14.2779661 | AS12: =AE12*O12+($A$4-80)*AL12*$A$12/1000 -> 15.80338983
B13: 67 | C13: 25.93220339 | D13: 18.15254237 | E13: 25.72881356 | F13: 18.01016949 | G13: 25.11864407 | H13: 17.58305085 | I13: 24.55932203 | J13: 18.41949153 | K13: 24 | L13: 19.2 | M13: 22.6779661 | N13: 18.14237288 | O13: 21.55932203 | P13: 17.24745763 | R13: 1.080508475 | S13: 1.072033898 | T13: 1.046610169 | U13: 1.023305085 | V13: 1 | W13: 0.9449152542 | X13: 0.8983050847 | Y13: 0.7 | Z13: 0.7 | AA13: 0.7 | AB13: 0.75 | AC13: 0.8 | AD13: 0.8 | AE13: 0.8 | AF13: 0.678 | AG13: 0.622 | AH13: 0.4795 | AI13: 0.707375 | AJ13: 0.92425 | AK13: 0.755 | AL13: 0.46 | AM13: =Y13*C13+($A$4-80)*AF13*$A$12/1000 -> 18.15254237 | AN13: =Z13*E13+($A$4-80)*AG13*$A$12/1000 -> 18.01016949 | AO13: =AA13*G13+($A$4-80)*AH13*$A$12/1000 -> 17.58305085 | AP13: =AB13*I13+($A$4-80)*AI13*$A$12/1000 -> 18.41949153 | AQ13: =AC13*K13+($A$4-80)*AJ13*$A$12/1000 -> 19.2 | AR13: =AD13*M13+($A$4-80)*AK13*$A$12/1000 -> 18.14237288 | AS13: =AE13*O13+($A$4-80)*AL13*$A$12/1000 -> 17.24745763
B14: 63 | C14: 25.22033898 | D14: 20.17627119 | E14: 25.01694915 | F14: 20.01355932 | G14: 24.40677966 | H14: 21.96610169 | I14: 23.84745763 | J14: 22.65508475 | K14: =V14*$K$13 -> 23.28813559 | L14: 23.28813559 | M14: 21.96610169 | N14: 21.96610169 | O14: 20.74576271 | P14: 20.74576271 | R14: 1.050847458 | S14: 1.042372881 | T14: 1.016949153 | U14: 0.9936440678 | V14: 0.9703389831 | W14: 0.9152542373 | X14: 0.8644067797 | Y14: 0.8 | Z14: 0.8 | AA14: 0.9 | AB14: 0.95 | AC14: 1 | AD14: 1 | AE14: 1 | AF14: 0.46925 | AG14: 0.402 | AH14: 0.8675 | AI14: 1.07875 | AJ14: 1.279 | AK14: 1.0905 | AL14: -0.125 | AM14: =Y14*C14+($A$4-80)*AF14*$A$12/1000 -> 20.17627119 | AN14: =Z14*E14+($A$4-80)*AG14*$A$12/1000 -> 20.01355932 | AO14: =AA14*G14+($A$4-80)*AH14*$A$12/1000 -> 21.96610169 | AP14: =AB14*I14+($A$4-80)*AI14*$A$12/1000 -> 22.65508475 | AQ14: =AC14*K14+($A$4-80)*AJ14*$A$12/1000 -> 23.28813559 | AR14: =AD14*M14+($A$4-80)*AK14*$A$12/1000 -> 21.96610169 | AS14: =AE14*O14+($A$4-80)*AL14*$A$12/1000 -> 20.74576271
B15: 59 | C15: 24.91525424 | D15: 24.91525424 | E15: 24.71186441 | F15: 24.71186441 | G15: 24.10169492 | H15: 24.10169492 | I15: 23.54237288 | J15: 23.54237288 | K15: 22.98305085 | L15: 22.98305085 | M15: 21.66101695 | N15: 21.66101695 | O15: 20.44067797 | P15: 20.44067797 | R15: 1.038135593 | S15: 1.029661017 | T15: 1.004237288 | U15: 0.9809322034 | V15: 0.9576271186 | W15: 0.9025423729 | X15: 0.8516949153 | Y15: 1 | Z15: 1 | AA15: 1 | AB15: 1 | AC15: 1 | AD15: 1 | AE15: 1 | AF15: 1.25 | AG15: 1.177 | AH15: -0.1 | AI15: -0.1125 | AJ15: -0.125 | AK15: -0.1 | AL15: -0.1 | AM15: =Y15*C15+($A$4-80)*AF15*$A$12/1000 -> 24.91525424 | AN15: =Z15*E15+($A$4-80)*AG15*$A$12/1000 -> 24.71186441 | AO15: =AA15*G15+($A$4-80)*AH15*$A$12/1000 -> 24.10169492 | AP15: =AB15*I15+($A$4-80)*AI15*$A$12/1000 -> 23.54237288 | AQ15: =AC15*K15+($A$4-80)*AJ15*$A$12/1000 -> 22.98305085 | AR15: =AD15*M15+($A$4-80)*AK15*$A$12/1000 -> 21.66101695 | AS15: =AE15*O15+($A$4-80)*AL15*$A$12/1000 -> 20.44067797
A16: 900 | B16: 71 | C16: 27.55932203 | D16: 16.53559322 | E16: 27.3559322 | F16: 16.41355932 | G16: 26.74576271 | H16: 16.04745763 | I16: 26.18644068 | J16: 15.71186441 | K16: 25.62711864 | L16: 15.37627119 | M16: 24.30508475 | N16: 17.01355932 | O16: 23.18644068 | P16: 16.23050847 | R16: 1.148305085 | S16: 1.139830508 | T16: 1.11440678 | U16: 1.091101695 | V16: 1.06779661 | W16: 1.012711864 | X16: 0.9661016949 | Y16: 0.6 | Z16: 0.6 | AA16: 0.6 | AB16: 0.6 | AC16: 0.6 | AD16: 0.7 | AE16: 0.7 | AF16: 0.7817777778 | AG16: 0.7755555556 | AH16: 0.5775555556 | AI16: 0.5055555556 | AJ16: 0.436 | AK16: 0.844 | AL16: 0.608 | AM16: =Y16*C16+($A$4-80)*AF16*$A$16/1000 -> 16.53559322 | AN16: =Z16*E16+($A$4-80)*AG16*$A$16/1000 -> 16.41355932 | AO16: =AA16*G16+($A$4-80)*AH16*$A$16/1000 -> 16.04745763 | AP16: =AB16*I16+($A$4-80)*AI16*$A$16/1000 -> 15.71186441 | AQ16: =AC16*K16+($A$4-80)*AJ16*$A$16/1000 -> 15.37627119 | AR16: =AD16*M16+($A$4-80)*AK16*$A$16/1000 -> 17.01355932 | AS16: =AE16*O16+($A$4-80)*AL16*$A$16/1000 -> 16.23050847
B17: 67 | C17: 26.54237288 | D17: 18.57966102 | E17: 26.23728814 | F17: 18.36610169 | G17: 25.62711864 | H17: 17.93898305 | I17: 25.11864407 | J17: 18.83898305 | K17: 24.61016949 | L17: 19.68813559 | M17: 23.28813559 | N17: 18.63050847 | O17: 22.06779661 | P17: 17.65423729 | R17: 1.105932203 | S17: 1.093220339 | T17: 1.06779661 | U17: 1.046610169 | V17: 1.025423729 | W17: 0.9703389831 | X17: 0.9194915254 | Y17: 0.7 | Z17: 0.7 | AA17: 0.7 | AB17: 0.75 | AC17: 0.8 | AD17: 0.8 | AE17: 0.8 | AF17: 0.5724444444 | AG17: 0.4933333333 | AH17: 0.3653333333 | AI17: 0.5816666667 | AJ17: 0.7893333333 | AK17: 0.6537777778 | AL17: 0.3708888889 | AM17: =Y17*C17+($A$4-80)*AF17*$A$16/1000 -> 18.57966102 | AN17: =Z17*E17+($A$4-80)*AG17*$A$16/1000 -> 18.36610169 | AO17: =AA17*G17+($A$4-80)*AH17*$A$16/1000 -> 17.93898305 | AP17: =AB17*I17+($A$4-80)*AI17*$A$16/1000 -> 18.83898305 | AQ17: =AC17*K17+($A$4-80)*AJ17*$A$16/1000 -> 19.68813559 | AR17: =AD17*M17+($A$4-80)*AK17*$A$16/1000 -> 18.63050847 | AS17: =AE17*O17+($A$4-80)*AL17*$A$16/1000 -> 17.65423729
B18: 63 | C18: 25.72881356 | D18: 20.58305085 | E18: 25.52542373 | F18: 22.97288136 | G18: 24.91525424 | H18: 22.42372881 | I18: 24.40677966 | J18: 23.18644068 | K18: 23.89830508 | L18: 23.89830508 | M18: 22.57627119 | N18: 22.57627119 | O18: 21.3559322 | P18: 21.3559322 | R18: 1.072033898 | S18: 1.063559322 | T18: 1.038135593 | U18: 1.016949153 | V18: 0.9957627119 | W18: 0.9406779661 | X18: 0.8898305085 | Y18: 0.8 | Z18: 0.9 | AA18: 0.9 | AB18: 0.95 | AC18: 1 | AD18: 1 | AE18: 1 | AF18: 0.3537777778 | AG18: 0.8508888889 | AH18: 0.7333333333 | AI18: 0.9373333333 | AJ18: 1.132666667 | AK18: 0.9657777778 | AL18: -0.08888888889 | AM18: =Y18*C18+($A$4-80)*AF18*$A$16/1000 -> 20.58305085 | AN18: =Z18*E18+($A$4-80)*AG18*$A$16/1000 -> 22.97288136 | AO18: =AA18*G18+($A$4-80)*AH18*$A$16/1000 -> 22.42372881 | AP18: =AB18*I18+($A$4-80)*AI18*$A$16/1000 -> 23.18644068 | AQ18: =AC18*K18+($A$4-80)*AJ18*$A$16/1000 -> 23.89830508 | AR18: =AD18*M18+($A$4-80)*AK18*$A$16/1000 -> 22.57627119 | AS18: =AE18*O18+($A$4-80)*AL18*$A$16/1000 -> 21.3559322
B19: 59 | C19: 25.42372881 | D19: 25.42372881 | E19: 25.22033898 | F19: 25.22033898 | G19: 24.61016949 | H19: 24.61016949 | I19: 24.05084746 | J19: 24.05084746 | K19: 23.49152542 | L19: 23.49152542 | M19: 22.16949153 | N19: 22.16949153 | O19: 20.94915254 | P19: 20.94915254 | R19: 1.059322034 | S19: 1.050847458 | T19: 1.025423729 | U19: 1.002118644 | V19: 0.9788135593 | W19: 0.9237288136 | X19: 0.8728813559 | Y19: 1 | Z19: 1 | AA19: 1 | AB19: 1 | AC19: 1 | AD19: 1 | AE19: 1 | AF19: 1.078888889 | AG19: -0.1111111111 | AH19: -0.1111111111 | AI19: -0.1111111111 | AJ19: -0.1111111111 | AK19: -0.1111111111 | AL19: -0.1111111111 | AM19: =Y19*C19+($A$4-80)*AF19*$A$16/1000 -> 25.42372881 | AN19: =Z19*E19+($A$4-80)*AG19*$A$16/1000 -> 25.22033898 | AO19: =AA19*G19+($A$4-80)*AH19*$A$16/1000 -> 24.61016949 | AP19: =AB19*I19+($A$4-80)*AI19*$A$16/1000 -> 24.05084746 | AQ19: =AC19*K19+($A$4-80)*AJ19*$A$16/1000 -> 23.49152542 | AR19: =AD19*M19+($A$4-80)*AK19*$A$16/1000 -> 22.16949153 | AS19: =AE19*O19+($A$4-80)*AL19*$A$16/1000 -> 20.94915254

Sheet GSX140_25 (hidden)
A2: GSX140_25
A3: Evaporator Air | C3: Condenser Entering Air Temperature ˚F
A4: 80 | B4: °F DB | C4: 65 | E4: 75 | G4: 85 | I4: 90 | K4: 95 | M4: 105 | O4: 115
A5: CFM | B5: EWB† ˚F | C5: Capacity Mbtuh | E5: Capacity Mbtuh | G5: Capacity Mbtuh | I5: Capacity Mbtuh | K5: Capacity Mbtuh | M5: Capacity Mbtuh | O5: Capacity Mbtuh
C6: Total | D6: Sens. | E6: Total | F6: Sens. | G6: Total | H6: Sens. | I6: Total | J6: Sens. | K6: Total | L6: Sens. | M6: Total | N6: Sens. | O6: Total | P6: Sens.
R7: Total Factors | Y7: Sens. % | AF7: IDB Adj | AM7: Sens Calc
A8: 700 | B8: 71 | C8: =R8*$K$13 -> 26.5785124 | D8: =IF(AM8>C8,C8,AM8) -> 13.2892562 | E8: =S8*$K$13 -> 26.38016529 | F8: =IF(AN8>E8,E8,AN8) -> 14.24528926 | G8: =T8*$K$13 -> 25.78512397 | H8: =IF(AO8>G8,G8,AO8) -> 15.47107438 | I8: =U8*$K$13 -> 25.23966942 | J8: =IF(AP8>I8,I8,AP8) -> 14.89140496 | K8: =V8*$K$13 -> 24.69421488 | L8: =IF(AQ8>K8,K8,AQ8) -> 14.32264463 | M8: =W8*$K$13 -> 23.40495868 | N8: =IF(AR8>M8,M8,AR8) -> 14.04297521 | O8: =X8*$K$13 -> 22.21487603 | P8: =IF(AS8>O8,O8,AS8) -> 14.43966942 | R8: 1.107438017 | S8: 1.099173554 | T8: 1.074380165 | U8: 1.051652893 | V8: 1.02892562 | W8: 0.9752066116 | X8: 0.9256198347 | Y8: 0.5 | Z8: 0.54 | AA8: 0.6 | AB8: 0.59 | AC8: 0.58 | AD8: 0.6 | AE8: 0.65 | AF8: 0.6245714286 | AG8: 0.924 | AH8: 1.201142857 | AI8: 1.030857143 | AJ8: 0.8668571429 | AK8: 0.8365714286 | AL8: 0.7982857143 | AM8: =Y8*C8+($A$4-80)*AF8*$A$8/1000 -> 13.2892562 | AN8: =Z8*E8+($A$4-80)*AG8*$A$8/1000 -> 14.24528926 | AO8: =AA8*G8+($A$4-80)*AH8*$A$8/1000 -> 15.47107438 | AP8: =AB8*I8+($A$4-80)*AI8*$A$8/1000 -> 14.89140496 | AQ8: =AC8*K8+($A$4-80)*AJ8*$A$8/1000 -> 14.32264463 | AR8: =AD8*M8+($A$4-80)*AK8*$A$8/1000 -> 14.04297521 | AS8: =AE8*O8+($A$4-80)*AL8*$A$8/1000 -> 14.43966942
B9: 67 | C9: 25.48760331 | D9: 17.07669421 | E9: 25.2892562 | F9: 16.94380165 | G9: 24.69421488 | H9: 17.28595041 | I9: 24.14876033 | J9: 17.14561983 | K9: =V9*$K$13 -> 23.60330579 | L9: 16.99438017 | M9: 22.31404959 | N9: 16.51239669 | O9: 21.12396694 | P9: 16.68793388 | R9: 1.061983471 | S9: 1.053719008 | T9: 1.02892562 | U9: 1.006198347 | V9: 0.9834710744 | W9: 0.9297520661 | X9: 0.8801652893 | Y9: 0.67 | Z9: 0.67 | AA9: 0.7 | AB9: 0.71 | AC9: 0.72 | AD9: 0.74 | AE9: 0.79 | AF9: 0.8968571429 | AG9: 0.8174285714 | AH9: 0.8702857143 | AI9: 0.8517142857 | AJ9: 0.8331428571 | AK9: 0.8068571429 | AL9: 0.7685714286 | AM9: =Y9*C9+($A$4-80)*AF9*$A$8/1000 -> 17.07669421 | AN9: =Z9*E9+($A$4-80)*AG9*$A$8/1000 -> 16.94380165 | AO9: =AA9*G9+($A$4-80)*AH9*$A$8/1000 -> 17.28595041 | AP9: =AB9*I9+($A$4-80)*AI9*$A$8/1000 -> 17.14561983 | AQ9: =AC9*K9+($A$4-80)*AJ9*$A$8/1000 -> 16.99438017 | AR9: =AD9*M9+($A$4-80)*AK9*$A$8/1000 -> 16.51239669 | AS9: =AE9*O9+($A$4-80)*AL9*$A$8/1000 -> 16.68793388
B10: 63 | C10: 24.79338843 | D10: 19.83471074 | E10: 24.59504132 | F10: 19.67603306 | G10: 24 | H10: 19.92 | I10: 23.45454545 | J10: 19.58454545 | K10: =V10*$K$13 -> 22.90909091 | L10: 19.24363636 | M10: 21.52066116 | N10: 21.52066116 | O10: 20.33057851 | P10: 20.33057851 | R10: 1.033057851 | S10: 1.024793388 | T10: 1 | U10: 0.9772727273 | V10: 0.9545454545 | W10: 0.8966942149 | X10: 0.847107438 | Y10: 0.8 | Z10: 0.8 | AA10: 0.83 | AB10: 0.835 | AC10: 0.84 | AD10: 1 | AE10: 1 | AF10: 0.8765714286 | AG10: 0.8697142857 | AH10: 0.8702857143 | AI10: 0.8079285714 | AJ10: 0.7468571429 | AK10: 1.571428571 | AL10: 1.194285714 | AM10: =Y10*C10+($A$4-80)*AF10*$A$8/1000 -> 19.83471074 | AN10: =Z10*E10+($A$4-80)*AG10*$A$8/1000 -> 19.67603306 | AO10: =AA10*G10+($A$4-80)*AH10*$A$8/1000 -> 19.92 | AP10: =AB10*I10+($A$4-80)*AI10*$A$8/1000 -> 19.58454545 | AQ10: =AC10*K10+($A$4-80)*AJ10*$A$8/1000 -> 19.24363636 | AR10: =AD10*M10+($A$4-80)*AK10*$A$8/1000 -> 21.52066116 | AS10: =AE10*O10+($A$4-80)*AL10*$A$8/1000 -> 20.33057851
B11: 59 | C11: 24.49586777 | D11: 21.31140496 | E11: 24.29752066 | F11: 24.29752066 | G11: 23.60330579 | H11: 23.60330579 | I11: 23.05785124 | J11: 23.05785124 | K11: =V11*$K$13 -> 22.51239669 | L11: 22.51239669 | M11: 21.2231405 | N11: 21.2231405 | O11: 20.03305785 | P11: 20.03305785 | R11: 1.020661157 | S11: 1.012396694 | T11: 0.9834710744 | U11: 0.9607438017 | V11: 0.9380165289 | W11: 0.8842975207 | X11: 0.8347107438 | Y11: 0.87 | Z11: 1 | AA11: 1 | AB11: 1 | AC11: 1 | AD11: 1 | AE11: 1 | AF11: 0.8897142857 | AG11: 1.723428571 | AH11: 0.02857142857 | AI11: 0.02857142857 | AJ11: 0.02857142857 | AK11: 0.02857142857 | AL11: 0.02857142857 | AM11: =Y11*C11+($A$4-80)*AF11*$A$8/1000 -> 21.31140496 | AN11: =Z11*E11+($A$4-80)*AG11*$A$8/1000 -> 24.29752066 | AO11: =AA11*G11+($A$4-80)*AH11*$A$8/1000 -> 23.60330579 | AP11: =AB11*I11+($A$4-80)*AI11*$A$8/1000 -> 23.05785124 | AQ11: =AC11*K11+($A$4-80)*AJ11*$A$8/1000 -> 22.51239669 | AR11: =AD11*M11+($A$4-80)*AK11*$A$8/1000 -> 21.2231405 | AS11: =AE11*O11+($A$4-80)*AL11*$A$8/1000 -> 20.03305785
A12: 800 | B12: 71 | C12: 27.07438017 | D12: 16.2446281 | E12: 26.87603306 | F12: 15.31933884 | G12: 26.18181818 | H12: 15.70909091 | I12: 25.63636364 | J12: 15.63818182 | K12: =V12*$K$13 -> 25.09090909 | L12: 15.55636364 | M12: 23.80165289 | N12: 14.28099174 | O12: 22.61157025 | P12: 15.60198347 | R12: 1.128099174 | S12: 1.119834711 | T12: 1.090909091 | U12: 1.068181818 | V12: 1.045454545 | W12: 0.9917355372 | X12: 0.9421487603 | Y12: 0.6 | Z12: 0.57 | AA12: 0.6 | AB12: 0.61 | AC12: 0.62 | AD12: 0.6 | AE12: 0.69 | AF12: 1.035 | AG12: 0.76825 | AH12: 0.804 | AI12: 0.78775 | AJ12: 0.7715 | AK12: 0.493 | AL12: 0.69825 | AM12: =Y12*C12+($A$4-80)*AF12*$A$12/1000 -> 16.2446281 | AN12: =Z12*E12+($A$4-80)*AG12*$A$12/1000 -> 15.31933884 | AO12: =AA12*G12+($A$4-80)*AH12*$A$12/1000 -> 15.70909091 | AP12: =AB12*I12+($A$4-80)*AI12*$A$12/1000 -> 15.63818182 | AQ12: =AC12*K12+($A$4-80)*AJ12*$A$12/1000 -> 15.55636364 | AR12: =AD12*M12+($A$4-80)*AK12*$A$12/1000 -> 14.28099174 | AS12: =AE12*O12+($A$4-80)*AL12*$A$12/1000 -> 15.60198347
B13: 67 | C13: 25.98347107 | D13: 18.18842975 | E13: 25.78512397 | F13: 18.30743802 | G13: 25.09090909 | H13: 18.31636364 | I13: 24.54545455 | J13: 18.16363636 | K13: 24 | L13: 18 | M13: 22.7107438 | N13: 17.48727273 | O13: 21.52066116 | P13: 17.64694215 | R13: 1.082644628 | S13: 1.074380165 | T13: 1.045454545 | U13: 1.022727273 | V13: 1 | W13: 0.9462809917 | X13: 0.8966942149 | Y13: 0.7 | Z13: 0.71 | AA13: 0.73 | AB13: 0.74 | AC13: 0.75 | AD13: 0.77 | AE13: 0.82 | AF13: 0.8005 | AG13: 0.8095 | AH13: 0.77425 | AI13: 0.758 | AJ13: 0.74175 | AK13: 0.70325 | AL13: 0.6685 | AM13: =Y13*C13+($A$4-80)*AF13*$A$12/1000 -> 18.18842975 | AN13: =Z13*E13+($A$4-80)*AG13*$A$12/1000 -> 18.30743802 | AO13: =AA13*G13+($A$4-80)*AH13*$A$12/1000 -> 18.31636364 | AP13: =AB13*I13+($A$4-80)*AI13*$A$12/1000 -> 18.16363636 | AQ13: =AC13*K13+($A$4-80)*AJ13*$A$12/1000 -> 18 | AR13: =AD13*M13+($A$4-80)*AK13*$A$12/1000 -> 17.48727273 | AS13: =AE13*O13+($A$4-80)*AL13*$A$12/1000 -> 17.64694215
B14: 63 | C14: 25.2892562 | D14: 20.99008264 | E14: 24.99173554 | F14: 20.99305785 | G14: 24.39669421 | H14: 20.98115702 | I14: 23.85123967 | J14: 20.75057851 | K14: =V14*$K$13 -> 23.30578512 | L14: 20.50909091 | M14: 22.01652893 | N14: 22.01652893 | O14: 20.82644628 | P14: 20.82644628 | R14: 1.053719008 | S14: 1.041322314 | T14: 1.016528926 | U14: 0.9938016529 | V14: 0.9710743802 | W14: 0.9173553719 | X14: 0.867768595 | Y14: 0.83 | Z14: 0.84 | AA14: 0.86 | AB14: 0.87 | AC14: 0.88 | AD14: 1 | AE14: 1 | AF14: 0.8005 | AG14: 0.774 | AH14: 0.7565 | AI14: 0.74025 | AJ14: 0.724 | AK14: 1.2405 | AL14: 0.025 | AM14: =Y14*C14+($A$4-80)*AF14*$A$12/1000 -> 20.99008264 | AN14: =Z14*E14+($A$4-80)*AG14*$A$12/1000 -> 20.99305785 | AO14: =AA14*G14+($A$4-80)*AH14*$A$12/1000 -> 20.98115702 | AP14: =AB14*I14+($A$4-80)*AI14*$A$12/1000 -> 20.75057851 | AQ14: =AC14*K14+($A$4-80)*AJ14*$A$12/1000 -> 20.50909091 | AR14: =AD14*M14+($A$4-80)*AK14*$A$12/1000 -> 22.01652893 | AS14: =AE14*O14+($A$4-80)*AL14*$A$12/1000 -> 20.82644628
B15: 59 | C15: 24.89256198 | D15: 24.89256198 | E15: 24.69421488 | F15: 24.69421488 | G15: 24.09917355 | H15: 24.09917355 | I15: 23.55371901 | J15: 23.55371901 | K15: 23.00826446 | L15: 23.00826446 | M15: 21.61983471 | N15: 21.61983471 | O15: 20.42975207 | P15: 20.42975207 | R15: 1.037190083 | S15: 1.02892562 | T15: 1.004132231 | U15: 0.9814049587 | V15: 0.958677686 | W15: 0.9008264463 | X15: 0.8512396694 | Y15: 1 | Z15: 1 | AA15: 1 | AB15: 1 | AC15: 1 | AD15: 1 | AE15: 1 | AF15: 1.4 | AG15: 1.327 | AH15: 0.05 | AI15: 0.0375 | AJ15: 0.025 | AK15: 0.025 | AL15: 0.025 | AM15: =Y15*C15+($A$4-80)*AF15*$A$12/1000 -> 24.89256198 | AN15: =Z15*E15+($A$4-80)*AG15*$A$12/1000 -> 24.69421488 | AO15: =AA15*G15+($A$4-80)*AH15*$A$12/1000 -> 24.09917355 | AP15: =AB15*I15+($A$4-80)*AI15*$A$12/1000 -> 23.55371901 | AQ15: =AC15*K15+($A$4-80)*AJ15*$A$12/1000 -> 23.00826446 | AR15: =AD15*M15+($A$4-80)*AK15*$A$12/1000 -> 21.61983471 | AS15: =AE15*O15+($A$4-80)*AL15*$A$12/1000 -> 20.42975207
A16: 900 | B16: 71 | C16: 27.57024793 | D16: 16.54214876 | E16: 27.37190083 | F16: 15.87570248 | G16: 26.7768595 | H16: 16.0661157 | I16: 26.23140496 | J16: 16.00115702 | K16: 25.68595041 | L16: 15.92528926 | M16: 24.39669421 | N16: 14.63801653 | O16: 23.10743802 | P16: 15.94413223 | R16: 1.148760331 | S16: 1.140495868 | T16: 1.115702479 | U16: 1.092975207 | V16: 1.070247934 | W16: 1.016528926 | X16: 0.9628099174 | Y16: 0.6 | Z16: 0.58 | AA16: 0.6 | AB16: 0.61 | AC16: 0.62 | AD16: 0.6 | AE16: 0.69 | AF16: 0.8751111111 | AG16: 0.7462222222 | AH16: 0.6708888889 | AI16: 0.6576666667 | AJ16: 0.6444444444 | AK16: 0.4062222222 | AL16: 0.634 | AM16: =Y16*C16+($A$4-80)*AF16*$A$16/1000 -> 16.54214876 | AN16: =Z16*E16+($A$4-80)*AG16*$A$16/1000 -> 15.87570248 | AO16: =AA16*G16+($A$4-80)*AH16*$A$16/1000 -> 16.0661157 | AP16: =AB16*I16+($A$4-80)*AI16*$A$16/1000 -> 16.00115702 | AQ16: =AC16*K16+($A$4-80)*AJ16*$A$16/1000 -> 15.92528926 | AR16: =AD16*M16+($A$4-80)*AK16*$A$16/1000 -> 14.63801653 | AS16: =AE16*O16+($A$4-80)*AL16*$A$16/1000 -> 15.94413223
B17: 67 | C17: 26.47933884 | D17: 18.80033058 | E17: 26.28099174 | F17: 18.92231405 | G17: 25.68595041 | H17: 19.00760331 | I17: 25.14049587 | J17: 18.8553719 | K17: 24.59504132 | L17: 18.6922314 | M17: 23.30578512 | N17: 18.1785124 | O17: 22.01652893 | P17: 18.27371901 | R17: 1.103305785 | S17: 1.095041322 | T17: 1.070247934 | U17: 1.047520661 | V17: 1.024793388 | W17: 0.9710743802 | X17: 0.9173553719 | Y17: 0.71 | Z17: 0.72 | AA17: 0.74 | AB17: 0.75 | AC17: 0.76 | AD17: 0.78 | AE17: 0.83 | AF17: 0.7251111111 | AG17: 0.72 | AH17: 0.7044444444 | AI17: 0.69 | AJ17: 0.6755555556 | AK17: 0.656 | AL17: 0.6077777778 | AM17: =Y17*C17+($A$4-80)*AF17*$A$16/1000 -> 18.80033058 | AN17: =Z17*E17+($A$4-80)*AG17*$A$16/1000 -> 18.92231405 | AO17: =AA17*G17+($A$4-80)*AH17*$A$16/1000 -> 19.00760331 | AP17: =AB17*I17+($A$4-80)*AI17*$A$16/1000 -> 18.8553719 | AQ17: =AC17*K17+($A$4-80)*AJ17*$A$16/1000 -> 18.6922314 | AR17: =AD17*M17+($A$4-80)*AK17*$A$16/1000 -> 18.1785124 | AS17: =AE17*O17+($A$4-80)*AL17*$A$16/1000 -> 18.27371901
B18: 63 | C18: 25.78512397 | D18: 21.65950413 | E18: 25.58677686 | F18: 21.49289256 | G18: 24.99173554 | H18: 21.74280992 | I18: 24.44628099 | J18: 22.85727273 | K18: 23.90082645 | L18: 23.90082645 | M18: 22.51239669 | N18: 22.51239669 | O18: 21.32231405 | P18: 21.32231405 | R18: 1.074380165 | S18: 1.066115702 | T18: 1.041322314 | U18: 1.018595041 | V18: 0.9958677686 | W18: 0.9380165289 | X18: 0.8884297521 | Y18: 0.84 | Z18: 0.84 | AA18: 0.87 | AB18: 0.935 | AC18: 1 | AD18: 1 | AE18: 1 | AF18: 0.7093333333 | AG18: 0.6468888889 | AH18: 0.7053333333 | AI18: 0.9923888889 | AJ18: 1.266 | AK18: 1.076888889 | AL18: 0.02222222222 | AM18: =Y18*C18+($A$4-80)*AF18*$A$16/1000 -> 21.65950413 | AN18: =Z18*E18+($A$4-80)*AG18*$A$16/1000 -> 21.49289256 | AO18: =AA18*G18+($A$4-80)*AH18*$A$16/1000 -> 21.74280992 | AP18: =AB18*I18+($A$4-80)*AI18*$A$16/1000 -> 22.85727273 | AQ18: =AC18*K18+($A$4-80)*AJ18*$A$16/1000 -> 23.90082645 | AR18: =AD18*M18+($A$4-80)*AK18*$A$16/1000 -> 22.51239669 | AS18: =AE18*O18+($A$4-80)*AL18*$A$16/1000 -> 21.32231405
B19: 59 | C19: 25.48760331 | D19: 25.48760331 | E19: 25.19008264 | F19: 25.19008264 | G19: 24.59504132 | H19: 24.59504132 | I19: 24.04958678 | J19: 24.04958678 | K19: 23.50413223 | L19: 23.50413223 | M19: 22.21487603 | N19: 22.21487603 | O19: 21.02479339 | P19: 21.02479339 | R19: 1.061983471 | S19: 1.049586777 | T19: 1.024793388 | U19: 1.002066116 | V19: 0.979338843 | W19: 0.9256198347 | X19: 0.8760330579 | Y19: 1 | Z19: 1 | AA19: 1 | AB19: 1 | AC19: 1 | AD19: 1 | AE19: 1 | AF19: 1.234444444 | AG19: 0.02222222222 | AH19: 0.02222222222 | AI19: 0.02222222222 | AJ19: 0.02222222222 | AK19: 0.02222222222 | AL19: 0.02222222222 | AM19: =Y19*C19+($A$4-80)*AF19*$A$16/1000 -> 25.48760331 | AN19: =Z19*E19+($A$4-80)*AG19*$A$16/1000 -> 25.19008264 | AO19: =AA19*G19+($A$4-80)*AH19*$A$16/1000 -> 24.59504132 | AP19: =AB19*I19+($A$4-80)*AI19*$A$16/1000 -> 24.04958678 | AQ19: =AC19*K19+($A$4-80)*AJ19*$A$16/1000 -> 23.50413223 | AR19: =AD19*M19+($A$4-80)*AK19*$A$16/1000 -> 22.21487603 | AS19: =AE19*O19+($A$4-80)*AL19*$A$16/1000 -> 21.02479339

Sheet GSX140_30 (hidden)
A2: GSX140_30
A3: Evaporator Air | C3: Condenser Entering Air Temperature ˚F
A4: 80 | B4: °F DB | C4: 65 | E4: 75 | G4: 85 | I4: 90 | K4: 95 | M4: 105 | O4: 115
A5: CFM | B5: EWB† ˚F | C5: Capacity Mbtuh | E5: Capacity Mbtuh | G5: Capacity Mbtuh | I5: Capacity Mbtuh | K5: Capacity Mbtuh | M5: Capacity Mbtuh | O5: Capacity Mbtuh
C6: Total | D6: Sens. | E6: Total | F6: Sens. | G6: Total | H6: Sens. | I6: Total | J6: Sens. | K6: Total | L6: Sens. | M6: Total | N6: Sens. | O6: Total | P6: Sens.
R7: Total Factors | Y7: Sens. % | AF7: IDB Adj | AM7: Sens Calc
A8: 875 | B8: 71 | C8: =R8*$K$13 -> 26.75 | D8: =IF(AM8>C8,C8,AM8) -> 13.375 | E8: =S8*$K$13 -> 26.5 | F8: =IF(AN8>E8,E8,AN8) -> 13.25 | G8: =T8*$K$13 -> 25.91666667 | H8: =IF(AO8>G8,G8,AO8) -> 12.95833333 | I8: =U8*$K$13 -> 25.375 | J8: =IF(AP8>I8,I8,AP8) -> 13.195 | K8: =V8*$K$13 -> 24.83333333 | L8: =IF(AQ8>K8,K8,AQ8) -> 13.41 | M8: =W8*$K$13 -> 23.41666667 | N8: =IF(AR8>M8,M8,AR8) -> 14.05 | O8: =X8*$K$13 -> 22.25 | P8: =IF(AS8>O8,O8,AS8) -> 13.5725 | R8: 1.114583333 | S8: 1.104166667 | T8: 1.079861111 | U8: 1.057291667 | V8: 1.034722222 | W8: 0.9756944444 | X8: 0.9270833333 | Y8: 0.5 | Z8: 0.5 | AA8: 0.5 | AB8: 0.52 | AC8: 0.54 | AD8: 0.6 | AE8: 0.61 | AF8: 0.9707428571 | AG8: 0.8809142857 | AH8: 0.7291428571 | AI8: 0.7843428571 | AJ8: 0.8365714286 | AK8: 1.037714286 | AL8: 0.7547428571 | AM8: =Y8*C8+($A$4-80)*AF8*$A$8/1000 -> 13.375 | AN8: =Z8*E8+($A$4-80)*AG8*$A$8/1000 -> 13.25 | AO8: =AA8*G8+($A$4-80)*AH8*$A$8/1000 -> 12.95833333 | AP8: =AB8*I8+($A$4-80)*AI8*$A$8/1000 -> 13.195 | AQ8: =AC8*K8+($A$4-80)*AJ8*$A$8/1000 -> 13.41 | AR8: =AD8*M8+($A$4-80)*AK8*$A$8/1000 -> 14.05 | AS8: =AE8*O8+($A$4-80)*AL8*$A$8/1000 -> 13.5725
B9: 67 | C9: 25.66666667 | D9: 16.17 | E9: 25.41666667 | F9: 16.26666667 | G9: 24.75 | H9: 16.335 | I9: 24.20833333 | J9: 16.21958333 | K9: =V9*$K$13 -> 23.66666667 | L9: 16.09333333 | M9: 22.33333333 | N9: 15.63333333 | O9: 21.08333333 | P9: 15.8125 | R9: 1.069444444 | S9: 1.059027778 | T9: 1.03125 | U9: 1.008680556 | V9: 0.9861111111 | W9: 0.9305555556 | X9: 0.8784722222 | Y9: 0.63 | Z9: 0.64 | AA9: 0.66 | AB9: 0.67 | AC9: 0.68 | AD9: 0.7 | AE9: 0.75 | AF9: 0.8681142857 | AG9: 0.8603428571 | AH9: 0.8269714286 | AI9: 0.8093714286 | AJ9: 0.7917714286 | AK9: 0.7483428571 | AL9: 0.7083428571 | AM9: =Y9*C9+($A$4-80)*AF9*$A$8/1000 -> 16.17 | AN9: =Z9*E9+($A$4-80)*AG9*$A$8/1000 -> 16.26666667 | AO9: =AA9*G9+($A$4-80)*AH9*$A$8/1000 -> 16.335 | AP9: =AB9*I9+($A$4-80)*AI9*$A$8/1000 -> 16.21958333 | AQ9: =AC9*K9+($A$4-80)*AJ9*$A$8/1000 -> 16.09333333 | AR9: =AD9*M9+($A$4-80)*AK9*$A$8/1000 -> 15.63333333 | AS9: =AE9*O9+($A$4-80)*AL9*$A$8/1000 -> 15.8125
B10: 63 | C10: 24.91666667 | D10: 19.18583333 | E10: 24.66666667 | F10: 18.99333333 | G10: 24.08333333 | H10: 19.26666667 | I10: 23.5 | J10: 21.15 | K10: =V10*$K$13 -> 22.91666667 | L10: 22.91666667 | M10: 21.58333333 | N10: 21.58333333 | O10: 20.41666667 | P10: 20.41666667 | R10: 1.038194444 | S10: 1.027777778 | T10: 1.003472222 | U10: 0.9791666667 | V10: 0.9548611111 | W10: 0.8993055556 | X10: 0.8506944444 | Y10: 0.77 | Z10: 0.77 | AA10: 0.8 | AB10: 0.9 | AC10: 1 | AD10: 1 | AE10: 1 | AF10: 0.9177142857 | AG10: 0.8267428571 | AH10: 0.8893714286 | AI10: 1.441371429 | AJ10: 1.964342857 | AK10: 1.733028571 | AL10: 0.04571428571 | AM10: =Y10*C10+($A$4-80)*AF10*$A$8/1000 -> 19.18583333 | AN10: =Z10*E10+($A$4-80)*AG10*$A$8/1000 -> 18.99333333 | AO10: =AA10*G10+($A$4-80)*AH10*$A$8/1000 -> 19.26666667 | AP10: =AB10*I10+($A$4-80)*AI10*$A$8/1000 -> 21.15 | AQ10: =AC10*K10+($A$4-80)*AJ10*$A$8/1000 -> 22.91666667 | AR10: =AD10*M10+($A$4-80)*AK10*$A$8/1000 -> 21.58333333 | AS10: =AE10*O10+($A$4-80)*AL10*$A$8/1000 -> 20.41666667
B11: 59 | C11: 24.58333333 | D11: 24.58333333 | E11: 24.33333333 | F11: 24.33333333 | G11: 23.66666667 | H11: 23.66666667 | I11: 23.125 | J11: 23.125 | K11: =V11*$K$13 -> 22.58333333 | L11: 22.58333333 | M11: 21.25 | N11: 21.25 | O11: 20 | P11: 20 | R11: 1.024305556 | S11: 1.013888889 | T11: 0.9861111111 | U11: 0.9635416667 | V11: 0.9409722222 | W11: 0.8854166667 | X11: 0.8333333333 | Y11: 1 | Z11: 1 | AA11: 1 | AB11: 1 | AC11: 1 | AD11: 1 | AE11: 1 | AF11: 1.920914286 | AG11: 1.885257143 | AH11: 0.02285714286 | AI11: 0.02285714286 | AJ11: 0.02285714286 | AK11: 0.02285714286 | AL11: 0.02285714286 | AM11: =Y11*C11+($A$4-80)*AF11*$A$8/1000 -> 24.58333333 | AN11: =Z11*E11+($A$4-80)*AG11*$A$8/1000 -> 24.33333333 | AO11: =AA11*G11+($A$4-80)*AH11*$A$8/1000 -> 23.66666667 | AP11: =AB11*I11+($A$4-80)*AI11*$A$8/1000 -> 23.125 | AQ11: =AC11*K11+($A$4-80)*AJ11*$A$8/1000 -> 22.58333333 | AR11: =AD11*M11+($A$4-80)*AK11*$A$8/1000 -> 21.25 | AS11: =AE11*O11+($A$4-80)*AL11*$A$8/1000 -> 20
A12: 1000 | B12: 71 | C12: 27.08333333 | D12: 16.25 | E12: 26.83333333 | F12: 15.02666667 | G12: 26.25 | H12: 15.75 | I12: 25.66666667 | J12: 15.4 | K12: =V12*$K$13 -> 25.08333333 | L12: 15.05 | M12: 23.75 | N12: 14.25 | O12: 22.58333333 | P12: 15.13083333 | R12: 1.128472222 | S12: 1.118055556 | T12: 1.09375 | U12: 1.069444444 | V12: 1.045138889 | W12: 0.9895833333 | X12: 0.9409722222 | Y12: 0.6 | Z12: 0.56 | AA12: 0.6 | AB12: 0.6 | AC12: 0.6 | AD12: 0.6 | AE12: 0.67 | AF12: 1.1222 | AG12: 0.7816 | AH12: 0.9004 | AI12: 0.8149 | AJ12: 0.732 | AK12: 0.58 | AL12: 0.6724 | AM12: =Y12*C12+($A$4-80)*AF12*$A$12/1000 -> 16.25 | AN12: =Z12*E12+($A$4-80)*AG12*$A$12/1000 -> 15.02666667 | AO12: =AA12*G12+($A$4-80)*AH12*$A$12/1000 -> 15.75 | AP12: =AB12*I12+($A$4-80)*AI12*$A$12/1000 -> 15.4 | AQ12: =AC12*K12+($A$4-80)*AJ12*$A$12/1000 -> 15.05 | AR12: =AD12*M12+($A$4-80)*AK12*$A$12/1000 -> 14.25 | AS12: =AE12*O12+($A$4-80)*AL12*$A$12/1000 -> 15.13083333
B13: 67 | C13: 25.91666667 | D13: 17.8825 | E13: 25.75 | F13: 18.025 | G13: 25.08333333 | H13: 18.06 | I13: 24.54166667 | J13: 17.91541667 | K13: 24 | L13: 17.76 | M13: 22.66666667 | N13: 17.22666667 | O13: 21.41666667 | P13: 17.3475 | R13: 1.079861111 | S13: 1.072916667 | T13: 1.045138889 | U13: 1.022569444 | V13: 1 | W13: 0.9444444444 | X13: 0.8923611111 | Y13: 0.69 | Z13: 0.7 | AA13: 0.72 | AB13: 0.73 | AC13: 0.74 | AD13: 0.76 | AE13: 0.81 | AF13: 0.7578 | AG13: 0.7648 | AH13: 0.7344 | AI13: 0.7251 | AJ13: 0.716 | AK13: 0.6784 | AL13: 0.6306 | AM13: =Y13*C13+($A$4-80)*AF13*$A$12/1000 -> 17.8825 | AN13: =Z13*E13+($A$4-80)*AG13*$A$12/1000 -> 18.025 | AO13: =AA13*G13+($A$4-80)*AH13*$A$12/1000 -> 18.06 | AP13: =AB13*I13+($A$4-80)*AI13*$A$12/1000 -> 17.91541667 | AQ13: =AC13*K13+($A$4-80)*AJ13*$A$12/1000 -> 17.76 | AR13: =AD13*M13+($A$4-80)*AK13*$A$12/1000 -> 17.22666667 | AS13: =AE13*O13+($A$4-80)*AL13*$A$12/1000 -> 17.3475
B14: 63 | C14: 25.25 | D14: 20.705 | E14: 25 | F14: 20.75 | G14: 24.33333333 | H14: 20.68333333 | I14: 23.79166667 | J14: 22.00729167 | K14: =V14*$K$13 -> 23.25 | L14: 23.25 | M14: 21.91666667 | N14: 21.91666667 | O14: 20.66666667 | P14: 20.66666667 | R14: 1.052083333 | S14: 1.041666667 | T14: 1.013888889 | U14: 0.9913194444 | V14: 0.96875 | W14: 0.9131944444 | X14: 0.8611111111 | Y14: 0.82 | Z14: 0.83 | AA14: 0.85 | AB14: 0.925 | AC14: 1 | AD14: 1 | AE14: 1 | AF14: 0.7552 | AG14: 0.7342 | AH14: 0.7154 | AI14: 1.07115 | AJ14: 1.41 | AK14: 1.2252 | AL14: 0.02 | AM14: =Y14*C14+($A$4-80)*AF14*$A$12/1000 -> 20.705 | AN14: =Z14*E14+($A$4-80)*AG14*$A$12/1000 -> 20.75 | AO14: =AA14*G14+($A$4-80)*AH14*$A$12/1000 -> 20.68333333 | AP14: =AB14*I14+($A$4-80)*AI14*$A$12/1000 -> 22.00729167 | AQ14: =AC14*K14+($A$4-80)*AJ14*$A$12/1000 -> 23.25 | AR14: =AD14*M14+($A$4-80)*AK14*$A$12/1000 -> 21.91666667 | AS14: =AE14*O14+($A$4-80)*AL14*$A$12/1000 -> 20.66666667
B15: 59 | C15: 24.91666667 | D15: 24.91666667 | E15: 24.66666667 | F15: 24.66666667 | G15: 24 | H15: 24 | I15: 23.45833333 | J15: 23.45833333 | K15: 22.91666667 | L15: 22.91666667 | M15: 21.58333333 | N15: 21.58333333 | O15: 20.33333333 | P15: 20.33333333 | R15: 1.038194444 | S15: 1.027777778 | T15: 1 | U15: 0.9774305556 | V15: 0.9548611111 | W15: 0.8993055556 | X15: 0.8472222222 | Y15: 1 | Z15: 1 | AA15: 1 | AB15: 1 | AC15: 1 | AD15: 1 | AE15: 1 | AF15: 1.3468 | AG15: 1.3336 | AH15: 0.02 | AI15: 0.02 | AJ15: 0.02 | AK15: 0.02 | AL15: 0.02 | AM15: =Y15*C15+($A$4-80)*AF15*$A$12/1000 -> 24.91666667 | AN15: =Z15*E15+($A$4-80)*AG15*$A$12/1000 -> 24.66666667 | AO15: =AA15*G15+($A$4-80)*AH15*$A$12/1000 -> 24 | AP15: =AB15*I15+($A$4-80)*AI15*$A$12/1000 -> 23.45833333 | AQ15: =AC15*K15+($A$4-80)*AJ15*$A$12/1000 -> 22.91666667 | AR15: =AD15*M15+($A$4-80)*AK15*$A$12/1000 -> 21.58333333 | AS15: =AE15*O15+($A$4-80)*AL15*$A$12/1000 -> 20.33333333
A16: 1125 | B16: 71 | C16: 27.41666667 | D16: 16.45 | E16: 27.25 | F16: 16.0775 | G16: 26.58333333 | H16: 15.95 | I16: 26.04166667 | J16: 16.015625 | K16: 25.5 | L16: 16.065 | M16: 24.16666667 | N16: 16.91666667 | O16: 22.91666667 | P16: 16.27083333 | R16: 1.142361111 | S16: 1.135416667 | T16: 1.107638889 | U16: 1.085069444 | V16: 1.0625 | W16: 1.006944444 | X16: 0.9548611111 | Y16: 0.6 | Z16: 0.59 | AA16: 0.6 | AB16: 0.615 | AC16: 0.63 | AD16: 0.7 | AE16: 0.71 | AF16: 0.8270222222 | AG16: 0.7143111111 | AH16: 0.6325333333 | AI16: 0.6522222222 | AJ16: 0.6709333333 | AK16: 0.8952888889 | AL16: 0.6458666667 | AM16: =Y16*C16+($A$4-80)*AF16*$A$16/1000 -> 16.45 | AN16: =Z16*E16+($A$4-80)*AG16*$A$16/1000 -> 16.0775 | AO16: =AA16*G16+($A$4-80)*AH16*$A$16/1000 -> 15.95 | AP16: =AB16*I16+($A$4-80)*AI16*$A$16/1000 -> 16.015625 | AQ16: =AC16*K16+($A$4-80)*AJ16*$A$16/1000 -> 16.065 | AR16: =AD16*M16+($A$4-80)*AK16*$A$16/1000 -> 16.91666667 | AS16: =AE16*O16+($A$4-80)*AL16*$A$16/1000 -> 16.27083333
B17: 67 | C17: 26.33333333 | D17: 18.96 | E17: 26.08333333 | F17: 19.04083333 | G17: 25.5 | H17: 19.38 | I17: 24.95833333 | J17: 19.093125 | K17: 24.41666667 | L17: 18.80083333 | M17: 23.08333333 | N17: 18.46666667 | O17: 21.83333333 | P17: 18.55833333 | R17: 1.097222222 | S17: 1.086805556 | T17: 1.0625 | U17: 1.039930556 | V17: 1.017361111 | W17: 0.9618055556 | X17: 0.9097222222 | Y17: 0.72 | Z17: 0.73 | AA17: 0.76 | AB17: 0.765 | AC17: 0.77 | AD17: 0.8 | AE17: 0.85 | AF17: 0.6848 | AG17: 0.6785777778 | AH17: 0.7296 | AI17: 0.6883111111 | AJ17: 0.6481777778 | AK17: 0.664 | AL17: 0.6311111111 | AM17: =Y17*C17+($A$4-80)*AF17*$A$16/1000 -> 18.96 | AN17: =Z17*E17+($A$4-80)*AG17*$A$16/1000 -> 19.04083333 | AO17: =AA17*G17+($A$4-80)*AH17*$A$16/1000 -> 19.38 | AP17: =AB17*I17+($A$4-80)*AI17*$A$16/1000 -> 19.093125 | AQ17: =AC17*K17+($A$4-80)*AJ17*$A$16/1000 -> 18.80083333 | AR17: =AD17*M17+($A$4-80)*AK17*$A$16/1000 -> 18.46666667 | AS17: =AE17*O17+($A$4-80)*AL17*$A$16/1000 -> 18.55833333
B18: 63 | C18: 25.58333333 | D18: 22.00166667 | E18: 25.41666667 | F18: 21.85833333 | G18: 24.75 | H18: 22.0275 | I18: 24.20833333 | J18: 22.876875 | K18: 23.66666667 | L18: 23.66666667 | M18: 22.33333333 | N18: 22.33333333 | O18: 21.08333333 | P18: 21.08333333 | R18: 1.065972222 | S18: 1.059027778 | T18: 1.03125 | U18: 1.008680556 | V18: 0.9861111111 | W18: 0.9305555556 | X18: 0.8784722222 | Y18: 0.86 | Z18: 0.86 | AA18: 0.89 | AB18: 0.945 | AC18: 1 | AD18: 1 | AE18: 1 | AF18: 0.7224888889 | AG18: 0.6769777778 | AH18: 0.6472888889 | AI18: 0.8986222222 | AJ18: 1.138488889 | AK18: 0.9340444444 | AL18: 0.01777777778 | AM18: =Y18*C18+($A$4-80)*AF18*$A$16/1000 -> 22.00166667 | AN18: =Z18*E18+($A$4-80)*AG18*$A$16/1000 -> 21.85833333 | AO18: =AA18*G18+($A$4-80)*AH18*$A$16/1000 -> 22.0275 | AP18: =AB18*I18+($A$4-80)*AI18*$A$16/1000 -> 22.876875 | AQ18: =AC18*K18+($A$4-80)*AJ18*$A$16/1000 -> 23.66666667 | AR18: =AD18*M18+($A$4-80)*AK18*$A$16/1000 -> 22.33333333 | AS18: =AE18*O18+($A$4-80)*AL18*$A$16/1000 -> 21.08333333
B19: 59 | C19: 25.25 | D19: 25.25 | E19: 25.08333333 | F19: 25.08333333 | G19: 24.41666667 | H19: 24.41666667 | I19: 23.875 | J19: 23.875 | K19: 23.33333333 | L19: 23.33333333 | M19: 22 | N19: 22 | O19: 20.75 | P19: 20.75 | R19: 1.052083333 | S19: 1.045138889 | T19: 1.017361111 | U19: 0.9947916667 | V19: 0.9722222222 | W19: 0.9166666667 | X19: 0.8645833333 | Y19: 1 | Z19: 1 | AA19: 1 | AB19: 1 | AC19: 1 | AD19: 1 | AE19: 1 | AF19: 1.037866667 | AG19: 0.03555555556 | AH19: 0.03555555556 | AI19: 0.03555555556 | AJ19: 0.03555555556 | AK19: 0.03555555556 | AL19: 0.03555555556 | AM19: =Y19*C19+($A$4-80)*AF19*$A$16/1000 -> 25.25 | AN19: =Z19*E19+($A$4-80)*AG19*$A$16/1000 -> 25.08333333 | AO19: =AA19*G19+($A$4-80)*AH19*$A$16/1000 -> 24.41666667 | AP19: =AB19*I19+($A$4-80)*AI19*$A$16/1000 -> 23.875 | AQ19: =AC19*K19+($A$4-80)*AJ19*$A$16/1000 -> 23.33333333 | AR19: =AD19*M19+($A$4-80)*AK19*$A$16/1000 -> 22 | AS19: =AE19*O19+($A$4-80)*AL19*$A$16/1000 -> 20.75

Sheet GSX140_31 (hidden)
A2: GSX140_31
A3: Evaporator Air | C3: Condenser Entering Air Temperature ˚F
A4: 80 | B4: °F DB | C4: 65 | E4: 75 | G4: 85 | I4: 90 | K4: 95 | M4: 105 | O4: 115
A5: CFM | B5: EWB† ˚F | C5: Capacity Mbtuh | E5: Capacity Mbtuh | G5: Capacity Mbtuh | I5: Capacity Mbtuh | K5: Capacity Mbtuh | M5: Capacity Mbtuh | O5: Capacity Mbtuh
C6: Total | D6: Sens. | E6: Total | F6: Sens. | G6: Total | H6: Sens. | I6: Total | J6: Sens. | K6: Total | L6: Sens. | M6: Total | N6: Sens. | O6: Total | P6: Sens.
R7: Total Factors | Y7: Sens. % | AF7: IDB Adj | AM7: Sens Calc
A8: 875 | B8: 71 | C8: =R8*$K$13 -> 26.76923077 | D8: =IF(AM8>C8,C8,AM8) -> 13.38461538 | E8: =S8*$K$13 -> 26.51748252 | F8: =IF(AN8>E8,E8,AN8) -> 14.05426573 | G8: =T8*$K$13 -> 25.93006993 | H8: =IF(AO8>G8,G8,AO8) -> 15.55804196 | I8: =U8*$K$13 -> 25.34265734 | J8: =IF(AP8>I8,I8,AP8) -> 14.95216783 | K8: =V8*$K$13 -> 24.75524476 | L8: =IF(AQ8>K8,K8,AQ8) -> 14.35804196 | M8: =W8*$K$13 -> 23.41258741 | N8: =IF(AR8>M8,M8,AR8) -> 14.04755245 | O8: =X8*$K$13 -> 22.23776224 | P8: =IF(AS8>O8,O8,AS8) -> 14.45454545 | R8: 1.115384615 | S8: 1.104895105 | T8: 1.08041958 | U8: 1.055944056 | V8: 1.031468531 | W8: 0.9755244755 | X8: 0.9265734266 | Y8: 0.5 | Z8: 0.53 | AA8: 0.6 | AB8: 0.59 | AC8: 0.58 | AD8: 0.6 | AE8: 0.65 | AF8: 0.8198857143 | AG8: 0.9481142857 | AH8: 1.220342857 | AI8: 1.050514286 | AJ8: 0.8868571429 | AK8: 0.8397714286 | AL8: 0.8112 | AM8: =Y8*C8+($A$4-80)*AF8*$A$8/1000 -> 13.38461538 | AN8: =Z8*E8+($A$4-80)*AG8*$A$8/1000 -> 14.05426573 | AO8: =AA8*G8+($A$4-80)*AH8*$A$8/1000 -> 15.55804196 | AP8: =AB8*I8+($A$4-80)*AI8*$A$8/1000 -> 14.95216783 | AQ8: =AC8*K8+($A$4-80)*AJ8*$A$8/1000 -> 14.35804196 | AR8: =AD8*M8+($A$4-80)*AK8*$A$8/1000 -> 14.04755245 | AS8: =AE8*O8+($A$4-80)*AL8*$A$8/1000 -> 14.45454545
B9: 67 | C9: 25.59440559 | D9: 17.14825175 | E9: 25.42657343 | F9: 17.29006993 | G9: 24.75524476 | H9: 17.32867133 | I9: 24.20979021 | J9: 17.31 | K9: =V9*$K$13 -> 23.66433566 | L9: 17.27496503 | M9: 22.32167832 | N9: 16.74125874 | O9: 21.14685315 | P9: 16.91748252 | R9: 1.066433566 | S9: 1.059440559 | T9: 1.031468531 | U9: 1.008741259 | V9: 0.986013986 | W9: 0.9300699301 | X9: 0.8811188811 | Y9: 0.67 | Z9: 0.68 | AA9: 0.7 | AB9: 0.715 | AC9: 0.73 | AD9: 0.75 | AE9: 0.8 | AF9: 0.9186285714 | AG9: 0.9254857143 | AH9: 0.8896 | AI9: 0.8706285714 | AJ9: 0.8516571429 | AK9: 0.8045714286 | AL9: 0.7794285714 | AM9: =Y9*C9+($A$4-80)*AF9*$A$8/1000 -> 17.14825175 | AN9: =Z9*E9+($A$4-80)*AG9*$A$8/1000 -> 17.29006993 | AO9: =AA9*G9+($A$4-80)*AH9*$A$8/1000 -> 17.32867133 | AP9: =AB9*I9+($A$4-80)*AI9*$A$8/1000 -> 17.31 | AQ9: =AC9*K9+($A$4-80)*AJ9*$A$8/1000 -> 17.27496503 | AR9: =AD9*M9+($A$4-80)*AK9*$A$8/1000 -> 16.74125874 | AS9: =AE9*O9+($A$4-80)*AL9*$A$8/1000 -> 16.91748252
B10: 63 | C10: 24.92307692 | D10: 20.18769231 | E10: 24.67132867 | F10: 20.23048951 | G10: 24.08391608 | H10: 20.47132867 | I10: 23.4965035 | J10: 20.20699301 | K10: =V10*$K$13 -> 22.90909091 | L10: 19.93090909 | M10: 21.65034965 | N10: 21.65034965 | O10: 20.39160839 | P10: 20.39160839 | R10: 1.038461538 | S10: 1.027972028 | T10: 1.003496503 | U10: 0.979020979 | V10: 0.9545454545 | W10: 0.9020979021 | X10: 0.8496503497 | Y10: 0.81 | Z10: 0.82 | AA10: 0.85 | AB10: 0.86 | AC10: 0.87 | AD10: 1 | AE10: 1 | AF10: 0.9136 | AG10: 0.8893714286 | AH10: 0.8857142857 | AI10: 0.8570285714 | AJ10: 0.8281142857 | AK10: 1.450057143 | AL10: 0.04571428571 | AM10: =Y10*C10+($A$4-80)*AF10*$A$8/1000 -> 20.18769231 | AN10: =Z10*E10+($A$4-80)*AG10*$A$8/1000 -> 20.23048951 | AO10: =AA10*G10+($A$4-80)*AH10*$A$8/1000 -> 20.47132867 | AP10: =AB10*I10+($A$4-80)*AI10*$A$8/1000 -> 20.20699301 | AQ10: =AC10*K10+($A$4-80)*AJ10*$A$8/1000 -> 19.93090909 | AR10: =AD10*M10+($A$4-80)*AK10*$A$8/1000 -> 21.65034965 | AS10: =AE10*O10+($A$4-80)*AL10*$A$8/1000 -> 20.39160839
B11: 59 | C11: 24.58741259 | D11: 24.58741259 | E11: 24.33566434 | F11: 24.33566434 | G11: 23.66433566 | H11: 23.66433566 | I11: 23.11888112 | J11: 23.11888112 | K11: =V11*$K$13 -> 22.57342657 | L11: 22.57342657 | M11: 21.23076923 | N11: 21.23076923 | O11: 20.05594406 | P11: 20.05594406 | R11: 1.024475524 | S11: 1.013986014 | T11: 0.986013986 | U11: 0.9632867133 | V11: 0.9405594406 | W11: 0.8846153846 | X11: 0.8356643357 | Y11: 1 | Z11: 1 | AA11: 1 | AB11: 1 | AC11: 1 | AD11: 1 | AE11: 1 | AF11: 1.642057143 | AG11: 1.542171429 | AH11: 0.02285714286 | AI11: 0.02285714286 | AJ11: 0.02285714286 | AK11: 0.02285714286 | AL11: 0.04571428571 | AM11: =Y11*C11+($A$4-80)*AF11*$A$8/1000 -> 24.58741259 | AN11: =Z11*E11+($A$4-80)*AG11*$A$8/1000 -> 24.33566434 | AO11: =AA11*G11+($A$4-80)*AH11*$A$8/1000 -> 23.66433566 | AP11: =AB11*I11+($A$4-80)*AI11*$A$8/1000 -> 23.11888112 | AQ11: =AC11*K11+($A$4-80)*AJ11*$A$8/1000 -> 22.57342657 | AR11: =AD11*M11+($A$4-80)*AK11*$A$8/1000 -> 21.23076923 | AS11: =AE11*O11+($A$4-80)*AL11*$A$8/1000 -> 20.05594406
A12: 1000 | B12: 71 | C12: 27.1048951 | D12: 16.26293706 | E12: 26.85314685 | F12: 15.84335664 | G12: 26.18181818 | H12: 15.70909091 | I12: 25.63636364 | J12: 15.89454545 | K12: =V12*$K$13 -> 25.09090909 | L12: 16.05818182 | M12: 23.74825175 | N12: 16.62377622 | O12: 22.57342657 | P12: 16.25286713 | R12: 1.129370629 | S12: 1.118881119 | T12: 1.090909091 | U12: 1.068181818 | V12: 1.045454545 | W12: 0.9895104895 | X12: 0.9405594406 | Y12: 0.6 | Z12: 0.59 | AA12: 0.6 | AB12: 0.62 | AC12: 0.64 | AD12: 0.7 | AE12: 0.72 | AF12: 0.9228 | AG12: 0.8504 | AH12: 0.6962 | AI12: 0.7432 | AJ12: 0.7876 | AK12: 0.9728 | AL12: 0.723 | AM12: =Y12*C12+($A$4-80)*AF12*$A$12/1000 -> 16.26293706 | AN12: =Z12*E12+($A$4-80)*AG12*$A$12/1000 -> 15.84335664 | AO12: =AA12*G12+($A$4-80)*AH12*$A$12/1000 -> 15.70909091 | AP12: =AB12*I12+($A$4-80)*AI12*$A$12/1000 -> 15.89454545 | AQ12: =AC12*K12+($A$4-80)*AJ12*$A$12/1000 -> 16.05818182 | AR12: =AD12*M12+($A$4-80)*AK12*$A$12/1000 -> 16.62377622 | AS12: =AE12*O12+($A$4-80)*AL12*$A$12/1000 -> 16.25286713
B13: 67 | C13: 25.93006993 | D13: 18.92895105 | E13: 25.76223776 | F13: 19.06405594 | G13: 25.09090909 | H13: 19.32 | I13: 24.54545455 | J13: 19.14545455 | K13: 24 | L13: 18.96 | M13: 22.65734266 | N13: 18.35244755 | O13: 21.3986014 | P13: 18.4027972 | R13: 1.08041958 | S13: 1.073426573 | T13: 1.045454545 | U13: 1.022727273 | V13: 1 | W13: 0.9440559441 | X13: 0.8916083916 | Y13: 0.73 | Z13: 0.74 | AA13: 0.77 | AB13: 0.78 | AC13: 0.79 | AD13: 0.81 | AE13: 0.86 | AF13: 0.8154 | AG13: 0.8226 | AH13: 0.7902 | AI13: 0.78 | AJ13: 0.77 | AK13: 0.7156 | AL13: 0.6776 | AM13: =Y13*C13+($A$4-80)*AF13*$A$12/1000 -> 18.92895105 | AN13: =Z13*E13+($A$4-80)*AG13*$A$12/1000 -> 19.06405594 | AO13: =AA13*G13+($A$4-80)*AH13*$A$12/1000 -> 19.32 | AP13: =AB13*I13+($A$4-80)*AI13*$A$12/1000 -> 19.14545455 | AQ13: =AC13*K13+($A$4-80)*AJ13*$A$12/1000 -> 18.96 | AR13: =AD13*M13+($A$4-80)*AK13*$A$12/1000 -> 18.35244755 | AS13: =AE13*O13+($A$4-80)*AL13*$A$12/1000 -> 18.4027972
B14: 63 | C14: 25.25874126 | D14: 22.22769231 | E14: 25.00699301 | F14: 22.00615385 | G14: 24.33566434 | H14: 22.14545455 | I14: 23.79020979 | J14: 22.71965035 | K14: =V14*$K$13 -> 23.24475524 | L14: 23.24475524 | M14: 21.9020979 | N14: 21.9020979 | O14: 20.72727273 | P14: 20.72727273 | R14: 1.052447552 | S14: 1.041958042 | T14: 1.013986014 | U14: 0.9912587413 | V14: 0.9685314685 | W14: 0.9125874126 | X14: 0.8636363636 | Y14: 0.88 | Z14: 0.88 | AA14: 0.91 | AB14: 0.955 | AC14: 1 | AD14: 1 | AE14: 1 | AF14: 0.8126 | AG14: 0.8048 | AH14: 0.7696 | AI14: 0.95135 | AJ14: 1.124 | AK14: 0.956 | AL14: 0.04 | AM14: =Y14*C14+($A$4-80)*AF14*$A$12/1000 -> 22.22769231 | AN14: =Z14*E14+($A$4-80)*AG14*$A$12/1000 -> 22.00615385 | AO14: =AA14*G14+($A$4-80)*AH14*$A$12/1000 -> 22.14545455 | AP14: =AB14*I14+($A$4-80)*AI14*$A$12/1000 -> 22.71965035 | AQ14: =AC14*K14+($A$4-80)*AJ14*$A$12/1000 -> 23.24475524 | AR14: =AD14*M14+($A$4-80)*AK14*$A$12/1000 -> 21.9020979 | AS14: =AE14*O14+($A$4-80)*AL14*$A$12/1000 -> 20.72727273
B15: 59 | C15: 24.83916084 | D15: 24.83916084 | E15: 24.67132867 | F15: 24.67132867 | G15: 24 | H15: 24 | I15: 23.45454545 | J15: 23.45454545 | K15: 22.90909091 | L15: 22.90909091 | M15: 21.56643357 | N15: 21.56643357 | O15: 20.39160839 | P15: 20.39160839 | R15: 1.034965035 | S15: 1.027972028 | T15: 1 | U15: 0.9772727273 | V15: 0.9545454545 | W15: 0.8986013986 | X15: 0.8496503497 | Y15: 1 | Z15: 1 | AA15: 1 | AB15: 1 | AC15: 1 | AD15: 1 | AE15: 1 | AF15: 1.082 | AG15: 1.0328 | AH15: 0.02 | AI15: 0.02 | AJ15: 0.02 | AK15: 0.02 | AL15: 0.04 | AM15: =Y15*C15+($A$4-80)*AF15*$A$12/1000 -> 24.83916084 | AN15: =Z15*E15+($A$4-80)*AG15*$A$12/1000 -> 24.67132867 | AO15: =AA15*G15+($A$4-80)*AH15*$A$12/1000 -> 24 | AP15: =AB15*I15+($A$4-80)*AI15*$A$12/1000 -> 23.45454545 | AQ15: =AC15*K15+($A$4-80)*AJ15*$A$12/1000 -> 22.90909091 | AR15: =AD15*M15+($A$4-80)*AK15*$A$12/1000 -> 21.56643357 | AS15: =AE15*O15+($A$4-80)*AL15*$A$12/1000 -> 20.39160839
A16: 1125 | B16: 71 | C16: 27.44055944 | D16: 16.46433566 | E16: 27.27272727 | F16: 17.18181818 | G16: 26.6013986 | H16: 18.62097902 | I16: 26.05594406 | J16: 17.84832168 | K16: 25.51048951 | L16: 17.09202797 | M16: 24.16783217 | N16: 16.91748252 | O16: 22.90909091 | P16: 17.18181818 | R16: 1.143356643 | S16: 1.136363636 | T16: 1.108391608 | U16: 1.085664336 | V16: 1.062937063 | W16: 1.006993007 | X16: 0.9545454545 | Y16: 0.6 | Z16: 0.63 | AA16: 0.7 | AB16: 0.685 | AC16: 0.67 | AD16: 0.7 | AE16: 0.75 | AF16: 0.6481777778 | AG16: 0.7688888889 | AH16: 1.032888889 | AI16: 0.8744444444 | AJ16: 0.7217777778 | AK16: 0.6858666667 | AL16: 0.6419555556 | AM16: =Y16*C16+($A$4-80)*AF16*$A$16/1000 -> 16.46433566 | AN16: =Z16*E16+($A$4-80)*AG16*$A$16/1000 -> 17.18181818 | AO16: =AA16*G16+($A$4-80)*AH16*$A$16/1000 -> 18.62097902 | AP16: =AB16*I16+($A$4-80)*AI16*$A$16/1000 -> 17.84832168 | AQ16: =AC16*K16+($A$4-80)*AJ16*$A$16/1000 -> 17.09202797 | AR16: =AD16*M16+($A$4-80)*AK16*$A$16/1000 -> 16.91748252 | AS16: =AE16*O16+($A$4-80)*AL16*$A$16/1000 -> 17.18181818
B17: 67 | C17: 26.34965035 | D17: 20.28923077 | E17: 26.0979021 | F17: 20.35636364 | G17: 25.51048951 | H17: 20.40839161 | I17: 24.96503497 | J17: 20.22167832 | K17: 24.41958042 | L17: 20.02405594 | M17: 23.07692308 | N17: 19.61538462 | O17: 21.81818182 | P17: 19.63636364 | R17: 1.097902098 | S17: 1.087412587 | T17: 1.062937063 | U17: 1.04020979 | V17: 1.017482517 | W17: 0.9615384615 | X17: 0.9090909091 | Y17: 0.77 | Z17: 0.78 | AA17: 0.8 | AB17: 0.81 | AC17: 0.82 | AD17: 0.85 | AE17: 0.9 | AF17: 0.7484444444 | AG17: 0.7303111111 | AH17: 0.7264 | AI17: 0.7117333333 | AJ17: 0.6970666667 | AK17: 0.6611555556 | AL17: 0.6145777778 | AM17: =Y17*C17+($A$4-80)*AF17*$A$16/1000 -> 20.28923077 | AN17: =Z17*E17+($A$4-80)*AG17*$A$16/1000 -> 20.35636364 | AO17: =AA17*G17+($A$4-80)*AH17*$A$16/1000 -> 20.40839161 | AP17: =AB17*I17+($A$4-80)*AI17*$A$16/1000 -> 20.22167832 | AQ17: =AC17*K17+($A$4-80)*AJ17*$A$16/1000 -> 20.02405594 | AR17: =AD17*M17+($A$4-80)*AK17*$A$16/1000 -> 19.61538462 | AS17: =AE17*O17+($A$4-80)*AL17*$A$16/1000 -> 19.63636364
B18: 63 | C18: 25.59440559 | D18: 23.29090909 | E18: 25.42657343 | F18: 23.39244755 | G18: 24.75524476 | H18: 23.26993007 | I18: 24.20979021 | J18: 23.4834965 | K18: 23.66433566 | L18: 23.66433566 | M18: 22.32167832 | N18: 22.32167832 | O18: 21.06293706 | P18: 21.06293706 | R18: 1.066433566 | S18: 1.059440559 | T18: 1.031468531 | U18: 1.008741259 | V18: 0.986013986 | W18: 0.9300699301 | X18: 0.8776223776 | Y18: 0.91 | Z18: 0.92 | AA18: 0.94 | AB18: 0.97 | AC18: 1 | AD18: 1 | AE18: 1 | AF18: 0.7187555556 | AG18: 0.7283555556 | AH18: 0.7105777778 | AI18: 0.7984888889 | AJ18: 0.8817777778 | AK18: 0.6926222222 | AL18: 0.01777777778 | AM18: =Y18*C18+($A$4-80)*AF18*$A$16/1000 -> 23.29090909 | AN18: =Z18*E18+($A$4-80)*AG18*$A$16/1000 -> 23.39244755 | AO18: =AA18*G18+($A$4-80)*AH18*$A$16/1000 -> 23.26993007 | AP18: =AB18*I18+($A$4-80)*AI18*$A$16/1000 -> 23.4834965 | AQ18: =AC18*K18+($A$4-80)*AJ18*$A$16/1000 -> 23.66433566 | AR18: =AD18*M18+($A$4-80)*AK18*$A$16/1000 -> 22.32167832 | AS18: =AE18*O18+($A$4-80)*AL18*$A$16/1000 -> 21.06293706
B19: 59 | C19: 25.25874126 | D19: 25.25874126 | E19: 25.00699301 | F19: 25.00699301 | G19: 24.41958042 | H19: 24.41958042 | I19: 23.87412587 | J19: 23.87412587 | K19: 23.32867133 | L19: 23.32867133 | M19: 21.98601399 | N19: 21.98601399 | O19: 20.72727273 | P19: 20.72727273 | R19: 1.052447552 | S19: 1.041958042 | T19: 1.017482517 | U19: 0.9947552448 | V19: 0.972027972 | W19: 0.9160839161 | X19: 0.8636363636 | Y19: 1 | Z19: 1 | AA19: 1 | AB19: 1 | AC19: 1 | AD19: 1 | AE19: 1 | AF19: 0.7644444444 | AG19: 0.01777777778 | AH19: 0.03555555556 | AI19: 0.03555555556 | AJ19: 0.03555555556 | AK19: 0.03555555556 | AL19: 0.01777777778 | AM19: =Y19*C19+($A$4-80)*AF19*$A$16/1000 -> 25.25874126 | AN19: =Z19*E19+($A$4-80)*AG19*$A$16/1000 -> 25.00699301 | AO19: =AA19*G19+($A$4-80)*AH19*$A$16/1000 -> 24.41958042 | AP19: =AB19*I19+($A$4-80)*AI19*$A$16/1000 -> 23.87412587 | AQ19: =AC19*K19+($A$4-80)*AJ19*$A$16/1000 -> 23.32867133 | AR19: =AD19*M19+($A$4-80)*AK19*$A$16/1000 -> 21.98601399 | AS19: =AE19*O19+($A$4-80)*AL19*$A$16/1000 -> 20.72727273

Sheet GSX140_36 (hidden)
A2: GSX140_36
A3: Evaporator Air | C3: Condenser Entering Air Temperature ˚F
A4: 80 | B4: °F DB | C4: 65 | E4: 75 | G4: 85 | I4: 90 | K4: 95 | M4: 105 | O4: 115
A5: CFM | B5: EWB† ˚F | C5: Capacity Mbtuh | E5: Capacity Mbtuh | G5: Capacity Mbtuh | I5: Capacity Mbtuh | K5: Capacity Mbtuh | M5: Capacity Mbtuh | O5: Capacity Mbtuh
C6: Total | D6: Sens. | E6: Total | F6: Sens. | G6: Total | H6: Sens. | I6: Total | J6: Sens. | K6: Total | L6: Sens. | M6: Total | N6: Sens. | O6: Total | P6: Sens.
R7: Total Factors | Y7: Sens. % | AF7: IDB Adj | AM7: Sens Calc
A8: 1050 | B8: 71 | C8: =R8*$K$13 -> 26.73684211 | D8: =IF(AM8>C8,C8,AM8) -> 13.36842105 | E8: =S8*$K$13 -> 26.52631579 | F8: =IF(AN8>E8,E8,AN8) -> 13.26315789 | G8: =T8*$K$13 -> 25.89473684 | H8: =IF(AO8>G8,G8,AO8) -> 12.94736842 | I8: =U8*$K$13 -> 25.33333333 | J8: =IF(AP8>I8,I8,AP8) -> 13.17333333 | K8: =V8*$K$13 -> 24.77192982 | L8: =IF(AQ8>K8,K8,AQ8) -> 13.37684211 | M8: =W8*$K$13 -> 23.43859649 | N8: =IF(AR8>M8,M8,AR8) -> 14.06315789 | O8: =X8*$K$13 -> 22.24561404 | P8: =IF(AS8>O8,O8,AS8) -> 13.56982456 | R8: 1.114035088 | S8: 1.105263158 | T8: 1.078947368 | U8: 1.055555556 | V8: 1.032163743 | W8: 0.9766081871 | X8: 0.9269005848 | Y8: 0.5 | Z8: 0.5 | AA8: 0.5 | AB8: 0.52 | AC8: 0.54 | AD8: 0.6 | AE8: 0.61 | AF8: 0.9575238095 | AG8: 0.8784761905 | AH8: 0.7180952381 | AI8: 0.7680952381 | AJ8: 0.8148571429 | AK8: 1.034666667 | AL8: 0.7432380952 | AM8: =Y8*C8+($A$4-80)*AF8*$A$8/1000 -> 13.36842105 | AN8: =Z8*E8+($A$4-80)*AG8*$A$8/1000 -> 13.26315789 | AO8: =AA8*G8+($A$4-80)*AH8*$A$8/1000 -> 12.94736842 | AP8: =AB8*I8+($A$4-80)*AI8*$A$8/1000 -> 13.17333333 | AQ8: =AC8*K8+($A$4-80)*AJ8*$A$8/1000 -> 13.37684211 | AR8: =AD8*M8+($A$4-80)*AK8*$A$8/1000 -> 14.06315789 | AS8: =AE8*O8+($A$4-80)*AL8*$A$8/1000 -> 13.56982456
B9: 67 | C9: 25.61403509 | D9: 16.13684211 | E9: 25.40350877 | F9: 16.25824561 | G9: 24.77192982 | H9: 16.34947368 | I9: 24.21052632 | J9: 16.22105263 | K9: =V9*$K$13 -> 23.64912281 | L9: 16.08140351 | M9: 22.31578947 | N9: 15.62105263 | O9: 21.12280702 | P9: 15.84210526 | R9: 1.067251462 | S9: 1.058479532 | T9: 1.032163743 | U9: 1.00877193 | V9: 0.985380117 | W9: 0.9298245614 | X9: 0.8801169591 | Y9: 0.63 | Z9: 0.64 | AA9: 0.66 | AB9: 0.67 | AC9: 0.68 | AD9: 0.7 | AE9: 0.75 | AF9: 0.8537142857 | AG9: 0.8472380952 | AH9: 0.8274285714 | AI9: 0.8042857143 | AJ9: 0.780952381 | AK9: 0.7379047619 | AL9: 0.712 | AM9: =Y9*C9+($A$4-80)*AF9*$A$8/1000 -> 16.13684211 | AN9: =Z9*E9+($A$4-80)*AG9*$A$8/1000 -> 16.25824561 | AO9: =AA9*G9+($A$4-80)*AH9*$A$8/1000 -> 16.34947368 | AP9: =AB9*I9+($A$4-80)*AI9*$A$8/1000 -> 16.22105263 | AQ9: =AC9*K9+($A$4-80)*AJ9*$A$8/1000 -> 16.08140351 | AR9: =AD9*M9+($A$4-80)*AK9*$A$8/1000 -> 15.62105263 | AS9: =AE9*O9+($A$4-80)*AL9*$A$8/1000 -> 15.84210526
B10: 63 | C10: 24.9122807 | D10: 19.18245614 | E10: 24.70175439 | F10: 19.02035088 | G10: 24.07017544 | H10: 19.25614035 | I10: 23.50877193 | J10: 19.04210526 | K10: =V10*$K$13 -> 22.94736842 | L10: 18.81684211 | M10: 21.61403509 | N10: 21.61403509 | O10: 20.35087719 | P10: 20.35087719 | R10: 1.038011696 | S10: 1.029239766 | T10: 1.002923977 | U10: 0.9795321637 | V10: 0.9561403509 | W10: 0.9005847953 | X10: 0.8479532164 | Y10: 0.77 | Z10: 0.77 | AA10: 0.8 | AB10: 0.81 | AC10: 0.82 | AD10: 1 | AE10: 1 | AF10: 0.9034285714 | AG10: 0.8293333333 | AH10: 0.8748571429 | AI10: 0.8554285714 | AJ10: 0.836 | AK10: 1.728380952 | AL10: 1.340190476 | AM10: =Y10*C10+($A$4-80)*AF10*$A$8/1000 -> 19.18245614 | AN10: =Z10*E10+($A$4-80)*AG10*$A$8/1000 -> 19.02035088 | AO10: =AA10*G10+($A$4-80)*AH10*$A$8/1000 -> 19.25614035 | AP10: =AB10*I10+($A$4-80)*AI10*$A$8/1000 -> 19.04210526 | AQ10: =AC10*K10+($A$4-80)*AJ10*$A$8/1000 -> 18.81684211 | AR10: =AD10*M10+($A$4-80)*AK10*$A$8/1000 -> 21.61403509 | AS10: =AE10*O10+($A$4-80)*AL10*$A$8/1000 -> 20.35087719
B11: 59 | C11: 24.56140351 | D11: 20.63157895 | E11: 24.35087719 | F11: 24.35087719 | G11: 23.71929825 | H11: 23.71929825 | I11: 23.15789474 | J11: 23.15789474 | K11: =V11*$K$13 -> 22.59649123 | L11: 22.59649123 | M11: 21.26315789 | N11: 21.26315789 | O11: 20.07017544 | P11: 20.07017544 | R11: 1.023391813 | S11: 1.014619883 | T11: 0.9883040936 | U11: 0.9649122807 | V11: 0.9415204678 | W11: 0.8859649123 | X11: 0.8362573099 | Y11: 0.84 | Z11: 1 | AA11: 1 | AB11: 1 | AC11: 1 | AD11: 1 | AE11: 1 | AF11: 0.8274285714 | AG11: 1.878095238 | AH11: 0.0380952381 | AI11: 0.0380952381 | AJ11: 0.0380952381 | AK11: 0.0380952381 | AL11: 0.0380952381 | AM11: =Y11*C11+($A$4-80)*AF11*$A$8/1000 -> 20.63157895 | AN11: =Z11*E11+($A$4-80)*AG11*$A$8/1000 -> 24.35087719 | AO11: =AA11*G11+($A$4-80)*AH11*$A$8/1000 -> 23.71929825 | AP11: =AB11*I11+($A$4-80)*AI11*$A$8/1000 -> 23.15789474 | AQ11: =AC11*K11+($A$4-80)*AJ11*$A$8/1000 -> 22.59649123 | AR11: =AD11*M11+($A$4-80)*AK11*$A$8/1000 -> 21.26315789 | AS11: =AE11*O11+($A$4-80)*AL11*$A$8/1000 -> 20.07017544
A12: 1200 | B12: 71 | C12: 27.0877193 | D12: 16.25263158 | E12: 26.87719298 | F12: 15.05122807 | G12: 26.24561404 | H12: 15.74736842 | I12: 25.68421053 | J12: 15.41052632 | K12: =V12*$K$13 -> 25.12280702 | L12: 15.07368421 | M12: 23.78947368 | N12: 14.27368421 | O12: 22.52631579 | P12: 15.09263158 | R12: 1.128654971 | S12: 1.119883041 | T12: 1.093567251 | U12: 1.070175439 | V12: 1.046783626 | W12: 0.9912280702 | X12: 0.9385964912 | Y12: 0.6 | Z12: 0.56 | AA12: 0.6 | AB12: 0.6 | AC12: 0.6 | AD12: 0.6 | AE12: 0.67 | AF12: 1.108 | AG12: 0.7806666667 | AH12: 0.888 | AI12: 0.8086666667 | AJ12: 0.732 | AK12: 0.5816666667 | AL12: 0.6511666667 | AM12: =Y12*C12+($A$4-80)*AF12*$A$12/1000 -> 16.25263158 | AN12: =Z12*E12+($A$4-80)*AG12*$A$12/1000 -> 15.05122807 | AO12: =AA12*G12+($A$4-80)*AH12*$A$12/1000 -> 15.74736842 | AP12: =AB12*I12+($A$4-80)*AI12*$A$12/1000 -> 15.41052632 | AQ12: =AC12*K12+($A$4-80)*AJ12*$A$12/1000 -> 15.07368421 | AR12: =AD12*M12+($A$4-80)*AK12*$A$12/1000 -> 14.27368421 | AS12: =AE12*O12+($A$4-80)*AL12*$A$12/1000 -> 15.09263158
B13: 67 | C13: 25.96491228 | D13: 17.91578947 | E13: 25.75438596 | F13: 18.02807018 | G13: 25.12280702 | H13: 18.08842105 | I13: 24.56140351 | J13: 17.92982456 | K13: 24 | L13: 17.76 | M13: 22.66666667 | N13: 17.22666667 | O13: 21.40350877 | P13: 17.33684211 | R13: 1.081871345 | S13: 1.073099415 | T13: 1.046783626 | U13: 1.023391813 | V13: 1 | W13: 0.9444444444 | X13: 0.8918128655 | Y13: 0.69 | Z13: 0.7 | AA13: 0.72 | AB13: 0.73 | AC13: 0.74 | AD13: 0.76 | AE13: 0.81 | AF13: 0.759 | AG13: 0.7533333333 | AH13: 0.736 | AI13: 0.7203333333 | AJ13: 0.7046666667 | AK13: 0.6673333333 | AL13: 0.6215 | AM13: =Y13*C13+($A$4-80)*AF13*$A$12/1000 -> 17.91578947 | AN13: =Z13*E13+($A$4-80)*AG13*$A$12/1000 -> 18.02807018 | AO13: =AA13*G13+($A$4-80)*AH13*$A$12/1000 -> 18.08842105 | AP13: =AB13*I13+($A$4-80)*AI13*$A$12/1000 -> 17.92982456 | AQ13: =AC13*K13+($A$4-80)*AJ13*$A$12/1000 -> 17.76 | AR13: =AD13*M13+($A$4-80)*AK13*$A$12/1000 -> 17.22666667 | AS13: =AE13*O13+($A$4-80)*AL13*$A$12/1000 -> 17.33684211
B14: 63 | C14: 25.19298246 | D14: 20.65824561 | E14: 24.98245614 | F14: 20.7354386 | G14: 24.35087719 | H14: 20.69824561 | I14: 23.8245614 | J14: 20.48912281 | K14: =V14*$K$13 -> 23.29824561 | L14: 20.26947368 | M14: 21.89473684 | N14: 21.89473684 | O14: 20.70175439 | P14: 20.70175439 | R14: 1.049707602 | S14: 1.040935673 | T14: 1.014619883 | U14: 0.9926900585 | V14: 0.9707602339 | W14: 0.9122807018 | X14: 0.8625730994 | Y14: 0.82 | Z14: 0.83 | AA14: 0.85 | AB14: 0.86 | AC14: 0.87 | AD14: 1 | AE14: 1 | AF14: 0.7296666667 | AG14: 0.7238333333 | AH14: 0.7183333333 | AI14: 0.7036666667 | AJ14: 0.689 | AK14: 1.208833333 | AL14: 0.03333333333 | AM14: =Y14*C14+($A$4-80)*AF14*$A$12/1000 -> 20.65824561 | AN14: =Z14*E14+($A$4-80)*AG14*$A$12/1000 -> 20.7354386 | AO14: =AA14*G14+($A$4-80)*AH14*$A$12/1000 -> 20.69824561 | AP14: =AB14*I14+($A$4-80)*AI14*$A$12/1000 -> 20.48912281 | AQ14: =AC14*K14+($A$4-80)*AJ14*$A$12/1000 -> 20.26947368 | AR14: =AD14*M14+($A$4-80)*AK14*$A$12/1000 -> 21.89473684 | AS14: =AE14*O14+($A$4-80)*AL14*$A$12/1000 -> 20.70175439
B15: 59 | C15: 24.9122807 | D15: 24.9122807 | E15: 24.63157895 | F15: 24.63157895 | G15: 24 | H15: 24 | I15: 23.47368421 | J15: 23.47368421 | K15: 22.94736842 | L15: 22.94736842 | M15: 21.61403509 | N15: 21.61403509 | O15: 20.35087719 | P15: 20.35087719 | R15: 1.038011696 | S15: 1.026315789 | T15: 1 | U15: 0.9780701754 | V15: 0.9561403509 | W15: 0.9005847953 | X15: 0.8479532164 | Y15: 1 | Z15: 1 | AA15: 1 | AB15: 1 | AC15: 1 | AD15: 1 | AE15: 1 | AF15: 1.327666667 | AG15: 1.3 | AH15: 0.01666666667 | AI15: 0.025 | AJ15: 0.03333333333 | AK15: 0.03333333333 | AL15: 0.03333333333 | AM15: =Y15*C15+($A$4-80)*AF15*$A$12/1000 -> 24.9122807 | AN15: =Z15*E15+($A$4-80)*AG15*$A$12/1000 -> 24.63157895 | AO15: =AA15*G15+($A$4-80)*AH15*$A$12/1000 -> 24 | AP15: =AB15*I15+($A$4-80)*AI15*$A$12/1000 -> 23.47368421 | AQ15: =AC15*K15+($A$4-80)*AJ15*$A$12/1000 -> 22.94736842 | AR15: =AD15*M15+($A$4-80)*AK15*$A$12/1000 -> 21.61403509 | AS15: =AE15*O15+($A$4-80)*AL15*$A$12/1000 -> 20.35087719
A16: 1350 | B16: 71 | C16: 27.43859649 | D16: 16.46315789 | E16: 27.22807018 | F16: 16.0645614 | G16: 26.59649123 | H16: 15.95789474 | I16: 26.03508772 | J16: 16.01157895 | K16: 25.47368421 | L16: 16.04842105 | M16: 24.14035088 | N16: 16.89824561 | O16: 22.94736842 | P16: 16.29263158 | R16: 1.143274854 | S16: 1.134502924 | T16: 1.108187135 | U16: 1.084795322 | V16: 1.061403509 | W16: 1.005847953 | X16: 0.9561403509 | Y16: 0.6 | Z16: 0.59 | AA16: 0.6 | AB16: 0.615 | AC16: 0.63 | AD16: 0.7 | AE16: 0.71 | AF16: 0.8245925926 | AG16: 0.7037037037 | AH16: 0.6321481481 | AI16: 0.6431851852 | AJ16: 0.6528888889 | AK16: 0.8820740741 | AL16: 0.646962963 | AM16: =Y16*C16+($A$4-80)*AF16*$A$16/1000 -> 16.46315789 | AN16: =Z16*E16+($A$4-80)*AG16*$A$16/1000 -> 16.0645614 | AO16: =AA16*G16+($A$4-80)*AH16*$A$16/1000 -> 15.95789474 | AP16: =AB16*I16+($A$4-80)*AI16*$A$16/1000 -> 16.01157895 | AQ16: =AC16*K16+($A$4-80)*AJ16*$A$16/1000 -> 16.04842105 | AR16: =AD16*M16+($A$4-80)*AK16*$A$16/1000 -> 16.89824561 | AS16: =AE16*O16+($A$4-80)*AL16*$A$16/1000 -> 16.29263158
B17: 67 | C17: 26.31578947 | D17: 18.94736842 | E17: 26.10526316 | F17: 19.05684211 | G17: 25.47368421 | H17: 19.36 | I17: 24.9122807 | J17: 19.05789474 | K17: 24.35087719 | L17: 18.75017544 | M17: 23.01754386 | N17: 18.41403509 | O17: 21.8245614 | P17: 18.55087719 | R17: 1.096491228 | S17: 1.087719298 | T17: 1.061403509 | U17: 1.038011696 | V17: 1.014619883 | W17: 0.9590643275 | X17: 0.9093567251 | Y17: 0.72 | Z17: 0.73 | AA17: 0.76 | AB17: 0.765 | AC17: 0.77 | AD17: 0.8 | AE17: 0.85 | AF17: 0.6755555556 | AG17: 0.6794074074 | AH17: 0.7177777778 | AI17: 0.6716296296 | AJ17: 0.6265185185 | AK17: 0.6416296296 | AL17: 0.6202962963 | AM17: =Y17*C17+($A$4-80)*AF17*$A$16/1000 -> 18.94736842 | AN17: =Z17*E17+($A$4-80)*AG17*$A$16/1000 -> 19.05684211 | AO17: =AA17*G17+($A$4-80)*AH17*$A$16/1000 -> 19.36 | AP17: =AB17*I17+($A$4-80)*AI17*$A$16/1000 -> 19.05789474 | AQ17: =AC17*K17+($A$4-80)*AJ17*$A$16/1000 -> 18.75017544 | AR17: =AD17*M17+($A$4-80)*AK17*$A$16/1000 -> 18.41403509 | AS17: =AE17*O17+($A$4-80)*AL17*$A$16/1000 -> 18.55087719
B18: 63 | C18: 25.61403509 | D18: 22.02807018 | E18: 25.40350877 | F18: 21.84701754 | G18: 24.77192982 | H18: 22.04701754 | I18: 24.21052632 | J18: 22.87894737 | K18: 23.64912281 | L18: 23.64912281 | M18: 22.31578947 | N18: 22.31578947 | O18: 21.12280702 | P18: 21.12280702 | R18: 1.067251462 | S18: 1.058479532 | T18: 1.032163743 | U18: 1.00877193 | V18: 0.985380117 | W18: 0.9298245614 | X18: 0.8801169591 | Y18: 0.86 | Z18: 0.86 | AA18: 0.89 | AB18: 0.945 | AC18: 1 | AD18: 1 | AE18: 1 | AF18: 0.7245925926 | AG18: 0.6654814815 | AH18: 0.6503703704 | AI18: 0.8918518519 | AJ18: 1.121481481 | AK18: 0.9191111111 | AL18: 0.02962962963 | AM18: =Y18*C18+($A$4-80)*AF18*$A$16/1000 -> 22.02807018 | AN18: =Z18*E18+($A$4-80)*AG18*$A$16/1000 -> 21.84701754 | AO18: =AA18*G18+($A$4-80)*AH18*$A$16/1000 -> 22.04701754 | AP18: =AB18*I18+($A$4-80)*AI18*$A$16/1000 -> 22.87894737 | AQ18: =AC18*K18+($A$4-80)*AJ18*$A$16/1000 -> 23.64912281 | AR18: =AD18*M18+($A$4-80)*AK18*$A$16/1000 -> 22.31578947 | AS18: =AE18*O18+($A$4-80)*AL18*$A$16/1000 -> 21.12280702
B19: 59 | C19: 25.26315789 | D19: 25.26315789 | E19: 25.05263158 | F19: 25.05263158 | G19: 24.42105263 | H19: 24.42105263 | I19: 23.85964912 | J19: 23.85964912 | K19: 23.29824561 | L19: 23.29824561 | M19: 21.96491228 | N19: 21.96491228 | O19: 20.77192982 | P19: 20.77192982 | R19: 1.052631579 | S19: 1.043859649 | T19: 1.01754386 | U19: 0.9941520468 | V19: 0.9707602339 | W19: 0.9152046784 | X19: 0.865497076 | Y19: 1 | Z19: 1 | AA19: 1 | AB19: 1 | AC19: 1 | AD19: 1 | AE19: 1 | AF19: 1.037333333 | AG19: 0.9762962963 | AH19: 0.02962962963 | AI19: 0.02962962963 | AJ19: 0.02962962963 | AK19: 0.02962962963 | AL19: 0.02962962963 | AM19: =Y19*C19+($A$4-80)*AF19*$A$16/1000 -> 25.26315789 | AN19: =Z19*E19+($A$4-80)*AG19*$A$16/1000 -> 25.05263158 | AO19: =AA19*G19+($A$4-80)*AH19*$A$16/1000 -> 24.42105263 | AP19: =AB19*I19+($A$4-80)*AI19*$A$16/1000 -> 23.85964912 | AQ19: =AC19*K19+($A$4-80)*AJ19*$A$16/1000 -> 23.29824561 | AR19: =AD19*M19+($A$4-80)*AK19*$A$16/1000 -> 21.96491228 | AS19: =AE19*O19+($A$4-80)*AL19*$A$16/1000 -> 20.77192982

Sheet GSX140_37 (hidden)
A2: GSX140_37
A3: Evaporator Air | C3: Condenser Entering Air Temperature ˚F
A4: 80 | B4: °F DB | C4: 65 | E4: 75 | G4: 85 | I4: 90 | K4: 95 | M4: 105 | O4: 115
A5: CFM | B5: EWB† ˚F | C5: Capacity Mbtuh | E5: Capacity Mbtuh | G5: Capacity Mbtuh | I5: Capacity Mbtuh | K5: Capacity Mbtuh | M5: Capacity Mbtuh | O5: Capacity Mbtuh
C6: Total | D6: Sens. | E6: Total | F6: Sens. | G6: Total | H6: Sens. | I6: Total | J6: Sens. | K6: Total | L6: Sens. | M6: Total | N6: Sens. | O6: Total | P6: Sens.
R7: Total Factors | Y7: Sens. % | AF7: IDB Adj | AM7: Sens Calc
A8: 1100 | B8: 71 | C8: =R8*$K$13 -> 26.72093023 | D8: =IF(AM8>C8,C8,AM8) -> 16.03255814 | E8: =S8*$K$13 -> 26.51162791 | F8: =IF(AN8>E8,E8,AN8) -> 15.11162791 | G8: =T8*$K$13 -> 25.88372093 | H8: =IF(AO8>G8,G8,AO8) -> 15.53023256 | I8: =U8*$K$13 -> 25.36046512 | J8: =IF(AP8>I8,I8,AP8) -> 15.3430814 | K8: =V8*$K$13 -> 24.8372093 | L8: =IF(AQ8>K8,K8,AQ8) -> 15.15069767 | M8: =W8*$K$13 -> 23.51162791 | N8: =IF(AR8>M8,M8,AR8) -> 14.10697674 | O8: =X8*$K$13 -> 22.25581395 | P8: =IF(AS8>O8,O8,AS8) -> 15.35651163 | R8: 1.113372093 | S8: 1.104651163 | T8: 1.078488372 | U8: 1.056686047 | V8: 1.034883721 | W8: 0.9796511628 | X8: 0.9273255814 | Y8: 0.6 | Z8: 0.57 | AA8: 0.6 | AB8: 0.605 | AC8: 0.61 | AD8: 0.6 | AE8: 0.69 | AF8: 1.122181818 | AG8: 0.8372727273 | AH8: 0.8854545455 | AI8: 0.8392272727 | AJ8: 0.7945454545 | AK8: 0.57 | AL8: 0.7641818182 | AM8: =Y8*C8+($A$4-80)*AF8*$A$8/1000 -> 16.03255814 | AN8: =Z8*E8+($A$4-80)*AG8*$A$8/1000 -> 15.11162791 | AO8: =AA8*G8+($A$4-80)*AH8*$A$8/1000 -> 15.53023256 | AP8: =AB8*I8+($A$4-80)*AI8*$A$8/1000 -> 15.3430814 | AQ8: =AC8*K8+($A$4-80)*AJ8*$A$8/1000 -> 15.15069767 | AR8: =AD8*M8+($A$4-80)*AK8*$A$8/1000 -> 14.10697674 | AS8: =AE8*O8+($A$4-80)*AL8*$A$8/1000 -> 15.35651163
B9: 67 | C9: 25.6744186 | D9: 18.22883721 | E9: 25.46511628 | F9: 18.08023256 | G9: 24.8372093 | H9: 18.37953488 | I9: 24.27906977 | J9: 18.20930233 | K9: =V9*$K$13 -> 23.72093023 | L9: 18.02790698 | M9: 22.39534884 | N9: 17.46837209 | O9: 21.20930233 | P9: 17.60372093 | R9: 1.069767442 | S9: 1.061046512 | T9: 1.034883721 | U9: 1.011627907 | V9: 0.988372093 | W9: 0.9331395349 | X9: 0.8837209302 | Y9: 0.71 | Z9: 0.71 | AA9: 0.74 | AB9: 0.75 | AC9: 0.76 | AD9: 0.78 | AE9: 0.83 | AF9: 0.8909090909 | AG9: 0.8178181818 | AH9: 0.8636363636 | AI9: 0.8450909091 | AJ9: 0.8265454545 | AK9: 0.7823636364 | AL9: 0.6890909091 | AM9: =Y9*C9+($A$4-80)*AF9*$A$8/1000 -> 18.22883721 | AN9: =Z9*E9+($A$4-80)*AG9*$A$8/1000 -> 18.08023256 | AO9: =AA9*G9+($A$4-80)*AH9*$A$8/1000 -> 18.37953488 | AP9: =AB9*I9+($A$4-80)*AI9*$A$8/1000 -> 18.20930233 | AQ9: =AC9*K9+($A$4-80)*AJ9*$A$8/1000 -> 18.02790698 | AR9: =AD9*M9+($A$4-80)*AK9*$A$8/1000 -> 17.46837209 | AS9: =AE9*O9+($A$4-80)*AL9*$A$8/1000 -> 17.60372093
B10: 63 | C10: 24.90697674 | D10: 20.92186047 | E10: 24.69767442 | F10: 20.99302326 | G10: 24.06976744 | H10: 20.94069767 | I10: 23.54651163 | J10: 20.72093023 | K10: =V10*$K$13 -> 23.02325581 | L10: 20.49069767 | M10: 21.69767442 | N10: 21.69767442 | O10: 20.44186047 | P10: 20.44186047 | R10: 1.037790698 | S10: 1.029069767 | T10: 1.002906977 | U10: 0.9811046512 | V10: 0.9593023256 | W10: 0.9040697674 | X10: 0.851744186 | Y10: 0.84 | Z10: 0.85 | AA10: 0.87 | AB10: 0.88 | AC10: 0.89 | AD10: 1 | AE10: 1 | AF10: 0.792 | AG10: 0.8629090909 | AH10: 0.78 | AI10: 0.764 | AJ10: 0.748 | AK10: 1.216181818 | AL10: 0.8676363636 | AM10: =Y10*C10+($A$4-80)*AF10*$A$8/1000 -> 20.92186047 | AN10: =Z10*E10+($A$4-80)*AG10*$A$8/1000 -> 20.99302326 | AO10: =AA10*G10+($A$4-80)*AH10*$A$8/1000 -> 20.94069767 | AP10: =AB10*I10+($A$4-80)*AI10*$A$8/1000 -> 20.72093023 | AQ10: =AC10*K10+($A$4-80)*AJ10*$A$8/1000 -> 20.49069767 | AR10: =AD10*M10+($A$4-80)*AK10*$A$8/1000 -> 21.69767442 | AS10: =AE10*O10+($A$4-80)*AL10*$A$8/1000 -> 20.44186047
B11: 59 | C11: 24.55813953 | D11: 22.59348837 | E11: 24.34883721 | F11: 24.34883721 | G11: 23.72093023 | H11: 23.72093023 | I11: 23.19767442 | J11: 23.19767442 | K11: =V11*$K$13 -> 22.6744186 | L11: 22.6744186 | M11: 21.34883721 | N11: 21.34883721 | O11: 20.09302326 | P11: 20.09302326 | R11: 1.023255814 | S11: 1.014534884 | T11: 0.988372093 | U11: 0.9665697674 | V11: 0.9447674419 | W11: 0.8895348837 | X11: 0.8372093023 | Y11: 0.92 | Z11: 1 | AA11: 1 | AB11: 1 | AC11: 1 | AD11: 1 | AE11: 1 | AF11: 0.8463636364 | AG11: 1.283636364 | AH11: 0.01818181818 | AI11: 0.02727272727 | AJ11: 0.03636363636 | AK11: 0.03636363636 | AL11: 0.01818181818 | AM11: =Y11*C11+($A$4-80)*AF11*$A$8/1000 -> 22.59348837 | AN11: =Z11*E11+($A$4-80)*AG11*$A$8/1000 -> 24.34883721 | AO11: =AA11*G11+($A$4-80)*AH11*$A$8/1000 -> 23.72093023 | AP11: =AB11*I11+($A$4-80)*AI11*$A$8/1000 -> 23.19767442 | AQ11: =AC11*K11+($A$4-80)*AJ11*$A$8/1000 -> 22.6744186 | AR11: =AD11*M11+($A$4-80)*AK11*$A$8/1000 -> 21.34883721 | AS11: =AE11*O11+($A$4-80)*AL11*$A$8/1000 -> 20.09302326
A12: 1200 | B12: 71 | C12: 27 | D12: 16.2 | E12: 26.79069767 | F12: 16.0744186 | G12: 26.1627907 | H12: 15.69767442 | I12: 25.63953488 | J12: 15.89651163 | K12: =V12*$K$13 -> 25.11627907 | L12: 16.0744186 | M12: 23.79069767 | N12: 16.65348837 | O12: 22.53488372 | P12: 16.22511628 | R12: 1.125 | S12: 1.11627907 | T12: 1.090116279 | U12: 1.068313953 | V12: 1.046511628 | W12: 0.9912790698 | X12: 0.9389534884 | Y12: 0.6 | Z12: 0.6 | AA12: 0.6 | AB12: 0.62 | AC12: 0.64 | AD12: 0.7 | AE12: 0.72 | AF12: 0.8463333333 | AG12: 0.8476666667 | AH12: 0.6416666667 | AI12: 0.69075 | AJ12: 0.7373333333 | AK12: 0.9273333333 | AL12: 0.7096666667 | AM12: =Y12*C12+($A$4-80)*AF12*$A$12/1000 -> 16.2 | AN12: =Z12*E12+($A$4-80)*AG12*$A$12/1000 -> 16.0744186 | AO12: =AA12*G12+($A$4-80)*AH12*$A$12/1000 -> 15.69767442 | AP12: =AB12*I12+($A$4-80)*AI12*$A$12/1000 -> 15.89651163 | AQ12: =AC12*K12+($A$4-80)*AJ12*$A$12/1000 -> 16.0744186 | AR12: =AD12*M12+($A$4-80)*AK12*$A$12/1000 -> 16.65348837 | AS12: =AE12*O12+($A$4-80)*AL12*$A$12/1000 -> 16.22511628
B13: 67 | C13: 25.95348837 | D13: 18.94604651 | E13: 25.6744186 | F13: 18.99906977 | G13: 25.04651163 | H13: 19.03534884 | I13: 24.52325581 | J13: 18.88290698 | K13: 24 | L13: 18.72 | M13: 22.6744186 | N13: 18.36627907 | O13: 21.48837209 | P13: 18.48 | R13: 1.081395349 | S13: 1.069767442 | T13: 1.043604651 | U13: 1.021802326 | V13: 1 | W13: 0.9447674419 | X13: 0.8953488372 | Y13: 0.73 | Z13: 0.74 | AA13: 0.76 | AB13: 0.77 | AC13: 0.78 | AD13: 0.81 | AE13: 0.86 | AF13: 0.7643333333 | AG13: 0.8075 | AH13: 0.7286666667 | AI13: 0.71925 | AJ13: 0.71 | AK13: 0.7268333333 | AL13: 0.6916666667 | AM13: =Y13*C13+($A$4-80)*AF13*$A$12/1000 -> 18.94604651 | AN13: =Z13*E13+($A$4-80)*AG13*$A$12/1000 -> 18.99906977 | AO13: =AA13*G13+($A$4-80)*AH13*$A$12/1000 -> 19.03534884 | AP13: =AB13*I13+($A$4-80)*AI13*$A$12/1000 -> 18.88290698 | AQ13: =AC13*K13+($A$4-80)*AJ13*$A$12/1000 -> 18.72 | AR13: =AD13*M13+($A$4-80)*AK13*$A$12/1000 -> 18.36627907 | AS13: =AE13*O13+($A$4-80)*AL13*$A$12/1000 -> 18.48
B14: 63 | C14: 25.18604651 | D14: 21.91186047 | E14: 24.97674419 | F14: 21.72976744 | G14: 24.34883721 | H14: 21.91395349 | I14: 23.8255814 | J14: 21.68127907 | K14: =V14*$K$13 -> 23.30232558 | L14: 21.43813953 | M14: 21.97674419 | N14: 21.97674419 | O14: 20.72093023 | P14: 20.72093023 | R14: 1.049418605 | S14: 1.040697674 | T14: 1.014534884 | U14: 0.9927325581 | V14: 0.9709302326 | W14: 0.9156976744 | X14: 0.863372093 | Y14: 0.87 | Z14: 0.87 | AA14: 0.9 | AB14: 0.91 | AC14: 0.92 | AD14: 1 | AE14: 1 | AF14: 0.8068333333 | AG14: 0.741 | AH14: 0.7818333333 | AI14: 0.7659166667 | AJ14: 0.75 | AK14: 0.9723333333 | AL14: 0.03333333333 | AM14: =Y14*C14+($A$4-80)*AF14*$A$12/1000 -> 21.91186047 | AN14: =Z14*E14+($A$4-80)*AG14*$A$12/1000 -> 21.72976744 | AO14: =AA14*G14+($A$4-80)*AH14*$A$12/1000 -> 21.91395349 | AP14: =AB14*I14+($A$4-80)*AI14*$A$12/1000 -> 21.68127907 | AQ14: =AC14*K14+($A$4-80)*AJ14*$A$12/1000 -> 21.43813953 | AR14: =AD14*M14+($A$4-80)*AK14*$A$12/1000 -> 21.97674419 | AS14: =AE14*O14+($A$4-80)*AL14*$A$12/1000 -> 20.72093023
B15: 59 | C15: 24.8372093 | D15: 24.8372093 | E15: 24.62790698 | F15: 24.62790698 | G15: 24 | H15: 24 | I15: 23.47674419 | J15: 23.47674419 | K15: 22.95348837 | L15: 22.95348837 | M15: 21.62790698 | N15: 21.62790698 | O15: 20.37209302 | P15: 20.37209302 | R15: 1.034883721 | S15: 1.026162791 | T15: 1 | U15: 0.9781976744 | V15: 0.9563953488 | W15: 0.9011627907 | X15: 0.8488372093 | Y15: 1 | Z15: 1 | AA15: 1 | AB15: 1 | AC15: 1 | AD15: 1 | AE15: 1 | AF15: 1.081666667 | AG15: 1.027833333 | AH15: 0.03333333333 | AI15: 0.03333333333 | AJ15: 0.03333333333 | AK15: 0.03333333333 | AL15: 0.01666666667 | AM15: =Y15*C15+($A$4-80)*AF15*$A$12/1000 -> 24.8372093 | AN15: =Z15*E15+($A$4-80)*AG15*$A$12/1000 -> 24.62790698 | AO15: =AA15*G15+($A$4-80)*AH15*$A$12/1000 -> 24 | AP15: =AB15*I15+($A$4-80)*AI15*$A$12/1000 -> 23.47674419 | AQ15: =AC15*K15+($A$4-80)*AJ15*$A$12/1000 -> 22.95348837 | AR15: =AD15*M15+($A$4-80)*AK15*$A$12/1000 -> 21.62790698 | AS15: =AE15*O15+($A$4-80)*AL15*$A$12/1000 -> 20.37209302
A16: 1350 | B16: 71 | C16: 27.48837209 | D16: 16.49302326 | E16: 27.27906977 | F16: 16.64023256 | G16: 26.65116279 | H16: 15.99069767 | I16: 26.12790698 | J16: 16.4605814 | K16: 25.60465116 | L16: 16.89906977 | M16: 24.27906977 | N16: 16.99534884 | O16: 23.02325581 | P16: 16.80697674 | R16: 1.145348837 | S16: 1.136627907 | T16: 1.110465116 | U16: 1.088662791 | V16: 1.066860465 | W16: 1.011627907 | X16: 0.9593023256 | Y16: 0.6 | Z16: 0.61 | AA16: 0.6 | AB16: 0.63 | AC16: 0.66 | AD16: 0.7 | AE16: 0.73 | AF16: 0.7146666667 | AG16: 0.7096296296 | AH16: 0.5244444444 | AI16: 0.6257037037 | AJ16: 0.7225185185 | AK16: 0.7383703704 | AL16: 0.6047407407 | AM16: =Y16*C16+($A$4-80)*AF16*$A$16/1000 -> 16.49302326 | AN16: =Z16*E16+($A$4-80)*AG16*$A$16/1000 -> 16.64023256 | AO16: =AA16*G16+($A$4-80)*AH16*$A$16/1000 -> 15.99069767 | AP16: =AB16*I16+($A$4-80)*AI16*$A$16/1000 -> 16.4605814 | AQ16: =AC16*K16+($A$4-80)*AJ16*$A$16/1000 -> 16.89906977 | AR16: =AD16*M16+($A$4-80)*AK16*$A$16/1000 -> 16.99534884 | AS16: =AE16*O16+($A$4-80)*AL16*$A$16/1000 -> 16.80697674
B17: 67 | C17: 26.37209302 | D17: 19.77906977 | E17: 26.1627907 | F17: 19.88372093 | G17: 25.53488372 | H17: 19.9172093 | I17: 25.01162791 | J17: 19.75918605 | K17: 24.48837209 | L17: 19.59069767 | M17: 23.1627907 | N17: 18.99348837 | O17: 21.90697674 | P17: 19.27813953 | R17: 1.098837209 | S17: 1.090116279 | T17: 1.063953488 | U17: 1.042151163 | V17: 1.020348837 | W17: 0.9651162791 | X17: 0.9127906977 | Y17: 0.75 | Z17: 0.76 | AA17: 0.78 | AB17: 0.79 | AC17: 0.8 | AD17: 0.82 | AE17: 0.88 | AF17: 0.6813333333 | AG17: 0.7315555556 | AH17: 0.6702222222 | AI17: 0.6571851852 | AJ17: 0.6441481481 | AK17: 0.610962963 | AL17: 0.6158518519 | AM17: =Y17*C17+($A$4-80)*AF17*$A$16/1000 -> 19.77906977 | AN17: =Z17*E17+($A$4-80)*AG17*$A$16/1000 -> 19.88372093 | AO17: =AA17*G17+($A$4-80)*AH17*$A$16/1000 -> 19.9172093 | AP17: =AB17*I17+($A$4-80)*AI17*$A$16/1000 -> 19.75918605 | AQ17: =AC17*K17+($A$4-80)*AJ17*$A$16/1000 -> 19.59069767 | AR17: =AD17*M17+($A$4-80)*AK17*$A$16/1000 -> 18.99348837 | AS17: =AE17*O17+($A$4-80)*AL17*$A$16/1000 -> 19.27813953
B18: 63 | C18: 25.6744186 | D18: 22.85023256 | E18: 25.46511628 | F18: 22.66395349 | G18: 24.8372093 | H18: 22.85023256 | I18: 24.27906977 | J18: 23.30790698 | K18: 23.72093023 | L18: 23.72093023 | M18: 22.39534884 | N18: 22.39534884 | O18: 21.20930233 | P18: 21.20930233 | R18: 1.069767442 | S18: 1.061046512 | T18: 1.034883721 | U18: 1.011627907 | V18: 0.988372093 | W18: 0.9331395349 | X18: 0.8837209302 | Y18: 0.89 | Z18: 0.89 | AA18: 0.92 | AB18: 0.96 | AC18: 1 | AD18: 1 | AE18: 1 | AF18: 0.7312592593 | AG18: 0.6717037037 | AH18: 0.709037037 | AI18: 0.8426666667 | AJ18: 0.969037037 | AK18: 0.8207407407 | AL18: 0.02962962963 | AM18: =Y18*C18+($A$4-80)*AF18*$A$16/1000 -> 22.85023256 | AN18: =Z18*E18+($A$4-80)*AG18*$A$16/1000 -> 22.66395349 | AO18: =AA18*G18+($A$4-80)*AH18*$A$16/1000 -> 22.85023256 | AP18: =AB18*I18+($A$4-80)*AI18*$A$16/1000 -> 23.30790698 | AQ18: =AC18*K18+($A$4-80)*AJ18*$A$16/1000 -> 23.72093023 | AR18: =AD18*M18+($A$4-80)*AK18*$A$16/1000 -> 22.39534884 | AS18: =AE18*O18+($A$4-80)*AL18*$A$16/1000 -> 21.20930233
B19: 59 | C19: 25.3255814 | D19: 25.3255814 | E19: 25.11627907 | F19: 25.11627907 | G19: 24.48837209 | H19: 24.48837209 | I19: 23.96511628 | J19: 23.96511628 | K19: 23.44186047 | L19: 23.44186047 | M19: 22.11627907 | N19: 22.11627907 | O19: 20.86046512 | P19: 20.86046512 | R19: 1.055232558 | S19: 1.046511628 | T19: 1.020348837 | U19: 0.9985465116 | V19: 0.976744186 | W19: 0.9215116279 | X19: 0.8691860465 | Y19: 1 | Z19: 1 | AA19: 1 | AB19: 1 | AC19: 1 | AD19: 1 | AE19: 1 | AF19: 0.8853333333 | AG19: 0.8782222222 | AH19: 0.02962962963 | AI19: 0.02962962963 | AJ19: 0.02962962963 | AK19: 0.02962962963 | AL19: 0.02962962963 | AM19: =Y19*C19+($A$4-80)*AF19*$A$16/1000 -> 25.3255814 | AN19: =Z19*E19+($A$4-80)*AG19*$A$16/1000 -> 25.11627907 | AO19: =AA19*G19+($A$4-80)*AH19*$A$16/1000 -> 24.48837209 | AP19: =AB19*I19+($A$4-80)*AI19*$A$16/1000 -> 23.96511628 | AQ19: =AC19*K19+($A$4-80)*AJ19*$A$16/1000 -> 23.44186047 | AR19: =AD19*M19+($A$4-80)*AK19*$A$16/1000 -> 22.11627907 | AS19: =AE19*O19+($A$4-80)*AL19*$A$16/1000 -> 20.86046512

Sheet GSX140_42 (hidden)
A2: GSX140_42
A3: Evaporator Air | C3: Condenser Entering Air Temperature ˚F
A4: 80 | B4: °F DB | C4: 65 | E4: 75 | G4: 85 | I4: 90 | K4: 95 | M4: 105 | O4: 115
A5: CFM | B5: EWB† ˚F | C5: Capacity Mbtuh | E5: Capacity Mbtuh | G5: Capacity Mbtuh | I5: Capacity Mbtuh | K5: Capacity Mbtuh | M5: Capacity Mbtuh | O5: Capacity Mbtuh
C6: Total | D6: Sens. | E6: Total | F6: Sens. | G6: Total | H6: Sens. | I6: Total | J6: Sens. | K6: Total | L6: Sens. | M6: Total | N6: Sens. | O6: Total | P6: Sens.
R7: Total Factors | Y7: Sens. % | AF7: IDB Adj | AM7: Sens Calc
A8: 1225 | B8: 71 | C8: =R8*$K$13 -> 26.76923077 | D8: =IF(AM8>C8,C8,AM8) -> 13.38461538 | E8: =S8*$K$13 -> 26.52307692 | F8: =IF(AN8>E8,E8,AN8) -> 14.05723077 | G8: =T8*$K$13 -> 25.90769231 | H8: =IF(AO8>G8,G8,AO8) -> 15.54461538 | I8: =U8*$K$13 -> 25.35384615 | J8: =IF(AP8>I8,I8,AP8) -> 14.95876923 | K8: =V8*$K$13 -> 24.8 | L8: =IF(AQ8>K8,K8,AQ8) -> 14.384 | M8: =W8*$K$13 -> 23.44615385 | N8: =IF(AR8>M8,M8,AR8) -> 14.06769231 | O8: =X8*$K$13 -> 22.21538462 | P8: =IF(AS8>O8,O8,AS8) -> 14.66215385 | R8: 1.115384615 | S8: 1.105128205 | T8: 1.079487179 | U8: 1.056410256 | V8: 1.033333333 | W8: 0.9769230769 | X8: 0.9256410256 | Y8: 0.5 | Z8: 0.53 | AA8: 0.6 | AB8: 0.59 | AC8: 0.58 | AD8: 0.6 | AE8: 0.66 | AF8: 0.7232653061 | AG8: 0.9278367347 | AH8: 1.182530612 | AI8: 1.023346939 | AJ8: 0.8700408163 | AK8: 0.824 | AL8: 0.7835102041 | AM8: =Y8*C8+($A$4-80)*AF8*$A$8/1000 -> 13.38461538 | AN8: =Z8*E8+($A$4-80)*AG8*$A$8/1000 -> 14.05723077 | AO8: =AA8*G8+($A$4-80)*AH8*$A$8/1000 -> 15.54461538 | AP8: =AB8*I8+($A$4-80)*AI8*$A$8/1000 -> 14.95876923 | AQ8: =AC8*K8+($A$4-80)*AJ8*$A$8/1000 -> 14.384 | AR8: =AD8*M8+($A$4-80)*AK8*$A$8/1000 -> 14.06769231 | AS8: =AE8*O8+($A$4-80)*AL8*$A$8/1000 -> 14.66215385
B9: 67 | C9: 25.66153846 | D9: 17.44984615 | E9: 25.41538462 | F9: 17.28246154 | G9: 24.8 | H9: 17.608 | I9: 24.24615385 | J9: 17.45723077 | K9: =V9*$K$13 -> 23.69230769 | L9: 17.29538462 | M9: 22.33846154 | N9: 16.75384615 | O9: 21.10769231 | P9: 17.09723077 | R9: 1.069230769 | S9: 1.058974359 | T9: 1.033333333 | U9: 1.01025641 | V9: 0.9871794872 | W9: 0.9307692308 | X9: 0.8794871795 | Y9: 0.68 | Z9: 0.68 | AA9: 0.71 | AB9: 0.72 | AC9: 0.73 | AD9: 0.75 | AE9: 0.81 | AF9: 0.912 | AG9: 0.8945306122 | AH9: 0.8742857143 | AI9: 0.8555102041 | AJ9: 0.8367346939 | AK9: 0.7906938776 | AL9: 0.805877551 | AM9: =Y9*C9+($A$4-80)*AF9*$A$8/1000 -> 17.44984615 | AN9: =Z9*E9+($A$4-80)*AG9*$A$8/1000 -> 17.28246154 | AO9: =AA9*G9+($A$4-80)*AH9*$A$8/1000 -> 17.608 | AP9: =AB9*I9+($A$4-80)*AI9*$A$8/1000 -> 17.45723077 | AQ9: =AC9*K9+($A$4-80)*AJ9*$A$8/1000 -> 17.29538462 | AR9: =AD9*M9+($A$4-80)*AK9*$A$8/1000 -> 16.75384615 | AS9: =AE9*O9+($A$4-80)*AL9*$A$8/1000 -> 17.09723077
B10: 63 | C10: 24.92307692 | D10: 20.43692308 | E10: 24.67692308 | F10: 20.23507692 | G10: 24.06153846 | H10: 20.45230769 | I10: 23.50769231 | J10: 21.74461538 | K10: =V10*$K$13 -> 22.95384615 | L10: 22.95384615 | M10: 21.6 | N10: 21.6 | O10: 20.36923077 | P10: 20.36923077 | R10: 1.038461538 | S10: 1.028205128 | T10: 1.002564103 | U10: 0.9794871795 | V10: 0.9564102564 | W10: 0.9 | X10: 0.8487179487 | Y10: 0.82 | Z10: 0.82 | AA10: 0.85 | AB10: 0.925 | AC10: 1 | AD10: 1 | AE10: 1 | AF10: 0.882122449 | AG10: 0.8736326531 | AH10: 0.8533877551 | AI10: 1.24 | AJ10: 1.607510204 | AK10: 1.400163265 | AL10: 0.03265306122 | AM10: =Y10*C10+($A$4-80)*AF10*$A$8/1000 -> 20.43692308 | AN10: =Z10*E10+($A$4-80)*AG10*$A$8/1000 -> 20.23507692 | AO10: =AA10*G10+($A$4-80)*AH10*$A$8/1000 -> 20.45230769 | AP10: =AB10*I10+($A$4-80)*AI10*$A$8/1000 -> 21.74461538 | AQ10: =AC10*K10+($A$4-80)*AJ10*$A$8/1000 -> 22.95384615 | AR10: =AD10*M10+($A$4-80)*AK10*$A$8/1000 -> 21.6 | AS10: =AE10*O10+($A$4-80)*AL10*$A$8/1000 -> 20.36923077
B11: 59 | C11: 24.55384615 | D11: 24.55384615 | E11: 24.36923077 | F11: 24.36923077 | G11: 23.69230769 | H11: 23.69230769 | I11: 23.13846154 | J11: 23.13846154 | K11: =V11*$K$13 -> 22.58461538 | L11: 22.58461538 | M11: 21.29230769 | N11: 21.29230769 | O11: 20.06153846 | P11: 20.06153846 | R11: 1.023076923 | S11: 1.015384615 | T11: 0.9871794872 | U11: 0.9641025641 | V11: 0.941025641 | W11: 0.8871794872 | X11: 0.8358974359 | Y11: 1 | Z11: 1 | AA11: 1 | AB11: 1 | AC11: 1 | AD11: 1 | AE11: 1 | AF11: 1.523428571 | AG11: 0.04897959184 | AH11: 0.03265306122 | AI11: 0.03265306122 | AJ11: 0.03265306122 | AK11: 0.04897959184 | AL11: 0.03265306122 | AM11: =Y11*C11+($A$4-80)*AF11*$A$8/1000 -> 24.55384615 | AN11: =Z11*E11+($A$4-80)*AG11*$A$8/1000 -> 24.36923077 | AO11: =AA11*G11+($A$4-80)*AH11*$A$8/1000 -> 23.69230769 | AP11: =AB11*I11+($A$4-80)*AI11*$A$8/1000 -> 23.13846154 | AQ11: =AC11*K11+($A$4-80)*AJ11*$A$8/1000 -> 22.58461538 | AR11: =AD11*M11+($A$4-80)*AK11*$A$8/1000 -> 21.29230769 | AS11: =AE11*O11+($A$4-80)*AL11*$A$8/1000 -> 20.06153846
A12: 1400 | B12: 71 | C12: 27.07692308 | D12: 16.24615385 | E12: 26.83076923 | F12: 16.09846154 | G12: 26.21538462 | H12: 15.72923077 | I12: 25.66153846 | J12: 15.91015385 | K12: =V12*$K$13 -> 25.10769231 | L12: 16.06892308 | M12: 23.75384615 | N12: 16.62769231 | O12: 22.52307692 | P12: 16.21661538 | R12: 1.128205128 | S12: 1.117948718 | T12: 1.092307692 | U12: 1.069230769 | V12: 1.046153846 | W12: 0.9897435897 | X12: 0.9384615385 | Y12: 0.6 | Z12: 0.6 | AA12: 0.6 | AB12: 0.62 | AC12: 0.64 | AD12: 0.7 | AE12: 0.72 | AF12: 0.8931428571 | AG12: 0.8231428571 | AH12: 0.6834285714 | AI12: 0.7291428571 | AJ12: 0.7722857143 | AK12: 0.9525714286 | AL12: 0.6965714286 | AM12: =Y12*C12+($A$4-80)*AF12*$A$12/1000 -> 16.24615385 | AN12: =Z12*E12+($A$4-80)*AG12*$A$12/1000 -> 16.09846154 | AO12: =AA12*G12+($A$4-80)*AH12*$A$12/1000 -> 15.72923077 | AP12: =AB12*I12+($A$4-80)*AI12*$A$12/1000 -> 15.91015385 | AQ12: =AC12*K12+($A$4-80)*AJ12*$A$12/1000 -> 16.06892308 | AR12: =AD12*M12+($A$4-80)*AK12*$A$12/1000 -> 16.62769231 | AS12: =AE12*O12+($A$4-80)*AL12*$A$12/1000 -> 16.21661538
B13: 67 | C13: 25.96923077 | D13: 19.21723077 | E13: 25.72307692 | F13: 19.03507692 | G13: 25.10769231 | H13: 19.33292308 | I13: 24.55384615 | J13: 19.152 | K13: 24 | L13: 18.96 | M13: 22.64615385 | N13: 18.34338462 | O13: 21.41538462 | P13: 18.63138462 | R13: 1.082051282 | S13: 1.071794872 | T13: 1.046153846 | U13: 1.023076923 | V13: 1 | W13: 0.9435897436 | X13: 0.8923076923 | Y13: 0.74 | Z13: 0.74 | AA13: 0.77 | AB13: 0.78 | AC13: 0.79 | AD13: 0.81 | AE13: 0.87 | AF13: 0.8011428571 | AG13: 0.7937142857 | AH13: 0.776 | AI13: 0.7595714286 | AJ13: 0.7431428571 | AK13: 0.7028571429 | AL13: 0.6674285714 | AM13: =Y13*C13+($A$4-80)*AF13*$A$12/1000 -> 19.21723077 | AN13: =Z13*E13+($A$4-80)*AG13*$A$12/1000 -> 19.03507692 | AO13: =AA13*G13+($A$4-80)*AH13*$A$12/1000 -> 19.33292308 | AP13: =AB13*I13+($A$4-80)*AI13*$A$12/1000 -> 19.152 | AQ13: =AC13*K13+($A$4-80)*AJ13*$A$12/1000 -> 18.96 | AR13: =AD13*M13+($A$4-80)*AK13*$A$12/1000 -> 18.34338462 | AS13: =AE13*O13+($A$4-80)*AL13*$A$12/1000 -> 18.63138462
B14: 63 | C14: 25.23076923 | D14: 22.20307692 | E14: 24.98461538 | F14: 22.23630769 | G14: 24.36923077 | H14: 22.176 | I14: 23.81538462 | J14: 22.74369231 | K14: =V14*$K$13 -> 23.26153846 | L14: 23.26153846 | M14: 21.90769231 | N14: 21.90769231 | O14: 20.67692308 | P14: 20.67692308 | R14: 1.051282051 | S14: 1.041025641 | T14: 1.015384615 | U14: 0.9923076923 | V14: 0.9692307692 | W14: 0.9128205128 | X14: 0.8615384615 | Y14: 0.88 | Z14: 0.89 | AA14: 0.91 | AB14: 0.955 | AC14: 1 | AD14: 1 | AE14: 1 | AF14: 0.7828571429 | AG14: 0.7757142857 | AH14: 0.7577142857 | AI14: 0.9347857143 | AJ14: 1.102857143 | AK14: 0.02857142857 | AL14: 0.02857142857 | AM14: =Y14*C14+($A$4-80)*AF14*$A$12/1000 -> 22.20307692 | AN14: =Z14*E14+($A$4-80)*AG14*$A$12/1000 -> 22.23630769 | AO14: =AA14*G14+($A$4-80)*AH14*$A$12/1000 -> 22.176 | AP14: =AB14*I14+($A$4-80)*AI14*$A$12/1000 -> 22.74369231 | AQ14: =AC14*K14+($A$4-80)*AJ14*$A$12/1000 -> 23.26153846 | AR14: =AD14*M14+($A$4-80)*AK14*$A$12/1000 -> 21.90769231 | AS14: =AE14*O14+($A$4-80)*AL14*$A$12/1000 -> 20.67692308
B15: 59 | C15: 24.86153846 | D15: 24.86153846 | E15: 24.67692308 | F15: 24.67692308 | G15: 24 | H15: 24 | I15: 23.47692308 | J15: 23.47692308 | K15: 22.95384615 | L15: 22.95384615 | M15: 21.6 | N15: 21.6 | O15: 20.36923077 | P15: 20.36923077 | R15: 1.035897436 | S15: 1.028205128 | T15: 1 | U15: 0.9782051282 | V15: 0.9564102564 | W15: 0.9 | X15: 0.8487179487 | Y15: 1 | Z15: 1 | AA15: 1 | AB15: 1 | AC15: 1 | AD15: 1 | AE15: 1 | AF15: 1.004857143 | AG15: 0.02857142857 | AH15: 0.02857142857 | AI15: 0.03571428571 | AJ15: 0.04285714286 | AK15: 0.02857142857 | AL15: 0.02857142857 | AM15: =Y15*C15+($A$4-80)*AF15*$A$12/1000 -> 24.86153846 | AN15: =Z15*E15+($A$4-80)*AG15*$A$12/1000 -> 24.67692308 | AO15: =AA15*G15+($A$4-80)*AH15*$A$12/1000 -> 24 | AP15: =AB15*I15+($A$4-80)*AI15*$A$12/1000 -> 23.47692308 | AQ15: =AC15*K15+($A$4-80)*AJ15*$A$12/1000 -> 22.95384615 | AR15: =AD15*M15+($A$4-80)*AK15*$A$12/1000 -> 21.6 | AS15: =AE15*O15+($A$4-80)*AL15*$A$12/1000 -> 20.36923077
A16: 1575 | B16: 71 | C16: 27.44615385 | D16: 16.46769231 | E16: 27.26153846 | F16: 17.17476923 | G16: 26.58461538 | H16: 18.60923077 | I16: 26.03076923 | J16: 17.96123077 | K16: 25.47692308 | L16: 17.32430769 | M16: 24.18461538 | N16: 16.92923077 | O16: 22.95384615 | P16: 17.21538462 | R16: 1.143589744 | S16: 1.135897436 | T16: 1.107692308 | U16: 1.084615385 | V16: 1.061538462 | W16: 1.007692308 | X16: 0.9564102564 | Y16: 0.6 | Z16: 0.63 | AA16: 0.7 | AB16: 0.69 | AC16: 0.68 | AD16: 0.7 | AE16: 0.75 | AF16: 0.6354285714 | AG16: 0.7503492063 | AH16: 0.946031746 | AI16: 0.8194285714 | AJ16: 0.6973968254 | AK16: 0.6632380952 | AL16: 0.6314920635 | AM16: =Y16*C16+($A$4-80)*AF16*$A$16/1000 -> 16.46769231 | AN16: =Z16*E16+($A$4-80)*AG16*$A$16/1000 -> 17.17476923 | AO16: =AA16*G16+($A$4-80)*AH16*$A$16/1000 -> 18.60923077 | AP16: =AB16*I16+($A$4-80)*AI16*$A$16/1000 -> 17.96123077 | AQ16: =AC16*K16+($A$4-80)*AJ16*$A$16/1000 -> 17.32430769 | AR16: =AD16*M16+($A$4-80)*AK16*$A$16/1000 -> 16.92923077 | AS16: =AE16*O16+($A$4-80)*AL16*$A$16/1000 -> 17.21538462
B17: 67 | C17: 26.33846154 | D17: 20.28061538 | E17: 26.09230769 | F17: 20.352 | G17: 25.47692308 | H17: 20.63630769 | I17: 24.92307692 | J17: 20.43692308 | K17: 24.36923077 | L17: 20.22646154 | M17: 23.01538462 | N17: 19.56307692 | O17: 21.84615385 | P17: 21.84615385 | R17: 1.097435897 | S17: 1.087179487 | T17: 1.061538462 | U17: 1.038461538 | V17: 1.015384615 | W17: 0.958974359 | X17: 0.9102564103 | Y17: 0.77 | Z17: 0.78 | AA17: 0.81 | AB17: 0.82 | AC17: 0.83 | AD17: 0.85 | AE17: 1 | AF17: 0.7227936508 | AG17: 0.7164444444 | AH17: 0.7006984127 | AI17: 0.6860952381 | AJ17: 0.6714920635 | AK17: 0.6356825397 | AL17: 1.056380952 | AM17: =Y17*C17+($A$4-80)*AF17*$A$16/1000 -> 20.28061538 | AN17: =Z17*E17+($A$4-80)*AG17*$A$16/1000 -> 20.352 | AO17: =AA17*G17+($A$4-80)*AH17*$A$16/1000 -> 20.63630769 | AP17: =AB17*I17+($A$4-80)*AI17*$A$16/1000 -> 20.43692308 | AQ17: =AC17*K17+($A$4-80)*AJ17*$A$16/1000 -> 20.22646154 | AR17: =AD17*M17+($A$4-80)*AK17*$A$16/1000 -> 19.56307692 | AS17: =AE17*O17+($A$4-80)*AL17*$A$16/1000 -> 21.84615385
B18: 63 | C18: 25.6 | D18: 23.296 | E18: 25.41538462 | F18: 23.38215385 | G18: 24.73846154 | H18: 24.73846154 | I18: 24.18461538 | J18: 24.18461538 | K18: 23.63076923 | L18: 23.63076923 | M18: 22.33846154 | N18: 22.33846154 | O18: 21.10769231 | P18: 21.10769231 | R18: 1.066666667 | S18: 1.058974359 | T18: 1.030769231 | U18: 1.007692308 | V18: 0.9846153846 | W18: 0.9307692308 | X18: 0.8794871795 | Y18: 0.91 | Z18: 0.92 | AA18: 1 | AB18: 1 | AC18: 1 | AD18: 1 | AE18: 1 | AF18: 0.7065396825 | AG18: 0.7018412698 | AH18: 0.9396825397 | AI18: 0.8694603175 | AJ18: 0.8015238095 | AK18: 0.0253968254 | AL18: 0.0253968254 | AM18: =Y18*C18+($A$4-80)*AF18*$A$16/1000 -> 23.296 | AN18: =Z18*E18+($A$4-80)*AG18*$A$16/1000 -> 23.38215385 | AO18: =AA18*G18+($A$4-80)*AH18*$A$16/1000 -> 24.73846154 | AP18: =AB18*I18+($A$4-80)*AI18*$A$16/1000 -> 24.18461538 | AQ18: =AC18*K18+($A$4-80)*AJ18*$A$16/1000 -> 23.63076923 | AR18: =AD18*M18+($A$4-80)*AK18*$A$16/1000 -> 22.33846154 | AS18: =AE18*O18+($A$4-80)*AL18*$A$16/1000 -> 21.10769231
B19: 59 | C19: 25.29230769 | D19: 25.29230769 | E19: 25.04615385 | F19: 25.04615385 | G19: 24.43076923 | H19: 24.43076923 | I19: 23.87692308 | J19: 23.87692308 | K19: 23.32307692 | L19: 23.32307692 | M19: 21.96923077 | N19: 21.96923077 | O19: 20.73846154 | P19: 20.73846154 | R19: 1.053846154 | S19: 1.043589744 | T19: 1.017948718 | U19: 0.9948717949 | V19: 0.9717948718 | W19: 0.9153846154 | X19: 0.8641025641 | Y19: 1 | Z19: 1 | AA19: 1 | AB19: 1 | AC19: 1 | AD19: 1 | AE19: 1 | AF19: 0.7634285714 | AG19: 0.0253968254 | AH19: 0.0253968254 | AI19: 0.0253968254 | AJ19: 0.0253968254 | AK19: 0.0253968254 | AL19: 0.0253968254 | AM19: =Y19*C19+($A$4-80)*AF19*$A$16/1000 -> 25.29230769 | AN19: =Z19*E19+($A$4-80)*AG19*$A$16/1000 -> 25.04615385 | AO19: =AA19*G19+($A$4-80)*AH19*$A$16/1000 -> 24.43076923 | AP19: =AB19*I19+($A$4-80)*AI19*$A$16/1000 -> 23.87692308 | AQ19: =AC19*K19+($A$4-80)*AJ19*$A$16/1000 -> 23.32307692 | AR19: =AD19*M19+($A$4-80)*AK19*$A$16/1000 -> 21.96923077 | AS19: =AE19*O19+($A$4-80)*AL19*$A$16/1000 -> 20.73846154

Sheet GSX140_43 (hidden)
A2: GSX140_43
A3: Evaporator Air | C3: Condenser Entering Air Temperature ˚F
A4: 80 | B4: °F DB | C4: 65 | E4: 75 | G4: 85 | I4: 90 | K4: 95 | M4: 105 | O4: 115
A5: CFM | B5: EWB† ˚F | C5: Capacity Mbtuh | E5: Capacity Mbtuh | G5: Capacity Mbtuh | I5: Capacity Mbtuh | K5: Capacity Mbtuh | M5: Capacity Mbtuh | O5: Capacity Mbtuh
C6: Total | D6: Sens. | E6: Total | F6: Sens. | G6: Total | H6: Sens. | I6: Total | J6: Sens. | K6: Total | L6: Sens. | M6: Total | N6: Sens. | O6: Total | P6: Sens.
R7: Total Factors | Y7: Sens. % | AF7: IDB Adj | AM7: Sens Calc
A8: 1225 | B8: 71 | C8: =R8*$K$13 -> 26.76923077 | D8: =IF(AM8>C8,C8,AM8) -> 13.38461538 | E8: =S8*$K$13 -> 26.52307692 | F8: =IF(AN8>E8,E8,AN8) -> 14.05723077 | G8: =T8*$K$13 -> 25.90769231 | H8: =IF(AO8>G8,G8,AO8) -> 15.54461538 | I8: =U8*$K$13 -> 25.35384615 | J8: =IF(AP8>I8,I8,AP8) -> 14.95876923 | K8: =V8*$K$13 -> 24.8 | L8: =IF(AQ8>K8,K8,AQ8) -> 14.384 | M8: =W8*$K$13 -> 23.44615385 | N8: =IF(AR8>M8,M8,AR8) -> 14.06769231 | O8: =X8*$K$13 -> 22.21538462 | P8: =IF(AS8>O8,O8,AS8) -> 14.66215385 | R8: 1.115384615 | S8: 1.105128205 | T8: 1.079487179 | U8: 1.056410256 | V8: 1.033333333 | W8: 0.9769230769 | X8: 0.9256410256 | Y8: 0.5 | Z8: 0.53 | AA8: 0.6 | AB8: 0.59 | AC8: 0.58 | AD8: 0.6 | AE8: 0.66 | AF8: 0.7232653061 | AG8: 0.9278367347 | AH8: 1.182530612 | AI8: 1.023346939 | AJ8: 0.8700408163 | AK8: 0.824 | AL8: 0.7835102041 | AM8: =Y8*C8+($A$4-80)*AF8*$A$8/1000 -> 13.38461538 | AN8: =Z8*E8+($A$4-80)*AG8*$A$8/1000 -> 14.05723077 | AO8: =AA8*G8+($A$4-80)*AH8*$A$8/1000 -> 15.54461538 | AP8: =AB8*I8+($A$4-80)*AI8*$A$8/1000 -> 14.95876923 | AQ8: =AC8*K8+($A$4-80)*AJ8*$A$8/1000 -> 14.384 | AR8: =AD8*M8+($A$4-80)*AK8*$A$8/1000 -> 14.06769231 | AS8: =AE8*O8+($A$4-80)*AL8*$A$8/1000 -> 14.66215385
B9: 67 | C9: 25.66153846 | D9: 17.44984615 | E9: 25.41538462 | F9: 17.28246154 | G9: 24.8 | H9: 17.608 | I9: 24.24615385 | J9: 17.45723077 | K9: =V9*$K$13 -> 23.69230769 | L9: 17.29538462 | M9: 22.33846154 | N9: 16.75384615 | O9: 21.10769231 | P9: 17.09723077 | R9: 1.069230769 | S9: 1.058974359 | T9: 1.033333333 | U9: 1.01025641 | V9: 0.9871794872 | W9: 0.9307692308 | X9: 0.8794871795 | Y9: 0.68 | Z9: 0.68 | AA9: 0.71 | AB9: 0.72 | AC9: 0.73 | AD9: 0.75 | AE9: 0.81 | AF9: 0.912 | AG9: 0.8945306122 | AH9: 0.8742857143 | AI9: 0.8555102041 | AJ9: 0.8367346939 | AK9: 0.7906938776 | AL9: 0.805877551 | AM9: =Y9*C9+($A$4-80)*AF9*$A$8/1000 -> 17.44984615 | AN9: =Z9*E9+($A$4-80)*AG9*$A$8/1000 -> 17.28246154 | AO9: =AA9*G9+($A$4-80)*AH9*$A$8/1000 -> 17.608 | AP9: =AB9*I9+($A$4-80)*AI9*$A$8/1000 -> 17.45723077 | AQ9: =AC9*K9+($A$4-80)*AJ9*$A$8/1000 -> 17.29538462 | AR9: =AD9*M9+($A$4-80)*AK9*$A$8/1000 -> 16.75384615 | AS9: =AE9*O9+($A$4-80)*AL9*$A$8/1000 -> 17.09723077
B10: 63 | C10: 24.92307692 | D10: 20.43692308 | E10: 24.67692308 | F10: 20.23507692 | G10: 24.06153846 | H10: 20.45230769 | I10: 23.50769231 | J10: 21.74461538 | K10: =V10*$K$13 -> 22.95384615 | L10: 22.95384615 | M10: 21.6 | N10: 21.6 | O10: 20.36923077 | P10: 20.36923077 | R10: 1.038461538 | S10: 1.028205128 | T10: 1.002564103 | U10: 0.9794871795 | V10: 0.9564102564 | W10: 0.9 | X10: 0.8487179487 | Y10: 0.82 | Z10: 0.82 | AA10: 0.85 | AB10: 0.925 | AC10: 1 | AD10: 1 | AE10: 1 | AF10: 0.882122449 | AG10: 0.8736326531 | AH10: 0.8533877551 | AI10: 1.24 | AJ10: 1.607510204 | AK10: 1.400163265 | AL10: 0.03265306122 | AM10: =Y10*C10+($A$4-80)*AF10*$A$8/1000 -> 20.43692308 | AN10: =Z10*E10+($A$4-80)*AG10*$A$8/1000 -> 20.23507692 | AO10: =AA10*G10+($A$4-80)*AH10*$A$8/1000 -> 20.45230769 | AP10: =AB10*I10+($A$4-80)*AI10*$A$8/1000 -> 21.74461538 | AQ10: =AC10*K10+($A$4-80)*AJ10*$A$8/1000 -> 22.95384615 | AR10: =AD10*M10+($A$4-80)*AK10*$A$8/1000 -> 21.6 | AS10: =AE10*O10+($A$4-80)*AL10*$A$8/1000 -> 20.36923077
B11: 59 | C11: 24.55384615 | D11: 24.55384615 | E11: 24.36923077 | F11: 24.36923077 | G11: 23.69230769 | H11: 23.69230769 | I11: 23.13846154 | J11: 23.13846154 | K11: =V11*$K$13 -> 22.58461538 | L11: 22.58461538 | M11: 21.29230769 | N11: 21.29230769 | O11: 20.06153846 | P11: 20.06153846 | R11: 1.023076923 | S11: 1.015384615 | T11: 0.9871794872 | U11: 0.9641025641 | V11: 0.941025641 | W11: 0.8871794872 | X11: 0.8358974359 | Y11: 1 | Z11: 1 | AA11: 1 | AB11: 1 | AC11: 1 | AD11: 1 | AE11: 1 | AF11: 1.523428571 | AG11: 0.04897959184 | AH11: 0.03265306122 | AI11: 0.03265306122 | AJ11: 0.03265306122 | AK11: 0.04897959184 | AL11: 0.03265306122 | AM11: =Y11*C11+($A$4-80)*AF11*$A$8/1000 -> 24.55384615 | AN11: =Z11*E11+($A$4-80)*AG11*$A$8/1000 -> 24.36923077 | AO11: =AA11*G11+($A$4-80)*AH11*$A$8/1000 -> 23.69230769 | AP11: =AB11*I11+($A$4-80)*AI11*$A$8/1000 -> 23.13846154 | AQ11: =AC11*K11+($A$4-80)*AJ11*$A$8/1000 -> 22.58461538 | AR11: =AD11*M11+($A$4-80)*AK11*$A$8/1000 -> 21.29230769 | AS11: =AE11*O11+($A$4-80)*AL11*$A$8/1000 -> 20.06153846
A12: 1400 | B12: 71 | C12: 27.07692308 | D12: 16.24615385 | E12: 26.83076923 | F12: 16.09846154 | G12: 26.21538462 | H12: 15.72923077 | I12: 25.66153846 | J12: 15.91015385 | K12: =V12*$K$13 -> 25.10769231 | L12: 16.06892308 | M12: 23.75384615 | N12: 16.62769231 | O12: 22.52307692 | P12: 16.21661538 | R12: 1.128205128 | S12: 1.117948718 | T12: 1.092307692 | U12: 1.069230769 | V12: 1.046153846 | W12: 0.9897435897 | X12: 0.9384615385 | Y12: 0.6 | Z12: 0.6 | AA12: 0.6 | AB12: 0.62 | AC12: 0.64 | AD12: 0.7 | AE12: 0.72 | AF12: 0.8931428571 | AG12: 0.8231428571 | AH12: 0.6834285714 | AI12: 0.7291428571 | AJ12: 0.7722857143 | AK12: 0.9525714286 | AL12: 0.6965714286 | AM12: =Y12*C12+($A$4-80)*AF12*$A$12/1000 -> 16.24615385 | AN12: =Z12*E12+($A$4-80)*AG12*$A$12/1000 -> 16.09846154 | AO12: =AA12*G12+($A$4-80)*AH12*$A$12/1000 -> 15.72923077 | AP12: =AB12*I12+($A$4-80)*AI12*$A$12/1000 -> 15.91015385 | AQ12: =AC12*K12+($A$4-80)*AJ12*$A$12/1000 -> 16.06892308 | AR12: =AD12*M12+($A$4-80)*AK12*$A$12/1000 -> 16.62769231 | AS12: =AE12*O12+($A$4-80)*AL12*$A$12/1000 -> 16.21661538
B13: 67 | C13: 25.96923077 | D13: 19.21723077 | E13: 25.72307692 | F13: 19.03507692 | G13: 25.10769231 | H13: 19.33292308 | I13: 24.55384615 | J13: 19.152 | K13: 24 | L13: 18.96 | M13: 22.64615385 | N13: 18.34338462 | O13: 21.41538462 | P13: 18.63138462 | R13: 1.082051282 | S13: 1.071794872 | T13: 1.046153846 | U13: 1.023076923 | V13: 1 | W13: 0.9435897436 | X13: 0.8923076923 | Y13: 0.74 | Z13: 0.74 | AA13: 0.77 | AB13: 0.78 | AC13: 0.79 | AD13: 0.81 | AE13: 0.87 | AF13: 0.8011428571 | AG13: 0.7937142857 | AH13: 0.776 | AI13: 0.7595714286 | AJ13: 0.7431428571 | AK13: 0.7028571429 | AL13: 0.6674285714 | AM13: =Y13*C13+($A$4-80)*AF13*$A$12/1000 -> 19.21723077 | AN13: =Z13*E13+($A$4-80)*AG13*$A$12/1000 -> 19.03507692 | AO13: =AA13*G13+($A$4-80)*AH13*$A$12/1000 -> 19.33292308 | AP13: =AB13*I13+($A$4-80)*AI13*$A$12/1000 -> 19.152 | AQ13: =AC13*K13+($A$4-80)*AJ13*$A$12/1000 -> 18.96 | AR13: =AD13*M13+($A$4-80)*AK13*$A$12/1000 -> 18.34338462 | AS13: =AE13*O13+($A$4-80)*AL13*$A$12/1000 -> 18.63138462
B14: 63 | C14: 25.23076923 | D14: 22.20307692 | E14: 24.98461538 | F14: 22.23630769 | G14: 24.36923077 | H14: 22.176 | I14: 23.81538462 | J14: 22.74369231 | K14: =V14*$K$13 -> 23.26153846 | L14: 23.26153846 | M14: 21.90769231 | N14: 21.90769231 | O14: 20.67692308 | P14: 20.67692308 | R14: 1.051282051 | S14: 1.041025641 | T14: 1.015384615 | U14: 0.9923076923 | V14: 0.9692307692 | W14: 0.9128205128 | X14: 0.8615384615 | Y14: 0.88 | Z14: 0.89 | AA14: 0.91 | AB14: 0.955 | AC14: 1 | AD14: 1 | AE14: 1 | AF14: 0.7828571429 | AG14: 0.7757142857 | AH14: 0.7577142857 | AI14: 0.9347857143 | AJ14: 1.102857143 | AK14: 0.02857142857 | AL14: 0.02857142857 | AM14: =Y14*C14+($A$4-80)*AF14*$A$12/1000 -> 22.20307692 | AN14: =Z14*E14+($A$4-80)*AG14*$A$12/1000 -> 22.23630769 | AO14: =AA14*G14+($A$4-80)*AH14*$A$12/1000 -> 22.176 | AP14: =AB14*I14+($A$4-80)*AI14*$A$12/1000 -> 22.74369231 | AQ14: =AC14*K14+($A$4-80)*AJ14*$A$12/1000 -> 23.26153846 | AR14: =AD14*M14+($A$4-80)*AK14*$A$12/1000 -> 21.90769231 | AS14: =AE14*O14+($A$4-80)*AL14*$A$12/1000 -> 20.67692308
B15: 59 | C15: 24.86153846 | D15: 24.86153846 | E15: 24.67692308 | F15: 24.67692308 | G15: 24 | H15: 24 | I15: 23.47692308 | J15: 23.47692308 | K15: 22.95384615 | L15: 22.95384615 | M15: 21.6 | N15: 21.6 | O15: 20.36923077 | P15: 20.36923077 | R15: 1.035897436 | S15: 1.028205128 | T15: 1 | U15: 0.9782051282 | V15: 0.9564102564 | W15: 0.9 | X15: 0.8487179487 | Y15: 1 | Z15: 1 | AA15: 1 | AB15: 1 | AC15: 1 | AD15: 1 | AE15: 1 | AF15: 1.004857143 | AG15: 0.02857142857 | AH15: 0.02857142857 | AI15: 0.03571428571 | AJ15: 0.04285714286 | AK15: 0.02857142857 | AL15: 0.02857142857 | AM15: =Y15*C15+($A$4-80)*AF15*$A$12/1000 -> 24.86153846 | AN15: =Z15*E15+($A$4-80)*AG15*$A$12/1000 -> 24.67692308 | AO15: =AA15*G15+($A$4-80)*AH15*$A$12/1000 -> 24 | AP15: =AB15*I15+($A$4-80)*AI15*$A$12/1000 -> 23.47692308 | AQ15: =AC15*K15+($A$4-80)*AJ15*$A$12/1000 -> 22.95384615 | AR15: =AD15*M15+($A$4-80)*AK15*$A$12/1000 -> 21.6 | AS15: =AE15*O15+($A$4-80)*AL15*$A$12/1000 -> 20.36923077
A16: 1575 | B16: 71 | C16: 27.44615385 | D16: 16.46769231 | E16: 27.26153846 | F16: 17.17476923 | G16: 26.58461538 | H16: 18.60923077 | I16: 26.03076923 | J16: 17.96123077 | K16: 25.47692308 | L16: 17.32430769 | M16: 24.18461538 | N16: 16.92923077 | O16: 22.95384615 | P16: 17.21538462 | R16: 1.143589744 | S16: 1.135897436 | T16: 1.107692308 | U16: 1.084615385 | V16: 1.061538462 | W16: 1.007692308 | X16: 0.9564102564 | Y16: 0.6 | Z16: 0.63 | AA16: 0.7 | AB16: 0.69 | AC16: 0.68 | AD16: 0.7 | AE16: 0.75 | AF16: 0.6354285714 | AG16: 0.7503492063 | AH16: 0.946031746 | AI16: 0.8194285714 | AJ16: 0.6973968254 | AK16: 0.6632380952 | AL16: 0.6314920635 | AM16: =Y16*C16+($A$4-80)*AF16*$A$16/1000 -> 16.46769231 | AN16: =Z16*E16+($A$4-80)*AG16*$A$16/1000 -> 17.17476923 | AO16: =AA16*G16+($A$4-80)*AH16*$A$16/1000 -> 18.60923077 | AP16: =AB16*I16+($A$4-80)*AI16*$A$16/1000 -> 17.96123077 | AQ16: =AC16*K16+($A$4-80)*AJ16*$A$16/1000 -> 17.32430769 | AR16: =AD16*M16+($A$4-80)*AK16*$A$16/1000 -> 16.92923077 | AS16: =AE16*O16+($A$4-80)*AL16*$A$16/1000 -> 17.21538462
B17: 67 | C17: 26.33846154 | D17: 20.28061538 | E17: 26.09230769 | F17: 20.352 | G17: 25.47692308 | H17: 20.63630769 | I17: 24.92307692 | J17: 20.43692308 | K17: 24.36923077 | L17: 20.22646154 | M17: 23.01538462 | N17: 19.56307692 | O17: 21.84615385 | P17: 21.84615385 | R17: 1.097435897 | S17: 1.087179487 | T17: 1.061538462 | U17: 1.038461538 | V17: 1.015384615 | W17: 0.958974359 | X17: 0.9102564103 | Y17: 0.77 | Z17: 0.78 | AA17: 0.81 | AB17: 0.82 | AC17: 0.83 | AD17: 0.85 | AE17: 1 | AF17: 0.7227936508 | AG17: 0.7164444444 | AH17: 0.7006984127 | AI17: 0.6860952381 | AJ17: 0.6714920635 | AK17: 0.6356825397 | AL17: 1.056380952 | AM17: =Y17*C17+($A$4-80)*AF17*$A$16/1000 -> 20.28061538 | AN17: =Z17*E17+($A$4-80)*AG17*$A$16/1000 -> 20.352 | AO17: =AA17*G17+($A$4-80)*AH17*$A$16/1000 -> 20.63630769 | AP17: =AB17*I17+($A$4-80)*AI17*$A$16/1000 -> 20.43692308 | AQ17: =AC17*K17+($A$4-80)*AJ17*$A$16/1000 -> 20.22646154 | AR17: =AD17*M17+($A$4-80)*AK17*$A$16/1000 -> 19.56307692 | AS17: =AE17*O17+($A$4-80)*AL17*$A$16/1000 -> 21.84615385
B18: 63 | C18: 25.6 | D18: 23.296 | E18: 25.41538462 | F18: 23.38215385 | G18: 24.73846154 | H18: 24.73846154 | I18: 24.18461538 | J18: 24.18461538 | K18: 23.63076923 | L18: 23.63076923 | M18: 22.33846154 | N18: 22.33846154 | O18: 21.10769231 | P18: 21.10769231 | R18: 1.066666667 | S18: 1.058974359 | T18: 1.030769231 | U18: 1.007692308 | V18: 0.9846153846 | W18: 0.9307692308 | X18: 0.8794871795 | Y18: 0.91 | Z18: 0.92 | AA18: 1 | AB18: 1 | AC18: 1 | AD18: 1 | AE18: 1 | AF18: 0.7065396825 | AG18: 0.7018412698 | AH18: 0.9396825397 | AI18: 0.8694603175 | AJ18: 0.8015238095 | AK18: 0.0253968254 | AL18: 0.0253968254 | AM18: =Y18*C18+($A$4-80)*AF18*$A$16/1000 -> 23.296 | AN18: =Z18*E18+($A$4-80)*AG18*$A$16/1000 -> 23.38215385 | AO18: =AA18*G18+($A$4-80)*AH18*$A$16/1000 -> 24.73846154 | AP18: =AB18*I18+($A$4-80)*AI18*$A$16/1000 -> 24.18461538 | AQ18: =AC18*K18+($A$4-80)*AJ18*$A$16/1000 -> 23.63076923 | AR18: =AD18*M18+($A$4-80)*AK18*$A$16/1000 -> 22.33846154 | AS18: =AE18*O18+($A$4-80)*AL18*$A$16/1000 -> 21.10769231
B19: 59 | C19: 25.29230769 | D19: 25.29230769 | E19: 25.04615385 | F19: 25.04615385 | G19: 24.43076923 | H19: 24.43076923 | I19: 23.87692308 | J19: 23.87692308 | K19: 23.32307692 | L19: 23.32307692 | M19: 21.96923077 | N19: 21.96923077 | O19: 20.73846154 | P19: 20.73846154 | R19: 1.053846154 | S19: 1.043589744 | T19: 1.017948718 | U19: 0.9948717949 | V19: 0.9717948718 | W19: 0.9153846154 | X19: 0.8641025641 | Y19: 1 | Z19: 1 | AA19: 1 | AB19: 1 | AC19: 1 | AD19: 1 | AE19: 1 | AF19: 0.7634285714 | AG19: 0.0253968254 | AH19: 0.0253968254 | AI19: 0.0253968254 | AJ19: 0.0253968254 | AK19: 0.0253968254 | AL19: 0.0253968254 | AM19: =Y19*C19+($A$4-80)*AF19*$A$16/1000 -> 25.29230769 | AN19: =Z19*E19+($A$4-80)*AG19*$A$16/1000 -> 25.04615385 | AO19: =AA19*G19+($A$4-80)*AH19*$A$16/1000 -> 24.43076923 | AP19: =AB19*I19+($A$4-80)*AI19*$A$16/1000 -> 23.87692308 | AQ19: =AC19*K19+($A$4-80)*AJ19*$A$16/1000 -> 23.32307692 | AR19: =AD19*M19+($A$4-80)*AK19*$A$16/1000 -> 21.96923077 | AS19: =AE19*O19+($A$4-80)*AL19*$A$16/1000 -> 20.73846154

Sheet GSX140_48 (hidden)
A2: GSX140_48
A3: Evaporator Air | C3: Condenser Entering Air Temperature ˚F
A4: 80 | B4: °F DB | C4: 65 | E4: 75 | G4: 85 | I4: 90 | K4: 95 | M4: 105 | O4: 115
A5: CFM | B5: EWB† ˚F | C5: Capacity Mbtuh | E5: Capacity Mbtuh | G5: Capacity Mbtuh | I5: Capacity Mbtuh | K5: Capacity Mbtuh | M5: Capacity Mbtuh | O5: Capacity Mbtuh
C6: Total | D6: Sens. | E6: Total | F6: Sens. | G6: Total | H6: Sens. | I6: Total | J6: Sens. | K6: Total | L6: Sens. | M6: Total | N6: Sens. | O6: Total | P6: Sens.
R7: Total Factors | Y7: Sens. % | AF7: IDB Adj | AM7: Sens Calc
A8: 1400 | B8: 71 | C8: =R8*$K$13 -> 26.7956044 | D8: =IF(AM8>C8,C8,AM8) -> 13.3978022 | E8: =S8*$K$13 -> 26.58461538 | F8: =IF(AN8>E8,E8,AN8) -> 13.824 | G8: =T8*$K$13 -> 25.95164835 | H8: =IF(AO8>G8,G8,AO8) -> 15.57098901 | I8: =U8*$K$13 -> 25.3978022 | J8: =IF(AP8>I8,I8,AP8) -> 14.85771429 | K8: =V8*$K$13 -> 24.84395604 | L8: =IF(AQ8>K8,K8,AQ8) -> 14.16105495 | M8: =W8*$K$13 -> 23.52527473 | N8: =IF(AR8>M8,M8,AR8) -> 14.11516484 | O8: =X8*$K$13 -> 22.31208791 | P8: =IF(AS8>O8,O8,AS8) -> 14.27973626 | R8: 1.116483516 | S8: 1.107692308 | T8: 1.081318681 | U8: 1.058241758 | V8: 1.035164835 | W8: 0.9802197802 | X8: 0.9296703297 | Y8: 0.5 | Z8: 0.52 | AA8: 0.6 | AB8: 0.585 | AC8: 0.57 | AD8: 0.6 | AE8: 0.64 | AF8: 0.8094285714 | AG8: 0.8754285714 | AH8: 1.277142857 | AI8: 1.078464286 | AJ8: 0.8872857143 | AK8: 0.9051428571 | AL8: 0.8074285714 | AM8: =Y8*C8+($A$4-80)*AF8*$A$8/1000 -> 13.3978022 | AN8: =Z8*E8+($A$4-80)*AG8*$A$8/1000 -> 13.824 | AO8: =AA8*G8+($A$4-80)*AH8*$A$8/1000 -> 15.57098901 | AP8: =AB8*I8+($A$4-80)*AI8*$A$8/1000 -> 14.85771429 | AQ8: =AC8*K8+($A$4-80)*AJ8*$A$8/1000 -> 14.16105495 | AR8: =AD8*M8+($A$4-80)*AK8*$A$8/1000 -> 14.11516484 | AS8: =AE8*O8+($A$4-80)*AL8*$A$8/1000 -> 14.27973626
B9: 67 | C9: 25.68791209 | D9: 16.95402198 | E9: 25.47692308 | F9: 16.81476923 | G9: 24.84395604 | H9: 17.14232967 | I9: 24.29010989 | J9: 17.00307692 | K9: =V9*$K$13 -> 23.73626374 | L9: 16.85274725 | M9: 22.41758242 | N9: 16.36483516 | O9: 21.2043956 | P9: 16.53942857 | R9: 1.07032967 | S9: 1.061538462 | T9: 1.035164835 | U9: 1.012087912 | V9: 0.989010989 | W9: 0.9340659341 | X9: 0.8835164835 | Y9: 0.66 | Z9: 0.66 | AA9: 0.69 | AB9: 0.7 | AC9: 0.71 | AD9: 0.73 | AE9: 0.78 | AF9: 0.9195714286 | AG9: 0.8434285714 | AH9: 0.8907142857 | AI9: 0.8715 | AJ9: 0.8522857143 | AK9: 0.815 | AL9: 0.7174285714 | AM9: =Y9*C9+($A$4-80)*AF9*$A$8/1000 -> 16.95402198 | AN9: =Z9*E9+($A$4-80)*AG9*$A$8/1000 -> 16.81476923 | AO9: =AA9*G9+($A$4-80)*AH9*$A$8/1000 -> 17.14232967 | AP9: =AB9*I9+($A$4-80)*AI9*$A$8/1000 -> 17.00307692 | AQ9: =AC9*K9+($A$4-80)*AJ9*$A$8/1000 -> 16.85274725 | AR9: =AD9*M9+($A$4-80)*AK9*$A$8/1000 -> 16.36483516 | AS9: =AE9*O9+($A$4-80)*AL9*$A$8/1000 -> 16.53942857
B10: 63 | C10: 24.94945055 | D10: 19.71006593 | E10: 24.73846154 | F10: 19.79076923 | G10: 24.10549451 | H10: 19.76650549 | I10: 23.55164835 | J10: 19.54786813 | K10: =V10*$K$13 -> 22.9978022 | L10: 19.31815385 | M10: 21.67912088 | N10: 21.67912088 | O10: 20.46593407 | P10: 20.46593407 | R10: 1.03956044 | S10: 1.030769231 | T10: 1.004395604 | U10: 0.9813186813 | V10: 0.9582417582 | W10: 0.9032967033 | X10: 0.8527472527 | Y10: 0.79 | Z10: 0.8 | AA10: 0.82 | AB10: 0.83 | AC10: 0.84 | AD10: 1 | AE10: 1 | AF10: 0.83 | AG10: 0.8901428571 | AH10: 0.8034285714 | AI10: 0.7857142857 | AJ10: 0.768 | AK10: 1.547714286 | AL10: 0.04285714286 | AM10: =Y10*C10+($A$4-80)*AF10*$A$8/1000 -> 19.71006593 | AN10: =Z10*E10+($A$4-80)*AG10*$A$8/1000 -> 19.79076923 | AO10: =AA10*G10+($A$4-80)*AH10*$A$8/1000 -> 19.76650549 | AP10: =AB10*I10+($A$4-80)*AI10*$A$8/1000 -> 19.54786813 | AQ10: =AC10*K10+($A$4-80)*AJ10*$A$8/1000 -> 19.31815385 | AR10: =AD10*M10+($A$4-80)*AK10*$A$8/1000 -> 21.67912088 | AS10: =AE10*O10+($A$4-80)*AL10*$A$8/1000 -> 20.46593407
B11: 59 | C11: 24.63296703 | D11: 24.63296703 | E11: 24.42197802 | F11: 24.42197802 | G11: 23.78901099 | H11: 23.78901099 | I11: 23.23516484 | J11: 23.23516484 | K11: =V11*$K$13 -> 22.68131868 | L11: 22.68131868 | M11: 21.30989011 | N11: 21.30989011 | O11: 20.0967033 | P11: 20.0967033 | R11: 1.026373626 | S11: 1.017582418 | T11: 0.9912087912 | U11: 0.9681318681 | V11: 0.9450549451 | W11: 0.8879120879 | X11: 0.8373626374 | Y11: 1 | Z11: 1 | AA11: 1 | AB11: 1 | AC11: 1 | AD11: 1 | AE11: 1 | AF11: 1.766285714 | AG11: 1.685714286 | AH11: 0.04285714286 | AI11: 0.04285714286 | AJ11: 0.04285714286 | AK11: 0.02857142857 | AL11: 0.02857142857 | AM11: =Y11*C11+($A$4-80)*AF11*$A$8/1000 -> 24.63296703 | AN11: =Z11*E11+($A$4-80)*AG11*$A$8/1000 -> 24.42197802 | AO11: =AA11*G11+($A$4-80)*AH11*$A$8/1000 -> 23.78901099 | AP11: =AB11*I11+($A$4-80)*AI11*$A$8/1000 -> 23.23516484 | AQ11: =AC11*K11+($A$4-80)*AJ11*$A$8/1000 -> 22.68131868 | AR11: =AD11*M11+($A$4-80)*AK11*$A$8/1000 -> 21.30989011 | AS11: =AE11*O11+($A$4-80)*AL11*$A$8/1000 -> 20.0967033
A12: 1550 | B12: 71 | C12: 27.05934066 | D12: 16.2356044 | E12: 26.84835165 | F12: 15.30356044 | G12: 26.21538462 | H12: 15.72923077 | I12: 25.66153846 | J12: 15.52523077 | K12: =V12*$K$13 -> 25.10769231 | L12: 15.31569231 | M12: 23.78901099 | N12: 14.27340659 | O12: 22.57582418 | P12: 15.35156044 | R12: 1.127472527 | S12: 1.118681319 | T12: 1.092307692 | U12: 1.069230769 | V12: 1.046153846 | W12: 0.9912087912 | X12: 0.9406593407 | Y12: 0.6 | Z12: 0.57 | AA12: 0.6 | AB12: 0.605 | AC12: 0.61 | AD12: 0.6 | AE12: 0.68 | AF12: 1.070451613 | AG12: 0.8651612903 | AH12: 0.8458064516 | AI12: 0.7970645161 | AJ12: 0.7496774194 | AK12: 0.543483871 | AL12: 0.6843870968 | AM12: =Y12*C12+($A$4-80)*AF12*$A$12/1000 -> 16.2356044 | AN12: =Z12*E12+($A$4-80)*AG12*$A$12/1000 -> 15.30356044 | AO12: =AA12*G12+($A$4-80)*AH12*$A$12/1000 -> 15.72923077 | AP12: =AB12*I12+($A$4-80)*AI12*$A$12/1000 -> 15.52523077 | AQ12: =AC12*K12+($A$4-80)*AJ12*$A$12/1000 -> 15.31569231 | AR12: =AD12*M12+($A$4-80)*AK12*$A$12/1000 -> 14.27340659 | AS12: =AE12*O12+($A$4-80)*AL12*$A$12/1000 -> 15.35156044
B13: 67 | C13: 25.95164835 | D13: 18.16615385 | E13: 25.74065934 | F13: 18.27586813 | G13: 25.10769231 | H13: 18.32861538 | I13: 24.55384615 | J13: 18.16984615 | K13: 24 | L13: 18 | M13: 22.68131868 | N13: 17.46461538 | O13: 21.41538462 | P13: 17.56061538 | R13: 1.081318681 | S13: 1.072527473 | T13: 1.046153846 | U13: 1.023076923 | V13: 1 | W13: 0.9450549451 | X13: 0.8923076923 | Y13: 0.7 | Z13: 0.71 | AA13: 0.73 | AB13: 0.74 | AC13: 0.75 | AD13: 0.77 | AE13: 0.82 | AF13: 0.7767741935 | AG13: 0.8410322581 | AH13: 0.7606451613 | AI13: 0.7407741935 | AJ13: 0.7207741935 | AK13: 0.6909677419 | AL13: 0.6467096774 | AM13: =Y13*C13+($A$4-80)*AF13*$A$12/1000 -> 18.16615385 | AN13: =Z13*E13+($A$4-80)*AG13*$A$12/1000 -> 18.27586813 | AO13: =AA13*G13+($A$4-80)*AH13*$A$12/1000 -> 18.32861538 | AP13: =AB13*I13+($A$4-80)*AI13*$A$12/1000 -> 18.16984615 | AQ13: =AC13*K13+($A$4-80)*AJ13*$A$12/1000 -> 18 | AR13: =AD13*M13+($A$4-80)*AK13*$A$12/1000 -> 17.46461538 | AS13: =AE13*O13+($A$4-80)*AL13*$A$12/1000 -> 17.56061538
B14: 63 | C14: 25.21318681 | D14: 20.92694505 | E14: 25.0021978 | F14: 21.00184615 | G14: 24.36923077 | H14: 20.95753846 | I14: 23.81538462 | J14: 22.14830769 | K14: =V14*$K$13 -> 23.26153846 | L14: 23.26153846 | M14: 21.94285714 | N14: 21.94285714 | O14: 20.72967033 | P14: 20.72967033 | R14: 1.050549451 | S14: 1.041758242 | T14: 1.015384615 | U14: 0.9923076923 | V14: 0.9692307692 | W14: 0.9142857143 | X14: 0.8637362637 | Y14: 0.83 | Z14: 0.84 | AA14: 0.86 | AB14: 0.93 | AC14: 1 | AD14: 1 | AE14: 1 | AF14: 0.7584516129 | AG14: 0.752516129 | AH14: 0.7344516129 | AI14: 1.068 | AJ14: 1.385290323 | AK14: 1.211096774 | AL14: 0.03870967742 | AM14: =Y14*C14+($A$4-80)*AF14*$A$12/1000 -> 20.92694505 | AN14: =Z14*E14+($A$4-80)*AG14*$A$12/1000 -> 21.00184615 | AO14: =AA14*G14+($A$4-80)*AH14*$A$12/1000 -> 20.95753846 | AP14: =AB14*I14+($A$4-80)*AI14*$A$12/1000 -> 22.14830769 | AQ14: =AC14*K14+($A$4-80)*AJ14*$A$12/1000 -> 23.26153846 | AR14: =AD14*M14+($A$4-80)*AK14*$A$12/1000 -> 21.94285714 | AS14: =AE14*O14+($A$4-80)*AL14*$A$12/1000 -> 20.72967033
B15: 59 | C15: 24.8967033 | D15: 24.8967033 | E15: 24.68571429 | F15: 24.68571429 | G15: 24 | H15: 24 | I15: 23.47252747 | J15: 23.47252747 | K15: 22.94505495 | L15: 22.94505495 | M15: 21.57362637 | N15: 21.57362637 | O15: 20.36043956 | P15: 20.36043956 | R15: 1.037362637 | S15: 1.028571429 | T15: 1 | U15: 0.978021978 | V15: 0.956043956 | W15: 0.8989010989 | X15: 0.8483516484 | Y15: 1 | Z15: 1 | AA15: 1 | AB15: 1 | AC15: 1 | AD15: 1 | AE15: 1 | AF15: 1.309548387 | AG15: 1.298709677 | AH15: 0.02580645161 | AI15: 0.03225806452 | AJ15: 0.03870967742 | AK15: 0.02580645161 | AL15: 0.02580645161 | AM15: =Y15*C15+($A$4-80)*AF15*$A$12/1000 -> 24.8967033 | AN15: =Z15*E15+($A$4-80)*AG15*$A$12/1000 -> 24.68571429 | AO15: =AA15*G15+($A$4-80)*AH15*$A$12/1000 -> 24 | AP15: =AB15*I15+($A$4-80)*AI15*$A$12/1000 -> 23.47252747 | AQ15: =AC15*K15+($A$4-80)*AJ15*$A$12/1000 -> 22.94505495 | AR15: =AD15*M15+($A$4-80)*AK15*$A$12/1000 -> 21.57362637 | AS15: =AE15*O15+($A$4-80)*AL15*$A$12/1000 -> 20.36043956
A16: 1800 | B16: 71 | C16: 27.58681319 | D16: 16.55208791 | E16: 27.37582418 | F16: 16.42549451 | G16: 26.74285714 | H16: 16.04571429 | I16: 26.18901099 | J16: 16.36813187 | K16: 25.63516484 | L16: 16.66285714 | M16: 24.26373626 | N16: 16.98461538 | O16: 23.05054945 | P16: 16.5963956 | R16: 1.149450549 | S16: 1.140659341 | T16: 1.114285714 | U16: 1.091208791 | V16: 1.068131868 | W16: 1.010989011 | X16: 0.9604395604 | Y16: 0.6 | Z16: 0.6 | AA16: 0.6 | AB16: 0.625 | AC16: 0.65 | AD16: 0.7 | AE16: 0.72 | AF16: 0.7711111111 | AG16: 0.708 | AH16: 0.58 | AI16: 0.6514166667 | AJ16: 0.7193333333 | AK16: 0.7788888889 | AL16: 0.596 | AM16: =Y16*C16+($A$4-80)*AF16*$A$16/1000 -> 16.55208791 | AN16: =Z16*E16+($A$4-80)*AG16*$A$16/1000 -> 16.42549451 | AO16: =AA16*G16+($A$4-80)*AH16*$A$16/1000 -> 16.04571429 | AP16: =AB16*I16+($A$4-80)*AI16*$A$16/1000 -> 16.36813187 | AQ16: =AC16*K16+($A$4-80)*AJ16*$A$16/1000 -> 16.66285714 | AR16: =AD16*M16+($A$4-80)*AK16*$A$16/1000 -> 16.98461538 | AS16: =AE16*O16+($A$4-80)*AL16*$A$16/1000 -> 16.5963956
B17: 67 | C17: 26.47912088 | D17: 19.59454945 | E17: 26.26813187 | F17: 19.7010989 | G17: 25.58241758 | H17: 19.69846154 | I17: 25.05494505 | J17: 19.54285714 | K17: 24.52747253 | L17: 19.3767033 | M17: 23.15604396 | N17: 18.7563956 | O17: 21.94285714 | P17: 18.87085714 | R17: 1.103296703 | S17: 1.094505495 | T17: 1.065934066 | U17: 1.043956044 | V17: 1.021978022 | W17: 0.9648351648 | X17: 0.9142857143 | Y17: 0.74 | Z17: 0.75 | AA17: 0.77 | AB17: 0.78 | AC17: 0.79 | AD17: 0.81 | AE17: 0.86 | AF17: 0.69 | AG17: 0.74 | AH17: 0.6611111111 | AI17: 0.6516666667 | AJ17: 0.6423333333 | AK17: 0.6006666667 | AL17: 0.5711111111 | AM17: =Y17*C17+($A$4-80)*AF17*$A$16/1000 -> 19.59454945 | AN17: =Z17*E17+($A$4-80)*AG17*$A$16/1000 -> 19.7010989 | AO17: =AA17*G17+($A$4-80)*AH17*$A$16/1000 -> 19.69846154 | AP17: =AB17*I17+($A$4-80)*AI17*$A$16/1000 -> 19.54285714 | AQ17: =AC17*K17+($A$4-80)*AJ17*$A$16/1000 -> 19.3767033 | AR17: =AD17*M17+($A$4-80)*AK17*$A$16/1000 -> 18.7563956 | AS17: =AE17*O17+($A$4-80)*AL17*$A$16/1000 -> 18.87085714
B18: 63 | C18: 25.74065934 | D18: 22.39437363 | E18: 25.52967033 | F18: 22.46610989 | G18: 24.8967033 | H18: 22.40703297 | I18: 24.34285714 | J18: 23.12571429 | K18: 23.78901099 | L18: 23.78901099 | M18: 22.41758242 | N18: 22.41758242 | O18: 21.2043956 | P18: 21.2043956 | R18: 1.072527473 | S18: 1.063736264 | T18: 1.037362637 | U18: 1.014285714 | V18: 0.9912087912 | W18: 0.9340659341 | X18: 0.8835164835 | Y18: 0.87 | Z18: 0.88 | AA18: 0.9 | AB18: 0.95 | AC18: 1 | AD18: 1 | AE18: 1 | AF18: 0.6756666667 | AG18: 0.6706666667 | AH18: 0.6553333333 | AI18: 0.8467777778 | AJ18: 1.028888889 | AK18: 0.8682222222 | AL18: 0.02222222222 | AM18: =Y18*C18+($A$4-80)*AF18*$A$16/1000 -> 22.39437363 | AN18: =Z18*E18+($A$4-80)*AG18*$A$16/1000 -> 22.46610989 | AO18: =AA18*G18+($A$4-80)*AH18*$A$16/1000 -> 22.40703297 | AP18: =AB18*I18+($A$4-80)*AI18*$A$16/1000 -> 23.12571429 | AQ18: =AC18*K18+($A$4-80)*AJ18*$A$16/1000 -> 23.78901099 | AR18: =AD18*M18+($A$4-80)*AK18*$A$16/1000 -> 22.41758242 | AS18: =AE18*O18+($A$4-80)*AL18*$A$16/1000 -> 21.2043956
B19: 59 | C19: 25.37142857 | D19: 25.37142857 | E19: 25.16043956 | F19: 25.16043956 | G19: 24.52747253 | H19: 24.52747253 | I19: 23.97362637 | J19: 23.97362637 | K19: 23.41978022 | L19: 23.41978022 | M19: 22.1010989 | N19: 22.1010989 | O19: 20.88791209 | P19: 20.88791209 | R19: 1.057142857 | S19: 1.048351648 | T19: 1.021978022 | U19: 0.9989010989 | V19: 0.9758241758 | W19: 0.9208791209 | X19: 0.8703296703 | Y19: 1 | Z19: 1 | AA19: 1 | AB19: 1 | AC19: 1 | AD19: 1 | AE19: 1 | AF19: 0.9802222222 | AG19: 0.02222222222 | AH19: 0.02222222222 | AI19: 0.02222222222 | AJ19: 0.02222222222 | AK19: 0.02222222222 | AL19: 0.03333333333 | AM19: =Y19*C19+($A$4-80)*AF19*$A$16/1000 -> 25.37142857 | AN19: =Z19*E19+($A$4-80)*AG19*$A$16/1000 -> 25.16043956 | AO19: =AA19*G19+($A$4-80)*AH19*$A$16/1000 -> 24.52747253 | AP19: =AB19*I19+($A$4-80)*AI19*$A$16/1000 -> 23.97362637 | AQ19: =AC19*K19+($A$4-80)*AJ19*$A$16/1000 -> 23.41978022 | AR19: =AD19*M19+($A$4-80)*AK19*$A$16/1000 -> 22.1010989 | AS19: =AE19*O19+($A$4-80)*AL19*$A$16/1000 -> 20.88791209

Sheet GSX140_60 (hidden)
A2: GSX140_60
A3: Evaporator Air | C3: Condenser Entering Air Temperature ˚F
A4: 80 | B4: °F DB | C4: 65 | E4: 75 | G4: 85 | I4: 90 | K4: 95 | M4: 105 | O4: 115
A5: CFM | B5: EWB† ˚F | C5: Capacity Mbtuh | E5: Capacity Mbtuh | G5: Capacity Mbtuh | I5: Capacity Mbtuh | K5: Capacity Mbtuh | M5: Capacity Mbtuh | O5: Capacity Mbtuh
C6: Total | D6: Sens. | E6: Total | F6: Sens. | G6: Total | H6: Sens. | I6: Total | J6: Sens. | K6: Total | L6: Sens. | M6: Total | N6: Sens. | O6: Total | P6: Sens.
R7: Total Factors | Y7: Sens. % | AF7: IDB Adj | AM7: Sens Calc
A8: 1550 | B8: 71 | C8: =R8*$K$13 -> 26.65284974 | D8: =IF(AM8>C8,C8,AM8) -> 13.32642487 | E8: =S8*$K$13 -> 26.44559585 | F8: =IF(AN8>E8,E8,AN8) -> 14.0161658 | G8: =T8*$K$13 -> 25.8238342 | H8: =IF(AO8>G8,G8,AO8) -> 15.49430052 | I8: =U8*$K$13 -> 25.2642487 | J8: =IF(AP8>I8,I8,AP8) -> 14.77958549 | K8: =V8*$K$13 -> 24.70466321 | L8: =IF(AQ8>K8,K8,AQ8) -> 14.08165803 | M8: =W8*$K$13 -> 23.41968912 | N8: =IF(AR8>M8,M8,AR8) -> 14.05181347 | O8: =X8*$K$13 -> 22.21761658 | P8: =IF(AS8>O8,O8,AS8) -> 14.21927461 | R8: 1.110535406 | S8: 1.101899827 | T8: 1.075993092 | U8: 1.052677029 | V8: 1.029360967 | W8: 0.97582038 | X8: 0.9257340242 | Y8: 0.5 | Z8: 0.53 | AA8: 0.6 | AB8: 0.585 | AC8: 0.57 | AD8: 0.6 | AE8: 0.64 | AF8: 0.7625806452 | AG8: 1.003741935 | AH8: 1.303225806 | AI8: 1.079129032 | AJ8: 0.8637419355 | AK8: 0.8934193548 | AL8: 0.8500645161 | AM8: =Y8*C8+($A$4-80)*AF8*$A$8/1000 -> 13.32642487 | AN8: =Z8*E8+($A$4-80)*AG8*$A$8/1000 -> 14.0161658 | AO8: =AA8*G8+($A$4-80)*AH8*$A$8/1000 -> 15.49430052 | AP8: =AB8*I8+($A$4-80)*AI8*$A$8/1000 -> 14.77958549 | AQ8: =AC8*K8+($A$4-80)*AJ8*$A$8/1000 -> 14.08165803 | AR8: =AD8*M8+($A$4-80)*AK8*$A$8/1000 -> 14.05181347 | AS8: =AE8*O8+($A$4-80)*AL8*$A$8/1000 -> 14.21927461
B9: 67 | C9: 25.53367876 | D9: 16.85222798 | E9: 25.32642487 | F9: 16.71544041 | G9: 24.70466321 | H9: 17.04621762 | I9: 24.16580311 | J9: 16.79523316 | K9: =V9*$K$13 -> 23.62694301 | L9: 16.5388601 | M9: 22.30051813 | N9: 16.05637306 | O9: 21.0984456 | P9: 16.24580311 | R9: 1.063903282 | S9: 1.055267703 | T9: 1.029360967 | U9: 1.006908463 | V9: 0.9844559585 | W9: 0.9291882556 | X9: 0.8791018998 | Y9: 0.66 | Z9: 0.66 | AA9: 0.69 | AB9: 0.695 | AC9: 0.7 | AD9: 0.72 | AE9: 0.77 | AF9: 0.9747096774 | AG9: 0.888516129 | AH9: 0.9449032258 | AI9: 0.8875483871 | AJ9: 0.8318709677 | AK9: 0.7872258065 | AL9: 0.748 | AM9: =Y9*C9+($A$4-80)*AF9*$A$8/1000 -> 16.85222798 | AN9: =Z9*E9+($A$4-80)*AG9*$A$8/1000 -> 16.71544041 | AO9: =AA9*G9+($A$4-80)*AH9*$A$8/1000 -> 17.04621762 | AP9: =AB9*I9+($A$4-80)*AI9*$A$8/1000 -> 16.79523316 | AQ9: =AC9*K9+($A$4-80)*AJ9*$A$8/1000 -> 16.5388601 | AR9: =AD9*M9+($A$4-80)*AK9*$A$8/1000 -> 16.05637306 | AS9: =AE9*O9+($A$4-80)*AL9*$A$8/1000 -> 16.24580311
B10: 63 | C10: 24.82901554 | D10: 19.36663212 | E10: 24.62176166 | F10: 19.45119171 | G10: 24 | H10: 19.44 | I10: 23.4611399 | J10: 19.23813472 | K10: =V10*$K$13 -> 22.92227979 | L10: 19.02549223 | M10: 21.59585492 | N10: 18.35647668 | O10: 20.39378238 | P10: 20.39378238 | R10: 1.034542314 | S10: 1.025906736 | T10: 1 | U10: 0.9775474957 | V10: 0.9550949914 | W10: 0.8998272884 | X10: 0.8497409326 | Y10: 0.78 | Z10: 0.79 | AA10: 0.81 | AB10: 0.82 | AC10: 0.83 | AD10: 0.85 | AE10: 1 | AF10: 0.8761290323 | AG10: 0.9456774194 | AH10: 0.8489032258 | AI10: 0.8671612903 | AJ10: 0.8837419355 | AK10: 0.8349677419 | AL10: 1.42683871 | AM10: =Y10*C10+($A$4-80)*AF10*$A$8/1000 -> 19.36663212 | AN10: =Z10*E10+($A$4-80)*AG10*$A$8/1000 -> 19.45119171 | AO10: =AA10*G10+($A$4-80)*AH10*$A$8/1000 -> 19.44 | AP10: =AB10*I10+($A$4-80)*AI10*$A$8/1000 -> 19.23813472 | AQ10: =AC10*K10+($A$4-80)*AJ10*$A$8/1000 -> 19.02549223 | AR10: =AD10*M10+($A$4-80)*AK10*$A$8/1000 -> 18.35647668 | AS10: =AE10*O10+($A$4-80)*AL10*$A$8/1000 -> 20.39378238
B11: 59 | C11: 24.49740933 | D11: 20.82279793 | E11: 24.29015544 | F11: 24.29015544 | G11: 23.66839378 | H11: 23.66839378 | I11: 23.10880829 | J11: 23.10880829 | K11: =V11*$K$13 -> 22.5492228 | L11: 22.5492228 | M11: 21.2642487 | N11: 21.2642487 | O11: 20.06217617 | P11: 20.06217617 | R11: 1.020725389 | S11: 1.01208981 | T11: 0.9861830743 | U11: 0.9628670121 | V11: 0.9395509499 | W11: 0.8860103627 | X11: 0.8359240069 | Y11: 0.85 | Z11: 1 | AA11: 1 | AB11: 1 | AC11: 1 | AD11: 1 | AE11: 1 | AF11: 0.867483871 | AG11: 1.994580645 | AH11: 1.724387097 | AI11: 0.861516129 | AJ11: 0.03870967742 | AK11: 0.03870967742 | AL11: 0.03870967742 | AM11: =Y11*C11+($A$4-80)*AF11*$A$8/1000 -> 20.82279793 | AN11: =Z11*E11+($A$4-80)*AG11*$A$8/1000 -> 24.29015544 | AO11: =AA11*G11+($A$4-80)*AH11*$A$8/1000 -> 23.66839378 | AP11: =AB11*I11+($A$4-80)*AI11*$A$8/1000 -> 23.10880829 | AQ11: =AC11*K11+($A$4-80)*AJ11*$A$8/1000 -> 22.5492228 | AR11: =AD11*M11+($A$4-80)*AK11*$A$8/1000 -> 21.2642487 | AS11: =AE11*O11+($A$4-80)*AL11*$A$8/1000 -> 20.06217617
A12: 1750 | B12: 71 | C12: 27.02590674 | D12: 16.21554404 | E12: 26.81865285 | F12: 15.0184456 | G12: 26.19689119 | H12: 15.71813472 | I12: 25.65803109 | J12: 15.39481865 | K12: =V12*$K$13 -> 25.11917098 | L12: 15.07150259 | M12: 23.79274611 | N12: 14.27564767 | O12: 22.59067358 | P12: 15.1357513 | R12: 1.126079447 | S12: 1.117443869 | T12: 1.091537133 | U12: 1.069084629 | V12: 1.046632124 | W12: 0.9913644214 | X12: 0.9412780656 | Y12: 0.6 | Z12: 0.56 | AA12: 0.6 | AB12: 0.6 | AC12: 0.6 | AD12: 0.6 | AE12: 0.67 | AF12: 1.207314286 | AG12: 0.8288 | AH12: 0.9550857143 | AI12: 0.8653714286 | AJ12: 0.7786285714 | AK12: 0.6078857143 | AL12: 0.7043428571 | AM12: =Y12*C12+($A$4-80)*AF12*$A$12/1000 -> 16.21554404 | AN12: =Z12*E12+($A$4-80)*AG12*$A$12/1000 -> 15.0184456 | AO12: =AA12*G12+($A$4-80)*AH12*$A$12/1000 -> 15.71813472 | AP12: =AB12*I12+($A$4-80)*AI12*$A$12/1000 -> 15.39481865 | AQ12: =AC12*K12+($A$4-80)*AJ12*$A$12/1000 -> 15.07150259 | AR12: =AD12*M12+($A$4-80)*AK12*$A$12/1000 -> 14.27564767 | AS12: =AE12*O12+($A$4-80)*AL12*$A$12/1000 -> 15.1357513
B13: 67 | C13: 25.94818653 | D13: 17.9042487 | E13: 25.74093264 | F13: 18.01865285 | G13: 25.11917098 | H13: 18.08580311 | I13: 24.55958549 | J13: 17.92849741 | K13: 24 | L13: 17.76 | M13: 22.71502591 | N13: 17.26341969 | O13: 21.51295337 | P13: 17.21036269 | R13: 1.081174439 | S13: 1.07253886 | T13: 1.046632124 | U13: 1.023316062 | V13: 1 | W13: 0.9464594128 | X13: 0.896373057 | Y13: 0.69 | Z13: 0.7 | AA13: 0.72 | AB13: 0.73 | AC13: 0.74 | AD13: 0.76 | AE13: 0.8 | AF13: 0.8780571429 | AG13: 0.8715428571 | AH13: 0.8516571429 | AI13: 0.8334857143 | AJ13: 0.8153142857 | AK13: 0.7734857143 | AL13: 0.6761142857 | AM13: =Y13*C13+($A$4-80)*AF13*$A$12/1000 -> 17.9042487 | AN13: =Z13*E13+($A$4-80)*AG13*$A$12/1000 -> 18.01865285 | AO13: =AA13*G13+($A$4-80)*AH13*$A$12/1000 -> 18.08580311 | AP13: =AB13*I13+($A$4-80)*AI13*$A$12/1000 -> 17.92849741 | AQ13: =AC13*K13+($A$4-80)*AJ13*$A$12/1000 -> 17.76 | AR13: =AD13*M13+($A$4-80)*AK13*$A$12/1000 -> 17.26341969 | AS13: =AE13*O13+($A$4-80)*AL13*$A$12/1000 -> 17.21036269
B14: 63 | C14: 25.24352332 | D14: 20.44725389 | E14: 24.99481865 | F14: 20.4957513 | G14: 24.37305699 | H14: 20.47336788 | I14: 23.83419689 | J14: 20.25906736 | K14: =V14*$K$13 -> 23.29533679 | L14: 20.03398964 | M14: 21.96891192 | N14: 19.33264249 | O14: 20.76683938 | P14: 20.76683938 | R14: 1.051813472 | S14: 1.041450777 | T14: 1.015544041 | U14: 0.9930915371 | V14: 0.9706390328 | W14: 0.9153713299 | X14: 0.8652849741 | Y14: 0.81 | Z14: 0.82 | AA14: 0.84 | AB14: 0.85 | AC14: 0.86 | AD14: 0.88 | AE14: 1 | AF14: 0.7896 | AG14: 0.8509714286 | AH14: 0.7642285714 | AI14: 0.7482285714 | AJ14: 0.7322285714 | AK14: 0.6926857143 | AL14: 1.115657143 | AM14: =Y14*C14+($A$4-80)*AF14*$A$12/1000 -> 20.44725389 | AN14: =Z14*E14+($A$4-80)*AG14*$A$12/1000 -> 20.4957513 | AO14: =AA14*G14+($A$4-80)*AH14*$A$12/1000 -> 20.47336788 | AP14: =AB14*I14+($A$4-80)*AI14*$A$12/1000 -> 20.25906736 | AQ14: =AC14*K14+($A$4-80)*AJ14*$A$12/1000 -> 20.03398964 | AR14: =AD14*M14+($A$4-80)*AK14*$A$12/1000 -> 19.33264249 | AS14: =AE14*O14+($A$4-80)*AL14*$A$12/1000 -> 20.76683938
B15: 59 | C15: 24.87046632 | D15: 22.13471503 | E15: 24.66321244 | F15: 24.66321244 | G15: 24.04145078 | H15: 24.04145078 | I15: 23.50259067 | J15: 23.50259067 | K15: 22.96373057 | L15: 22.96373057 | M15: 21.6373057 | N15: 21.6373057 | O15: 20.43523316 | P15: 20.43523316 | R15: 1.03626943 | S15: 1.027633851 | T15: 1.001727116 | U15: 0.9792746114 | V15: 0.9568221071 | W15: 0.9015544041 | X15: 0.8514680484 | Y15: 0.89 | Z15: 1 | AA15: 1 | AB15: 1 | AC15: 1 | AD15: 1 | AE15: 1 | AF15: 0.8492571429 | AG15: 1.522742857 | AH15: 1.353142857 | AI15: 0.6788571429 | AJ15: 0.03428571429 | AK15: 0.03428571429 | AL15: 0.03428571429 | AM15: =Y15*C15+($A$4-80)*AF15*$A$12/1000 -> 22.13471503 | AN15: =Z15*E15+($A$4-80)*AG15*$A$12/1000 -> 24.66321244 | AO15: =AA15*G15+($A$4-80)*AH15*$A$12/1000 -> 24.04145078 | AP15: =AB15*I15+($A$4-80)*AI15*$A$12/1000 -> 23.50259067 | AQ15: =AC15*K15+($A$4-80)*AJ15*$A$12/1000 -> 22.96373057 | AR15: =AD15*M15+($A$4-80)*AK15*$A$12/1000 -> 21.6373057 | AS15: =AE15*O15+($A$4-80)*AL15*$A$12/1000 -> 20.43523316
A16: 2000 | B16: 71 | C16: 27.64766839 | D16: 16.58860104 | E16: 27.44041451 | F16: 15.64103627 | G16: 26.81865285 | H16: 16.09119171 | I16: 26.27979275 | J16: 15.89927461 | K16: 25.74093264 | L16: 15.70196891 | M16: 24.41450777 | N16: 14.64870466 | O16: 23.21243523 | P16: 15.78445596 | R16: 1.151986183 | S16: 1.143350604 | T16: 1.117443869 | U16: 1.094991364 | V16: 1.07253886 | W16: 1.017271157 | X16: 0.9671848014 | Y16: 0.6 | Z16: 0.57 | AA16: 0.6 | AB16: 0.605 | AC16: 0.61 | AD16: 0.6 | AE16: 0.68 | AF16: 1.014 | AG16: 0.742 | AH16: 0.7908 | AI16: 0.7438 | AJ16: 0.6981 | AK16: 0.4868 | AL16: 0.6888 | AM16: =Y16*C16+($A$4-80)*AF16*$A$16/1000 -> 16.58860104 | AN16: =Z16*E16+($A$4-80)*AG16*$A$16/1000 -> 15.64103627 | AO16: =AA16*G16+($A$4-80)*AH16*$A$16/1000 -> 16.09119171 | AP16: =AB16*I16+($A$4-80)*AI16*$A$16/1000 -> 15.89927461 | AQ16: =AC16*K16+($A$4-80)*AJ16*$A$16/1000 -> 15.70196891 | AR16: =AD16*M16+($A$4-80)*AK16*$A$16/1000 -> 14.64870466 | AS16: =AE16*O16+($A$4-80)*AL16*$A$16/1000 -> 15.78445596
B17: 67 | C17: 26.56994819 | D17: 18.59896373 | E17: 26.32124352 | F17: 18.42487047 | G17: 25.69948187 | H17: 18.76062176 | I17: 25.16062176 | J17: 18.6188601 | K17: 24.62176166 | L17: 18.46632124 | M17: 23.29533679 | N17: 17.93740933 | O17: 22.09326425 | P17: 17.89554404 | R17: 1.107081174 | S17: 1.09671848 | T17: 1.070811744 | U17: 1.04835924 | V17: 1.025906736 | W17: 0.9706390328 | X17: 0.920552677 | Y17: 0.7 | Z17: 0.7 | AA17: 0.73 | AB17: 0.74 | AC17: 0.75 | AD17: 0.77 | AE17: 0.81 | AF17: 0.7866 | AG17: 0.7162 | AH17: 0.7623 | AI17: 0.747 | AJ17: 0.7317 | AK17: 0.6939 | AL17: 0.6073 | AM17: =Y17*C17+($A$4-80)*AF17*$A$16/1000 -> 18.59896373 | AN17: =Z17*E17+($A$4-80)*AG17*$A$16/1000 -> 18.42487047 | AO17: =AA17*G17+($A$4-80)*AH17*$A$16/1000 -> 18.76062176 | AP17: =AB17*I17+($A$4-80)*AI17*$A$16/1000 -> 18.6188601 | AQ17: =AC17*K17+($A$4-80)*AJ17*$A$16/1000 -> 18.46632124 | AR17: =AD17*M17+($A$4-80)*AK17*$A$16/1000 -> 17.93740933 | AS17: =AE17*O17+($A$4-80)*AL17*$A$16/1000 -> 17.89554404
B18: 63 | C18: 25.8238342 | D18: 21.17554404 | E18: 25.61658031 | F18: 21.26176166 | G18: 24.99481865 | H18: 21.24559585 | I18: 24.45595855 | J18: 21.03212435 | K18: 23.91709845 | L18: 20.80787565 | M18: 22.59067358 | N18: 22.59067358 | O18: 21.38860104 | P18: 21.38860104 | R18: 1.075993092 | S18: 1.067357513 | T18: 1.041450777 | U18: 1.018998273 | V18: 0.9965457686 | W18: 0.9412780656 | X18: 0.8911917098 | Y18: 0.82 | Z18: 0.83 | AA18: 0.85 | AB18: 0.86 | AC18: 0.87 | AD18: 1 | AE18: 1 | AF18: 0.7066 | AG18: 0.7629 | AH18: 0.6855 | AI18: 0.70085 | AJ18: 0.7149 | AK18: 1.2224 | AL18: 0.9534 | AM18: =Y18*C18+($A$4-80)*AF18*$A$16/1000 -> 21.17554404 | AN18: =Z18*E18+($A$4-80)*AG18*$A$16/1000 -> 21.26176166 | AO18: =AA18*G18+($A$4-80)*AH18*$A$16/1000 -> 21.24559585 | AP18: =AB18*I18+($A$4-80)*AI18*$A$16/1000 -> 21.03212435 | AQ18: =AC18*K18+($A$4-80)*AJ18*$A$16/1000 -> 20.80787565 | AR18: =AD18*M18+($A$4-80)*AK18*$A$16/1000 -> 22.59067358 | AS18: =AE18*O18+($A$4-80)*AL18*$A$16/1000 -> 21.38860104
B19: 59 | C19: 25.49222798 | D19: 22.6880829 | E19: 25.28497409 | F19: 25.28497409 | G19: 24.66321244 | H19: 24.66321244 | I19: 24.12435233 | J19: 24.12435233 | K19: 23.58549223 | L19: 23.58549223 | M19: 22.25906736 | N19: 22.25906736 | O19: 21.05699482 | P19: 21.05699482 | R19: 1.062176166 | S19: 1.053540587 | T19: 1.027633851 | U19: 1.005181347 | V19: 0.9827288428 | W19: 0.9274611399 | X19: 0.8773747841 | Y19: 0.89 | Z19: 1 | AA19: 1 | AB19: 1 | AC19: 1 | AD19: 1 | AE19: 1 | AF19: 0.6999 | AG19: 1.3654 | AH19: 0.03 | AI19: 0.03 | AJ19: 0.03 | AK19: 0.03 | AL19: 0.03 | AM19: =Y19*C19+($A$4-80)*AF19*$A$16/1000 -> 22.6880829 | AN19: =Z19*E19+($A$4-80)*AG19*$A$16/1000 -> 25.28497409 | AO19: =AA19*G19+($A$4-80)*AH19*$A$16/1000 -> 24.66321244 | AP19: =AB19*I19+($A$4-80)*AI19*$A$16/1000 -> 24.12435233 | AQ19: =AC19*K19+($A$4-80)*AJ19*$A$16/1000 -> 23.58549223 | AR19: =AD19*M19+($A$4-80)*AK19*$A$16/1000 -> 22.25906736 | AS19: =AE19*O19+($A$4-80)*AL19*$A$16/1000 -> 21.05699482

Sheet GSX160_18 (hidden)
A2: GSX160_18
A3: Evaporator Air | C3: Condenser Entering Air Temperature ˚F
A4: 80 | B4: °F DB | C4: 65 | E4: 75 | G4: 85 | I4: 90 | K4: 95 | M4: 105 | O4: 115
A5: CFM | B5: EWB† ˚F | C5: Capacity Mbtuh | E5: Capacity Mbtuh | G5: Capacity Mbtuh | I5: Capacity Mbtuh | K5: Capacity Mbtuh | M5: Capacity Mbtuh | O5: Capacity Mbtuh
C6: Total | D6: Sens. | E6: Total | F6: Sens. | G6: Total | H6: Sens. | I6: Total | J6: Sens. | K6: Total | L6: Sens. | M6: Total | N6: Sens. | O6: Total | P6: Sens.
R7: Total Factors | Y7: Sens. % | AF7: IDB Adj | AM7: Sens Calc
A8: 525 | B8: 71 | C8: =R8*$K$13 -> 25.785 | D8: =IF(AM8>C8,C8,AM8) -> 12.63465 | E8: =S8*$K$13 -> 25.11 | F8: =IF(AN8>E8,E8,AN8) -> 12.555 | G8: =T8*$K$13 -> 24.57 | H8: =IF(AO8>G8,G8,AO8) -> 12.7764 | I8: =U8*$K$13 -> 24.3 | J8: =IF(AP8>I8,I8,AP8) -> 12.7575 | K8: =V8*$K$13 -> 24.03 | L8: =IF(AQ8>K8,K8,AQ8) -> 12.7359 | M8: =W8*$K$13 -> 22.815 | N8: =IF(AR8>M8,M8,AR8) -> 12.54825 | O8: =X8*$K$13 -> 21.06 | P8: =IF(AS8>O8,O8,AS8) -> 11.7936 | R8: 1.061111111 | S8: 1.033333333 | T8: 1.011111111 | U8: 1 | V8: 0.9888888889 | W8: 0.9388888889 | X8: 0.8666666667 | Y8: 0.49 | Z8: 0.5 | AA8: 0.52 | AB8: 0.525 | AC8: 0.53 | AD8: 0.55 | AE8: 0.56 | AF8: 1.07847619 | AG8: 1.036190476 | AH8: 1.095619048 | AI8: 1.083238095 | AJ8: 1.070857143 | AK8: 1.015238095 | AL8: 0.9954285714 | AM8: =Y8*C8+($A$4-80)*AF8*$A$8/1000 -> 12.63465 | AN8: =Z8*E8+($A$4-80)*AG8*$A$8/1000 -> 12.555 | AO8: =AA8*G8+($A$4-80)*AH8*$A$8/1000 -> 12.7764 | AP8: =AB8*I8+($A$4-80)*AI8*$A$8/1000 -> 12.7575 | AQ8: =AC8*K8+($A$4-80)*AJ8*$A$8/1000 -> 12.7359 | AR8: =AD8*M8+($A$4-80)*AK8*$A$8/1000 -> 12.54825 | AS8: =AE8*O8+($A$4-80)*AL8*$A$8/1000 -> 11.7936
B9: 67 | C9: 24.165 | D9: 15.70725 | E9: 23.49 | F9: 15.7383 | G9: 22.95 | H9: 15.8355 | I9: 22.68 | J9: 15.876 | K9: =V9*$K$13 -> 22.41 | L9: 15.9111 | M9: 21.33 | N9: 15.7842 | O9: 19.71 | P9: 14.7825 | R9: 0.9944444444 | S9: 0.9666666667 | T9: 0.9444444444 | U9: 0.9333333333 | V9: 0.9222222222 | W9: 0.8777777778 | X9: 0.8111111111 | Y9: 0.65 | Z9: 0.67 | AA9: 0.69 | AB9: 0.7 | AC9: 0.71 | AD9: 0.74 | AE9: 0.75 | AF9: 0.8182857143 | AG9: 0.7744761905 | AH9: 0.8205714286 | AI9: 0.8102857143 | AJ9: 0.8 | AK9: 0.8426666667 | AL9: 0.8114285714 | AM9: =Y9*C9+($A$4-80)*AF9*$A$8/1000 -> 15.70725 | AN9: =Z9*E9+($A$4-80)*AG9*$A$8/1000 -> 15.7383 | AO9: =AA9*G9+($A$4-80)*AH9*$A$8/1000 -> 15.8355 | AP9: =AB9*I9+($A$4-80)*AI9*$A$8/1000 -> 15.876 | AQ9: =AC9*K9+($A$4-80)*AJ9*$A$8/1000 -> 15.9111 | AR9: =AD9*M9+($A$4-80)*AK9*$A$8/1000 -> 15.7842 | AS9: =AE9*O9+($A$4-80)*AL9*$A$8/1000 -> 14.7825
B10: 63 | C10: 22.545 | D10: 18.036 | E10: 22.005 | F10: 18.26415 | G10: 21.465 | H10: 18.24525 | I10: 21.2625 | J10: 18.3920625 | K10: =V10*$K$13 -> 21.06 | L10: 18.5328 | M10: 19.98 | N10: 18.1818 | O10: 18.495 | P10: 17.0154 | R10: 0.9277777778 | S10: 0.9055555556 | T10: 0.8833333333 | U10: 0.875 | V10: 0.8666666667 | W10: 0.8222222222 | X10: 0.7611111111 | Y10: 0.8 | Z10: 0.83 | AA10: 0.85 | AB10: 0.865 | AC10: 0.88 | AD10: 0.91 | AE10: 0.92 | AF10: 0.7523809524 | AG10: 0.7104761905 | AH10: 0.6944761905 | AI10: 0.7328571429 | AJ10: 0.771047619 | AK10: 0.7367619048 | AL10: 0.6872380952 | AM10: =Y10*C10+($A$4-80)*AF10*$A$8/1000 -> 18.036 | AN10: =Z10*E10+($A$4-80)*AG10*$A$8/1000 -> 18.26415 | AO10: =AA10*G10+($A$4-80)*AH10*$A$8/1000 -> 18.24525 | AP10: =AB10*I10+($A$4-80)*AI10*$A$8/1000 -> 18.3920625 | AQ10: =AC10*K10+($A$4-80)*AJ10*$A$8/1000 -> 18.5328 | AR10: =AD10*M10+($A$4-80)*AK10*$A$8/1000 -> 18.1818 | AS10: =AE10*O10+($A$4-80)*AL10*$A$8/1000 -> 17.0154
B11: 59 | C11: 22.14 | D11: 18.819 | E11: 21.6 | F11: 19.008 | G11: 21.06 | H11: 19.1646 | I11: 20.79 | J11: 19.1268 | K11: =V11*$K$13 -> 20.52 | L11: 19.0836 | M11: 19.575 | N11: 18.98775 | O11: 18.09 | P11: 17.7282 | R11: 0.9111111111 | S11: 0.8888888889 | T11: 0.8666666667 | U11: 0.8555555556 | V11: 0.8444444444 | W11: 0.8055555556 | X11: 0.7444444444 | Y11: 0.85 | Z11: 0.88 | AA11: 0.91 | AB11: 0.92 | AC11: 0.93 | AD11: 0.97 | AE11: 0.98 | AF11: 0.5264761905 | AG11: 0.5192380952 | AH11: 0.5702857143 | AI11: 0.5493333333 | AJ11: 0.528 | AK11: 0.5977142857 | AL11: 0.5272380952 | AM11: =Y11*C11+($A$4-80)*AF11*$A$8/1000 -> 18.819 | AN11: =Z11*E11+($A$4-80)*AG11*$A$8/1000 -> 19.008 | AO11: =AA11*G11+($A$4-80)*AH11*$A$8/1000 -> 19.1646 | AP11: =AB11*I11+($A$4-80)*AI11*$A$8/1000 -> 19.1268 | AQ11: =AC11*K11+($A$4-80)*AJ11*$A$8/1000 -> 19.0836 | AR11: =AD11*M11+($A$4-80)*AK11*$A$8/1000 -> 18.98775 | AS11: =AE11*O11+($A$4-80)*AL11*$A$8/1000 -> 17.7282
A12: 650 | B12: 71 | C12: 27.945 | D12: 13.9725 | E12: 27.27 | F12: 14.1804 | G12: 26.595 | H12: 14.3613 | I12: 26.2575 | J12: 14.3103375 | K12: =V12*$K$13 -> 25.92 | L12: 14.256 | M12: 24.705 | N12: 14.08185 | O12: 22.815 | P12: 13.2327 | R12: 1.15 | S12: 1.122222222 | T12: 1.094444444 | U12: 1.080555556 | V12: 1.066666667 | W12: 1.016666667 | X12: 0.9388888889 | Y12: 0.5 | Z12: 0.52 | AA12: 0.54 | AB12: 0.545 | AC12: 0.55 | AD12: 0.57 | AE12: 0.58 | AF12: 0.9446153846 | AG12: 0.9833846154 | AH12: 1.007692308 | AI12: 0.9943076923 | AJ12: 0.9809230769 | AK12: 0.9449230769 | AL12: 0.9113846154 | AM12: =Y12*C12+($A$4-80)*AF12*$A$12/1000 -> 13.9725 | AN12: =Z12*E12+($A$4-80)*AG12*$A$12/1000 -> 14.1804 | AO12: =AA12*G12+($A$4-80)*AH12*$A$12/1000 -> 14.3613 | AP12: =AB12*I12+($A$4-80)*AI12*$A$12/1000 -> 14.3103375 | AQ12: =AC12*K12+($A$4-80)*AJ12*$A$12/1000 -> 14.256 | AR12: =AD12*M12+($A$4-80)*AK12*$A$12/1000 -> 14.08185 | AS12: =AE12*O12+($A$4-80)*AL12*$A$12/1000 -> 13.2327
B13: 67 | C13: 26.19 | D13: 17.5473 | E13: 25.515 | F13: 17.8605 | G13: 24.975 | H13: 17.982 | I13: 24.6375 | J13: 17.985375 | K13: 24.3 | L13: 17.982 | M13: 23.085 | N13: 17.77545 | O13: 21.33 | P13: 16.4241 | R13: 1.077777778 | S13: 1.05 | T13: 1.027777778 | U13: 1.013888889 | V13: 1 | W13: 0.95 | X13: 0.8777777778 | Y13: 0.67 | Z13: 0.7 | AA13: 0.72 | AB13: 0.73 | AC13: 0.74 | AD13: 0.77 | AE13: 0.77 | AF13: 0.7163076923 | AG13: 0.7384615385 | AH13: 0.7969230769 | AI13: 0.7770769231 | AJ13: 0.7569230769 | AK13: 0.7701538462 | AL13: 0.6612307692 | AM13: =Y13*C13+($A$4-80)*AF13*$A$12/1000 -> 17.5473 | AN13: =Z13*E13+($A$4-80)*AG13*$A$12/1000 -> 17.8605 | AO13: =AA13*G13+($A$4-80)*AH13*$A$12/1000 -> 17.982 | AP13: =AB13*I13+($A$4-80)*AI13*$A$12/1000 -> 17.985375 | AQ13: =AC13*K13+($A$4-80)*AJ13*$A$12/1000 -> 17.982 | AR13: =AD13*M13+($A$4-80)*AK13*$A$12/1000 -> 17.77545 | AS13: =AE13*O13+($A$4-80)*AL13*$A$12/1000 -> 16.4241
B14: 63 | C14: 24.435 | D14: 20.28105 | E14: 23.895 | F14: 20.5497 | G14: 23.355 | H14: 20.5524 | I14: 23.0175 | J14: 20.6006625 | K14: =V14*$K$13 -> 22.68 | L14: 20.6388 | M14: 21.6 | N14: 20.304 | O14: 19.98 | P14: 18.981 | R14: 1.005555556 | S14: 0.9833333333 | T14: 0.9611111111 | U14: 0.9472222222 | V14: 0.9333333333 | W14: 0.8888888889 | X14: 0.8222222222 | Y14: 0.83 | Z14: 0.86 | AA14: 0.88 | AB14: 0.895 | AC14: 0.91 | AD14: 0.94 | AE14: 0.95 | AF14: 0.6569230769 | AG14: 0.6452307692 | AH14: 0.6329230769 | AI14: 0.6393076923 | AJ14: 0.6446153846 | AK14: 0.6412307692 | AL14: 0.572 | AM14: =Y14*C14+($A$4-80)*AF14*$A$12/1000 -> 20.28105 | AN14: =Z14*E14+($A$4-80)*AG14*$A$12/1000 -> 20.5497 | AO14: =AA14*G14+($A$4-80)*AH14*$A$12/1000 -> 20.5524 | AP14: =AB14*I14+($A$4-80)*AI14*$A$12/1000 -> 20.6006625 | AQ14: =AC14*K14+($A$4-80)*AJ14*$A$12/1000 -> 20.6388 | AR14: =AD14*M14+($A$4-80)*AK14*$A$12/1000 -> 20.304 | AS14: =AE14*O14+($A$4-80)*AL14*$A$12/1000 -> 18.981
B15: 59 | C15: 23.895 | D15: 21.0276 | E15: 23.355 | F15: 21.4866 | G15: 22.815 | H15: 21.4461 | I15: 22.545 | J15: 21.530475 | K15: 22.275 | L15: 21.60675 | M15: 21.195 | N15: 21.195 | O15: 19.575 | P15: 19.575 | R15: 0.9833333333 | S15: 0.9611111111 | T15: 0.9388888889 | U15: 0.9277777778 | V15: 0.9166666667 | W15: 0.8722222222 | X15: 0.8055555556 | Y15: 0.88 | Z15: 0.92 | AA15: 0.94 | AB15: 0.955 | AC15: 0.97 | AD15: 1 | AE15: 1 | AF15: 0.456 | AG15: 0.5033846154 | AH15: 0.4953846154 | AI15: 0.5170769231 | AJ15: 0.5381538462 | AK15: 0.4713846154 | AL15: 0.3695384615 | AM15: =Y15*C15+($A$4-80)*AF15*$A$12/1000 -> 21.0276 | AN15: =Z15*E15+($A$4-80)*AG15*$A$12/1000 -> 21.4866 | AO15: =AA15*G15+($A$4-80)*AH15*$A$12/1000 -> 21.4461 | AP15: =AB15*I15+($A$4-80)*AI15*$A$12/1000 -> 21.530475 | AQ15: =AC15*K15+($A$4-80)*AJ15*$A$12/1000 -> 21.60675 | AR15: =AD15*M15+($A$4-80)*AK15*$A$12/1000 -> 21.195 | AS15: =AE15*O15+($A$4-80)*AL15*$A$12/1000 -> 19.575
A16: 675 | B16: 71 | C16: 27.945 | D16: 13.9725 | E16: 27.27 | F16: 14.1804 | G16: 26.595 | H16: 14.3613 | I16: 26.2575 | J16: 14.3103375 | K16: 25.92 | L16: 14.256 | M16: 24.705 | N16: 14.08185 | O16: 22.815 | P16: 13.2327 | R16: 1.15 | S16: 1.122222222 | T16: 1.094444444 | U16: 1.080555556 | V16: 1.066666667 | W16: 1.016666667 | X16: 0.9388888889 | Y16: 0.5 | Z16: 0.52 | AA16: 0.54 | AB16: 0.545 | AC16: 0.55 | AD16: 0.57 | AE16: 0.58 | AF16: 0.9096296296 | AG16: 0.946962963 | AH16: 0.9703703704 | AI16: 0.9574814815 | AJ16: 0.9445925926 | AK16: 0.9099259259 | AL16: 0.8776296296 | AM16: =Y16*C16+($A$4-80)*AF16*$A$16/1000 -> 13.9725 | AN16: =Z16*E16+($A$4-80)*AG16*$A$16/1000 -> 14.1804 | AO16: =AA16*G16+($A$4-80)*AH16*$A$16/1000 -> 14.3613 | AP16: =AB16*I16+($A$4-80)*AI16*$A$16/1000 -> 14.3103375 | AQ16: =AC16*K16+($A$4-80)*AJ16*$A$16/1000 -> 14.256 | AR16: =AD16*M16+($A$4-80)*AK16*$A$16/1000 -> 14.08185 | AS16: =AE16*O16+($A$4-80)*AL16*$A$16/1000 -> 13.2327
B17: 67 | C17: 26.19 | D17: 17.5473 | E17: 25.515 | F17: 17.8605 | G17: 24.975 | H17: 17.982 | I17: 24.6375 | J17: 17.985375 | K17: 24.3 | L17: 17.982 | M17: 23.085 | N17: 17.77545 | O17: 21.33 | P17: 16.4241 | R17: 1.077777778 | S17: 1.05 | T17: 1.027777778 | U17: 1.013888889 | V17: 1 | W17: 0.95 | X17: 0.8777777778 | Y17: 0.67 | Z17: 0.7 | AA17: 0.72 | AB17: 0.73 | AC17: 0.74 | AD17: 0.77 | AE17: 0.77 | AF17: 0.6897777778 | AG17: 0.7111111111 | AH17: 0.7674074074 | AI17: 0.7482962963 | AJ17: 0.7288888889 | AK17: 0.7416296296 | AL17: 0.6367407407 | AM17: =Y17*C17+($A$4-80)*AF17*$A$16/1000 -> 17.5473 | AN17: =Z17*E17+($A$4-80)*AG17*$A$16/1000 -> 17.8605 | AO17: =AA17*G17+($A$4-80)*AH17*$A$16/1000 -> 17.982 | AP17: =AB17*I17+($A$4-80)*AI17*$A$16/1000 -> 17.985375 | AQ17: =AC17*K17+($A$4-80)*AJ17*$A$16/1000 -> 17.982 | AR17: =AD17*M17+($A$4-80)*AK17*$A$16/1000 -> 17.77545 | AS17: =AE17*O17+($A$4-80)*AL17*$A$16/1000 -> 16.4241
B18: 63 | C18: 24.435 | D18: 20.28105 | E18: 23.895 | F18: 20.5497 | G18: 23.355 | H18: 20.5524 | I18: 23.0175 | J18: 20.6006625 | K18: 22.68 | L18: 20.6388 | M18: 21.6 | N18: 20.304 | O18: 19.98 | P18: 18.981 | R18: 1.005555556 | S18: 0.9833333333 | T18: 0.9611111111 | U18: 0.9472222222 | V18: 0.9333333333 | W18: 0.8888888889 | X18: 0.8222222222 | Y18: 0.83 | Z18: 0.86 | AA18: 0.88 | AB18: 0.895 | AC18: 0.91 | AD18: 0.94 | AE18: 0.95 | AF18: 0.6325925926 | AG18: 0.6213333333 | AH18: 0.6094814815 | AI18: 0.6156296296 | AJ18: 0.6207407407 | AK18: 0.6174814815 | AL18: 0.5508148148 | AM18: =Y18*C18+($A$4-80)*AF18*$A$16/1000 -> 20.28105 | AN18: =Z18*E18+($A$4-80)*AG18*$A$16/1000 -> 20.5497 | AO18: =AA18*G18+($A$4-80)*AH18*$A$16/1000 -> 20.5524 | AP18: =AB18*I18+($A$4-80)*AI18*$A$16/1000 -> 20.6006625 | AQ18: =AC18*K18+($A$4-80)*AJ18*$A$16/1000 -> 20.6388 | AR18: =AD18*M18+($A$4-80)*AK18*$A$16/1000 -> 20.304 | AS18: =AE18*O18+($A$4-80)*AL18*$A$16/1000 -> 18.981
B19: 59 | C19: 23.895 | D19: 21.0276 | E19: 23.355 | F19: 21.4866 | G19: 22.815 | H19: 21.4461 | I19: 22.545 | J19: 21.530475 | K19: 22.275 | L19: 21.60675 | M19: 21.195 | N19: 21.195 | O19: 19.575 | P19: 19.575 | R19: 0.9833333333 | S19: 0.9611111111 | T19: 0.9388888889 | U19: 0.9277777778 | V19: 0.9166666667 | W19: 0.8722222222 | X19: 0.8055555556 | Y19: 0.88 | Z19: 0.92 | AA19: 0.94 | AB19: 0.955 | AC19: 0.97 | AD19: 1 | AE19: 1 | AF19: 0.4391111111 | AG19: 0.4847407407 | AH19: 0.477037037 | AI19: 0.4979259259 | AJ19: 0.5182222222 | AK19: 0.4539259259 | AL19: 0.3558518519 | AM19: =Y19*C19+($A$4-80)*AF19*$A$16/1000 -> 21.0276 | AN19: =Z19*E19+($A$4-80)*AG19*$A$16/1000 -> 21.4866 | AO19: =AA19*G19+($A$4-80)*AH19*$A$16/1000 -> 21.4461 | AP19: =AB19*I19+($A$4-80)*AI19*$A$16/1000 -> 21.530475 | AQ19: =AC19*K19+($A$4-80)*AJ19*$A$16/1000 -> 21.60675 | AR19: =AD19*M19+($A$4-80)*AK19*$A$16/1000 -> 21.195 | AS19: =AE19*O19+($A$4-80)*AL19*$A$16/1000 -> 19.575

Sheet GSX160_24 (hidden)
A2: GSX160_24
A3: Evaporator Air | C3: Condenser Entering Air Temperature ˚F
A4: 80 | B4: °F DB | C4: 65 | E4: 75 | G4: 85 | I4: 90 | K4: 95 | M4: 105 | O4: 115
A5: CFM | B5: EWB† ˚F | C5: Capacity Mbtuh | E5: Capacity Mbtuh | G5: Capacity Mbtuh | I5: Capacity Mbtuh | K5: Capacity Mbtuh | M5: Capacity Mbtuh | O5: Capacity Mbtuh
C6: Total | D6: Sens. | E6: Total | F6: Sens. | G6: Total | H6: Sens. | I6: Total | J6: Sens. | K6: Total | L6: Sens. | M6: Total | N6: Sens. | O6: Total | P6: Sens.
R7: Total Factors | Y7: Sens. % | AF7: IDB Adj | AM7: Sens Calc
A8: 700 | B8: 71 | C8: =R8*$K$13 -> 27.49194915 | D8: =IF(AM8>C8,C8,AM8) -> 13.47105508 | E8: =S8*$K$13 -> 26.87415254 | F8: =IF(AN8>E8,E8,AN8) -> 13.7058178 | G8: =T8*$K$13 -> 26.25635593 | H8: =IF(AO8>G8,G8,AO8) -> 13.65330508 | I8: =U8*$K$13 -> 25.89597458 | J8: =IF(AP8>I8,I8,AP8) -> 13.72486653 | K8: =V8*$K$13 -> 25.53559322 | L8: =IF(AQ8>K8,K8,AQ8) -> 13.78922034 | M8: =W8*$K$13 -> 24.3 | N8: =IF(AR8>M8,M8,AR8) -> 13.608 | O8: =X8*$K$13 -> 22.54957627 | P8: =IF(AS8>O8,O8,AS8) -> 12.85325847 | R8: 1.131355932 | S8: 1.105932203 | T8: 1.080508475 | U8: 1.065677966 | V8: 1.050847458 | W8: 1 | X8: 0.9279661017 | Y8: 0.49 | Z8: 0.51 | AA8: 0.52 | AB8: 0.53 | AC8: 0.54 | AD8: 0.56 | AE8: 0.57 | AF8: 1.124857143 | AG8: 1.098 | AH8: 1.155428571 | AI8: 1.133857143 | AJ8: 1.112 | AK8: 1.124 | AL8: 1.115142857 | AM8: =Y8*C8+($A$4-80)*AF8*$A$8/1000 -> 13.47105508 | AN8: =Z8*E8+($A$4-80)*AG8*$A$8/1000 -> 13.7058178 | AO8: =AA8*G8+($A$4-80)*AH8*$A$8/1000 -> 13.65330508 | AP8: =AB8*I8+($A$4-80)*AI8*$A$8/1000 -> 13.72486653 | AQ8: =AC8*K8+($A$4-80)*AJ8*$A$8/1000 -> 13.78922034 | AR8: =AD8*M8+($A$4-80)*AK8*$A$8/1000 -> 13.608 | AS8: =AE8*O8+($A$4-80)*AL8*$A$8/1000 -> 12.85325847
B9: 67 | C9: 25.74152542 | D9: 16.98940678 | E9: 25.12372881 | F9: 17.08413559 | G9: 24.5059322 | H9: 17.15415254 | I9: 24.1970339 | J9: 17.17989407 | K9: =V9*$K$13 -> 23.88813559 | L9: 17.19945763 | M9: 22.75550847 | N9: 17.06663136 | O9: 21.10805085 | P9: 16.04211864 | R9: 1.059322034 | S9: 1.033898305 | T9: 1.008474576 | U9: 0.9957627119 | V9: 0.9830508475 | W9: 0.936440678 | X9: 0.8686440678 | Y9: 0.66 | Z9: 0.68 | AA9: 0.7 | AB9: 0.71 | AC9: 0.72 | AD9: 0.75 | AE9: 0.76 | AF9: 0.9134285714 | AG9: 0.8905714286 | AH9: 0.8677142857 | AI9: 0.89 | AJ9: 0.9114285714 | AK9: 0.884 | AL9: 0.8785714286 | AM9: =Y9*C9+($A$4-80)*AF9*$A$8/1000 -> 16.98940678 | AN9: =Z9*E9+($A$4-80)*AG9*$A$8/1000 -> 17.08413559 | AO9: =AA9*G9+($A$4-80)*AH9*$A$8/1000 -> 17.15415254 | AP9: =AB9*I9+($A$4-80)*AI9*$A$8/1000 -> 17.17989407 | AQ9: =AC9*K9+($A$4-80)*AJ9*$A$8/1000 -> 17.19945763 | AR9: =AD9*M9+($A$4-80)*AK9*$A$8/1000 -> 17.06663136 | AS9: =AE9*O9+($A$4-80)*AL9*$A$8/1000 -> 16.04211864
B10: 63 | C10: 24.0940678 | D10: 19.51619492 | E10: 23.47627119 | F10: 19.7200678 | G10: 22.96144068 | H10: 19.74683898 | I10: 22.70402542 | J10: 19.86602225 | K10: =V10*$K$13 -> 22.44661017 | L10: 19.97748305 | M10: 21.31398305 | N10: 19.60886441 | O10: 19.66652542 | P10: 18.28986864 | R10: 0.9915254237 | S10: 0.9661016949 | T10: 0.9449152542 | U10: 0.9343220339 | V10: 0.9237288136 | W10: 0.8771186441 | X10: 0.8093220339 | Y10: 0.81 | Z10: 0.84 | AA10: 0.86 | AB10: 0.875 | AC10: 0.89 | AD10: 0.92 | AE10: 0.93 | AF10: 0.7754285714 | AG10: 0.7582857143 | AH10: 0.7437142857 | AI10: 0.7787857143 | AJ10: 0.8134285714 | AK10: 0.7554285714 | AL10: 0.678 | AM10: =Y10*C10+($A$4-80)*AF10*$A$8/1000 -> 19.51619492 | AN10: =Z10*E10+($A$4-80)*AG10*$A$8/1000 -> 19.7200678 | AO10: =AA10*G10+($A$4-80)*AH10*$A$8/1000 -> 19.74683898 | AP10: =AB10*I10+($A$4-80)*AI10*$A$8/1000 -> 19.86602225 | AQ10: =AC10*K10+($A$4-80)*AJ10*$A$8/1000 -> 19.97748305 | AR10: =AD10*M10+($A$4-80)*AK10*$A$8/1000 -> 19.60886441 | AS10: =AE10*O10+($A$4-80)*AL10*$A$8/1000 -> 18.28986864
B11: 59 | C11: 23.57923729 | D11: 20.27814407 | E11: 23.06440678 | F11: 20.7579661 | G11: 22.44661017 | H11: 20.65088136 | I11: 22.18919492 | J11: 20.74689725 | K11: =V11*$K$13 -> 21.93177966 | L11: 20.83519068 | M11: 20.79915254 | N11: 20.38316949 | O11: 19.25466102 | P11: 19.06211441 | R11: 0.9703389831 | S11: 0.9491525424 | T11: 0.9237288136 | U11: 0.9131355932 | V11: 0.9025423729 | W11: 0.8559322034 | X11: 0.7923728814 | Y11: 0.86 | Z11: 0.9 | AA11: 0.92 | AB11: 0.935 | AC11: 0.95 | AD11: 0.98 | AE11: 0.99 | AF11: 0.5482857143 | AG11: 0.6057142857 | AH11: 0.5942857143 | AI11: 0.6205 | AJ11: 0.646 | AK11: 0.5388571429 | AL11: 0.558 | AM11: =Y11*C11+($A$4-80)*AF11*$A$8/1000 -> 20.27814407 | AN11: =Z11*E11+($A$4-80)*AG11*$A$8/1000 -> 20.7579661 | AO11: =AA11*G11+($A$4-80)*AH11*$A$8/1000 -> 20.65088136 | AP11: =AB11*I11+($A$4-80)*AI11*$A$8/1000 -> 20.74689725 | AQ11: =AC11*K11+($A$4-80)*AJ11*$A$8/1000 -> 20.83519068 | AR11: =AD11*M11+($A$4-80)*AK11*$A$8/1000 -> 20.38316949 | AS11: =AE11*O11+($A$4-80)*AL11*$A$8/1000 -> 19.06211441
A12: 750 | B12: 71 | C12: 27.90381356 | D12: 14.23094492 | E12: 27.28601695 | F12: 14.46158898 | G12: 26.66822034 | H12: 14.40083898 | I12: 26.30783898 | J12: 14.46931144 | K12: =V12*$K$13 -> 25.94745763 | L12: 14.53057627 | M12: 24.71186441 | N12: 14.33288136 | O12: 22.85847458 | P12: 13.4865 | R12: 1.148305085 | S12: 1.122881356 | T12: 1.097457627 | U12: 1.082627119 | V12: 1.06779661 | W12: 1.016949153 | X12: 0.9406779661 | Y12: 0.51 | Z12: 0.53 | AA12: 0.54 | AB12: 0.55 | AC12: 0.56 | AD12: 0.58 | AE12: 0.59 | AF12: 1.0648 | AG12: 1.110933333 | AH12: 1.094933333 | AI12: 1.1088 | AJ12: 1.1216 | AK12: 1.141333333 | AL12: 1.043733333 | AM12: =Y12*C12+($A$4-80)*AF12*$A$12/1000 -> 14.23094492 | AN12: =Z12*E12+($A$4-80)*AG12*$A$12/1000 -> 14.46158898 | AO12: =AA12*G12+($A$4-80)*AH12*$A$12/1000 -> 14.40083898 | AP12: =AB12*I12+($A$4-80)*AI12*$A$12/1000 -> 14.46931144 | AQ12: =AC12*K12+($A$4-80)*AJ12*$A$12/1000 -> 14.53057627 | AR12: =AD12*M12+($A$4-80)*AK12*$A$12/1000 -> 14.33288136 | AS12: =AE12*O12+($A$4-80)*AL12*$A$12/1000 -> 13.4865
B13: 67 | C13: 26.15338983 | D13: 17.78430508 | E13: 25.53559322 | F13: 18.13027119 | G13: 24.91779661 | H13: 18.18999153 | I13: 24.60889831 | J13: 18.21058475 | K13: 24.3 | L13: 18.225 | M13: 23.06440678 | N13: 17.99023729 | O13: 21.41694915 | P13: 16.70522034 | R13: 1.076271186 | S13: 1.050847458 | T13: 1.025423729 | U13: 1.012711864 | V13: 1 | W13: 0.9491525424 | X13: 0.8813559322 | Y13: 0.68 | Z13: 0.71 | AA13: 0.73 | AB13: 0.74 | AC13: 0.75 | AD13: 0.78 | AE13: 0.78 | AF13: 0.8805333333 | AG13: 0.9106666667 | AH13: 0.8877333333 | AI13: 0.8762666667 | AJ13: 0.8648 | AK13: 0.8792 | AL13: 0.832 | AM13: =Y13*C13+($A$4-80)*AF13*$A$12/1000 -> 17.78430508 | AN13: =Z13*E13+($A$4-80)*AG13*$A$12/1000 -> 18.13027119 | AO13: =AA13*G13+($A$4-80)*AH13*$A$12/1000 -> 18.18999153 | AP13: =AB13*I13+($A$4-80)*AI13*$A$12/1000 -> 18.21058475 | AQ13: =AC13*K13+($A$4-80)*AJ13*$A$12/1000 -> 18.225 | AR13: =AD13*M13+($A$4-80)*AK13*$A$12/1000 -> 17.99023729 | AS13: =AE13*O13+($A$4-80)*AL13*$A$12/1000 -> 16.70522034
B14: 63 | C14: 24.4029661 | D14: 20.49849153 | E14: 23.88813559 | F14: 20.78267797 | G14: 23.27033898 | H14: 20.71060169 | I14: 23.01292373 | J14: 20.82669597 | K14: =V14*$K$13 -> 22.75550847 | L14: 20.9350678 | M14: 21.62288136 | N14: 20.7579661 | O14: 19.97542373 | P14: 19.17640678 | R14: 1.004237288 | S14: 0.9830508475 | T14: 0.9576271186 | U14: 0.9470338983 | V14: 0.936440678 | W14: 0.8898305085 | X14: 0.8220338983 | Y14: 0.84 | Z14: 0.87 | AA14: 0.89 | AB14: 0.905 | AC14: 0.92 | AD14: 0.96 | AE14: 0.96 | AF14: 0.7341333333 | AG14: 0.7210666667 | AH14: 0.7045333333 | AI14: 0.7275333333 | AJ14: 0.7498666667 | AK14: 0.7722666667 | AL14: 0.6656 | AM14: =Y14*C14+($A$4-80)*AF14*$A$12/1000 -> 20.49849153 | AN14: =Z14*E14+($A$4-80)*AG14*$A$12/1000 -> 20.78267797 | AO14: =AA14*G14+($A$4-80)*AH14*$A$12/1000 -> 20.71060169 | AP14: =AB14*I14+($A$4-80)*AI14*$A$12/1000 -> 20.82669597 | AQ14: =AC14*K14+($A$4-80)*AJ14*$A$12/1000 -> 20.9350678 | AR14: =AD14*M14+($A$4-80)*AK14*$A$12/1000 -> 20.7579661 | AS14: =AE14*O14+($A$4-80)*AL14*$A$12/1000 -> 19.17640678
B15: 59 | C15: 23.88813559 | D15: 21.49932203 | E15: 23.37330508 | F15: 21.73717373 | G15: 22.85847458 | H15: 21.71555085 | I15: 22.54957627 | J15: 21.7603411 | K15: 22.24067797 | L15: 21.79586441 | M15: 21.10805085 | N15: 21.10805085 | O15: 19.56355932 | P15: 19.56355932 | R15: 0.9830508475 | S15: 0.9618644068 | T15: 0.9406779661 | U15: 0.9279661017 | V15: 0.9152542373 | W15: 0.8686440678 | X15: 0.8050847458 | Y15: 0.9 | Z15: 0.93 | AA15: 0.95 | AB15: 0.965 | AC15: 0.98 | AD15: 1 | AE15: 1 | AF15: 0.5824 | AG15: 0.5749333333 | AH15: 0.5664 | AI15: 0.5616 | AJ15: 0.5568 | AK15: 0.4570666667 | AL15: 0.3792 | AM15: =Y15*C15+($A$4-80)*AF15*$A$12/1000 -> 21.49932203 | AN15: =Z15*E15+($A$4-80)*AG15*$A$12/1000 -> 21.73717373 | AO15: =AA15*G15+($A$4-80)*AH15*$A$12/1000 -> 21.71555085 | AP15: =AB15*I15+($A$4-80)*AI15*$A$12/1000 -> 21.7603411 | AQ15: =AC15*K15+($A$4-80)*AJ15*$A$12/1000 -> 21.79586441 | AR15: =AD15*M15+($A$4-80)*AK15*$A$12/1000 -> 21.10805085 | AS15: =AE15*O15+($A$4-80)*AL15*$A$12/1000 -> 19.56355932
A16: 900 | B16: 71 | C16: 28.93347458 | D16: 15.62407627 | E16: 28.21271186 | F16: 15.79911864 | G16: 27.59491525 | H16: 16.00505085 | I16: 27.2345339 | J16: 16.068375 | K16: 26.87415254 | L16: 16.12449153 | M16: 25.53559322 | N16: 15.8320678 | O16: 23.68220339 | P16: 14.6829661 | R16: 1.190677966 | S16: 1.161016949 | T16: 1.13559322 | U16: 1.120762712 | V16: 1.105932203 | W16: 1.050847458 | X16: 0.9745762712 | Y16: 0.54 | Z16: 0.56 | AA16: 0.58 | AB16: 0.59 | AC16: 0.6 | AD16: 0.62 | AE16: 0.62 | AF16: 0.9822222222 | AG16: 1.017777778 | AH16: 1.054222222 | AI16: 1.069388889 | AJ16: 1.083777778 | AK16: 1.028 | AL16: 0.9615555556 | AM16: =Y16*C16+($A$4-80)*AF16*$A$16/1000 -> 15.62407627 | AN16: =Z16*E16+($A$4-80)*AG16*$A$16/1000 -> 15.79911864 | AO16: =AA16*G16+($A$4-80)*AH16*$A$16/1000 -> 16.00505085 | AP16: =AB16*I16+($A$4-80)*AI16*$A$16/1000 -> 16.068375 | AQ16: =AC16*K16+($A$4-80)*AJ16*$A$16/1000 -> 16.12449153 | AR16: =AD16*M16+($A$4-80)*AK16*$A$16/1000 -> 15.8320678 | AS16: =AE16*O16+($A$4-80)*AL16*$A$16/1000 -> 14.6829661
B17: 67 | C17: 27.08008475 | D17: 19.76846186 | E17: 26.35932203 | F17: 19.76949153 | G17: 25.74152542 | H17: 19.82097458 | I17: 25.43262712 | J17: 19.96461229 | K17: 25.12372881 | L17: 20.09898305 | M17: 23.88813559 | N17: 19.82715254 | O17: 22.13771186 | P17: 18.37430085 | R17: 1.11440678 | S17: 1.084745763 | T17: 1.059322034 | U17: 1.046610169 | V17: 1.033898305 | W17: 0.9830508475 | X17: 0.9110169492 | Y17: 0.73 | Z17: 0.75 | AA17: 0.77 | AB17: 0.785 | AC17: 0.8 | AD17: 0.83 | AE17: 0.83 | AF17: 0.8182222222 | AG17: 0.7828888889 | AH17: 0.8195555556 | AI17: 0.8367777778 | AJ17: 0.8533333333 | AK17: 0.81 | AL17: 0.7495555556 | AM17: =Y17*C17+($A$4-80)*AF17*$A$16/1000 -> 19.76846186 | AN17: =Z17*E17+($A$4-80)*AG17*$A$16/1000 -> 19.76949153 | AO17: =AA17*G17+($A$4-80)*AH17*$A$16/1000 -> 19.82097458 | AP17: =AB17*I17+($A$4-80)*AI17*$A$16/1000 -> 19.96461229 | AQ17: =AC17*K17+($A$4-80)*AJ17*$A$16/1000 -> 20.09898305 | AR17: =AD17*M17+($A$4-80)*AK17*$A$16/1000 -> 19.82715254 | AS17: =AE17*O17+($A$4-80)*AL17*$A$16/1000 -> 18.37430085
B18: 63 | C18: 25.32966102 | D18: 22.54339831 | E18: 24.71186441 | F18: 22.9820339 | G18: 24.0940678 | H18: 22.88936441 | I18: 23.83665254 | J18: 23.24073623 | K18: 23.57923729 | L18: 23.57923729 | M18: 22.34364407 | N18: 22.34364407 | O18: 20.69618644 | P18: 20.69618644 | R18: 1.042372881 | S18: 1.016949153 | T18: 0.9915254237 | U18: 0.9809322034 | V18: 0.9703389831 | W18: 0.9194915254 | X18: 0.8516949153 | Y18: 0.89 | Z18: 0.93 | AA18: 0.95 | AB18: 0.975 | AC18: 1 | AD18: 1 | AE18: 1 | AF18: 0.6533333333 | AG18: 0.7288888889 | AH18: 0.6608888889 | AI18: 0.7411666667 | AJ18: 0.82 | AK18: 0.6177777778 | AL18: 0.5308888889 | AM18: =Y18*C18+($A$4-80)*AF18*$A$16/1000 -> 22.54339831 | AN18: =Z18*E18+($A$4-80)*AG18*$A$16/1000 -> 22.9820339 | AO18: =AA18*G18+($A$4-80)*AH18*$A$16/1000 -> 22.88936441 | AP18: =AB18*I18+($A$4-80)*AI18*$A$16/1000 -> 23.24073623 | AQ18: =AC18*K18+($A$4-80)*AJ18*$A$16/1000 -> 23.57923729 | AR18: =AD18*M18+($A$4-80)*AK18*$A$16/1000 -> 22.34364407 | AS18: =AE18*O18+($A$4-80)*AL18*$A$16/1000 -> 20.69618644
B19: 59 | C19: 24.81483051 | D19: 23.57408898 | E19: 24.1970339 | F19: 24.1970339 | G19: 23.57923729 | H19: 23.57923729 | I19: 23.32182203 | J19: 23.32182203 | K19: 23.06440678 | L19: 23.06440678 | M19: 21.93177966 | N19: 21.93177966 | O19: 20.28432203 | P19: 20.28432203 | R19: 1.021186441 | S19: 0.9957627119 | T19: 0.9703389831 | U19: 0.9597457627 | V19: 0.9491525424 | W19: 0.9025423729 | X19: 0.8347457627 | Y19: 0.95 | Z19: 1 | AA19: 1 | AB19: 1 | AC19: 1 | AD19: 1 | AE19: 1 | AF19: 0.5251111111 | AG19: 0.6022222222 | AH19: 0.4888888889 | AI19: 0.4102777778 | AJ19: 0.3333333333 | AK19: 0.1353333333 | AL19: 0.08888888889 | AM19: =Y19*C19+($A$4-80)*AF19*$A$16/1000 -> 23.57408898 | AN19: =Z19*E19+($A$4-80)*AG19*$A$16/1000 -> 24.1970339 | AO19: =AA19*G19+($A$4-80)*AH19*$A$16/1000 -> 23.57923729 | AP19: =AB19*I19+($A$4-80)*AI19*$A$16/1000 -> 23.32182203 | AQ19: =AC19*K19+($A$4-80)*AJ19*$A$16/1000 -> 23.06440678 | AR19: =AD19*M19+($A$4-80)*AK19*$A$16/1000 -> 21.93177966 | AS19: =AE19*O19+($A$4-80)*AL19*$A$16/1000 -> 20.28432203

Sheet GSX160_30 (hidden)
A2: GSX160_30
A3: Evaporator Air | C3: Condenser Entering Air Temperature ˚F
A4: 80 | B4: °F DB | C4: 65 | E4: 75 | G4: 85 | I4: 90 | K4: 95 | M4: 105 | O4: 115
A5: CFM | B5: EWB† ˚F | C5: Capacity Mbtuh | E5: Capacity Mbtuh | G5: Capacity Mbtuh | I5: Capacity Mbtuh | K5: Capacity Mbtuh | M5: Capacity Mbtuh | O5: Capacity Mbtuh
C6: Total | D6: Sens. | E6: Total | F6: Sens. | G6: Total | H6: Sens. | I6: Total | J6: Sens. | K6: Total | L6: Sens. | M6: Total | N6: Sens. | O6: Total | P6: Sens.
R7: Total Factors | Y7: Sens. % | AF7: IDB Adj | AM7: Sens Calc
